Workbook

Sheet קורס X (hidden)
A1: מסורת ומודרנה - דו"ח למורה
A4: * מפרט צבעים והערות *
B5: פרטי משתמשים | C5: פרטי התלמידים ואנשי צוות הקורס
B6: ציון כללי | C6: הציון הכללי עד רגע יציאת הדו"ח מתוך 100%
B7: שיעור לתלמיד | C7: שקלול כל רכיבי הציון מסוג זה הינו 15% מציון הקורס
B8: משימת סיכום פרק | C8: שקלול כל רכיבי הציון מסוג זה הינו 35% מציון הקורס
B9: הפנמה | C9: אינו משתקלל אל הציון הכללי
B10: העשרה | C10: אינו משתקלל אל הציון הכללי
B11: סיכום קורס - שאלות סגורות | C11: שקלול כל רכיבי הציון מסוג זה הינו 15% מציון הקורס
B12: סיכום קורס - שאלות פתוחות | C12: שקלול כל רכיבי הציון מסוג זה הינו 25% מציון הקורס
B13: תלמידאות | C13: שקלול רכיב ציון זה הינו 10% מציון הקורס
B14: איש צוות או מורה
B15: סטטוס תלמיד משוקלל פרקים 1 עד X | C15: *בתצוגה רק למורים שבדקו את כל "משימות סיכום הפרק" בפרקים 1 עד X
A17: מידע נוסף:
A18: *שיטה נוחה להתמקדות בנתונים של תלמיד בודד היא לסמן את כל השורה שלו בדו"ח בצבע בולט. דוח ציונים לפי פרקים: - מראה את הציון הכללי של תלמיד עד לנקודת הזמן בה נוצר הדו"ח. - מראה פירוט של תתי פרקים שונים בקורס לפי רכיב הציון הקשור איליהם.

Sheet דוח ציונים (hidden)
A1: Username | B1: אימייל | D1: ציון כללי | E1: פרק 1: נאורוּת - שעור לתלמיד - תת פרק חובה | F1: פרק 1: נאורוּת - משימת סיכום - תת פרק חובה | G1: פרק 1: נאורוּת - משימת הפנמה | H1: פרק 1: נאורוּת - משימת העשרה | J1: פרק 2: מלחמת העולם הראשונה - - שעור לתלמיד - תת פרק חובה | K1: פרק 2: מלחמת העולם הראשונה - - משימת סיכום - תת פרק חובה | L1: פרק 2: מלחמת העולם הראשונה - משימת הפנמה | M1: פרק 2: מלחמת העולם הראשונה - משימת העשרה - רשות: מלחמת החפירות | O1: פרק 3: מעמד היהודים, השינויים במעמד המשפטי של יהודי צרפת משלהי המאה ה-18 עד ראשית המאה ה-20 - שיעור לתלמיד - תת פרק לבחירה | P1: פרק 3: מעמד היהודים, השינויים במעמד המשפטי של יהודי צרפת משלהי המאה ה-18 עד ראשית המאה ה-20 - משימת סיכום - תת פרק לבחירה | Q1: פרק 3: מעמד היהודים, השינויים במעמד המשפטי של יהודי גרמניה משלהי המאה ה-18 עד ראשית המאה ה-20 - שיעור לתלמיד - תת פרק לבחירה | R1: פרק 3: מעמד היהודים, השינויים במעמד המשפטי של יהודי גרמניה משלהי המאה ה-18 עד ראשית המאה ה-20 - משימת סיכום - תת פרק לבחירה | S1: פרק 3: מעמד היהודים, השינויים במעמד המשפטי של היהודים בארצות האסלאם - תהליך האמנציפציה באלג'יריה - שיעור לתלמיד - תת פרק חובה | T1: פרק 3: מעמד היהודים, השינויים במעמד המשפטי של היהודים בארצות האסלאם - תהליך האמנציפציה באלג'יריה - משימת סיכום - תת פרק חובה | U1: פרק 3: מעמד היהודים, השלכות השינויים במעמד היהודים על החברה היהודית - - שיעור לתלמיד - תת פרק חובה | V1: פרק 3: מעמד היהודים, השפעת הליברליזם על תמורות בחברה היהודית - - משימת סיכום לכל הפרק - תת פרק חובה | W1: פרק 3: מעמד היהודים, משימת הפנמה לכל הפרק | X1: פרק 3: מעמד היהודים, משימת העשרה לכל הפרק | Z1: פרק 4: תנועת ההשכלה היהודית: השפעת הנאורות על החברה היהודית - שיעור לתלמיד - תת פרק חובה | AA1: פרק 4: תנועת ההשכלה היהודית: השפעת הנאורות על החברה היהודית - משימת סיכום - תת פרק חובה | AC1: פרק 5: תנועות וזרמיים יהודיים ניאו אורתודוקסיה - חיוב המודרנה תוך שמירה קפדנית על מצוות הדת - שיעור לתלמיד - תת פרק חובה | AD1: פרק 5: תנועות וזרמיים יהודיים ניאו אורתודוקסיה - חיוב המודרנה תוך שמירה קפדנית על מצוות הדת - משימת סיכום - תת פרק חובה | AE1: פרק 5: תנועות וזרמים יהודיים: משימת סיכום לכל הפרק - תת פרק חובה | AG1: פרק 6: מבשרי הציונות וחיבת ציון - - שיעור לתלמיד - תת פרק חובה | AH1: פרק 6: מבשרי הציונות וחיבת ציון - - משימת סיכום - תת פרק חובה | AI1: פרק 6: מבשרי הציונות וחיבת ציון - משימת הפנמה | AJ1: פרק 6: מבשרי הציונות וחיבת ציון - משימת העשרה | AL1: פרק 7: התנועה הציונית והרצל - שיעור לתלמיד - תת פרק חובה | AM1: פרק 7: התנועה הציונית והרצל - משימת סיכום - סוף ימיו של הרצל - תת פרק חובה | AN1: פרק 7: התנועה הציונית והרצל - משימת הפנמה | AO1: פרק 7: התנועה הציונית והרצל - משימת העשרה | AQ1: פרק 8: מפלגות, זרמים ומתנגדים - שיעור לתלמיד - תת פרק חובה | AR1: פרק 8: מפלגות, זרמים ומתנגדים - משימת סיכום - תת פרק חובה | AS1: פרק 8: מפלגות, זרמים ומתנגדים - משימת הפנמה | AT1: פרק 8: מפלגות, זרמים ומתנגדים - משימת העשרה | AV1: סיכום קורס-ש' סגורות - תת פרק חובה | AW1: סיכום קורס-ש' פתוחות - תת פרק חובה | AX1: תלמידאות - תת פרק חובה
A2: =grade_report!C4 -> RonitHochster | B2: =grade_report!B4 -> ronithex@gmail.com | D2: =VLOOKUP(A2,grade_report!C:D,2,FALSE) -> 0 | E2: =HLOOKUP("שיעור לתלמיד 1: נאורוּת - שיעור לתלמיד",grade_report!$3:$100,ROWS($A$4:A5),0) -> 0.0625 | F2: =HLOOKUP("סיכום פרק 1: נאורוּת - משימת סיכום",grade_report!$3:$100,ROWS($A$4:A5),0) -> Not Attempted | G2: =HLOOKUP("הפנמה 1: נאורוּת - משימת הפנמה",grade_report!$3:$100,ROWS($A$4:B5),0) -> Not Attempted | H2: =HLOOKUP("העשרה 1: נאורוּת - משימת העשרה",grade_report!$3:$100,ROWS($A$4:C5),0) -> Not Attempted | J2: =HLOOKUP("שיעור לתלמיד 2: מלחמת העולם הראשונה - שיעור לתלמיד",grade_report!$3:$100,ROWS($A$4:E5),0) ->  | K2: =HLOOKUP("סיכום פרק 2: מלחמת העולם הראשונה - משימת סיכום",grade_report!$3:$100,ROWS($A$4:E5),0) ->  | L2: =HLOOKUP("הפנמה 2: מלחמת העולם הראשונה - משימת הפנמה",grade_report!$3:$100,ROWS($A$4:F5),0) ->  | M2: =HLOOKUP("העשרה 2: מלחמת העולם הראשונה - משימת העשרה - רשות: מלחמת החפירות",grade_report!$3:$100,ROWS($A$4:G5),0) ->  | O2: =HLOOKUP("שיעור לתלמיד 3: השינויים במעמד המשפטי של יהודי צרפת משלהי המאה ה-18 עד ראשית המאה ה-20 - תת פרק לבחירה",grade_report!$3:$100,ROWS($A$4:J5),0) ->  | P2: =HLOOKUP("סיכום פרק 3: השינויים במעמד המשפטי של יהודי צרפת משלהי המאה ה-18 עד ראשית המאה ה-20 -משימת סיכום",grade_report!$3:$100,ROWS($A$4:J5),0) ->  | Q2: =HLOOKUP("שיעור לתלמיד 4: השינויים במעמד המשפטי של יהודי גרמניה משלהי המאה ה-18 עד ראשית המאה ה-20 - תת פרק לבחירה",grade_report!$3:$100,ROWS($A$4:O5),0) ->  | R2: =HLOOKUP("סיכום פרק 4: השינויים במעמד המשפטי של יהודי גרמניה משלהי המאה ה-18 עד ראשית המאה ה-20 - תת פרק לבחירה -משימת סיכום",grade_report!$3:$100,ROWS($A$4:O5),0) ->  | S2: =HLOOKUP("שיעור לתלמיד 5: השינויים במעמד המשפטי של היהודים בארצות האסלאם - תהליך האמנציפציה באלג'יריה - תת פרק חובה",grade_report!$3:$100,ROWS($A$4:A5),0) ->  | T2: =HLOOKUP("סיכום פרק 5: השינויים במעמד המשפטי של היהודים בארצות האסלאם - תהליך האמנציפציה באלג'יריה - משימת סיכום",grade_report!$3:$100,ROWS($A$4:A5),0) ->  | U2: =HLOOKUP("שיעור לתלמיד 6: השלכות השינויים במעמד היהודים על החברה היהודית - תת פרק חובה",grade_report!$3:$100,ROWS($A$4:D5),0) ->  | V2: =HLOOKUP("סיכום פרק 6: השפעת הליברליזם על תמורות בחברה היהודית - משימת סיכום - סיכום הסוגיה לכל הפרק",grade_report!$3:$100,ROWS($A$4:A5),0) ->  | W2: =HLOOKUP("הפנמה 3: מעמד היהודים משלהי המאה ה-18 ועד תחילת המאה ה-20 - משימת הפנמה לכל הפרק",grade_report!$3:$100,ROWS($A$4:Q5),0) ->  | X2: =HLOOKUP("העשרה 3: מעמד היהודים משלהי המאה ה-18 ועד תחילת המאה ה-20 - משימת העשרה לכל הפרק",grade_report!$3:$100,ROWS($A$4:R5),0) ->  | Z2: =HLOOKUP("שיעור לתלמיד 7: השפעת הנאורות על החברה היהודית - תת פרק חובה",grade_report!$3:$100,ROWS($A$4:A5),0) ->  | AA2: =HLOOKUP("סיכום פרק 7: השפעת הנאורות על החברה היהודית - תת פרק חובה - משימת סיכום",grade_report!$3:$100,ROWS($A$4:A5),0) ->  | AC2: =HLOOKUP("שיעור לתלמיד 8: ניאו אורתודוקסיה - חיוב המודרנה תוך שמירה קפדנית על מצוות הדת - שיעור לתלמיד",grade_report!$3:$100,ROWS($A$4:D5),0) ->  | AD2: =HLOOKUP("סיכום פרק 8: ניאו אורתודוקסיה - חיוב המודרנה תוך שמירה קפדנית על מצוות הדת - משימת סיכום",grade_report!$3:$100,ROWS($A$4:D5),0) ->  | AE2: =HLOOKUP("סיכום פרק 9: תנועות וזרמים יהודיים - משימת סיכום לכל הפרק",grade_report!$3:$100,ROWS($A$4:E5),0) ->  | AG2: =HLOOKUP("שיעור לתלמיד 9: מבשרי הציונות וחיבת ציון - שיעור לתלמיד",grade_report!$3:$100,ROWS($A$4:H5),0) ->  | AH2: =HLOOKUP("סיכום פרק 10: מבשרי הציונות וחיבת ציון - משימת סיכום",grade_report!$3:$100,ROWS($A$4:H5),0) ->  | AI2: =HLOOKUP("הפנמה 4: מבשרי הציונות וחיבת ציון - משימת הפנמה",grade_report!$3:$100,ROWS($A$4:AC5),0) ->  | AJ2: =HLOOKUP("העשרה 4: מבשרי הציונות וחיבת ציון - משימת העשרה",grade_report!$3:$100,ROWS($A$4:AD5),0) ->  | AL2: =HLOOKUP("שיעור לתלמיד 10: התנועה הציונית והרצל - שיעור לתלמיד",grade_report!$3:$100,ROWS($A$4:M5),0) ->  | AM2: =HLOOKUP("סיכום פרק 11: התנועה הציונית והרצל - משימת סיכום - סוף ימיו של הרצל",grade_report!$3:$100,ROWS($A$4:M5),0) ->  | AN2: =HLOOKUP("הפנמה 5: התנועה הציונית והרצל - משימת הפנמה",grade_report!$3:$100,ROWS($A$4:AH5),0) ->  | AO2: =HLOOKUP("העשרה 5: התנועה הציונית והרצל - משימת העשרה",grade_report!$3:$100,ROWS($A$4:AI5),0) ->  | AQ2: =HLOOKUP("שיעור לתלמיד 11: מפלגות, זרמים ומתנגדים - שיעור לתלמיד",grade_report!$3:$100,ROWS($A$4:R5),0) ->  | AR2: =HLOOKUP("סיכום פרק 12: מפלגות, זרמים ומתנגדים - משימת סיכום",grade_report!$3:$100,ROWS($A$4:R5),0) ->  | AS2: =HLOOKUP("הפנמה 6: מפלגות, זרמים ומתנגדים - משימת הפנמה",grade_report!$3:$100,ROWS($A$4:AM5),0) ->  | AT2: =HLOOKUP("העשרה 6: מפלגות, זרמים ומתנגדים - משימת העשרה",grade_report!$3:$100,ROWS($A$4:AN5),0) ->  | AV2: =HLOOKUP("סיכום קורס-ש' סגורות",grade_report!$3:$100,ROWS($A$4:AP5),0) ->  | AW2: =HLOOKUP("סיכום קורס-ש' פתוחות",grade_report!$3:$100,ROWS($A$4:AQ5),0) ->  | AX2: =HLOOKUP("תלמידאות",grade_report!$3:$100,ROWS($A$4:AR5),0) -> Not Attempted
A3: =grade_report!C5 -> Jamalk1 | B3: =grade_report!B5 -> jamalk@mse.gov.il | D3: =VLOOKUP(A3,grade_report!C:D,2,FALSE) -> 0 | E3: =HLOOKUP("שיעור לתלמיד 1: נאורוּת - שיעור לתלמיד",grade_report!$3:$100,ROWS($A$4:A6),0) -> Not Attempted | F3: =HLOOKUP("סיכום פרק 1: נאורוּת - משימת סיכום",grade_report!$3:$100,ROWS($A$4:A6),0) -> Not Attempted | G3: =HLOOKUP("הפנמה 1: נאורוּת - משימת הפנמה",grade_report!$3:$100,ROWS($A$4:B6),0) -> Not Attempted | H3: =HLOOKUP("העשרה 1: נאורוּת - משימת העשרה",grade_report!$3:$100,ROWS($A$4:C6),0) -> Not Attempted | J3: =HLOOKUP("שיעור לתלמיד 2: מלחמת העולם הראשונה - שיעור לתלמיד",grade_report!$3:$100,ROWS($A$4:E6),0) ->  | K3: =HLOOKUP("סיכום פרק 2: מלחמת העולם הראשונה - משימת סיכום",grade_report!$3:$100,ROWS($A$4:E6),0) ->  | L3: =HLOOKUP("הפנמה 2: מלחמת העולם הראשונה - משימת הפנמה",grade_report!$3:$100,ROWS($A$4:F6),0) ->  | M3: =HLOOKUP("העשרה 2: מלחמת העולם הראשונה - משימת העשרה - רשות: מלחמת החפירות",grade_report!$3:$100,ROWS($A$4:G6),0) ->  | O3: =HLOOKUP("שיעור לתלמיד 3: השינויים במעמד המשפטי של יהודי צרפת משלהי המאה ה-18 עד ראשית המאה ה-20 - תת פרק לבחירה",grade_report!$3:$100,ROWS($A$4:J6),0) ->  | P3: =HLOOKUP("סיכום פרק 3: השינויים במעמד המשפטי של יהודי צרפת משלהי המאה ה-18 עד ראשית המאה ה-20 -משימת סיכום",grade_report!$3:$100,ROWS($A$4:J6),0) ->  | Q3: =HLOOKUP("שיעור לתלמיד 4: השינויים במעמד המשפטי של יהודי גרמניה משלהי המאה ה-18 עד ראשית המאה ה-20 - תת פרק לבחירה",grade_report!$3:$100,ROWS($A$4:O6),0) ->  | R3: =HLOOKUP("סיכום פרק 4: השינויים במעמד המשפטי של יהודי גרמניה משלהי המאה ה-18 עד ראשית המאה ה-20 - תת פרק לבחירה -משימת סיכום",grade_report!$3:$100,ROWS($A$4:O6),0) ->  | S3: =HLOOKUP("שיעור לתלמיד 5: השינויים במעמד המשפטי של היהודים בארצות האסלאם - תהליך האמנציפציה באלג'יריה - תת פרק חובה",grade_report!$3:$100,ROWS($A$4:A6),0) ->  | T3: =HLOOKUP("סיכום פרק 5: השינויים במעמד המשפטי של היהודים בארצות האסלאם - תהליך האמנציפציה באלג'יריה - משימת סיכום",grade_report!$3:$100,ROWS($A$4:A6),0) ->  | U3: =HLOOKUP("שיעור לתלמיד 6: השלכות השינויים במעמד היהודים על החברה היהודית - תת פרק חובה",grade_report!$3:$100,ROWS($A$4:D6),0) ->  | V3: =HLOOKUP("סיכום פרק 6: השפעת הליברליזם על תמורות בחברה היהודית - משימת סיכום - סיכום הסוגיה לכל הפרק",grade_report!$3:$100,ROWS($A$4:A6),0) ->  | W3: =HLOOKUP("הפנמה 3: מעמד היהודים משלהי המאה ה-18 ועד תחילת המאה ה-20 - משימת הפנמה לכל הפרק",grade_report!$3:$100,ROWS($A$4:Q6),0) ->  | X3: =HLOOKUP("העשרה 3: מעמד היהודים משלהי המאה ה-18 ועד תחילת המאה ה-20 - משימת העשרה לכל הפרק",grade_report!$3:$100,ROWS($A$4:R6),0) ->  | Z3: =HLOOKUP("שיעור לתלמיד 7: השפעת הנאורות על החברה היהודית - תת פרק חובה",grade_report!$3:$100,ROWS($A$4:A6),0) ->  | AA3: =HLOOKUP("סיכום פרק 7: השפעת הנאורות על החברה היהודית - תת פרק חובה - משימת סיכום",grade_report!$3:$100,ROWS($A$4:A6),0) ->  | AC3: =HLOOKUP("שיעור לתלמיד 8: ניאו אורתודוקסיה - חיוב המודרנה תוך שמירה קפדנית על מצוות הדת - שיעור לתלמיד",grade_report!$3:$100,ROWS($A$4:D6),0) ->  | AD3: =HLOOKUP("סיכום פרק 8: ניאו אורתודוקסיה - חיוב המודרנה תוך שמירה קפדנית על מצוות הדת - משימת סיכום",grade_report!$3:$100,ROWS($A$4:D6),0) ->  | AE3: =HLOOKUP("סיכום פרק 9: תנועות וזרמים יהודיים - משימת סיכום לכל הפרק",grade_report!$3:$100,ROWS($A$4:E6),0) ->  | AG3: =HLOOKUP("שיעור לתלמיד 9: מבשרי הציונות וחיבת ציון - שיעור לתלמיד",grade_report!$3:$100,ROWS($A$4:H6),0) ->  | AH3: =HLOOKUP("סיכום פרק 10: מבשרי הציונות וחיבת ציון - משימת סיכום",grade_report!$3:$100,ROWS($A$4:H6),0) ->  | AI3: =HLOOKUP("הפנמה 4: מבשרי הציונות וחיבת ציון - משימת הפנמה",grade_report!$3:$100,ROWS($A$4:AC6),0) ->  | AJ3: =HLOOKUP("העשרה 4: מבשרי הציונות וחיבת ציון - משימת העשרה",grade_report!$3:$100,ROWS($A$4:AD6),0) ->  | AL3: =HLOOKUP("שיעור לתלמיד 10: התנועה הציונית והרצל - שיעור לתלמיד",grade_report!$3:$100,ROWS($A$4:M6),0) ->  | AM3: =HLOOKUP("סיכום פרק 11: התנועה הציונית והרצל - משימת סיכום - סוף ימיו של הרצל",grade_report!$3:$100,ROWS($A$4:M6),0) ->  | AN3: =HLOOKUP("הפנמה 5: התנועה הציונית והרצל - משימת הפנמה",grade_report!$3:$100,ROWS($A$4:AH6),0) ->  | AO3: =HLOOKUP("העשרה 5: התנועה הציונית והרצל - משימת העשרה",grade_report!$3:$100,ROWS($A$4:AI6),0) ->  | AQ3: =HLOOKUP("שיעור לתלמיד 11: מפלגות, זרמים ומתנגדים - שיעור לתלמיד",grade_report!$3:$100,ROWS($A$4:R6),0) ->  | AR3: =HLOOKUP("סיכום פרק 12: מפלגות, זרמים ומתנגדים - משימת סיכום",grade_report!$3:$100,ROWS($A$4:R6),0) ->  | AS3: =HLOOKUP("הפנמה 6: מפלגות, זרמים ומתנגדים - משימת הפנמה",grade_report!$3:$100,ROWS($A$4:AM6),0) ->  | AT3: =HLOOKUP("העשרה 6: מפלגות, זרמים ומתנגדים - משימת העשרה",grade_report!$3:$100,ROWS($A$4:AN6),0) ->  | AV3: =HLOOKUP("סיכום קורס-ש' סגורות",grade_report!$3:$100,ROWS($A$4:AP6),0) ->  | AW3: =HLOOKUP("סיכום קורס-ש' פתוחות",grade_report!$3:$100,ROWS($A$4:AQ6),0) ->  | AX3: =HLOOKUP("תלמידאות",grade_report!$3:$100,ROWS($A$4:AR6),0) -> Not Attempted
A4: =grade_report!C6 -> נועה_ביטון_4 | B4: =grade_report!B6 -> noab5027@gmail.com | D4: =VLOOKUP(A4,grade_report!C:D,2,FALSE) -> 0.02 | E4: =HLOOKUP("שיעור לתלמיד 1: נאורוּת - שיעור לתלמיד",grade_report!$3:$100,ROWS($A$4:A7),0) -> 0.9375 | F4: =HLOOKUP("סיכום פרק 1: נאורוּת - משימת סיכום",grade_report!$3:$100,ROWS($A$4:A7),0) -> Not Attempted | G4: =HLOOKUP("הפנמה 1: נאורוּת - משימת הפנמה",grade_report!$3:$100,ROWS($A$4:B7),0) -> 0.04761904762 | H4: =HLOOKUP("העשרה 1: נאורוּת - משימת העשרה",grade_report!$3:$100,ROWS($A$4:C7),0) -> Not Attempted | J4: =HLOOKUP("שיעור לתלמיד 2: מלחמת העולם הראשונה - שיעור לתלמיד",grade_report!$3:$100,ROWS($A$4:E7),0) ->  | K4: =HLOOKUP("סיכום פרק 2: מלחמת העולם הראשונה - משימת סיכום",grade_report!$3:$100,ROWS($A$4:E7),0) ->  | L4: =HLOOKUP("הפנמה 2: מלחמת העולם הראשונה - משימת הפנמה",grade_report!$3:$100,ROWS($A$4:F7),0) ->  | M4: =HLOOKUP("העשרה 2: מלחמת העולם הראשונה - משימת העשרה - רשות: מלחמת החפירות",grade_report!$3:$100,ROWS($A$4:G7),0) ->  | O4: =HLOOKUP("שיעור לתלמיד 3: השינויים במעמד המשפטי של יהודי צרפת משלהי המאה ה-18 עד ראשית המאה ה-20 - תת פרק לבחירה",grade_report!$3:$100,ROWS($A$4:J7),0) ->  | P4: =HLOOKUP("סיכום פרק 3: השינויים במעמד המשפטי של יהודי צרפת משלהי המאה ה-18 עד ראשית המאה ה-20 -משימת סיכום",grade_report!$3:$100,ROWS($A$4:J7),0) ->  | Q4: =HLOOKUP("שיעור לתלמיד 4: השינויים במעמד המשפטי של יהודי גרמניה משלהי המאה ה-18 עד ראשית המאה ה-20 - תת פרק לבחירה",grade_report!$3:$100,ROWS($A$4:O7),0) ->  | R4: =HLOOKUP("סיכום פרק 4: השינויים במעמד המשפטי של יהודי גרמניה משלהי המאה ה-18 עד ראשית המאה ה-20 - תת פרק לבחירה -משימת סיכום",grade_report!$3:$100,ROWS($A$4:O7),0) ->  | S4: =HLOOKUP("שיעור לתלמיד 5: השינויים במעמד המשפטי של היהודים בארצות האסלאם - תהליך האמנציפציה באלג'יריה - תת פרק חובה",grade_report!$3:$100,ROWS($A$4:A7),0) ->  | T4: =HLOOKUP("סיכום פרק 5: השינויים במעמד המשפטי של היהודים בארצות האסלאם - תהליך האמנציפציה באלג'יריה - משימת סיכום",grade_report!$3:$100,ROWS($A$4:A7),0) ->  | U4: =HLOOKUP("שיעור לתלמיד 6: השלכות השינויים במעמד היהודים על החברה היהודית - תת פרק חובה",grade_report!$3:$100,ROWS($A$4:D7),0) ->  | V4: =HLOOKUP("סיכום פרק 6: השפעת הליברליזם על תמורות בחברה היהודית - משימת סיכום - סיכום הסוגיה לכל הפרק",grade_report!$3:$100,ROWS($A$4:A7),0) ->  | W4: =HLOOKUP("הפנמה 3: מעמד היהודים משלהי המאה ה-18 ועד תחילת המאה ה-20 - משימת הפנמה לכל הפרק",grade_report!$3:$100,ROWS($A$4:Q7),0) ->  | X4: =HLOOKUP("העשרה 3: מעמד היהודים משלהי המאה ה-18 ועד תחילת המאה ה-20 - משימת העשרה לכל הפרק",grade_report!$3:$100,ROWS($A$4:R7),0) ->  | Z4: =HLOOKUP("שיעור לתלמיד 7: השפעת הנאורות על החברה היהודית - תת פרק חובה",grade_report!$3:$100,ROWS($A$4:A7),0) ->  | AA4: =HLOOKUP("סיכום פרק 7: השפעת הנאורות על החברה היהודית - תת פרק חובה - משימת סיכום",grade_report!$3:$100,ROWS($A$4:A7),0) ->  | AC4: =HLOOKUP("שיעור לתלמיד 8: ניאו אורתודוקסיה - חיוב המודרנה תוך שמירה קפדנית על מצוות הדת - שיעור לתלמיד",grade_report!$3:$100,ROWS($A$4:D7),0) ->  | AD4: =HLOOKUP("סיכום פרק 8: ניאו אורתודוקסיה - חיוב המודרנה תוך שמירה קפדנית על מצוות הדת - משימת סיכום",grade_report!$3:$100,ROWS($A$4:D7),0) ->  | AE4: =HLOOKUP("סיכום פרק 9: תנועות וזרמים יהודיים - משימת סיכום לכל הפרק",grade_report!$3:$100,ROWS($A$4:E7),0) ->  | AG4: =HLOOKUP("שיעור לתלמיד 9: מבשרי הציונות וחיבת ציון - שיעור לתלמיד",grade_report!$3:$100,ROWS($A$4:H7),0) ->  | AH4: =HLOOKUP("סיכום פרק 10: מבשרי הציונות וחיבת ציון - משימת סיכום",grade_report!$3:$100,ROWS($A$4:H7),0) ->  | AI4: =HLOOKUP("הפנמה 4: מבשרי הציונות וחיבת ציון - משימת הפנמה",grade_report!$3:$100,ROWS($A$4:AC7),0) ->  | AJ4: =HLOOKUP("העשרה 4: מבשרי הציונות וחיבת ציון - משימת העשרה",grade_report!$3:$100,ROWS($A$4:AD7),0) ->  | AL4: =HLOOKUP("שיעור לתלמיד 10: התנועה הציונית והרצל - שיעור לתלמיד",grade_report!$3:$100,ROWS($A$4:M7),0) ->  | AM4: =HLOOKUP("סיכום פרק 11: התנועה הציונית והרצל - משימת סיכום - סוף ימיו של הרצל",grade_report!$3:$100,ROWS($A$4:M7),0) ->  | AN4: =HLOOKUP("הפנמה 5: התנועה הציונית והרצל - משימת הפנמה",grade_report!$3:$100,ROWS($A$4:AH7),0) ->  | AO4: =HLOOKUP("העשרה 5: התנועה הציונית והרצל - משימת העשרה",grade_report!$3:$100,ROWS($A$4:AI7),0) ->  | AQ4: =HLOOKUP("שיעור לתלמיד 11: מפלגות, זרמים ומתנגדים - שיעור לתלמיד",grade_report!$3:$100,ROWS($A$4:R7),0) ->  | AR4: =HLOOKUP("סיכום פרק 12: מפלגות, זרמים ומתנגדים - משימת סיכום",grade_report!$3:$100,ROWS($A$4:R7),0) ->  | AS4: =HLOOKUP("הפנמה 6: מפלגות, זרמים ומתנגדים - משימת הפנמה",grade_report!$3:$100,ROWS($A$4:AM7),0) ->  | AT4: =HLOOKUP("העשרה 6: מפלגות, זרמים ומתנגדים - משימת העשרה",grade_report!$3:$100,ROWS($A$4:AN7),0) ->  | AV4: =HLOOKUP("סיכום קורס-ש' סגורות",grade_report!$3:$100,ROWS($A$4:AP7),0) ->  | AW4: =HLOOKUP("סיכום קורס-ש' פתוחות",grade_report!$3:$100,ROWS($A$4:AQ7),0) ->  | AX4: =HLOOKUP("תלמידאות",grade_report!$3:$100,ROWS($A$4:AR7),0) -> Not Available
A5: =grade_report!C7 -> שקד_בן_דוד | B5: =grade_report!B7 -> shakedbd24@gmail.com | D5: =VLOOKUP(A5,grade_report!C:D,2,FALSE) -> 0.01 | E5: =HLOOKUP("שיעור לתלמיד 1: נאורוּת - שיעור לתלמיד",grade_report!$3:$100,ROWS($A$4:A8),0) -> 0.8125 | F5: =HLOOKUP("סיכום פרק 1: נאורוּת - משימת סיכום",grade_report!$3:$100,ROWS($A$4:A8),0) -> Not Attempted | G5: =HLOOKUP("הפנמה 1: נאורוּת - משימת הפנמה",grade_report!$3:$100,ROWS($A$4:B8),0) -> 0.04761904762 | H5: =HLOOKUP("העשרה 1: נאורוּת - משימת העשרה",grade_report!$3:$100,ROWS($A$4:C8),0) -> Not Attempted | J5: =HLOOKUP("שיעור לתלמיד 2: מלחמת העולם הראשונה - שיעור לתלמיד",grade_report!$3:$100,ROWS($A$4:E8),0) ->  | K5: =HLOOKUP("סיכום פרק 2: מלחמת העולם הראשונה - משימת סיכום",grade_report!$3:$100,ROWS($A$4:E8),0) ->  | L5: =HLOOKUP("הפנמה 2: מלחמת העולם הראשונה - משימת הפנמה",grade_report!$3:$100,ROWS($A$4:F8),0) ->  | M5: =HLOOKUP("העשרה 2: מלחמת העולם הראשונה - משימת העשרה - רשות: מלחמת החפירות",grade_report!$3:$100,ROWS($A$4:G8),0) ->  | O5: =HLOOKUP("שיעור לתלמיד 3: השינויים במעמד המשפטי של יהודי צרפת משלהי המאה ה-18 עד ראשית המאה ה-20 - תת פרק לבחירה",grade_report!$3:$100,ROWS($A$4:J8),0) ->  | P5: =HLOOKUP("סיכום פרק 3: השינויים במעמד המשפטי של יהודי צרפת משלהי המאה ה-18 עד ראשית המאה ה-20 -משימת סיכום",grade_report!$3:$100,ROWS($A$4:J8),0) ->  | Q5: =HLOOKUP("שיעור לתלמיד 4: השינויים במעמד המשפטי של יהודי גרמניה משלהי המאה ה-18 עד ראשית המאה ה-20 - תת פרק לבחירה",grade_report!$3:$100,ROWS($A$4:O8),0) ->  | R5: =HLOOKUP("סיכום פרק 4: השינויים במעמד המשפטי של יהודי גרמניה משלהי המאה ה-18 עד ראשית המאה ה-20 - תת פרק לבחירה -משימת סיכום",grade_report!$3:$100,ROWS($A$4:O8),0) ->  | S5: =HLOOKUP("שיעור לתלמיד 5: השינויים במעמד המשפטי של היהודים בארצות האסלאם - תהליך האמנציפציה באלג'יריה - תת פרק חובה",grade_report!$3:$100,ROWS($A$4:A8),0) ->  | T5: =HLOOKUP("סיכום פרק 5: השינויים במעמד המשפטי של היהודים בארצות האסלאם - תהליך האמנציפציה באלג'יריה - משימת סיכום",grade_report!$3:$100,ROWS($A$4:A8),0) ->  | U5: =HLOOKUP("שיעור לתלמיד 6: השלכות השינויים במעמד היהודים על החברה היהודית - תת פרק חובה",grade_report!$3:$100,ROWS($A$4:D8),0) ->  | V5: =HLOOKUP("סיכום פרק 6: השפעת הליברליזם על תמורות בחברה היהודית - משימת סיכום - סיכום הסוגיה לכל הפרק",grade_report!$3:$100,ROWS($A$4:A8),0) ->  | W5: =HLOOKUP("הפנמה 3: מעמד היהודים משלהי המאה ה-18 ועד תחילת המאה ה-20 - משימת הפנמה לכל הפרק",grade_report!$3:$100,ROWS($A$4:Q8),0) ->  | X5: =HLOOKUP("העשרה 3: מעמד היהודים משלהי המאה ה-18 ועד תחילת המאה ה-20 - משימת העשרה לכל הפרק",grade_report!$3:$100,ROWS($A$4:R8),0) ->  | Z5: =HLOOKUP("שיעור לתלמיד 7: השפעת הנאורות על החברה היהודית - תת פרק חובה",grade_report!$3:$100,ROWS($A$4:A8),0) ->  | AA5: =HLOOKUP("סיכום פרק 7: השפעת הנאורות על החברה היהודית - תת פרק חובה - משימת סיכום",grade_report!$3:$100,ROWS($A$4:A8),0) ->  | AC5: =HLOOKUP("שיעור לתלמיד 8: ניאו אורתודוקסיה - חיוב המודרנה תוך שמירה קפדנית על מצוות הדת - שיעור לתלמיד",grade_report!$3:$100,ROWS($A$4:D8),0) ->  | AD5: =HLOOKUP("סיכום פרק 8: ניאו אורתודוקסיה - חיוב המודרנה תוך שמירה קפדנית על מצוות הדת - משימת סיכום",grade_report!$3:$100,ROWS($A$4:D8),0) ->  | AE5: =HLOOKUP("סיכום פרק 9: תנועות וזרמים יהודיים - משימת סיכום לכל הפרק",grade_report!$3:$100,ROWS($A$4:E8),0) ->  | AG5: =HLOOKUP("שיעור לתלמיד 9: מבשרי הציונות וחיבת ציון - שיעור לתלמיד",grade_report!$3:$100,ROWS($A$4:H8),0) ->  | AH5: =HLOOKUP("סיכום פרק 10: מבשרי הציונות וחיבת ציון - משימת סיכום",grade_report!$3:$100,ROWS($A$4:H8),0) ->  | AI5: =HLOOKUP("הפנמה 4: מבשרי הציונות וחיבת ציון - משימת הפנמה",grade_report!$3:$100,ROWS($A$4:AC8),0) ->  | AJ5: =HLOOKUP("העשרה 4: מבשרי הציונות וחיבת ציון - משימת העשרה",grade_report!$3:$100,ROWS($A$4:AD8),0) ->  | AL5: =HLOOKUP("שיעור לתלמיד 10: התנועה הציונית והרצל - שיעור לתלמיד",grade_report!$3:$100,ROWS($A$4:M8),0) ->  | AM5: =HLOOKUP("סיכום פרק 11: התנועה הציונית והרצל - משימת סיכום - סוף ימיו של הרצל",grade_report!$3:$100,ROWS($A$4:M8),0) ->  | AN5: =HLOOKUP("הפנמה 5: התנועה הציונית והרצל - משימת הפנמה",grade_report!$3:$100,ROWS($A$4:AH8),0) ->  | AO5: =HLOOKUP("העשרה 5: התנועה הציונית והרצל - משימת העשרה",grade_report!$3:$100,ROWS($A$4:AI8),0) ->  | AQ5: =HLOOKUP("שיעור לתלמיד 11: מפלגות, זרמים ומתנגדים - שיעור לתלמיד",grade_report!$3:$100,ROWS($A$4:R8),0) ->  | AR5: =HLOOKUP("סיכום פרק 12: מפלגות, זרמים ומתנגדים - משימת סיכום",grade_report!$3:$100,ROWS($A$4:R8),0) ->  | AS5: =HLOOKUP("הפנמה 6: מפלגות, זרמים ומתנגדים - משימת הפנמה",grade_report!$3:$100,ROWS($A$4:AM8),0) ->  | AT5: =HLOOKUP("העשרה 6: מפלגות, זרמים ומתנגדים - משימת העשרה",grade_report!$3:$100,ROWS($A$4:AN8),0) ->  | AV5: =HLOOKUP("סיכום קורס-ש' סגורות",grade_report!$3:$100,ROWS($A$4:AP8),0) ->  | AW5: =HLOOKUP("סיכום קורס-ש' פתוחות",grade_report!$3:$100,ROWS($A$4:AQ8),0) ->  | AX5: =HLOOKUP("תלמידאות",grade_report!$3:$100,ROWS($A$4:AR8),0) -> Not Available
A6: =grade_report!C8 -> ליא גולדברג | B6: =grade_report!B8 -> liagold02@gmail.com | D6: =VLOOKUP(A6,grade_report!C:D,2,FALSE) -> 0.08 | E6: =HLOOKUP("שיעור לתלמיד 1: נאורוּת - שיעור לתלמיד",grade_report!$3:$100,ROWS($A$4:A9),0) -> 1 | F6: =HLOOKUP("סיכום פרק 1: נאורוּת - משימת סיכום",grade_report!$3:$100,ROWS($A$4:A9),0) -> Not Attempted | G6: =HLOOKUP("הפנמה 1: נאורוּת - משימת הפנמה",grade_report!$3:$100,ROWS($A$4:B9),0) -> 0.04761904762 | H6: =HLOOKUP("העשרה 1: נאורוּת - משימת העשרה",grade_report!$3:$100,ROWS($A$4:C9),0) -> Not Attempted | J6: =HLOOKUP("שיעור לתלמיד 2: מלחמת העולם הראשונה - שיעור לתלמיד",grade_report!$3:$100,ROWS($A$4:E9),0) ->  | K6: =HLOOKUP("סיכום פרק 2: מלחמת העולם הראשונה - משימת סיכום",grade_report!$3:$100,ROWS($A$4:E9),0) ->  | L6: =HLOOKUP("הפנמה 2: מלחמת העולם הראשונה - משימת הפנמה",grade_report!$3:$100,ROWS($A$4:F9),0) ->  | M6: =HLOOKUP("העשרה 2: מלחמת העולם הראשונה - משימת העשרה - רשות: מלחמת החפירות",grade_report!$3:$100,ROWS($A$4:G9),0) ->  | O6: =HLOOKUP("שיעור לתלמיד 3: השינויים במעמד המשפטי של יהודי צרפת משלהי המאה ה-18 עד ראשית המאה ה-20 - תת פרק לבחירה",grade_report!$3:$100,ROWS($A$4:J9),0) ->  | P6: =HLOOKUP("סיכום פרק 3: השינויים במעמד המשפטי של יהודי צרפת משלהי המאה ה-18 עד ראשית המאה ה-20 -משימת סיכום",grade_report!$3:$100,ROWS($A$4:J9),0) ->  | Q6: =HLOOKUP("שיעור לתלמיד 4: השינויים במעמד המשפטי של יהודי גרמניה משלהי המאה ה-18 עד ראשית המאה ה-20 - תת פרק לבחירה",grade_report!$3:$100,ROWS($A$4:O9),0) ->  | R6: =HLOOKUP("סיכום פרק 4: השינויים במעמד המשפטי של יהודי גרמניה משלהי המאה ה-18 עד ראשית המאה ה-20 - תת פרק לבחירה -משימת סיכום",grade_report!$3:$100,ROWS($A$4:O9),0) ->  | S6: =HLOOKUP("שיעור לתלמיד 5: השינויים במעמד המשפטי של היהודים בארצות האסלאם - תהליך האמנציפציה באלג'יריה - תת פרק חובה",grade_report!$3:$100,ROWS($A$4:A9),0) ->  | T6: =HLOOKUP("סיכום פרק 5: השינויים במעמד המשפטי של היהודים בארצות האסלאם - תהליך האמנציפציה באלג'יריה - משימת סיכום",grade_report!$3:$100,ROWS($A$4:A9),0) ->  | U6: =HLOOKUP("שיעור לתלמיד 6: השלכות השינויים במעמד היהודים על החברה היהודית - תת פרק חובה",grade_report!$3:$100,ROWS($A$4:D9),0) ->  | V6: =HLOOKUP("סיכום פרק 6: השפעת הליברליזם על תמורות בחברה היהודית - משימת סיכום - סיכום הסוגיה לכל הפרק",grade_report!$3:$100,ROWS($A$4:A9),0) ->  | W6: =HLOOKUP("הפנמה 3: מעמד היהודים משלהי המאה ה-18 ועד תחילת המאה ה-20 - משימת הפנמה לכל הפרק",grade_report!$3:$100,ROWS($A$4:Q9),0) ->  | X6: =HLOOKUP("העשרה 3: מעמד היהודים משלהי המאה ה-18 ועד תחילת המאה ה-20 - משימת העשרה לכל הפרק",grade_report!$3:$100,ROWS($A$4:R9),0) ->  | Z6: =HLOOKUP("שיעור לתלמיד 7: השפעת הנאורות על החברה היהודית - תת פרק חובה",grade_report!$3:$100,ROWS($A$4:A9),0) ->  | AA6: =HLOOKUP("סיכום פרק 7: השפעת הנאורות על החברה היהודית - תת פרק חובה - משימת סיכום",grade_report!$3:$100,ROWS($A$4:A9),0) ->  | AC6: =HLOOKUP("שיעור לתלמיד 8: ניאו אורתודוקסיה - חיוב המודרנה תוך שמירה קפדנית על מצוות הדת - שיעור לתלמיד",grade_report!$3:$100,ROWS($A$4:D9),0) ->  | AD6: =HLOOKUP("סיכום פרק 8: ניאו אורתודוקסיה - חיוב המודרנה תוך שמירה קפדנית על מצוות הדת - משימת סיכום",grade_report!$3:$100,ROWS($A$4:D9),0) ->  | AE6: =HLOOKUP("סיכום פרק 9: תנועות וזרמים יהודיים - משימת סיכום לכל הפרק",grade_report!$3:$100,ROWS($A$4:E9),0) ->  | AG6: =HLOOKUP("שיעור לתלמיד 9: מבשרי הציונות וחיבת ציון - שיעור לתלמיד",grade_report!$3:$100,ROWS($A$4:H9),0) ->  | AH6: =HLOOKUP("סיכום פרק 10: מבשרי הציונות וחיבת ציון - משימת סיכום",grade_report!$3:$100,ROWS($A$4:H9),0) ->  | AI6: =HLOOKUP("הפנמה 4: מבשרי הציונות וחיבת ציון - משימת הפנמה",grade_report!$3:$100,ROWS($A$4:AC9),0) ->  | AJ6: =HLOOKUP("העשרה 4: מבשרי הציונות וחיבת ציון - משימת העשרה",grade_report!$3:$100,ROWS($A$4:AD9),0) ->  | AL6: =HLOOKUP("שיעור לתלמיד 10: התנועה הציונית והרצל - שיעור לתלמיד",grade_report!$3:$100,ROWS($A$4:M9),0) ->  | AM6: =HLOOKUP("סיכום פרק 11: התנועה הציונית והרצל - משימת סיכום - סוף ימיו של הרצל",grade_report!$3:$100,ROWS($A$4:M9),0) ->  | AN6: =HLOOKUP("הפנמה 5: התנועה הציונית והרצל - משימת הפנמה",grade_report!$3:$100,ROWS($A$4:AH9),0) ->  | AO6: =HLOOKUP("העשרה 5: התנועה הציונית והרצל - משימת העשרה",grade_report!$3:$100,ROWS($A$4:AI9),0) ->  | AQ6: =HLOOKUP("שיעור לתלמיד 11: מפלגות, זרמים ומתנגדים - שיעור לתלמיד",grade_report!$3:$100,ROWS($A$4:R9),0) ->  | AR6: =HLOOKUP("סיכום פרק 12: מפלגות, זרמים ומתנגדים - משימת סיכום",grade_report!$3:$100,ROWS($A$4:R9),0) ->  | AS6: =HLOOKUP("הפנמה 6: מפלגות, זרמים ומתנגדים - משימת הפנמה",grade_report!$3:$100,ROWS($A$4:AM9),0) ->  | AT6: =HLOOKUP("העשרה 6: מפלגות, זרמים ומתנגדים - משימת העשרה",grade_report!$3:$100,ROWS($A$4:AN9),0) ->  | AV6: =HLOOKUP("סיכום קורס-ש' סגורות",grade_report!$3:$100,ROWS($A$4:AP9),0) ->  | AW6: =HLOOKUP("סיכום קורס-ש' פתוחות",grade_report!$3:$100,ROWS($A$4:AQ9),0) ->  | AX6: =HLOOKUP("תלמידאות",grade_report!$3:$100,ROWS($A$4:AR9),0) -> Not Available
A7: =grade_report!C9 -> lihi_davidi | B7: =grade_report!B9 -> lihi.davidi@gmail.com | D7: =VLOOKUP(A7,grade_report!C:D,2,FALSE) -> 0.08 | E7: =HLOOKUP("שיעור לתלמיד 1: נאורוּת - שיעור לתלמיד",grade_report!$3:$100,ROWS($A$4:A10),0) -> 0.9375 | F7: =HLOOKUP("סיכום פרק 1: נאורוּת - משימת סיכום",grade_report!$3:$100,ROWS($A$4:A10),0) -> Not Attempted | G7: =HLOOKUP("הפנמה 1: נאורוּת - משימת הפנמה",grade_report!$3:$100,ROWS($A$4:B10),0) -> 0.04761904762 | H7: =HLOOKUP("העשרה 1: נאורוּת - משימת העשרה",grade_report!$3:$100,ROWS($A$4:C10),0) -> Not Attempted | J7: =HLOOKUP("שיעור לתלמיד 2: מלחמת העולם הראשונה - שיעור לתלמיד",grade_report!$3:$100,ROWS($A$4:E10),0) ->  | K7: =HLOOKUP("סיכום פרק 2: מלחמת העולם הראשונה - משימת סיכום",grade_report!$3:$100,ROWS($A$4:E10),0) ->  | L7: =HLOOKUP("הפנמה 2: מלחמת העולם הראשונה - משימת הפנמה",grade_report!$3:$100,ROWS($A$4:F10),0) ->  | M7: =HLOOKUP("העשרה 2: מלחמת העולם הראשונה - משימת העשרה - רשות: מלחמת החפירות",grade_report!$3:$100,ROWS($A$4:G10),0) ->  | O7: =HLOOKUP("שיעור לתלמיד 3: השינויים במעמד המשפטי של יהודי צרפת משלהי המאה ה-18 עד ראשית המאה ה-20 - תת פרק לבחירה",grade_report!$3:$100,ROWS($A$4:J10),0) ->  | P7: =HLOOKUP("סיכום פרק 3: השינויים במעמד המשפטי של יהודי צרפת משלהי המאה ה-18 עד ראשית המאה ה-20 -משימת סיכום",grade_report!$3:$100,ROWS($A$4:J10),0) ->  | Q7: =HLOOKUP("שיעור לתלמיד 4: השינויים במעמד המשפטי של יהודי גרמניה משלהי המאה ה-18 עד ראשית המאה ה-20 - תת פרק לבחירה",grade_report!$3:$100,ROWS($A$4:O10),0) ->  | R7: =HLOOKUP("סיכום פרק 4: השינויים במעמד המשפטי של יהודי גרמניה משלהי המאה ה-18 עד ראשית המאה ה-20 - תת פרק לבחירה -משימת סיכום",grade_report!$3:$100,ROWS($A$4:O10),0) ->  | S7: =HLOOKUP("שיעור לתלמיד 5: השינויים במעמד המשפטי של היהודים בארצות האסלאם - תהליך האמנציפציה באלג'יריה - תת פרק חובה",grade_report!$3:$100,ROWS($A$4:A10),0) ->  | T7: =HLOOKUP("סיכום פרק 5: השינויים במעמד המשפטי של היהודים בארצות האסלאם - תהליך האמנציפציה באלג'יריה - משימת סיכום",grade_report!$3:$100,ROWS($A$4:A10),0) ->  | U7: =HLOOKUP("שיעור לתלמיד 6: השלכות השינויים במעמד היהודים על החברה היהודית - תת פרק חובה",grade_report!$3:$100,ROWS($A$4:D10),0) ->  | V7: =HLOOKUP("סיכום פרק 6: השפעת הליברליזם על תמורות בחברה היהודית - משימת סיכום - סיכום הסוגיה לכל הפרק",grade_report!$3:$100,ROWS($A$4:A10),0) ->  | W7: =HLOOKUP("הפנמה 3: מעמד היהודים משלהי המאה ה-18 ועד תחילת המאה ה-20 - משימת הפנמה לכל הפרק",grade_report!$3:$100,ROWS($A$4:Q10),0) ->  | X7: =HLOOKUP("העשרה 3: מעמד היהודים משלהי המאה ה-18 ועד תחילת המאה ה-20 - משימת העשרה לכל הפרק",grade_report!$3:$100,ROWS($A$4:R10),0) ->  | Z7: =HLOOKUP("שיעור לתלמיד 7: השפעת הנאורות על החברה היהודית - תת פרק חובה",grade_report!$3:$100,ROWS($A$4:A10),0) ->  | AA7: =HLOOKUP("סיכום פרק 7: השפעת הנאורות על החברה היהודית - תת פרק חובה - משימת סיכום",grade_report!$3:$100,ROWS($A$4:A10),0) ->  | AC7: =HLOOKUP("שיעור לתלמיד 8: ניאו אורתודוקסיה - חיוב המודרנה תוך שמירה קפדנית על מצוות הדת - שיעור לתלמיד",grade_report!$3:$100,ROWS($A$4:D10),0) ->  | AD7: =HLOOKUP("סיכום פרק 8: ניאו אורתודוקסיה - חיוב המודרנה תוך שמירה קפדנית על מצוות הדת - משימת סיכום",grade_report!$3:$100,ROWS($A$4:D10),0) ->  | AE7: =HLOOKUP("סיכום פרק 9: תנועות וזרמים יהודיים - משימת סיכום לכל הפרק",grade_report!$3:$100,ROWS($A$4:E10),0) ->  | AG7: =HLOOKUP("שיעור לתלמיד 9: מבשרי הציונות וחיבת ציון - שיעור לתלמיד",grade_report!$3:$100,ROWS($A$4:H10),0) ->  | AH7: =HLOOKUP("סיכום פרק 10: מבשרי הציונות וחיבת ציון - משימת סיכום",grade_report!$3:$100,ROWS($A$4:H10),0) ->  | AI7: =HLOOKUP("הפנמה 4: מבשרי הציונות וחיבת ציון - משימת הפנמה",grade_report!$3:$100,ROWS($A$4:AC10),0) ->  | AJ7: =HLOOKUP("העשרה 4: מבשרי הציונות וחיבת ציון - משימת העשרה",grade_report!$3:$100,ROWS($A$4:AD10),0) ->  | AL7: =HLOOKUP("שיעור לתלמיד 10: התנועה הציונית והרצל - שיעור לתלמיד",grade_report!$3:$100,ROWS($A$4:M10),0) ->  | AM7: =HLOOKUP("סיכום פרק 11: התנועה הציונית והרצל - משימת סיכום - סוף ימיו של הרצל",grade_report!$3:$100,ROWS($A$4:M10),0) ->  | AN7: =HLOOKUP("הפנמה 5: התנועה הציונית והרצל - משימת הפנמה",grade_report!$3:$100,ROWS($A$4:AH10),0) ->  | AO7: =HLOOKUP("העשרה 5: התנועה הציונית והרצל - משימת העשרה",grade_report!$3:$100,ROWS($A$4:AI10),0) ->  | AQ7: =HLOOKUP("שיעור לתלמיד 11: מפלגות, זרמים ומתנגדים - שיעור לתלמיד",grade_report!$3:$100,ROWS($A$4:R10),0) ->  | AR7: =HLOOKUP("סיכום פרק 12: מפלגות, זרמים ומתנגדים - משימת סיכום",grade_report!$3:$100,ROWS($A$4:R10),0) ->  | AS7: =HLOOKUP("הפנמה 6: מפלגות, זרמים ומתנגדים - משימת הפנמה",grade_report!$3:$100,ROWS($A$4:AM10),0) ->  | AT7: =HLOOKUP("העשרה 6: מפלגות, זרמים ומתנגדים - משימת העשרה",grade_report!$3:$100,ROWS($A$4:AN10),0) ->  | AV7: =HLOOKUP("סיכום קורס-ש' סגורות",grade_report!$3:$100,ROWS($A$4:AP10),0) ->  | AW7: =HLOOKUP("סיכום קורס-ש' פתוחות",grade_report!$3:$100,ROWS($A$4:AQ10),0) ->  | AX7: =HLOOKUP("תלמידאות",grade_report!$3:$100,ROWS($A$4:AR10),0) -> Not Available
A8: =grade_report!C10 -> oriziv06 | B8: =grade_report!B10 -> oriziv06@gmail.com | D8: =VLOOKUP(A8,grade_report!C:D,2,FALSE) -> 0 | E8: =HLOOKUP("שיעור לתלמיד 1: נאורוּת - שיעור לתלמיד",grade_report!$3:$100,ROWS($A$4:A11),0) -> Not Attempted | F8: =HLOOKUP("סיכום פרק 1: נאורוּת - משימת סיכום",grade_report!$3:$100,ROWS($A$4:A11),0) -> Not Attempted | G8: =HLOOKUP("הפנמה 1: נאורוּת - משימת הפנמה",grade_report!$3:$100,ROWS($A$4:B11),0) -> Not Attempted | H8: =HLOOKUP("העשרה 1: נאורוּת - משימת העשרה",grade_report!$3:$100,ROWS($A$4:C11),0) -> Not Attempted | J8: =HLOOKUP("שיעור לתלמיד 2: מלחמת העולם הראשונה - שיעור לתלמיד",grade_report!$3:$100,ROWS($A$4:E11),0) ->  | K8: =HLOOKUP("סיכום פרק 2: מלחמת העולם הראשונה - משימת סיכום",grade_report!$3:$100,ROWS($A$4:E11),0) ->  | L8: =HLOOKUP("הפנמה 2: מלחמת העולם הראשונה - משימת הפנמה",grade_report!$3:$100,ROWS($A$4:F11),0) ->  | M8: =HLOOKUP("העשרה 2: מלחמת העולם הראשונה - משימת העשרה - רשות: מלחמת החפירות",grade_report!$3:$100,ROWS($A$4:G11),0) ->  | O8: =HLOOKUP("שיעור לתלמיד 3: השינויים במעמד המשפטי של יהודי צרפת משלהי המאה ה-18 עד ראשית המאה ה-20 - תת פרק לבחירה",grade_report!$3:$100,ROWS($A$4:J11),0) ->  | P8: =HLOOKUP("סיכום פרק 3: השינויים במעמד המשפטי של יהודי צרפת משלהי המאה ה-18 עד ראשית המאה ה-20 -משימת סיכום",grade_report!$3:$100,ROWS($A$4:J11),0) ->  | Q8: =HLOOKUP("שיעור לתלמיד 4: השינויים במעמד המשפטי של יהודי גרמניה משלהי המאה ה-18 עד ראשית המאה ה-20 - תת פרק לבחירה",grade_report!$3:$100,ROWS($A$4:O11),0) ->  | R8: =HLOOKUP("סיכום פרק 4: השינויים במעמד המשפטי של יהודי גרמניה משלהי המאה ה-18 עד ראשית המאה ה-20 - תת פרק לבחירה -משימת סיכום",grade_report!$3:$100,ROWS($A$4:O11),0) ->  | S8: =HLOOKUP("שיעור לתלמיד 5: השינויים במעמד המשפטי של היהודים בארצות האסלאם - תהליך האמנציפציה באלג'יריה - תת פרק חובה",grade_report!$3:$100,ROWS($A$4:A11),0) ->  | T8: =HLOOKUP("סיכום פרק 5: השינויים במעמד המשפטי של היהודים בארצות האסלאם - תהליך האמנציפציה באלג'יריה - משימת סיכום",grade_report!$3:$100,ROWS($A$4:A11),0) ->  | U8: =HLOOKUP("שיעור לתלמיד 6: השלכות השינויים במעמד היהודים על החברה היהודית - תת פרק חובה",grade_report!$3:$100,ROWS($A$4:D11),0) ->  | V8: =HLOOKUP("סיכום פרק 6: השפעת הליברליזם על תמורות בחברה היהודית - משימת סיכום - סיכום הסוגיה לכל הפרק",grade_report!$3:$100,ROWS($A$4:A11),0) ->  | W8: =HLOOKUP("הפנמה 3: מעמד היהודים משלהי המאה ה-18 ועד תחילת המאה ה-20 - משימת הפנמה לכל הפרק",grade_report!$3:$100,ROWS($A$4:Q11),0) ->  | X8: =HLOOKUP("העשרה 3: מעמד היהודים משלהי המאה ה-18 ועד תחילת המאה ה-20 - משימת העשרה לכל הפרק",grade_report!$3:$100,ROWS($A$4:R11),0) ->  | Z8: =HLOOKUP("שיעור לתלמיד 7: השפעת הנאורות על החברה היהודית - תת פרק חובה",grade_report!$3:$100,ROWS($A$4:A11),0) ->  | AA8: =HLOOKUP("סיכום פרק 7: השפעת הנאורות על החברה היהודית - תת פרק חובה - משימת סיכום",grade_report!$3:$100,ROWS($A$4:A11),0) ->  | AC8: =HLOOKUP("שיעור לתלמיד 8: ניאו אורתודוקסיה - חיוב המודרנה תוך שמירה קפדנית על מצוות הדת - שיעור לתלמיד",grade_report!$3:$100,ROWS($A$4:D11),0) ->  | AD8: =HLOOKUP("סיכום פרק 8: ניאו אורתודוקסיה - חיוב המודרנה תוך שמירה קפדנית על מצוות הדת - משימת סיכום",grade_report!$3:$100,ROWS($A$4:D11),0) ->  | AE8: =HLOOKUP("סיכום פרק 9: תנועות וזרמים יהודיים - משימת סיכום לכל הפרק",grade_report!$3:$100,ROWS($A$4:E11),0) ->  | AG8: =HLOOKUP("שיעור לתלמיד 9: מבשרי הציונות וחיבת ציון - שיעור לתלמיד",grade_report!$3:$100,ROWS($A$4:H11),0) ->  | AH8: =HLOOKUP("סיכום פרק 10: מבשרי הציונות וחיבת ציון - משימת סיכום",grade_report!$3:$100,ROWS($A$4:H11),0) ->  | AI8: =HLOOKUP("הפנמה 4: מבשרי הציונות וחיבת ציון - משימת הפנמה",grade_report!$3:$100,ROWS($A$4:AC11),0) ->  | AJ8: =HLOOKUP("העשרה 4: מבשרי הציונות וחיבת ציון - משימת העשרה",grade_report!$3:$100,ROWS($A$4:AD11),0) ->  | AL8: =HLOOKUP("שיעור לתלמיד 10: התנועה הציונית והרצל - שיעור לתלמיד",grade_report!$3:$100,ROWS($A$4:M11),0) ->  | AM8: =HLOOKUP("סיכום פרק 11: התנועה הציונית והרצל - משימת סיכום - סוף ימיו של הרצל",grade_report!$3:$100,ROWS($A$4:M11),0) ->  | AN8: =HLOOKUP("הפנמה 5: התנועה הציונית והרצל - משימת הפנמה",grade_report!$3:$100,ROWS($A$4:AH11),0) ->  | AO8: =HLOOKUP("העשרה 5: התנועה הציונית והרצל - משימת העשרה",grade_report!$3:$100,ROWS($A$4:AI11),0) ->  | AQ8: =HLOOKUP("שיעור לתלמיד 11: מפלגות, זרמים ומתנגדים - שיעור לתלמיד",grade_report!$3:$100,ROWS($A$4:R11),0) ->  | AR8: =HLOOKUP("סיכום פרק 12: מפלגות, זרמים ומתנגדים - משימת סיכום",grade_report!$3:$100,ROWS($A$4:R11),0) ->  | AS8: =HLOOKUP("הפנמה 6: מפלגות, זרמים ומתנגדים - משימת הפנמה",grade_report!$3:$100,ROWS($A$4:AM11),0) ->  | AT8: =HLOOKUP("העשרה 6: מפלגות, זרמים ומתנגדים - משימת העשרה",grade_report!$3:$100,ROWS($A$4:AN11),0) ->  | AV8: =HLOOKUP("סיכום קורס-ש' סגורות",grade_report!$3:$100,ROWS($A$4:AP11),0) ->  | AW8: =HLOOKUP("סיכום קורס-ש' פתוחות",grade_report!$3:$100,ROWS($A$4:AQ11),0) ->  | AX8: =HLOOKUP("תלמידאות",grade_report!$3:$100,ROWS($A$4:AR11),0) -> Not Available
A9: =grade_report!C11 -> אריאלה_חן_יעקב_חי | B9: =grade_report!B11 -> arielachen10@gmail.com | D9: =VLOOKUP(A9,grade_report!C:D,2,FALSE) -> 0.07 | E9: =HLOOKUP("שיעור לתלמיד 1: נאורוּת - שיעור לתלמיד",grade_report!$3:$100,ROWS($A$4:A12),0) -> 1 | F9: =HLOOKUP("סיכום פרק 1: נאורוּת - משימת סיכום",grade_report!$3:$100,ROWS($A$4:A12),0) -> Not Attempted | G9: =HLOOKUP("הפנמה 1: נאורוּת - משימת הפנמה",grade_report!$3:$100,ROWS($A$4:B12),0) -> 0.04761904762 | H9: =HLOOKUP("העשרה 1: נאורוּת - משימת העשרה",grade_report!$3:$100,ROWS($A$4:C12),0) -> Not Attempted | J9: =HLOOKUP("שיעור לתלמיד 2: מלחמת העולם הראשונה - שיעור לתלמיד",grade_report!$3:$100,ROWS($A$4:E12),0) ->  | K9: =HLOOKUP("סיכום פרק 2: מלחמת העולם הראשונה - משימת סיכום",grade_report!$3:$100,ROWS($A$4:E12),0) ->  | L9: =HLOOKUP("הפנמה 2: מלחמת העולם הראשונה - משימת הפנמה",grade_report!$3:$100,ROWS($A$4:F12),0) ->  | M9: =HLOOKUP("העשרה 2: מלחמת העולם הראשונה - משימת העשרה - רשות: מלחמת החפירות",grade_report!$3:$100,ROWS($A$4:G12),0) ->  | O9: =HLOOKUP("שיעור לתלמיד 3: השינויים במעמד המשפטי של יהודי צרפת משלהי המאה ה-18 עד ראשית המאה ה-20 - תת פרק לבחירה",grade_report!$3:$100,ROWS($A$4:J12),0) ->  | P9: =HLOOKUP("סיכום פרק 3: השינויים במעמד המשפטי של יהודי צרפת משלהי המאה ה-18 עד ראשית המאה ה-20 -משימת סיכום",grade_report!$3:$100,ROWS($A$4:J12),0) ->  | Q9: =HLOOKUP("שיעור לתלמיד 4: השינויים במעמד המשפטי של יהודי גרמניה משלהי המאה ה-18 עד ראשית המאה ה-20 - תת פרק לבחירה",grade_report!$3:$100,ROWS($A$4:O12),0) ->  | R9: =HLOOKUP("סיכום פרק 4: השינויים במעמד המשפטי של יהודי גרמניה משלהי המאה ה-18 עד ראשית המאה ה-20 - תת פרק לבחירה -משימת סיכום",grade_report!$3:$100,ROWS($A$4:O12),0) ->  | S9: =HLOOKUP("שיעור לתלמיד 5: השינויים במעמד המשפטי של היהודים בארצות האסלאם - תהליך האמנציפציה באלג'יריה - תת פרק חובה",grade_report!$3:$100,ROWS($A$4:A12),0) ->  | T9: =HLOOKUP("סיכום פרק 5: השינויים במעמד המשפטי של היהודים בארצות האסלאם - תהליך האמנציפציה באלג'יריה - משימת סיכום",grade_report!$3:$100,ROWS($A$4:A12),0) ->  | U9: =HLOOKUP("שיעור לתלמיד 6: השלכות השינויים במעמד היהודים על החברה היהודית - תת פרק חובה",grade_report!$3:$100,ROWS($A$4:D12),0) ->  | V9: =HLOOKUP("סיכום פרק 6: השפעת הליברליזם על תמורות בחברה היהודית - משימת סיכום - סיכום הסוגיה לכל הפרק",grade_report!$3:$100,ROWS($A$4:A12),0) ->  | W9: =HLOOKUP("הפנמה 3: מעמד היהודים משלהי המאה ה-18 ועד תחילת המאה ה-20 - משימת הפנמה לכל הפרק",grade_report!$3:$100,ROWS($A$4:Q12),0) ->  | X9: =HLOOKUP("העשרה 3: מעמד היהודים משלהי המאה ה-18 ועד תחילת המאה ה-20 - משימת העשרה לכל הפרק",grade_report!$3:$100,ROWS($A$4:R12),0) ->  | Z9: =HLOOKUP("שיעור לתלמיד 7: השפעת הנאורות על החברה היהודית - תת פרק חובה",grade_report!$3:$100,ROWS($A$4:A12),0) ->  | AA9: =HLOOKUP("סיכום פרק 7: השפעת הנאורות על החברה היהודית - תת פרק חובה - משימת סיכום",grade_report!$3:$100,ROWS($A$4:A12),0) ->  | AC9: =HLOOKUP("שיעור לתלמיד 8: ניאו אורתודוקסיה - חיוב המודרנה תוך שמירה קפדנית על מצוות הדת - שיעור לתלמיד",grade_report!$3:$100,ROWS($A$4:D12),0) ->  | AD9: =HLOOKUP("סיכום פרק 8: ניאו אורתודוקסיה - חיוב המודרנה תוך שמירה קפדנית על מצוות הדת - משימת סיכום",grade_report!$3:$100,ROWS($A$4:D12),0) ->  | AE9: =HLOOKUP("סיכום פרק 9: תנועות וזרמים יהודיים - משימת סיכום לכל הפרק",grade_report!$3:$100,ROWS($A$4:E12),0) ->  | AG9: =HLOOKUP("שיעור לתלמיד 9: מבשרי הציונות וחיבת ציון - שיעור לתלמיד",grade_report!$3:$100,ROWS($A$4:H12),0) ->  | AH9: =HLOOKUP("סיכום פרק 10: מבשרי הציונות וחיבת ציון - משימת סיכום",grade_report!$3:$100,ROWS($A$4:H12),0) ->  | AI9: =HLOOKUP("הפנמה 4: מבשרי הציונות וחיבת ציון - משימת הפנמה",grade_report!$3:$100,ROWS($A$4:AC12),0) ->  | AJ9: =HLOOKUP("העשרה 4: מבשרי הציונות וחיבת ציון - משימת העשרה",grade_report!$3:$100,ROWS($A$4:AD12),0) ->  | AL9: =HLOOKUP("שיעור לתלמיד 10: התנועה הציונית והרצל - שיעור לתלמיד",grade_report!$3:$100,ROWS($A$4:M12),0) ->  | AM9: =HLOOKUP("סיכום פרק 11: התנועה הציונית והרצל - משימת סיכום - סוף ימיו של הרצל",grade_report!$3:$100,ROWS($A$4:M12),0) ->  | AN9: =HLOOKUP("הפנמה 5: התנועה הציונית והרצל - משימת הפנמה",grade_report!$3:$100,ROWS($A$4:AH12),0) ->  | AO9: =HLOOKUP("העשרה 5: התנועה הציונית והרצל - משימת העשרה",grade_report!$3:$100,ROWS($A$4:AI12),0) ->  | AQ9: =HLOOKUP("שיעור לתלמיד 11: מפלגות, זרמים ומתנגדים - שיעור לתלמיד",grade_report!$3:$100,ROWS($A$4:R12),0) ->  | AR9: =HLOOKUP("סיכום פרק 12: מפלגות, זרמים ומתנגדים - משימת סיכום",grade_report!$3:$100,ROWS($A$4:R12),0) ->  | AS9: =HLOOKUP("הפנמה 6: מפלגות, זרמים ומתנגדים - משימת הפנמה",grade_report!$3:$100,ROWS($A$4:AM12),0) ->  | AT9: =HLOOKUP("העשרה 6: מפלגות, זרמים ומתנגדים - משימת העשרה",grade_report!$3:$100,ROWS($A$4:AN12),0) ->  | AV9: =HLOOKUP("סיכום קורס-ש' סגורות",grade_report!$3:$100,ROWS($A$4:AP12),0) ->  | AW9: =HLOOKUP("סיכום קורס-ש' פתוחות",grade_report!$3:$100,ROWS($A$4:AQ12),0) ->  | AX9: =HLOOKUP("תלמידאות",grade_report!$3:$100,ROWS($A$4:AR12),0) -> Not Available
A10: =grade_report!C12 -> ליאם_פחימה | B10: =grade_report!B12 -> liempahima21@gmail.com | D10: =VLOOKUP(A10,grade_report!C:D,2,FALSE) -> 0.12 | E10: =HLOOKUP("שיעור לתלמיד 1: נאורוּת - שיעור לתלמיד",grade_report!$3:$100,ROWS($A$4:A13),0) -> 1 | F10: =HLOOKUP("סיכום פרק 1: נאורוּת - משימת סיכום",grade_report!$3:$100,ROWS($A$4:A13),0) -> Not Attempted | G10: =HLOOKUP("הפנמה 1: נאורוּת - משימת הפנמה",grade_report!$3:$100,ROWS($A$4:B13),0) -> 0.04761904762 | H10: =HLOOKUP("העשרה 1: נאורוּת - משימת העשרה",grade_report!$3:$100,ROWS($A$4:C13),0) -> Not Attempted | J10: =HLOOKUP("שיעור לתלמיד 2: מלחמת העולם הראשונה - שיעור לתלמיד",grade_report!$3:$100,ROWS($A$4:E13),0) ->  | K10: =HLOOKUP("סיכום פרק 2: מלחמת העולם הראשונה - משימת סיכום",grade_report!$3:$100,ROWS($A$4:E13),0) ->  | L10: =HLOOKUP("הפנמה 2: מלחמת העולם הראשונה - משימת הפנמה",grade_report!$3:$100,ROWS($A$4:F13),0) ->  | M10: =HLOOKUP("העשרה 2: מלחמת העולם הראשונה - משימת העשרה - רשות: מלחמת החפירות",grade_report!$3:$100,ROWS($A$4:G13),0) ->  | O10: =HLOOKUP("שיעור לתלמיד 3: השינויים במעמד המשפטי של יהודי צרפת משלהי המאה ה-18 עד ראשית המאה ה-20 - תת פרק לבחירה",grade_report!$3:$100,ROWS($A$4:J13),0) ->  | P10: =HLOOKUP("סיכום פרק 3: השינויים במעמד המשפטי של יהודי צרפת משלהי המאה ה-18 עד ראשית המאה ה-20 -משימת סיכום",grade_report!$3:$100,ROWS($A$4:J13),0) ->  | Q10: =HLOOKUP("שיעור לתלמיד 4: השינויים במעמד המשפטי של יהודי גרמניה משלהי המאה ה-18 עד ראשית המאה ה-20 - תת פרק לבחירה",grade_report!$3:$100,ROWS($A$4:O13),0) ->  | R10: =HLOOKUP("סיכום פרק 4: השינויים במעמד המשפטי של יהודי גרמניה משלהי המאה ה-18 עד ראשית המאה ה-20 - תת פרק לבחירה -משימת סיכום",grade_report!$3:$100,ROWS($A$4:O13),0) ->  | S10: =HLOOKUP("שיעור לתלמיד 5: השינויים במעמד המשפטי של היהודים בארצות האסלאם - תהליך האמנציפציה באלג'יריה - תת פרק חובה",grade_report!$3:$100,ROWS($A$4:A13),0) ->  | T10: =HLOOKUP("סיכום פרק 5: השינויים במעמד המשפטי של היהודים בארצות האסלאם - תהליך האמנציפציה באלג'יריה - משימת סיכום",grade_report!$3:$100,ROWS($A$4:A13),0) ->  | U10: =HLOOKUP("שיעור לתלמיד 6: השלכות השינויים במעמד היהודים על החברה היהודית - תת פרק חובה",grade_report!$3:$100,ROWS($A$4:D13),0) ->  | V10: =HLOOKUP("סיכום פרק 6: השפעת הליברליזם על תמורות בחברה היהודית - משימת סיכום - סיכום הסוגיה לכל הפרק",grade_report!$3:$100,ROWS($A$4:A13),0) ->  | W10: =HLOOKUP("הפנמה 3: מעמד היהודים משלהי המאה ה-18 ועד תחילת המאה ה-20 - משימת הפנמה לכל הפרק",grade_report!$3:$100,ROWS($A$4:Q13),0) ->  | X10: =HLOOKUP("העשרה 3: מעמד היהודים משלהי המאה ה-18 ועד תחילת המאה ה-20 - משימת העשרה לכל הפרק",grade_report!$3:$100,ROWS($A$4:R13),0) ->  | Z10: =HLOOKUP("שיעור לתלמיד 7: השפעת הנאורות על החברה היהודית - תת פרק חובה",grade_report!$3:$100,ROWS($A$4:A13),0) ->  | AA10: =HLOOKUP("סיכום פרק 7: השפעת הנאורות על החברה היהודית - תת פרק חובה - משימת סיכום",grade_report!$3:$100,ROWS($A$4:A13),0) ->  | AC10: =HLOOKUP("שיעור לתלמיד 8: ניאו אורתודוקסיה - חיוב המודרנה תוך שמירה קפדנית על מצוות הדת - שיעור לתלמיד",grade_report!$3:$100,ROWS($A$4:D13),0) ->  | AD10: =HLOOKUP("סיכום פרק 8: ניאו אורתודוקסיה - חיוב המודרנה תוך שמירה קפדנית על מצוות הדת - משימת סיכום",grade_report!$3:$100,ROWS($A$4:D13),0) ->  | AE10: =HLOOKUP("סיכום פרק 9: תנועות וזרמים יהודיים - משימת סיכום לכל הפרק",grade_report!$3:$100,ROWS($A$4:E13),0) ->  | AG10: =HLOOKUP("שיעור לתלמיד 9: מבשרי הציונות וחיבת ציון - שיעור לתלמיד",grade_report!$3:$100,ROWS($A$4:H13),0) ->  | AH10: =HLOOKUP("סיכום פרק 10: מבשרי הציונות וחיבת ציון - משימת סיכום",grade_report!$3:$100,ROWS($A$4:H13),0) ->  | AI10: =HLOOKUP("הפנמה 4: מבשרי הציונות וחיבת ציון - משימת הפנמה",grade_report!$3:$100,ROWS($A$4:AC13),0) ->  | AJ10: =HLOOKUP("העשרה 4: מבשרי הציונות וחיבת ציון - משימת העשרה",grade_report!$3:$100,ROWS($A$4:AD13),0) ->  | AL10: =HLOOKUP("שיעור לתלמיד 10: התנועה הציונית והרצל - שיעור לתלמיד",grade_report!$3:$100,ROWS($A$4:M13),0) ->  | AM10: =HLOOKUP("סיכום פרק 11: התנועה הציונית והרצל - משימת סיכום - סוף ימיו של הרצל",grade_report!$3:$100,ROWS($A$4:M13),0) ->  | AN10: =HLOOKUP("הפנמה 5: התנועה הציונית והרצל - משימת הפנמה",grade_report!$3:$100,ROWS($A$4:AH13),0) ->  | AO10: =HLOOKUP("העשרה 5: התנועה הציונית והרצל - משימת העשרה",grade_report!$3:$100,ROWS($A$4:AI13),0) ->  | AQ10: =HLOOKUP("שיעור לתלמיד 11: מפלגות, זרמים ומתנגדים - שיעור לתלמיד",grade_report!$3:$100,ROWS($A$4:R13),0) ->  | AR10: =HLOOKUP("סיכום פרק 12: מפלגות, זרמים ומתנגדים - משימת סיכום",grade_report!$3:$100,ROWS($A$4:R13),0) ->  | AS10: =HLOOKUP("הפנמה 6: מפלגות, זרמים ומתנגדים - משימת הפנמה",grade_report!$3:$100,ROWS($A$4:AM13),0) ->  | AT10: =HLOOKUP("העשרה 6: מפלגות, זרמים ומתנגדים - משימת העשרה",grade_report!$3:$100,ROWS($A$4:AN13),0) ->  | AV10: =HLOOKUP("סיכום קורס-ש' סגורות",grade_report!$3:$100,ROWS($A$4:AP13),0) ->  | AW10: =HLOOKUP("סיכום קורס-ש' פתוחות",grade_report!$3:$100,ROWS($A$4:AQ13),0) ->  | AX10: =HLOOKUP("תלמידאות",grade_report!$3:$100,ROWS($A$4:AR13),0) -> Not Available
A11: =grade_report!C13 -> אלה_רן | B11: =grade_report!B13 -> elaran28@gmail.com | D11: =VLOOKUP(A11,grade_report!C:D,2,FALSE) -> 0.02 | E11: =HLOOKUP("שיעור לתלמיד 1: נאורוּת - שיעור לתלמיד",grade_report!$3:$100,ROWS($A$4:A14),0) -> 0.9375 | F11: =HLOOKUP("סיכום פרק 1: נאורוּת - משימת סיכום",grade_report!$3:$100,ROWS($A$4:A14),0) -> Not Attempted | G11: =HLOOKUP("הפנמה 1: נאורוּת - משימת הפנמה",grade_report!$3:$100,ROWS($A$4:B14),0) -> 0.04761904762 | H11: =HLOOKUP("העשרה 1: נאורוּת - משימת העשרה",grade_report!$3:$100,ROWS($A$4:C14),0) -> Not Attempted | J11: =HLOOKUP("שיעור לתלמיד 2: מלחמת העולם הראשונה - שיעור לתלמיד",grade_report!$3:$100,ROWS($A$4:E14),0) ->  | K11: =HLOOKUP("סיכום פרק 2: מלחמת העולם הראשונה - משימת סיכום",grade_report!$3:$100,ROWS($A$4:E14),0) ->  | L11: =HLOOKUP("הפנמה 2: מלחמת העולם הראשונה - משימת הפנמה",grade_report!$3:$100,ROWS($A$4:F14),0) ->  | M11: =HLOOKUP("העשרה 2: מלחמת העולם הראשונה - משימת העשרה - רשות: מלחמת החפירות",grade_report!$3:$100,ROWS($A$4:G14),0) ->  | O11: =HLOOKUP("שיעור לתלמיד 3: השינויים במעמד המשפטי של יהודי צרפת משלהי המאה ה-18 עד ראשית המאה ה-20 - תת פרק לבחירה",grade_report!$3:$100,ROWS($A$4:J14),0) ->  | P11: =HLOOKUP("סיכום פרק 3: השינויים במעמד המשפטי של יהודי צרפת משלהי המאה ה-18 עד ראשית המאה ה-20 -משימת סיכום",grade_report!$3:$100,ROWS($A$4:J14),0) ->  | Q11: =HLOOKUP("שיעור לתלמיד 4: השינויים במעמד המשפטי של יהודי גרמניה משלהי המאה ה-18 עד ראשית המאה ה-20 - תת פרק לבחירה",grade_report!$3:$100,ROWS($A$4:O14),0) ->  | R11: =HLOOKUP("סיכום פרק 4: השינויים במעמד המשפטי של יהודי גרמניה משלהי המאה ה-18 עד ראשית המאה ה-20 - תת פרק לבחירה -משימת סיכום",grade_report!$3:$100,ROWS($A$4:O14),0) ->  | S11: =HLOOKUP("שיעור לתלמיד 5: השינויים במעמד המשפטי של היהודים בארצות האסלאם - תהליך האמנציפציה באלג'יריה - תת פרק חובה",grade_report!$3:$100,ROWS($A$4:A14),0) ->  | T11: =HLOOKUP("סיכום פרק 5: השינויים במעמד המשפטי של היהודים בארצות האסלאם - תהליך האמנציפציה באלג'יריה - משימת סיכום",grade_report!$3:$100,ROWS($A$4:A14),0) ->  | U11: =HLOOKUP("שיעור לתלמיד 6: השלכות השינויים במעמד היהודים על החברה היהודית - תת פרק חובה",grade_report!$3:$100,ROWS($A$4:D14),0) ->  | V11: =HLOOKUP("סיכום פרק 6: השפעת הליברליזם על תמורות בחברה היהודית - משימת סיכום - סיכום הסוגיה לכל הפרק",grade_report!$3:$100,ROWS($A$4:A14),0) ->  | W11: =HLOOKUP("הפנמה 3: מעמד היהודים משלהי המאה ה-18 ועד תחילת המאה ה-20 - משימת הפנמה לכל הפרק",grade_report!$3:$100,ROWS($A$4:Q14),0) ->  | X11: =HLOOKUP("העשרה 3: מעמד היהודים משלהי המאה ה-18 ועד תחילת המאה ה-20 - משימת העשרה לכל הפרק",grade_report!$3:$100,ROWS($A$4:R14),0) ->  | Z11: =HLOOKUP("שיעור לתלמיד 7: השפעת הנאורות על החברה היהודית - תת פרק חובה",grade_report!$3:$100,ROWS($A$4:A14),0) ->  | AA11: =HLOOKUP("סיכום פרק 7: השפעת הנאורות על החברה היהודית - תת פרק חובה - משימת סיכום",grade_report!$3:$100,ROWS($A$4:A14),0) ->  | AC11: =HLOOKUP("שיעור לתלמיד 8: ניאו אורתודוקסיה - חיוב המודרנה תוך שמירה קפדנית על מצוות הדת - שיעור לתלמיד",grade_report!$3:$100,ROWS($A$4:D14),0) ->  | AD11: =HLOOKUP("סיכום פרק 8: ניאו אורתודוקסיה - חיוב המודרנה תוך שמירה קפדנית על מצוות הדת - משימת סיכום",grade_report!$3:$100,ROWS($A$4:D14),0) ->  | AE11: =HLOOKUP("סיכום פרק 9: תנועות וזרמים יהודיים - משימת סיכום לכל הפרק",grade_report!$3:$100,ROWS($A$4:E14),0) ->  | AG11: =HLOOKUP("שיעור לתלמיד 9: מבשרי הציונות וחיבת ציון - שיעור לתלמיד",grade_report!$3:$100,ROWS($A$4:H14),0) ->  | AH11: =HLOOKUP("סיכום פרק 10: מבשרי הציונות וחיבת ציון - משימת סיכום",grade_report!$3:$100,ROWS($A$4:H14),0) ->  | AI11: =HLOOKUP("הפנמה 4: מבשרי הציונות וחיבת ציון - משימת הפנמה",grade_report!$3:$100,ROWS($A$4:AC14),0) ->  | AJ11: =HLOOKUP("העשרה 4: מבשרי הציונות וחיבת ציון - משימת העשרה",grade_report!$3:$100,ROWS($A$4:AD14),0) ->  | AL11: =HLOOKUP("שיעור לתלמיד 10: התנועה הציונית והרצל - שיעור לתלמיד",grade_report!$3:$100,ROWS($A$4:M14),0) ->  | AM11: =HLOOKUP("סיכום פרק 11: התנועה הציונית והרצל - משימת סיכום - סוף ימיו של הרצל",grade_report!$3:$100,ROWS($A$4:M14),0) ->  | AN11: =HLOOKUP("הפנמה 5: התנועה הציונית והרצל - משימת הפנמה",grade_report!$3:$100,ROWS($A$4:AH14),0) ->  | AO11: =HLOOKUP("העשרה 5: התנועה הציונית והרצל - משימת העשרה",grade_report!$3:$100,ROWS($A$4:AI14),0) ->  | AQ11: =HLOOKUP("שיעור לתלמיד 11: מפלגות, זרמים ומתנגדים - שיעור לתלמיד",grade_report!$3:$100,ROWS($A$4:R14),0) ->  | AR11: =HLOOKUP("סיכום פרק 12: מפלגות, זרמים ומתנגדים - משימת סיכום",grade_report!$3:$100,ROWS($A$4:R14),0) ->  | AS11: =HLOOKUP("הפנמה 6: מפלגות, זרמים ומתנגדים - משימת הפנמה",grade_report!$3:$100,ROWS($A$4:AM14),0) ->  | AT11: =HLOOKUP("העשרה 6: מפלגות, זרמים ומתנגדים - משימת העשרה",grade_report!$3:$100,ROWS($A$4:AN14),0) ->  | AV11: =HLOOKUP("סיכום קורס-ש' סגורות",grade_report!$3:$100,ROWS($A$4:AP14),0) ->  | AW11: =HLOOKUP("סיכום קורס-ש' פתוחות",grade_report!$3:$100,ROWS($A$4:AQ14),0) ->  | AX11: =HLOOKUP("תלמידאות",grade_report!$3:$100,ROWS($A$4:AR14),0) -> Not Available
A12: =grade_report!C14 -> אורי בלונדר | B12: =grade_report!B14 -> blonderori@gmail.com | D12: =VLOOKUP(A12,grade_report!C:D,2,FALSE) -> 0.12 | E12: =HLOOKUP("שיעור לתלמיד 1: נאורוּת - שיעור לתלמיד",grade_report!$3:$100,ROWS($A$4:A15),0) -> 0.9375 | F12: =HLOOKUP("סיכום פרק 1: נאורוּת - משימת סיכום",grade_report!$3:$100,ROWS($A$4:A15),0) -> Not Attempted | G12: =HLOOKUP("הפנמה 1: נאורוּת - משימת הפנמה",grade_report!$3:$100,ROWS($A$4:B15),0) -> 0.04761904762 | H12: =HLOOKUP("העשרה 1: נאורוּת - משימת העשרה",grade_report!$3:$100,ROWS($A$4:C15),0) -> Not Attempted | J12: =HLOOKUP("שיעור לתלמיד 2: מלחמת העולם הראשונה - שיעור לתלמיד",grade_report!$3:$100,ROWS($A$4:E15),0) ->  | K12: =HLOOKUP("סיכום פרק 2: מלחמת העולם הראשונה - משימת סיכום",grade_report!$3:$100,ROWS($A$4:E15),0) ->  | L12: =HLOOKUP("הפנמה 2: מלחמת העולם הראשונה - משימת הפנמה",grade_report!$3:$100,ROWS($A$4:F15),0) ->  | M12: =HLOOKUP("העשרה 2: מלחמת העולם הראשונה - משימת העשרה - רשות: מלחמת החפירות",grade_report!$3:$100,ROWS($A$4:G15),0) ->  | O12: =HLOOKUP("שיעור לתלמיד 3: השינויים במעמד המשפטי של יהודי צרפת משלהי המאה ה-18 עד ראשית המאה ה-20 - תת פרק לבחירה",grade_report!$3:$100,ROWS($A$4:J15),0) ->  | P12: =HLOOKUP("סיכום פרק 3: השינויים במעמד המשפטי של יהודי צרפת משלהי המאה ה-18 עד ראשית המאה ה-20 -משימת סיכום",grade_report!$3:$100,ROWS($A$4:J15),0) ->  | Q12: =HLOOKUP("שיעור לתלמיד 4: השינויים במעמד המשפטי של יהודי גרמניה משלהי המאה ה-18 עד ראשית המאה ה-20 - תת פרק לבחירה",grade_report!$3:$100,ROWS($A$4:O15),0) ->  | R12: =HLOOKUP("סיכום פרק 4: השינויים במעמד המשפטי של יהודי גרמניה משלהי המאה ה-18 עד ראשית המאה ה-20 - תת פרק לבחירה -משימת סיכום",grade_report!$3:$100,ROWS($A$4:O15),0) ->  | S12: =HLOOKUP("שיעור לתלמיד 5: השינויים במעמד המשפטי של היהודים בארצות האסלאם - תהליך האמנציפציה באלג'יריה - תת פרק חובה",grade_report!$3:$100,ROWS($A$4:A15),0) ->  | T12: =HLOOKUP("סיכום פרק 5: השינויים במעמד המשפטי של היהודים בארצות האסלאם - תהליך האמנציפציה באלג'יריה - משימת סיכום",grade_report!$3:$100,ROWS($A$4:A15),0) ->  | U12: =HLOOKUP("שיעור לתלמיד 6: השלכות השינויים במעמד היהודים על החברה היהודית - תת פרק חובה",grade_report!$3:$100,ROWS($A$4:D15),0) ->  | V12: =HLOOKUP("סיכום פרק 6: השפעת הליברליזם על תמורות בחברה היהודית - משימת סיכום - סיכום הסוגיה לכל הפרק",grade_report!$3:$100,ROWS($A$4:A15),0) ->  | W12: =HLOOKUP("הפנמה 3: מעמד היהודים משלהי המאה ה-18 ועד תחילת המאה ה-20 - משימת הפנמה לכל הפרק",grade_report!$3:$100,ROWS($A$4:Q15),0) ->  | X12: =HLOOKUP("העשרה 3: מעמד היהודים משלהי המאה ה-18 ועד תחילת המאה ה-20 - משימת העשרה לכל הפרק",grade_report!$3:$100,ROWS($A$4:R15),0) ->  | Z12: =HLOOKUP("שיעור לתלמיד 7: השפעת הנאורות על החברה היהודית - תת פרק חובה",grade_report!$3:$100,ROWS($A$4:A15),0) ->  | AA12: =HLOOKUP("סיכום פרק 7: השפעת הנאורות על החברה היהודית - תת פרק חובה - משימת סיכום",grade_report!$3:$100,ROWS($A$4:A15),0) ->  | AC12: =HLOOKUP("שיעור לתלמיד 8: ניאו אורתודוקסיה - חיוב המודרנה תוך שמירה קפדנית על מצוות הדת - שיעור לתלמיד",grade_report!$3:$100,ROWS($A$4:D15),0) ->  | AD12: =HLOOKUP("סיכום פרק 8: ניאו אורתודוקסיה - חיוב המודרנה תוך שמירה קפדנית על מצוות הדת - משימת סיכום",grade_report!$3:$100,ROWS($A$4:D15),0) ->  | AE12: =HLOOKUP("סיכום פרק 9: תנועות וזרמים יהודיים - משימת סיכום לכל הפרק",grade_report!$3:$100,ROWS($A$4:E15),0) ->  | AG12: =HLOOKUP("שיעור לתלמיד 9: מבשרי הציונות וחיבת ציון - שיעור לתלמיד",grade_report!$3:$100,ROWS($A$4:H15),0) ->  | AH12: =HLOOKUP("סיכום פרק 10: מבשרי הציונות וחיבת ציון - משימת סיכום",grade_report!$3:$100,ROWS($A$4:H15),0) ->  | AI12: =HLOOKUP("הפנמה 4: מבשרי הציונות וחיבת ציון - משימת הפנמה",grade_report!$3:$100,ROWS($A$4:AC15),0) ->  | AJ12: =HLOOKUP("העשרה 4: מבשרי הציונות וחיבת ציון - משימת העשרה",grade_report!$3:$100,ROWS($A$4:AD15),0) ->  | AL12: =HLOOKUP("שיעור לתלמיד 10: התנועה הציונית והרצל - שיעור לתלמיד",grade_report!$3:$100,ROWS($A$4:M15),0) ->  | AM12: =HLOOKUP("סיכום פרק 11: התנועה הציונית והרצל - משימת סיכום - סוף ימיו של הרצל",grade_report!$3:$100,ROWS($A$4:M15),0) ->  | AN12: =HLOOKUP("הפנמה 5: התנועה הציונית והרצל - משימת הפנמה",grade_report!$3:$100,ROWS($A$4:AH15),0) ->  | AO12: =HLOOKUP("העשרה 5: התנועה הציונית והרצל - משימת העשרה",grade_report!$3:$100,ROWS($A$4:AI15),0) ->  | AQ12: =HLOOKUP("שיעור לתלמיד 11: מפלגות, זרמים ומתנגדים - שיעור לתלמיד",grade_report!$3:$100,ROWS($A$4:R15),0) ->  | AR12: =HLOOKUP("סיכום פרק 12: מפלגות, זרמים ומתנגדים - משימת סיכום",grade_report!$3:$100,ROWS($A$4:R15),0) ->  | AS12: =HLOOKUP("הפנמה 6: מפלגות, זרמים ומתנגדים - משימת הפנמה",grade_report!$3:$100,ROWS($A$4:AM15),0) ->  | AT12: =HLOOKUP("העשרה 6: מפלגות, זרמים ומתנגדים - משימת העשרה",grade_report!$3:$100,ROWS($A$4:AN15),0) ->  | AV12: =HLOOKUP("סיכום קורס-ש' סגורות",grade_report!$3:$100,ROWS($A$4:AP15),0) ->  | AW12: =HLOOKUP("סיכום קורס-ש' פתוחות",grade_report!$3:$100,ROWS($A$4:AQ15),0) ->  | AX12: =HLOOKUP("תלמידאות",grade_report!$3:$100,ROWS($A$4:AR15),0) -> Not Available
A13: =grade_report!C15 -> יעל גרינוולד | B13: =grade_report!B15 -> coolyaelg@gmail.com | D13: =VLOOKUP(A13,grade_report!C:D,2,FALSE) -> 0.08 | E13: =HLOOKUP("שיעור לתלמיד 1: נאורוּת - שיעור לתלמיד",grade_report!$3:$100,ROWS($A$4:A16),0) -> 0.8697916667 | F13: =HLOOKUP("סיכום פרק 1: נאורוּת - משימת סיכום",grade_report!$3:$100,ROWS($A$4:A16),0) -> Not Attempted | G13: =HLOOKUP("הפנמה 1: נאורוּת - משימת הפנמה",grade_report!$3:$100,ROWS($A$4:B16),0) -> 0.04761904762 | H13: =HLOOKUP("העשרה 1: נאורוּת - משימת העשרה",grade_report!$3:$100,ROWS($A$4:C16),0) -> Not Attempted | J13: =HLOOKUP("שיעור לתלמיד 2: מלחמת העולם הראשונה - שיעור לתלמיד",grade_report!$3:$100,ROWS($A$4:E16),0) ->  | K13: =HLOOKUP("סיכום פרק 2: מלחמת העולם הראשונה - משימת סיכום",grade_report!$3:$100,ROWS($A$4:E16),0) ->  | L13: =HLOOKUP("הפנמה 2: מלחמת העולם הראשונה - משימת הפנמה",grade_report!$3:$100,ROWS($A$4:F16),0) ->  | M13: =HLOOKUP("העשרה 2: מלחמת העולם הראשונה - משימת העשרה - רשות: מלחמת החפירות",grade_report!$3:$100,ROWS($A$4:G16),0) ->  | O13: =HLOOKUP("שיעור לתלמיד 3: השינויים במעמד המשפטי של יהודי צרפת משלהי המאה ה-18 עד ראשית המאה ה-20 - תת פרק לבחירה",grade_report!$3:$100,ROWS($A$4:J16),0) ->  | P13: =HLOOKUP("סיכום פרק 3: השינויים במעמד המשפטי של יהודי צרפת משלהי המאה ה-18 עד ראשית המאה ה-20 -משימת סיכום",grade_report!$3:$100,ROWS($A$4:J16),0) ->  | Q13: =HLOOKUP("שיעור לתלמיד 4: השינויים במעמד המשפטי של יהודי גרמניה משלהי המאה ה-18 עד ראשית המאה ה-20 - תת פרק לבחירה",grade_report!$3:$100,ROWS($A$4:O16),0) ->  | R13: =HLOOKUP("סיכום פרק 4: השינויים במעמד המשפטי של יהודי גרמניה משלהי המאה ה-18 עד ראשית המאה ה-20 - תת פרק לבחירה -משימת סיכום",grade_report!$3:$100,ROWS($A$4:O16),0) ->  | S13: =HLOOKUP("שיעור לתלמיד 5: השינויים במעמד המשפטי של היהודים בארצות האסלאם - תהליך האמנציפציה באלג'יריה - תת פרק חובה",grade_report!$3:$100,ROWS($A$4:A16),0) ->  | T13: =HLOOKUP("סיכום פרק 5: השינויים במעמד המשפטי של היהודים בארצות האסלאם - תהליך האמנציפציה באלג'יריה - משימת סיכום",grade_report!$3:$100,ROWS($A$4:A16),0) ->  | U13: =HLOOKUP("שיעור לתלמיד 6: השלכות השינויים במעמד היהודים על החברה היהודית - תת פרק חובה",grade_report!$3:$100,ROWS($A$4:D16),0) ->  | V13: =HLOOKUP("סיכום פרק 6: השפעת הליברליזם על תמורות בחברה היהודית - משימת סיכום - סיכום הסוגיה לכל הפרק",grade_report!$3:$100,ROWS($A$4:A16),0) ->  | W13: =HLOOKUP("הפנמה 3: מעמד היהודים משלהי המאה ה-18 ועד תחילת המאה ה-20 - משימת הפנמה לכל הפרק",grade_report!$3:$100,ROWS($A$4:Q16),0) ->  | X13: =HLOOKUP("העשרה 3: מעמד היהודים משלהי המאה ה-18 ועד תחילת המאה ה-20 - משימת העשרה לכל הפרק",grade_report!$3:$100,ROWS($A$4:R16),0) ->  | Z13: =HLOOKUP("שיעור לתלמיד 7: השפעת הנאורות על החברה היהודית - תת פרק חובה",grade_report!$3:$100,ROWS($A$4:A16),0) ->  | AA13: =HLOOKUP("סיכום פרק 7: השפעת הנאורות על החברה היהודית - תת פרק חובה - משימת סיכום",grade_report!$3:$100,ROWS($A$4:A16),0) ->  | AC13: =HLOOKUP("שיעור לתלמיד 8: ניאו אורתודוקסיה - חיוב המודרנה תוך שמירה קפדנית על מצוות הדת - שיעור לתלמיד",grade_report!$3:$100,ROWS($A$4:D16),0) ->  | AD13: =HLOOKUP("סיכום פרק 8: ניאו אורתודוקסיה - חיוב המודרנה תוך שמירה קפדנית על מצוות הדת - משימת סיכום",grade_report!$3:$100,ROWS($A$4:D16),0) ->  | AE13: =HLOOKUP("סיכום פרק 9: תנועות וזרמים יהודיים - משימת סיכום לכל הפרק",grade_report!$3:$100,ROWS($A$4:E16),0) ->  | AG13: =HLOOKUP("שיעור לתלמיד 9: מבשרי הציונות וחיבת ציון - שיעור לתלמיד",grade_report!$3:$100,ROWS($A$4:H16),0) ->  | AH13: =HLOOKUP("סיכום פרק 10: מבשרי הציונות וחיבת ציון - משימת סיכום",grade_report!$3:$100,ROWS($A$4:H16),0) ->  | AI13: =HLOOKUP("הפנמה 4: מבשרי הציונות וחיבת ציון - משימת הפנמה",grade_report!$3:$100,ROWS($A$4:AC16),0) ->  | AJ13: =HLOOKUP("העשרה 4: מבשרי הציונות וחיבת ציון - משימת העשרה",grade_report!$3:$100,ROWS($A$4:AD16),0) ->  | AL13: =HLOOKUP("שיעור לתלמיד 10: התנועה הציונית והרצל - שיעור לתלמיד",grade_report!$3:$100,ROWS($A$4:M16),0) ->  | AM13: =HLOOKUP("סיכום פרק 11: התנועה הציונית והרצל - משימת סיכום - סוף ימיו של הרצל",grade_report!$3:$100,ROWS($A$4:M16),0) ->  | AN13: =HLOOKUP("הפנמה 5: התנועה הציונית והרצל - משימת הפנמה",grade_report!$3:$100,ROWS($A$4:AH16),0) ->  | AO13: =HLOOKUP("העשרה 5: התנועה הציונית והרצל - משימת העשרה",grade_report!$3:$100,ROWS($A$4:AI16),0) ->  | AQ13: =HLOOKUP("שיעור לתלמיד 11: מפלגות, זרמים ומתנגדים - שיעור לתלמיד",grade_report!$3:$100,ROWS($A$4:R16),0) ->  | AR13: =HLOOKUP("סיכום פרק 12: מפלגות, זרמים ומתנגדים - משימת סיכום",grade_report!$3:$100,ROWS($A$4:R16),0) ->  | AS13: =HLOOKUP("הפנמה 6: מפלגות, זרמים ומתנגדים - משימת הפנמה",grade_report!$3:$100,ROWS($A$4:AM16),0) ->  | AT13: =HLOOKUP("העשרה 6: מפלגות, זרמים ומתנגדים - משימת העשרה",grade_report!$3:$100,ROWS($A$4:AN16),0) ->  | AV13: =HLOOKUP("סיכום קורס-ש' סגורות",grade_report!$3:$100,ROWS($A$4:AP16),0) ->  | AW13: =HLOOKUP("סיכום קורס-ש' פתוחות",grade_report!$3:$100,ROWS($A$4:AQ16),0) ->  | AX13: =HLOOKUP("תלמידאות",grade_report!$3:$100,ROWS($A$4:AR16),0) -> Not Available
A14: =grade_report!C16 -> עדי_יוסף_3 | B14: =grade_report!B16 -> adi8yosef@gmail.com | D14: =VLOOKUP(A14,grade_report!C:D,2,FALSE) -> 0.13 | E14: =HLOOKUP("שיעור לתלמיד 1: נאורוּת - שיעור לתלמיד",grade_report!$3:$100,ROWS($A$4:A17),0) -> 1 | F14: =HLOOKUP("סיכום פרק 1: נאורוּת - משימת סיכום",grade_report!$3:$100,ROWS($A$4:A17),0) -> Not Attempted | G14: =HLOOKUP("הפנמה 1: נאורוּת - משימת הפנמה",grade_report!$3:$100,ROWS($A$4:B17),0) -> 0.04761904762 | H14: =HLOOKUP("העשרה 1: נאורוּת - משימת העשרה",grade_report!$3:$100,ROWS($A$4:C17),0) -> Not Attempted | J14: =HLOOKUP("שיעור לתלמיד 2: מלחמת העולם הראשונה - שיעור לתלמיד",grade_report!$3:$100,ROWS($A$4:E17),0) ->  | K14: =HLOOKUP("סיכום פרק 2: מלחמת העולם הראשונה - משימת סיכום",grade_report!$3:$100,ROWS($A$4:E17),0) ->  | L14: =HLOOKUP("הפנמה 2: מלחמת העולם הראשונה - משימת הפנמה",grade_report!$3:$100,ROWS($A$4:F17),0) ->  | M14: =HLOOKUP("העשרה 2: מלחמת העולם הראשונה - משימת העשרה - רשות: מלחמת החפירות",grade_report!$3:$100,ROWS($A$4:G17),0) ->  | O14: =HLOOKUP("שיעור לתלמיד 3: השינויים במעמד המשפטי של יהודי צרפת משלהי המאה ה-18 עד ראשית המאה ה-20 - תת פרק לבחירה",grade_report!$3:$100,ROWS($A$4:J17),0) ->  | P14: =HLOOKUP("סיכום פרק 3: השינויים במעמד המשפטי של יהודי צרפת משלהי המאה ה-18 עד ראשית המאה ה-20 -משימת סיכום",grade_report!$3:$100,ROWS($A$4:J17),0) ->  | Q14: =HLOOKUP("שיעור לתלמיד 4: השינויים במעמד המשפטי של יהודי גרמניה משלהי המאה ה-18 עד ראשית המאה ה-20 - תת פרק לבחירה",grade_report!$3:$100,ROWS($A$4:O17),0) ->  | R14: =HLOOKUP("סיכום פרק 4: השינויים במעמד המשפטי של יהודי גרמניה משלהי המאה ה-18 עד ראשית המאה ה-20 - תת פרק לבחירה -משימת סיכום",grade_report!$3:$100,ROWS($A$4:O17),0) ->  | S14: =HLOOKUP("שיעור לתלמיד 5: השינויים במעמד המשפטי של היהודים בארצות האסלאם - תהליך האמנציפציה באלג'יריה - תת פרק חובה",grade_report!$3:$100,ROWS($A$4:A17),0) ->  | T14: =HLOOKUP("סיכום פרק 5: השינויים במעמד המשפטי של היהודים בארצות האסלאם - תהליך האמנציפציה באלג'יריה - משימת סיכום",grade_report!$3:$100,ROWS($A$4:A17),0) ->  | U14: =HLOOKUP("שיעור לתלמיד 6: השלכות השינויים במעמד היהודים על החברה היהודית - תת פרק חובה",grade_report!$3:$100,ROWS($A$4:D17),0) ->  | V14: =HLOOKUP("סיכום פרק 6: השפעת הליברליזם על תמורות בחברה היהודית - משימת סיכום - סיכום הסוגיה לכל הפרק",grade_report!$3:$100,ROWS($A$4:A17),0) ->  | W14: =HLOOKUP("הפנמה 3: מעמד היהודים משלהי המאה ה-18 ועד תחילת המאה ה-20 - משימת הפנמה לכל הפרק",grade_report!$3:$100,ROWS($A$4:Q17),0) ->  | X14: =HLOOKUP("העשרה 3: מעמד היהודים משלהי המאה ה-18 ועד תחילת המאה ה-20 - משימת העשרה לכל הפרק",grade_report!$3:$100,ROWS($A$4:R17),0) ->  | Z14: =HLOOKUP("שיעור לתלמיד 7: השפעת הנאורות על החברה היהודית - תת פרק חובה",grade_report!$3:$100,ROWS($A$4:A17),0) ->  | AA14: =HLOOKUP("סיכום פרק 7: השפעת הנאורות על החברה היהודית - תת פרק חובה - משימת סיכום",grade_report!$3:$100,ROWS($A$4:A17),0) ->  | AC14: =HLOOKUP("שיעור לתלמיד 8: ניאו אורתודוקסיה - חיוב המודרנה תוך שמירה קפדנית על מצוות הדת - שיעור לתלמיד",grade_report!$3:$100,ROWS($A$4:D17),0) ->  | AD14: =HLOOKUP("סיכום פרק 8: ניאו אורתודוקסיה - חיוב המודרנה תוך שמירה קפדנית על מצוות הדת - משימת סיכום",grade_report!$3:$100,ROWS($A$4:D17),0) ->  | AE14: =HLOOKUP("סיכום פרק 9: תנועות וזרמים יהודיים - משימת סיכום לכל הפרק",grade_report!$3:$100,ROWS($A$4:E17),0) ->  | AG14: =HLOOKUP("שיעור לתלמיד 9: מבשרי הציונות וחיבת ציון - שיעור לתלמיד",grade_report!$3:$100,ROWS($A$4:H17),0) ->  | AH14: =HLOOKUP("סיכום פרק 10: מבשרי הציונות וחיבת ציון - משימת סיכום",grade_report!$3:$100,ROWS($A$4:H17),0) ->  | AI14: =HLOOKUP("הפנמה 4: מבשרי הציונות וחיבת ציון - משימת הפנמה",grade_report!$3:$100,ROWS($A$4:AC17),0) ->  | AJ14: =HLOOKUP("העשרה 4: מבשרי הציונות וחיבת ציון - משימת העשרה",grade_report!$3:$100,ROWS($A$4:AD17),0) ->  | AL14: =HLOOKUP("שיעור לתלמיד 10: התנועה הציונית והרצל - שיעור לתלמיד",grade_report!$3:$100,ROWS($A$4:M17),0) ->  | AM14: =HLOOKUP("סיכום פרק 11: התנועה הציונית והרצל - משימת סיכום - סוף ימיו של הרצל",grade_report!$3:$100,ROWS($A$4:M17),0) ->  | AN14: =HLOOKUP("הפנמה 5: התנועה הציונית והרצל - משימת הפנמה",grade_report!$3:$100,ROWS($A$4:AH17),0) ->  | AO14: =HLOOKUP("העשרה 5: התנועה הציונית והרצל - משימת העשרה",grade_report!$3:$100,ROWS($A$4:AI17),0) ->  | AQ14: =HLOOKUP("שיעור לתלמיד 11: מפלגות, זרמים ומתנגדים - שיעור לתלמיד",grade_report!$3:$100,ROWS($A$4:R17),0) ->  | AR14: =HLOOKUP("סיכום פרק 12: מפלגות, זרמים ומתנגדים - משימת סיכום",grade_report!$3:$100,ROWS($A$4:R17),0) ->  | AS14: =HLOOKUP("הפנמה 6: מפלגות, זרמים ומתנגדים - משימת הפנמה",grade_report!$3:$100,ROWS($A$4:AM17),0) ->  | AT14: =HLOOKUP("העשרה 6: מפלגות, זרמים ומתנגדים - משימת העשרה",grade_report!$3:$100,ROWS($A$4:AN17),0) ->  | AV14: =HLOOKUP("סיכום קורס-ש' סגורות",grade_report!$3:$100,ROWS($A$4:AP17),0) ->  | AW14: =HLOOKUP("סיכום קורס-ש' פתוחות",grade_report!$3:$100,ROWS($A$4:AQ17),0) ->  | AX14: =HLOOKUP("תלמידאות",grade_report!$3:$100,ROWS($A$4:AR17),0) -> Not Available
A15: =grade_report!C17 -> אליה תמרי | B15: =grade_report!B17 -> eliyatamari@gmail.com | D15: =VLOOKUP(A15,grade_report!C:D,2,FALSE) -> 0.07 | E15: =HLOOKUP("שיעור לתלמיד 1: נאורוּת - שיעור לתלמיד",grade_report!$3:$100,ROWS($A$4:A18),0) -> 1 | F15: =HLOOKUP("סיכום פרק 1: נאורוּת - משימת סיכום",grade_report!$3:$100,ROWS($A$4:A18),0) -> Not Attempted | G15: =HLOOKUP("הפנמה 1: נאורוּת - משימת הפנמה",grade_report!$3:$100,ROWS($A$4:B18),0) -> 0.04761904762 | H15: =HLOOKUP("העשרה 1: נאורוּת - משימת העשרה",grade_report!$3:$100,ROWS($A$4:C18),0) -> Not Attempted | J15: =HLOOKUP("שיעור לתלמיד 2: מלחמת העולם הראשונה - שיעור לתלמיד",grade_report!$3:$100,ROWS($A$4:E18),0) ->  | K15: =HLOOKUP("סיכום פרק 2: מלחמת העולם הראשונה - משימת סיכום",grade_report!$3:$100,ROWS($A$4:E18),0) ->  | L15: =HLOOKUP("הפנמה 2: מלחמת העולם הראשונה - משימת הפנמה",grade_report!$3:$100,ROWS($A$4:F18),0) ->  | M15: =HLOOKUP("העשרה 2: מלחמת העולם הראשונה - משימת העשרה - רשות: מלחמת החפירות",grade_report!$3:$100,ROWS($A$4:G18),0) ->  | O15: =HLOOKUP("שיעור לתלמיד 3: השינויים במעמד המשפטי של יהודי צרפת משלהי המאה ה-18 עד ראשית המאה ה-20 - תת פרק לבחירה",grade_report!$3:$100,ROWS($A$4:J18),0) ->  | P15: =HLOOKUP("סיכום פרק 3: השינויים במעמד המשפטי של יהודי צרפת משלהי המאה ה-18 עד ראשית המאה ה-20 -משימת סיכום",grade_report!$3:$100,ROWS($A$4:J18),0) ->  | Q15: =HLOOKUP("שיעור לתלמיד 4: השינויים במעמד המשפטי של יהודי גרמניה משלהי המאה ה-18 עד ראשית המאה ה-20 - תת פרק לבחירה",grade_report!$3:$100,ROWS($A$4:O18),0) ->  | R15: =HLOOKUP("סיכום פרק 4: השינויים במעמד המשפטי של יהודי גרמניה משלהי המאה ה-18 עד ראשית המאה ה-20 - תת פרק לבחירה -משימת סיכום",grade_report!$3:$100,ROWS($A$4:O18),0) ->  | S15: =HLOOKUP("שיעור לתלמיד 5: השינויים במעמד המשפטי של היהודים בארצות האסלאם - תהליך האמנציפציה באלג'יריה - תת פרק חובה",grade_report!$3:$100,ROWS($A$4:A18),0) ->  | T15: =HLOOKUP("סיכום פרק 5: השינויים במעמד המשפטי של היהודים בארצות האסלאם - תהליך האמנציפציה באלג'יריה - משימת סיכום",grade_report!$3:$100,ROWS($A$4:A18),0) ->  | U15: =HLOOKUP("שיעור לתלמיד 6: השלכות השינויים במעמד היהודים על החברה היהודית - תת פרק חובה",grade_report!$3:$100,ROWS($A$4:D18),0) ->  | V15: =HLOOKUP("סיכום פרק 6: השפעת הליברליזם על תמורות בחברה היהודית - משימת סיכום - סיכום הסוגיה לכל הפרק",grade_report!$3:$100,ROWS($A$4:A18),0) ->  | W15: =HLOOKUP("הפנמה 3: מעמד היהודים משלהי המאה ה-18 ועד תחילת המאה ה-20 - משימת הפנמה לכל הפרק",grade_report!$3:$100,ROWS($A$4:Q18),0) ->  | X15: =HLOOKUP("העשרה 3: מעמד היהודים משלהי המאה ה-18 ועד תחילת המאה ה-20 - משימת העשרה לכל הפרק",grade_report!$3:$100,ROWS($A$4:R18),0) ->  | Z15: =HLOOKUP("שיעור לתלמיד 7: השפעת הנאורות על החברה היהודית - תת פרק חובה",grade_report!$3:$100,ROWS($A$4:A18),0) ->  | AA15: =HLOOKUP("סיכום פרק 7: השפעת הנאורות על החברה היהודית - תת פרק חובה - משימת סיכום",grade_report!$3:$100,ROWS($A$4:A18),0) ->  | AC15: =HLOOKUP("שיעור לתלמיד 8: ניאו אורתודוקסיה - חיוב המודרנה תוך שמירה קפדנית על מצוות הדת - שיעור לתלמיד",grade_report!$3:$100,ROWS($A$4:D18),0) ->  | AD15: =HLOOKUP("סיכום פרק 8: ניאו אורתודוקסיה - חיוב המודרנה תוך שמירה קפדנית על מצוות הדת - משימת סיכום",grade_report!$3:$100,ROWS($A$4:D18),0) ->  | AE15: =HLOOKUP("סיכום פרק 9: תנועות וזרמים יהודיים - משימת סיכום לכל הפרק",grade_report!$3:$100,ROWS($A$4:E18),0) ->  | AG15: =HLOOKUP("שיעור לתלמיד 9: מבשרי הציונות וחיבת ציון - שיעור לתלמיד",grade_report!$3:$100,ROWS($A$4:H18),0) ->  | AH15: =HLOOKUP("סיכום פרק 10: מבשרי הציונות וחיבת ציון - משימת סיכום",grade_report!$3:$100,ROWS($A$4:H18),0) ->  | AI15: =HLOOKUP("הפנמה 4: מבשרי הציונות וחיבת ציון - משימת הפנמה",grade_report!$3:$100,ROWS($A$4:AC18),0) ->  | AJ15: =HLOOKUP("העשרה 4: מבשרי הציונות וחיבת ציון - משימת העשרה",grade_report!$3:$100,ROWS($A$4:AD18),0) ->  | AL15: =HLOOKUP("שיעור לתלמיד 10: התנועה הציונית והרצל - שיעור לתלמיד",grade_report!$3:$100,ROWS($A$4:M18),0) ->  | AM15: =HLOOKUP("סיכום פרק 11: התנועה הציונית והרצל - משימת סיכום - סוף ימיו של הרצל",grade_report!$3:$100,ROWS($A$4:M18),0) ->  | AN15: =HLOOKUP("הפנמה 5: התנועה הציונית והרצל - משימת הפנמה",grade_report!$3:$100,ROWS($A$4:AH18),0) ->  | AO15: =HLOOKUP("העשרה 5: התנועה הציונית והרצל - משימת העשרה",grade_report!$3:$100,ROWS($A$4:AI18),0) ->  | AQ15: =HLOOKUP("שיעור לתלמיד 11: מפלגות, זרמים ומתנגדים - שיעור לתלמיד",grade_report!$3:$100,ROWS($A$4:R18),0) ->  | AR15: =HLOOKUP("סיכום פרק 12: מפלגות, זרמים ומתנגדים - משימת סיכום",grade_report!$3:$100,ROWS($A$4:R18),0) ->  | AS15: =HLOOKUP("הפנמה 6: מפלגות, זרמים ומתנגדים - משימת הפנמה",grade_report!$3:$100,ROWS($A$4:AM18),0) ->  | AT15: =HLOOKUP("העשרה 6: מפלגות, זרמים ומתנגדים - משימת העשרה",grade_report!$3:$100,ROWS($A$4:AN18),0) ->  | AV15: =HLOOKUP("סיכום קורס-ש' סגורות",grade_report!$3:$100,ROWS($A$4:AP18),0) ->  | AW15: =HLOOKUP("סיכום קורס-ש' פתוחות",grade_report!$3:$100,ROWS($A$4:AQ18),0) ->  | AX15: =HLOOKUP("תלמידאות",grade_report!$3:$100,ROWS($A$4:AR18),0) -> Not Available
A16: =grade_report!C18 -> אדירה_חנה_יעקב | B16: =grade_report!B18 -> adira.yaacov@gmail.com | D16: =VLOOKUP(A16,grade_report!C:D,2,FALSE) -> 0.07 | E16: =HLOOKUP("שיעור לתלמיד 1: נאורוּת - שיעור לתלמיד",grade_report!$3:$100,ROWS($A$4:A19),0) -> 1 | F16: =HLOOKUP("סיכום פרק 1: נאורוּת - משימת סיכום",grade_report!$3:$100,ROWS($A$4:A19),0) -> Not Attempted | G16: =HLOOKUP("הפנמה 1: נאורוּת - משימת הפנמה",grade_report!$3:$100,ROWS($A$4:B19),0) -> Not Attempted | H16: =HLOOKUP("העשרה 1: נאורוּת - משימת העשרה",grade_report!$3:$100,ROWS($A$4:C19),0) -> Not Attempted | J16: =HLOOKUP("שיעור לתלמיד 2: מלחמת העולם הראשונה - שיעור לתלמיד",grade_report!$3:$100,ROWS($A$4:E19),0) ->  | K16: =HLOOKUP("סיכום פרק 2: מלחמת העולם הראשונה - משימת סיכום",grade_report!$3:$100,ROWS($A$4:E19),0) ->  | L16: =HLOOKUP("הפנמה 2: מלחמת העולם הראשונה - משימת הפנמה",grade_report!$3:$100,ROWS($A$4:F19),0) ->  | M16: =HLOOKUP("העשרה 2: מלחמת העולם הראשונה - משימת העשרה - רשות: מלחמת החפירות",grade_report!$3:$100,ROWS($A$4:G19),0) ->  | O16: =HLOOKUP("שיעור לתלמיד 3: השינויים במעמד המשפטי של יהודי צרפת משלהי המאה ה-18 עד ראשית המאה ה-20 - תת פרק לבחירה",grade_report!$3:$100,ROWS($A$4:J19),0) ->  | P16: =HLOOKUP("סיכום פרק 3: השינויים במעמד המשפטי של יהודי צרפת משלהי המאה ה-18 עד ראשית המאה ה-20 -משימת סיכום",grade_report!$3:$100,ROWS($A$4:J19),0) ->  | Q16: =HLOOKUP("שיעור לתלמיד 4: השינויים במעמד המשפטי של יהודי גרמניה משלהי המאה ה-18 עד ראשית המאה ה-20 - תת פרק לבחירה",grade_report!$3:$100,ROWS($A$4:O19),0) ->  | R16: =HLOOKUP("סיכום פרק 4: השינויים במעמד המשפטי של יהודי גרמניה משלהי המאה ה-18 עד ראשית המאה ה-20 - תת פרק לבחירה -משימת סיכום",grade_report!$3:$100,ROWS($A$4:O19),0) ->  | S16: =HLOOKUP("שיעור לתלמיד 5: השינויים במעמד המשפטי של היהודים בארצות האסלאם - תהליך האמנציפציה באלג'יריה - תת פרק חובה",grade_report!$3:$100,ROWS($A$4:A19),0) ->  | T16: =HLOOKUP("סיכום פרק 5: השינויים במעמד המשפטי של היהודים בארצות האסלאם - תהליך האמנציפציה באלג'יריה - משימת סיכום",grade_report!$3:$100,ROWS($A$4:A19),0) ->  | U16: =HLOOKUP("שיעור לתלמיד 6: השלכות השינויים במעמד היהודים על החברה היהודית - תת פרק חובה",grade_report!$3:$100,ROWS($A$4:D19),0) ->  | V16: =HLOOKUP("סיכום פרק 6: השפעת הליברליזם על תמורות בחברה היהודית - משימת סיכום - סיכום הסוגיה לכל הפרק",grade_report!$3:$100,ROWS($A$4:A19),0) ->  | W16: =HLOOKUP("הפנמה 3: מעמד היהודים משלהי המאה ה-18 ועד תחילת המאה ה-20 - משימת הפנמה לכל הפרק",grade_report!$3:$100,ROWS($A$4:Q19),0) ->  | X16: =HLOOKUP("העשרה 3: מעמד היהודים משלהי המאה ה-18 ועד תחילת המאה ה-20 - משימת העשרה לכל הפרק",grade_report!$3:$100,ROWS($A$4:R19),0) ->  | Z16: =HLOOKUP("שיעור לתלמיד 7: השפעת הנאורות על החברה היהודית - תת פרק חובה",grade_report!$3:$100,ROWS($A$4:A19),0) ->  | AA16: =HLOOKUP("סיכום פרק 7: השפעת הנאורות על החברה היהודית - תת פרק חובה - משימת סיכום",grade_report!$3:$100,ROWS($A$4:A19),0) ->  | AC16: =HLOOKUP("שיעור לתלמיד 8: ניאו אורתודוקסיה - חיוב המודרנה תוך שמירה קפדנית על מצוות הדת - שיעור לתלמיד",grade_report!$3:$100,ROWS($A$4:D19),0) ->  | AD16: =HLOOKUP("סיכום פרק 8: ניאו אורתודוקסיה - חיוב המודרנה תוך שמירה קפדנית על מצוות הדת - משימת סיכום",grade_report!$3:$100,ROWS($A$4:D19),0) ->  | AE16: =HLOOKUP("סיכום פרק 9: תנועות וזרמים יהודיים - משימת סיכום לכל הפרק",grade_report!$3:$100,ROWS($A$4:E19),0) ->  | AG16: =HLOOKUP("שיעור לתלמיד 9: מבשרי הציונות וחיבת ציון - שיעור לתלמיד",grade_report!$3:$100,ROWS($A$4:H19),0) ->  | AH16: =HLOOKUP("סיכום פרק 10: מבשרי הציונות וחיבת ציון - משימת סיכום",grade_report!$3:$100,ROWS($A$4:H19),0) ->  | AI16: =HLOOKUP("הפנמה 4: מבשרי הציונות וחיבת ציון - משימת הפנמה",grade_report!$3:$100,ROWS($A$4:AC19),0) ->  | AJ16: =HLOOKUP("העשרה 4: מבשרי הציונות וחיבת ציון - משימת העשרה",grade_report!$3:$100,ROWS($A$4:AD19),0) ->  | AL16: =HLOOKUP("שיעור לתלמיד 10: התנועה הציונית והרצל - שיעור לתלמיד",grade_report!$3:$100,ROWS($A$4:M19),0) ->  | AM16: =HLOOKUP("סיכום פרק 11: התנועה הציונית והרצל - משימת סיכום - סוף ימיו של הרצל",grade_report!$3:$100,ROWS($A$4:M19),0) ->  | AN16: =HLOOKUP("הפנמה 5: התנועה הציונית והרצל - משימת הפנמה",grade_report!$3:$100,ROWS($A$4:AH19),0) ->  | AO16: =HLOOKUP("העשרה 5: התנועה הציונית והרצל - משימת העשרה",grade_report!$3:$100,ROWS($A$4:AI19),0) ->  | AQ16: =HLOOKUP("שיעור לתלמיד 11: מפלגות, זרמים ומתנגדים - שיעור לתלמיד",grade_report!$3:$100,ROWS($A$4:R19),0) ->  | AR16: =HLOOKUP("סיכום פרק 12: מפלגות, זרמים ומתנגדים - משימת סיכום",grade_report!$3:$100,ROWS($A$4:R19),0) ->  | AS16: =HLOOKUP("הפנמה 6: מפלגות, זרמים ומתנגדים - משימת הפנמה",grade_report!$3:$100,ROWS($A$4:AM19),0) ->  | AT16: =HLOOKUP("העשרה 6: מפלגות, זרמים ומתנגדים - משימת העשרה",grade_report!$3:$100,ROWS($A$4:AN19),0) ->  | AV16: =HLOOKUP("סיכום קורס-ש' סגורות",grade_report!$3:$100,ROWS($A$4:AP19),0) ->  | AW16: =HLOOKUP("סיכום קורס-ש' פתוחות",grade_report!$3:$100,ROWS($A$4:AQ19),0) ->  | AX16: =HLOOKUP("תלמידאות",grade_report!$3:$100,ROWS($A$4:AR19),0) -> Not Available
A17: =grade_report!C19 -> דולב_בן_צור | B17: =grade_report!B19 -> dolev1231bt@gmail.com | D17: =VLOOKUP(A17,grade_report!C:D,2,FALSE) -> 0 | E17: =HLOOKUP("שיעור לתלמיד 1: נאורוּת - שיעור לתלמיד",grade_report!$3:$100,ROWS($A$4:A20),0) -> Not Attempted | F17: =HLOOKUP("סיכום פרק 1: נאורוּת - משימת סיכום",grade_report!$3:$100,ROWS($A$4:A20),0) -> Not Attempted | G17: =HLOOKUP("הפנמה 1: נאורוּת - משימת הפנמה",grade_report!$3:$100,ROWS($A$4:B20),0) -> Not Attempted | H17: =HLOOKUP("העשרה 1: נאורוּת - משימת העשרה",grade_report!$3:$100,ROWS($A$4:C20),0) -> Not Attempted | J17: =HLOOKUP("שיעור לתלמיד 2: מלחמת העולם הראשונה - שיעור לתלמיד",grade_report!$3:$100,ROWS($A$4:E20),0) ->  | K17: =HLOOKUP("סיכום פרק 2: מלחמת העולם הראשונה - משימת סיכום",grade_report!$3:$100,ROWS($A$4:E20),0) ->  | L17: =HLOOKUP("הפנמה 2: מלחמת העולם הראשונה - משימת הפנמה",grade_report!$3:$100,ROWS($A$4:F20),0) ->  | M17: =HLOOKUP("העשרה 2: מלחמת העולם הראשונה - משימת העשרה - רשות: מלחמת החפירות",grade_report!$3:$100,ROWS($A$4:G20),0) ->  | O17: =HLOOKUP("שיעור לתלמיד 3: השינויים במעמד המשפטי של יהודי צרפת משלהי המאה ה-18 עד ראשית המאה ה-20 - תת פרק לבחירה",grade_report!$3:$100,ROWS($A$4:J20),0) ->  | P17: =HLOOKUP("סיכום פרק 3: השינויים במעמד המשפטי של יהודי צרפת משלהי המאה ה-18 עד ראשית המאה ה-20 -משימת סיכום",grade_report!$3:$100,ROWS($A$4:J20),0) ->  | Q17: =HLOOKUP("שיעור לתלמיד 4: השינויים במעמד המשפטי של יהודי גרמניה משלהי המאה ה-18 עד ראשית המאה ה-20 - תת פרק לבחירה",grade_report!$3:$100,ROWS($A$4:O20),0) ->  | R17: =HLOOKUP("סיכום פרק 4: השינויים במעמד המשפטי של יהודי גרמניה משלהי המאה ה-18 עד ראשית המאה ה-20 - תת פרק לבחירה -משימת סיכום",grade_report!$3:$100,ROWS($A$4:O20),0) ->  | S17: =HLOOKUP("שיעור לתלמיד 5: השינויים במעמד המשפטי של היהודים בארצות האסלאם - תהליך האמנציפציה באלג'יריה - תת פרק חובה",grade_report!$3:$100,ROWS($A$4:A20),0) ->  | T17: =HLOOKUP("סיכום פרק 5: השינויים במעמד המשפטי של היהודים בארצות האסלאם - תהליך האמנציפציה באלג'יריה - משימת סיכום",grade_report!$3:$100,ROWS($A$4:A20),0) ->  | U17: =HLOOKUP("שיעור לתלמיד 6: השלכות השינויים במעמד היהודים על החברה היהודית - תת פרק חובה",grade_report!$3:$100,ROWS($A$4:D20),0) ->  | V17: =HLOOKUP("סיכום פרק 6: השפעת הליברליזם על תמורות בחברה היהודית - משימת סיכום - סיכום הסוגיה לכל הפרק",grade_report!$3:$100,ROWS($A$4:A20),0) ->  | W17: =HLOOKUP("הפנמה 3: מעמד היהודים משלהי המאה ה-18 ועד תחילת המאה ה-20 - משימת הפנמה לכל הפרק",grade_report!$3:$100,ROWS($A$4:Q20),0) ->  | X17: =HLOOKUP("העשרה 3: מעמד היהודים משלהי המאה ה-18 ועד תחילת המאה ה-20 - משימת העשרה לכל הפרק",grade_report!$3:$100,ROWS($A$4:R20),0) ->  | Z17: =HLOOKUP("שיעור לתלמיד 7: השפעת הנאורות על החברה היהודית - תת פרק חובה",grade_report!$3:$100,ROWS($A$4:A20),0) ->  | AA17: =HLOOKUP("סיכום פרק 7: השפעת הנאורות על החברה היהודית - תת פרק חובה - משימת סיכום",grade_report!$3:$100,ROWS($A$4:A20),0) ->  | AC17: =HLOOKUP("שיעור לתלמיד 8: ניאו אורתודוקסיה - חיוב המודרנה תוך שמירה קפדנית על מצוות הדת - שיעור לתלמיד",grade_report!$3:$100,ROWS($A$4:D20),0) ->  | AD17: =HLOOKUP("סיכום פרק 8: ניאו אורתודוקסיה - חיוב המודרנה תוך שמירה קפדנית על מצוות הדת - משימת סיכום",grade_report!$3:$100,ROWS($A$4:D20),0) ->  | AE17: =HLOOKUP("סיכום פרק 9: תנועות וזרמים יהודיים - משימת סיכום לכל הפרק",grade_report!$3:$100,ROWS($A$4:E20),0) ->  | AG17: =HLOOKUP("שיעור לתלמיד 9: מבשרי הציונות וחיבת ציון - שיעור לתלמיד",grade_report!$3:$100,ROWS($A$4:H20),0) ->  | AH17: =HLOOKUP("סיכום פרק 10: מבשרי הציונות וחיבת ציון - משימת סיכום",grade_report!$3:$100,ROWS($A$4:H20),0) ->  | AI17: =HLOOKUP("הפנמה 4: מבשרי הציונות וחיבת ציון - משימת הפנמה",grade_report!$3:$100,ROWS($A$4:AC20),0) ->  | AJ17: =HLOOKUP("העשרה 4: מבשרי הציונות וחיבת ציון - משימת העשרה",grade_report!$3:$100,ROWS($A$4:AD20),0) ->  | AL17: =HLOOKUP("שיעור לתלמיד 10: התנועה הציונית והרצל - שיעור לתלמיד",grade_report!$3:$100,ROWS($A$4:M20),0) ->  | AM17: =HLOOKUP("סיכום פרק 11: התנועה הציונית והרצל - משימת סיכום - סוף ימיו של הרצל",grade_report!$3:$100,ROWS($A$4:M20),0) ->  | AN17: =HLOOKUP("הפנמה 5: התנועה הציונית והרצל - משימת הפנמה",grade_report!$3:$100,ROWS($A$4:AH20),0) ->  | AO17: =HLOOKUP("העשרה 5: התנועה הציונית והרצל - משימת העשרה",grade_report!$3:$100,ROWS($A$4:AI20),0) ->  | AQ17: =HLOOKUP("שיעור לתלמיד 11: מפלגות, זרמים ומתנגדים - שיעור לתלמיד",grade_report!$3:$100,ROWS($A$4:R20),0) ->  | AR17: =HLOOKUP("סיכום פרק 12: מפלגות, זרמים ומתנגדים - משימת סיכום",grade_report!$3:$100,ROWS($A$4:R20),0) ->  | AS17: =HLOOKUP("הפנמה 6: מפלגות, זרמים ומתנגדים - משימת הפנמה",grade_report!$3:$100,ROWS($A$4:AM20),0) ->  | AT17: =HLOOKUP("העשרה 6: מפלגות, זרמים ומתנגדים - משימת העשרה",grade_report!$3:$100,ROWS($A$4:AN20),0) ->  | AV17: =HLOOKUP("סיכום קורס-ש' סגורות",grade_report!$3:$100,ROWS($A$4:AP20),0) ->  | AW17: =HLOOKUP("סיכום קורס-ש' פתוחות",grade_report!$3:$100,ROWS($A$4:AQ20),0) ->  | AX17: =HLOOKUP("תלמידאות",grade_report!$3:$100,ROWS($A$4:AR20),0) -> Not Available
A18: =grade_report!C20 -> טליה_דוד_1 | B18: =grade_report!B20 -> talya123david@gmail.com | D18: =VLOOKUP(A18,grade_report!C:D,2,FALSE) -> 0.08 | E18: =HLOOKUP("שיעור לתלמיד 1: נאורוּת - שיעור לתלמיד",grade_report!$3:$100,ROWS($A$4:A21),0) -> 0.9947916667 | F18: =HLOOKUP("סיכום פרק 1: נאורוּת - משימת סיכום",grade_report!$3:$100,ROWS($A$4:A21),0) -> Not Attempted | G18: =HLOOKUP("הפנמה 1: נאורוּת - משימת הפנמה",grade_report!$3:$100,ROWS($A$4:B21),0) -> 0.04761904762 | H18: =HLOOKUP("העשרה 1: נאורוּת - משימת העשרה",grade_report!$3:$100,ROWS($A$4:C21),0) -> Not Attempted | J18: =HLOOKUP("שיעור לתלמיד 2: מלחמת העולם הראשונה - שיעור לתלמיד",grade_report!$3:$100,ROWS($A$4:E21),0) ->  | K18: =HLOOKUP("סיכום פרק 2: מלחמת העולם הראשונה - משימת סיכום",grade_report!$3:$100,ROWS($A$4:E21),0) ->  | L18: =HLOOKUP("הפנמה 2: מלחמת העולם הראשונה - משימת הפנמה",grade_report!$3:$100,ROWS($A$4:F21),0) ->  | M18: =HLOOKUP("העשרה 2: מלחמת העולם הראשונה - משימת העשרה - רשות: מלחמת החפירות",grade_report!$3:$100,ROWS($A$4:G21),0) ->  | O18: =HLOOKUP("שיעור לתלמיד 3: השינויים במעמד המשפטי של יהודי צרפת משלהי המאה ה-18 עד ראשית המאה ה-20 - תת פרק לבחירה",grade_report!$3:$100,ROWS($A$4:J21),0) ->  | P18: =HLOOKUP("סיכום פרק 3: השינויים במעמד המשפטי של יהודי צרפת משלהי המאה ה-18 עד ראשית המאה ה-20 -משימת סיכום",grade_report!$3:$100,ROWS($A$4:J21),0) ->  | Q18: =HLOOKUP("שיעור לתלמיד 4: השינויים במעמד המשפטי של יהודי גרמניה משלהי המאה ה-18 עד ראשית המאה ה-20 - תת פרק לבחירה",grade_report!$3:$100,ROWS($A$4:O21),0) ->  | R18: =HLOOKUP("סיכום פרק 4: השינויים במעמד המשפטי של יהודי גרמניה משלהי המאה ה-18 עד ראשית המאה ה-20 - תת פרק לבחירה -משימת סיכום",grade_report!$3:$100,ROWS($A$4:O21),0) ->  | S18: =HLOOKUP("שיעור לתלמיד 5: השינויים במעמד המשפטי של היהודים בארצות האסלאם - תהליך האמנציפציה באלג'יריה - תת פרק חובה",grade_report!$3:$100,ROWS($A$4:A21),0) ->  | T18: =HLOOKUP("סיכום פרק 5: השינויים במעמד המשפטי של היהודים בארצות האסלאם - תהליך האמנציפציה באלג'יריה - משימת סיכום",grade_report!$3:$100,ROWS($A$4:A21),0) ->  | U18: =HLOOKUP("שיעור לתלמיד 6: השלכות השינויים במעמד היהודים על החברה היהודית - תת פרק חובה",grade_report!$3:$100,ROWS($A$4:D21),0) ->  | V18: =HLOOKUP("סיכום פרק 6: השפעת הליברליזם על תמורות בחברה היהודית - משימת סיכום - סיכום הסוגיה לכל הפרק",grade_report!$3:$100,ROWS($A$4:A21),0) ->  | W18: =HLOOKUP("הפנמה 3: מעמד היהודים משלהי המאה ה-18 ועד תחילת המאה ה-20 - משימת הפנמה לכל הפרק",grade_report!$3:$100,ROWS($A$4:Q21),0) ->  | X18: =HLOOKUP("העשרה 3: מעמד היהודים משלהי המאה ה-18 ועד תחילת המאה ה-20 - משימת העשרה לכל הפרק",grade_report!$3:$100,ROWS($A$4:R21),0) ->  | Z18: =HLOOKUP("שיעור לתלמיד 7: השפעת הנאורות על החברה היהודית - תת פרק חובה",grade_report!$3:$100,ROWS($A$4:A21),0) ->  | AA18: =HLOOKUP("סיכום פרק 7: השפעת הנאורות על החברה היהודית - תת פרק חובה - משימת סיכום",grade_report!$3:$100,ROWS($A$4:A21),0) ->  | AC18: =HLOOKUP("שיעור לתלמיד 8: ניאו אורתודוקסיה - חיוב המודרנה תוך שמירה קפדנית על מצוות הדת - שיעור לתלמיד",grade_report!$3:$100,ROWS($A$4:D21),0) ->  | AD18: =HLOOKUP("סיכום פרק 8: ניאו אורתודוקסיה - חיוב המודרנה תוך שמירה קפדנית על מצוות הדת - משימת סיכום",grade_report!$3:$100,ROWS($A$4:D21),0) ->  | AE18: =HLOOKUP("סיכום פרק 9: תנועות וזרמים יהודיים - משימת סיכום לכל הפרק",grade_report!$3:$100,ROWS($A$4:E21),0) ->  | AG18: =HLOOKUP("שיעור לתלמיד 9: מבשרי הציונות וחיבת ציון - שיעור לתלמיד",grade_report!$3:$100,ROWS($A$4:H21),0) ->  | AH18: =HLOOKUP("סיכום פרק 10: מבשרי הציונות וחיבת ציון - משימת סיכום",grade_report!$3:$100,ROWS($A$4:H21),0) ->  | AI18: =HLOOKUP("הפנמה 4: מבשרי הציונות וחיבת ציון - משימת הפנמה",grade_report!$3:$100,ROWS($A$4:AC21),0) ->  | AJ18: =HLOOKUP("העשרה 4: מבשרי הציונות וחיבת ציון - משימת העשרה",grade_report!$3:$100,ROWS($A$4:AD21),0) ->  | AL18: =HLOOKUP("שיעור לתלמיד 10: התנועה הציונית והרצל - שיעור לתלמיד",grade_report!$3:$100,ROWS($A$4:M21),0) ->  | AM18: =HLOOKUP("סיכום פרק 11: התנועה הציונית והרצל - משימת סיכום - סוף ימיו של הרצל",grade_report!$3:$100,ROWS($A$4:M21),0) ->  | AN18: =HLOOKUP("הפנמה 5: התנועה הציונית והרצל - משימת הפנמה",grade_report!$3:$100,ROWS($A$4:AH21),0) ->  | AO18: =HLOOKUP("העשרה 5: התנועה הציונית והרצל - משימת העשרה",grade_report!$3:$100,ROWS($A$4:AI21),0) ->  | AQ18: =HLOOKUP("שיעור לתלמיד 11: מפלגות, זרמים ומתנגדים - שיעור לתלמיד",grade_report!$3:$100,ROWS($A$4:R21),0) ->  | AR18: =HLOOKUP("סיכום פרק 12: מפלגות, זרמים ומתנגדים - משימת סיכום",grade_report!$3:$100,ROWS($A$4:R21),0) ->  | AS18: =HLOOKUP("הפנמה 6: מפלגות, זרמים ומתנגדים - משימת הפנמה",grade_report!$3:$100,ROWS($A$4:AM21),0) ->  | AT18: =HLOOKUP("העשרה 6: מפלגות, זרמים ומתנגדים - משימת העשרה",grade_report!$3:$100,ROWS($A$4:AN21),0) ->  | AV18: =HLOOKUP("סיכום קורס-ש' סגורות",grade_report!$3:$100,ROWS($A$4:AP21),0) ->  | AW18: =HLOOKUP("סיכום קורס-ש' פתוחות",grade_report!$3:$100,ROWS($A$4:AQ21),0) ->  | AX18: =HLOOKUP("תלמידאות",grade_report!$3:$100,ROWS($A$4:AR21),0) -> Not Available
A19: =grade_report!C21 -> נטע_הייזלר | B19: =grade_report!B21 -> netah10000@gmail.com | D19: =VLOOKUP(A19,grade_report!C:D,2,FALSE) -> 0.08 | E19: =HLOOKUP("שיעור לתלמיד 1: נאורוּת - שיעור לתלמיד",grade_report!$3:$100,ROWS($A$4:A22),0) -> Not Attempted | F19: =HLOOKUP("סיכום פרק 1: נאורוּת - משימת סיכום",grade_report!$3:$100,ROWS($A$4:A22),0) -> Not Attempted | G19: =HLOOKUP("הפנמה 1: נאורוּת - משימת הפנמה",grade_report!$3:$100,ROWS($A$4:B22),0) -> Not Attempted | H19: =HLOOKUP("העשרה 1: נאורוּת - משימת העשרה",grade_report!$3:$100,ROWS($A$4:C22),0) -> Not Attempted | J19: =HLOOKUP("שיעור לתלמיד 2: מלחמת העולם הראשונה - שיעור לתלמיד",grade_report!$3:$100,ROWS($A$4:E22),0) ->  | K19: =HLOOKUP("סיכום פרק 2: מלחמת העולם הראשונה - משימת סיכום",grade_report!$3:$100,ROWS($A$4:E22),0) ->  | L19: =HLOOKUP("הפנמה 2: מלחמת העולם הראשונה - משימת הפנמה",grade_report!$3:$100,ROWS($A$4:F22),0) ->  | M19: =HLOOKUP("העשרה 2: מלחמת העולם הראשונה - משימת העשרה - רשות: מלחמת החפירות",grade_report!$3:$100,ROWS($A$4:G22),0) ->  | O19: =HLOOKUP("שיעור לתלמיד 3: השינויים במעמד המשפטי של יהודי צרפת משלהי המאה ה-18 עד ראשית המאה ה-20 - תת פרק לבחירה",grade_report!$3:$100,ROWS($A$4:J22),0) ->  | P19: =HLOOKUP("סיכום פרק 3: השינויים במעמד המשפטי של יהודי צרפת משלהי המאה ה-18 עד ראשית המאה ה-20 -משימת סיכום",grade_report!$3:$100,ROWS($A$4:J22),0) ->  | Q19: =HLOOKUP("שיעור לתלמיד 4: השינויים במעמד המשפטי של יהודי גרמניה משלהי המאה ה-18 עד ראשית המאה ה-20 - תת פרק לבחירה",grade_report!$3:$100,ROWS($A$4:O22),0) ->  | R19: =HLOOKUP("סיכום פרק 4: השינויים במעמד המשפטי של יהודי גרמניה משלהי המאה ה-18 עד ראשית המאה ה-20 - תת פרק לבחירה -משימת סיכום",grade_report!$3:$100,ROWS($A$4:O22),0) ->  | S19: =HLOOKUP("שיעור לתלמיד 5: השינויים במעמד המשפטי של היהודים בארצות האסלאם - תהליך האמנציפציה באלג'יריה - תת פרק חובה",grade_report!$3:$100,ROWS($A$4:A22),0) ->  | T19: =HLOOKUP("סיכום פרק 5: השינויים במעמד המשפטי של היהודים בארצות האסלאם - תהליך האמנציפציה באלג'יריה - משימת סיכום",grade_report!$3:$100,ROWS($A$4:A22),0) ->  | U19: =HLOOKUP("שיעור לתלמיד 6: השלכות השינויים במעמד היהודים על החברה היהודית - תת פרק חובה",grade_report!$3:$100,ROWS($A$4:D22),0) ->  | V19: =HLOOKUP("סיכום פרק 6: השפעת הליברליזם על תמורות בחברה היהודית - משימת סיכום - סיכום הסוגיה לכל הפרק",grade_report!$3:$100,ROWS($A$4:A22),0) ->  | W19: =HLOOKUP("הפנמה 3: מעמד היהודים משלהי המאה ה-18 ועד תחילת המאה ה-20 - משימת הפנמה לכל הפרק",grade_report!$3:$100,ROWS($A$4:Q22),0) ->  | X19: =HLOOKUP("העשרה 3: מעמד היהודים משלהי המאה ה-18 ועד תחילת המאה ה-20 - משימת העשרה לכל הפרק",grade_report!$3:$100,ROWS($A$4:R22),0) ->  | Z19: =HLOOKUP("שיעור לתלמיד 7: השפעת הנאורות על החברה היהודית - תת פרק חובה",grade_report!$3:$100,ROWS($A$4:A22),0) ->  | AA19: =HLOOKUP("סיכום פרק 7: השפעת הנאורות על החברה היהודית - תת פרק חובה - משימת סיכום",grade_report!$3:$100,ROWS($A$4:A22),0) ->  | AC19: =HLOOKUP("שיעור לתלמיד 8: ניאו אורתודוקסיה - חיוב המודרנה תוך שמירה קפדנית על מצוות הדת - שיעור לתלמיד",grade_report!$3:$100,ROWS($A$4:D22),0) ->  | AD19: =HLOOKUP("סיכום פרק 8: ניאו אורתודוקסיה - חיוב המודרנה תוך שמירה קפדנית על מצוות הדת - משימת סיכום",grade_report!$3:$100,ROWS($A$4:D22),0) ->  | AE19: =HLOOKUP("סיכום פרק 9: תנועות וזרמים יהודיים - משימת סיכום לכל הפרק",grade_report!$3:$100,ROWS($A$4:E22),0) ->  | AG19: =HLOOKUP("שיעור לתלמיד 9: מבשרי הציונות וחיבת ציון - שיעור לתלמיד",grade_report!$3:$100,ROWS($A$4:H22),0) ->  | AH19: =HLOOKUP("סיכום פרק 10: מבשרי הציונות וחיבת ציון - משימת סיכום",grade_report!$3:$100,ROWS($A$4:H22),0) ->  | AI19: =HLOOKUP("הפנמה 4: מבשרי הציונות וחיבת ציון - משימת הפנמה",grade_report!$3:$100,ROWS($A$4:AC22),0) ->  | AJ19: =HLOOKUP("העשרה 4: מבשרי הציונות וחיבת ציון - משימת העשרה",grade_report!$3:$100,ROWS($A$4:AD22),0) ->  | AL19: =HLOOKUP("שיעור לתלמיד 10: התנועה הציונית והרצל - שיעור לתלמיד",grade_report!$3:$100,ROWS($A$4:M22),0) ->  | AM19: =HLOOKUP("סיכום פרק 11: התנועה הציונית והרצל - משימת סיכום - סוף ימיו של הרצל",grade_report!$3:$100,ROWS($A$4:M22),0) ->  | AN19: =HLOOKUP("הפנמה 5: התנועה הציונית והרצל - משימת הפנמה",grade_report!$3:$100,ROWS($A$4:AH22),0) ->  | AO19: =HLOOKUP("העשרה 5: התנועה הציונית והרצל - משימת העשרה",grade_report!$3:$100,ROWS($A$4:AI22),0) ->  | AQ19: =HLOOKUP("שיעור לתלמיד 11: מפלגות, זרמים ומתנגדים - שיעור לתלמיד",grade_report!$3:$100,ROWS($A$4:R22),0) ->  | AR19: =HLOOKUP("סיכום פרק 12: מפלגות, זרמים ומתנגדים - משימת סיכום",grade_report!$3:$100,ROWS($A$4:R22),0) ->  | AS19: =HLOOKUP("הפנמה 6: מפלגות, זרמים ומתנגדים - משימת הפנמה",grade_report!$3:$100,ROWS($A$4:AM22),0) ->  | AT19: =HLOOKUP("העשרה 6: מפלגות, זרמים ומתנגדים - משימת העשרה",grade_report!$3:$100,ROWS($A$4:AN22),0) ->  | AV19: =HLOOKUP("סיכום קורס-ש' סגורות",grade_report!$3:$100,ROWS($A$4:AP22),0) ->  | AW19: =HLOOKUP("סיכום קורס-ש' פתוחות",grade_report!$3:$100,ROWS($A$4:AQ22),0) ->  | AX19: =HLOOKUP("תלמידאות",grade_report!$3:$100,ROWS($A$4:AR22),0) -> Not Available
A20: =grade_report!C22 -> תהל_חזות | B20: =grade_report!B22 -> tahel1.ch@gmail.com | D20: =VLOOKUP(A20,grade_report!C:D,2,FALSE) -> 0.07 | E20: =HLOOKUP("שיעור לתלמיד 1: נאורוּת - שיעור לתלמיד",grade_report!$3:$100,ROWS($A$4:A23),0) -> 1 | F20: =HLOOKUP("סיכום פרק 1: נאורוּת - משימת סיכום",grade_report!$3:$100,ROWS($A$4:A23),0) -> Not Attempted | G20: =HLOOKUP("הפנמה 1: נאורוּת - משימת הפנמה",grade_report!$3:$100,ROWS($A$4:B23),0) -> 0.04761904762 | H20: =HLOOKUP("העשרה 1: נאורוּת - משימת העשרה",grade_report!$3:$100,ROWS($A$4:C23),0) -> Not Attempted | J20: =HLOOKUP("שיעור לתלמיד 2: מלחמת העולם הראשונה - שיעור לתלמיד",grade_report!$3:$100,ROWS($A$4:E23),0) ->  | K20: =HLOOKUP("סיכום פרק 2: מלחמת העולם הראשונה - משימת סיכום",grade_report!$3:$100,ROWS($A$4:E23),0) ->  | L20: =HLOOKUP("הפנמה 2: מלחמת העולם הראשונה - משימת הפנמה",grade_report!$3:$100,ROWS($A$4:F23),0) ->  | M20: =HLOOKUP("העשרה 2: מלחמת העולם הראשונה - משימת העשרה - רשות: מלחמת החפירות",grade_report!$3:$100,ROWS($A$4:G23),0) ->  | O20: =HLOOKUP("שיעור לתלמיד 3: השינויים במעמד המשפטי של יהודי צרפת משלהי המאה ה-18 עד ראשית המאה ה-20 - תת פרק לבחירה",grade_report!$3:$100,ROWS($A$4:J23),0) ->  | P20: =HLOOKUP("סיכום פרק 3: השינויים במעמד המשפטי של יהודי צרפת משלהי המאה ה-18 עד ראשית המאה ה-20 -משימת סיכום",grade_report!$3:$100,ROWS($A$4:J23),0) ->  | Q20: =HLOOKUP("שיעור לתלמיד 4: השינויים במעמד המשפטי של יהודי גרמניה משלהי המאה ה-18 עד ראשית המאה ה-20 - תת פרק לבחירה",grade_report!$3:$100,ROWS($A$4:O23),0) ->  | R20: =HLOOKUP("סיכום פרק 4: השינויים במעמד המשפטי של יהודי גרמניה משלהי המאה ה-18 עד ראשית המאה ה-20 - תת פרק לבחירה -משימת סיכום",grade_report!$3:$100,ROWS($A$4:O23),0) ->  | S20: =HLOOKUP("שיעור לתלמיד 5: השינויים במעמד המשפטי של היהודים בארצות האסלאם - תהליך האמנציפציה באלג'יריה - תת פרק חובה",grade_report!$3:$100,ROWS($A$4:A23),0) ->  | T20: =HLOOKUP("סיכום פרק 5: השינויים במעמד המשפטי של היהודים בארצות האסלאם - תהליך האמנציפציה באלג'יריה - משימת סיכום",grade_report!$3:$100,ROWS($A$4:A23),0) ->  | U20: =HLOOKUP("שיעור לתלמיד 6: השלכות השינויים במעמד היהודים על החברה היהודית - תת פרק חובה",grade_report!$3:$100,ROWS($A$4:D23),0) ->  | V20: =HLOOKUP("סיכום פרק 6: השפעת הליברליזם על תמורות בחברה היהודית - משימת סיכום - סיכום הסוגיה לכל הפרק",grade_report!$3:$100,ROWS($A$4:A23),0) ->  | W20: =HLOOKUP("הפנמה 3: מעמד היהודים משלהי המאה ה-18 ועד תחילת המאה ה-20 - משימת הפנמה לכל הפרק",grade_report!$3:$100,ROWS($A$4:Q23),0) ->  | X20: =HLOOKUP("העשרה 3: מעמד היהודים משלהי המאה ה-18 ועד תחילת המאה ה-20 - משימת העשרה לכל הפרק",grade_report!$3:$100,ROWS($A$4:R23),0) ->  | Z20: =HLOOKUP("שיעור לתלמיד 7: השפעת הנאורות על החברה היהודית - תת פרק חובה",grade_report!$3:$100,ROWS($A$4:A23),0) ->  | AA20: =HLOOKUP("סיכום פרק 7: השפעת הנאורות על החברה היהודית - תת פרק חובה - משימת סיכום",grade_report!$3:$100,ROWS($A$4:A23),0) ->  | AC20: =HLOOKUP("שיעור לתלמיד 8: ניאו אורתודוקסיה - חיוב המודרנה תוך שמירה קפדנית על מצוות הדת - שיעור לתלמיד",grade_report!$3:$100,ROWS($A$4:D23),0) ->  | AD20: =HLOOKUP("סיכום פרק 8: ניאו אורתודוקסיה - חיוב המודרנה תוך שמירה קפדנית על מצוות הדת - משימת סיכום",grade_report!$3:$100,ROWS($A$4:D23),0) ->  | AE20: =HLOOKUP("סיכום פרק 9: תנועות וזרמים יהודיים - משימת סיכום לכל הפרק",grade_report!$3:$100,ROWS($A$4:E23),0) ->  | AG20: =HLOOKUP("שיעור לתלמיד 9: מבשרי הציונות וחיבת ציון - שיעור לתלמיד",grade_report!$3:$100,ROWS($A$4:H23),0) ->  | AH20: =HLOOKUP("סיכום פרק 10: מבשרי הציונות וחיבת ציון - משימת סיכום",grade_report!$3:$100,ROWS($A$4:H23),0) ->  | AI20: =HLOOKUP("הפנמה 4: מבשרי הציונות וחיבת ציון - משימת הפנמה",grade_report!$3:$100,ROWS($A$4:AC23),0) ->  | AJ20: =HLOOKUP("העשרה 4: מבשרי הציונות וחיבת ציון - משימת העשרה",grade_report!$3:$100,ROWS($A$4:AD23),0) ->  | AL20: =HLOOKUP("שיעור לתלמיד 10: התנועה הציונית והרצל - שיעור לתלמיד",grade_report!$3:$100,ROWS($A$4:M23),0) ->  | AM20: =HLOOKUP("סיכום פרק 11: התנועה הציונית והרצל - משימת סיכום - סוף ימיו של הרצל",grade_report!$3:$100,ROWS($A$4:M23),0) ->  | AN20: =HLOOKUP("הפנמה 5: התנועה הציונית והרצל - משימת הפנמה",grade_report!$3:$100,ROWS($A$4:AH23),0) ->  | AO20: =HLOOKUP("העשרה 5: התנועה הציונית והרצל - משימת העשרה",grade_report!$3:$100,ROWS($A$4:AI23),0) ->  | AQ20: =HLOOKUP("שיעור לתלמיד 11: מפלגות, זרמים ומתנגדים - שיעור לתלמיד",grade_report!$3:$100,ROWS($A$4:R23),0) ->  | AR20: =HLOOKUP("סיכום פרק 12: מפלגות, זרמים ומתנגדים - משימת סיכום",grade_report!$3:$100,ROWS($A$4:R23),0) ->  | AS20: =HLOOKUP("הפנמה 6: מפלגות, זרמים ומתנגדים - משימת הפנמה",grade_report!$3:$100,ROWS($A$4:AM23),0) ->  | AT20: =HLOOKUP("העשרה 6: מפלגות, זרמים ומתנגדים - משימת העשרה",grade_report!$3:$100,ROWS($A$4:AN23),0) ->  | AV20: =HLOOKUP("סיכום קורס-ש' סגורות",grade_report!$3:$100,ROWS($A$4:AP23),0) ->  | AW20: =HLOOKUP("סיכום קורס-ש' פתוחות",grade_report!$3:$100,ROWS($A$4:AQ23),0) ->  | AX20: =HLOOKUP("תלמידאות",grade_report!$3:$100,ROWS($A$4:AR23),0) -> Not Available
A21: =grade_report!C23 -> לילך סמואל | B21: =grade_report!B23 -> samuellilach33@gmail.com | D21: =VLOOKUP(A21,grade_report!C:D,2,FALSE) -> 0.07 | E21: =HLOOKUP("שיעור לתלמיד 1: נאורוּת - שיעור לתלמיד",grade_report!$3:$100,ROWS($A$4:A24),0) -> 0.875 | F21: =HLOOKUP("סיכום פרק 1: נאורוּת - משימת סיכום",grade_report!$3:$100,ROWS($A$4:A24),0) -> Not Attempted | G21: =HLOOKUP("הפנמה 1: נאורוּת - משימת הפנמה",grade_report!$3:$100,ROWS($A$4:B24),0) -> 0.04761904762 | H21: =HLOOKUP("העשרה 1: נאורוּת - משימת העשרה",grade_report!$3:$100,ROWS($A$4:C24),0) -> Not Attempted | J21: =HLOOKUP("שיעור לתלמיד 2: מלחמת העולם הראשונה - שיעור לתלמיד",grade_report!$3:$100,ROWS($A$4:E24),0) ->  | K21: =HLOOKUP("סיכום פרק 2: מלחמת העולם הראשונה - משימת סיכום",grade_report!$3:$100,ROWS($A$4:E24),0) ->  | L21: =HLOOKUP("הפנמה 2: מלחמת העולם הראשונה - משימת הפנמה",grade_report!$3:$100,ROWS($A$4:F24),0) ->  | M21: =HLOOKUP("העשרה 2: מלחמת העולם הראשונה - משימת העשרה - רשות: מלחמת החפירות",grade_report!$3:$100,ROWS($A$4:G24),0) ->  | O21: =HLOOKUP("שיעור לתלמיד 3: השינויים במעמד המשפטי של יהודי צרפת משלהי המאה ה-18 עד ראשית המאה ה-20 - תת פרק לבחירה",grade_report!$3:$100,ROWS($A$4:J24),0) ->  | P21: =HLOOKUP("סיכום פרק 3: השינויים במעמד המשפטי של יהודי צרפת משלהי המאה ה-18 עד ראשית המאה ה-20 -משימת סיכום",grade_report!$3:$100,ROWS($A$4:J24),0) ->  | Q21: =HLOOKUP("שיעור לתלמיד 4: השינויים במעמד המשפטי של יהודי גרמניה משלהי המאה ה-18 עד ראשית המאה ה-20 - תת פרק לבחירה",grade_report!$3:$100,ROWS($A$4:O24),0) ->  | R21: =HLOOKUP("סיכום פרק 4: השינויים במעמד המשפטי של יהודי גרמניה משלהי המאה ה-18 עד ראשית המאה ה-20 - תת פרק לבחירה -משימת סיכום",grade_report!$3:$100,ROWS($A$4:O24),0) ->  | S21: =HLOOKUP("שיעור לתלמיד 5: השינויים במעמד המשפטי של היהודים בארצות האסלאם - תהליך האמנציפציה באלג'יריה - תת פרק חובה",grade_report!$3:$100,ROWS($A$4:A24),0) ->  | T21: =HLOOKUP("סיכום פרק 5: השינויים במעמד המשפטי של היהודים בארצות האסלאם - תהליך האמנציפציה באלג'יריה - משימת סיכום",grade_report!$3:$100,ROWS($A$4:A24),0) ->  | U21: =HLOOKUP("שיעור לתלמיד 6: השלכות השינויים במעמד היהודים על החברה היהודית - תת פרק חובה",grade_report!$3:$100,ROWS($A$4:D24),0) ->  | V21: =HLOOKUP("סיכום פרק 6: השפעת הליברליזם על תמורות בחברה היהודית - משימת סיכום - סיכום הסוגיה לכל הפרק",grade_report!$3:$100,ROWS($A$4:A24),0) ->  | W21: =HLOOKUP("הפנמה 3: מעמד היהודים משלהי המאה ה-18 ועד תחילת המאה ה-20 - משימת הפנמה לכל הפרק",grade_report!$3:$100,ROWS($A$4:Q24),0) ->  | X21: =HLOOKUP("העשרה 3: מעמד היהודים משלהי המאה ה-18 ועד תחילת המאה ה-20 - משימת העשרה לכל הפרק",grade_report!$3:$100,ROWS($A$4:R24),0) ->  | Z21: =HLOOKUP("שיעור לתלמיד 7: השפעת הנאורות על החברה היהודית - תת פרק חובה",grade_report!$3:$100,ROWS($A$4:A24),0) ->  | AA21: =HLOOKUP("סיכום פרק 7: השפעת הנאורות על החברה היהודית - תת פרק חובה - משימת סיכום",grade_report!$3:$100,ROWS($A$4:A24),0) ->  | AC21: =HLOOKUP("שיעור לתלמיד 8: ניאו אורתודוקסיה - חיוב המודרנה תוך שמירה קפדנית על מצוות הדת - שיעור לתלמיד",grade_report!$3:$100,ROWS($A$4:D24),0) ->  | AD21: =HLOOKUP("סיכום פרק 8: ניאו אורתודוקסיה - חיוב המודרנה תוך שמירה קפדנית על מצוות הדת - משימת סיכום",grade_report!$3:$100,ROWS($A$4:D24),0) ->  | AE21: =HLOOKUP("סיכום פרק 9: תנועות וזרמים יהודיים - משימת סיכום לכל הפרק",grade_report!$3:$100,ROWS($A$4:E24),0) ->  | AG21: =HLOOKUP("שיעור לתלמיד 9: מבשרי הציונות וחיבת ציון - שיעור לתלמיד",grade_report!$3:$100,ROWS($A$4:H24),0) ->  | AH21: =HLOOKUP("סיכום פרק 10: מבשרי הציונות וחיבת ציון - משימת סיכום",grade_report!$3:$100,ROWS($A$4:H24),0) ->  | AI21: =HLOOKUP("הפנמה 4: מבשרי הציונות וחיבת ציון - משימת הפנמה",grade_report!$3:$100,ROWS($A$4:AC24),0) ->  | AJ21: =HLOOKUP("העשרה 4: מבשרי הציונות וחיבת ציון - משימת העשרה",grade_report!$3:$100,ROWS($A$4:AD24),0) ->  | AL21: =HLOOKUP("שיעור לתלמיד 10: התנועה הציונית והרצל - שיעור לתלמיד",grade_report!$3:$100,ROWS($A$4:M24),0) ->  | AM21: =HLOOKUP("סיכום פרק 11: התנועה הציונית והרצל - משימת סיכום - סוף ימיו של הרצל",grade_report!$3:$100,ROWS($A$4:M24),0) ->  | AN21: =HLOOKUP("הפנמה 5: התנועה הציונית והרצל - משימת הפנמה",grade_report!$3:$100,ROWS($A$4:AH24),0) ->  | AO21: =HLOOKUP("העשרה 5: התנועה הציונית והרצל - משימת העשרה",grade_report!$3:$100,ROWS($A$4:AI24),0) ->  | AQ21: =HLOOKUP("שיעור לתלמיד 11: מפלגות, זרמים ומתנגדים - שיעור לתלמיד",grade_report!$3:$100,ROWS($A$4:R24),0) ->  | AR21: =HLOOKUP("סיכום פרק 12: מפלגות, זרמים ומתנגדים - משימת סיכום",grade_report!$3:$100,ROWS($A$4:R24),0) ->  | AS21: =HLOOKUP("הפנמה 6: מפלגות, זרמים ומתנגדים - משימת הפנמה",grade_report!$3:$100,ROWS($A$4:AM24),0) ->  | AT21: =HLOOKUP("העשרה 6: מפלגות, זרמים ומתנגדים - משימת העשרה",grade_report!$3:$100,ROWS($A$4:AN24),0) ->  | AV21: =HLOOKUP("סיכום קורס-ש' סגורות",grade_report!$3:$100,ROWS($A$4:AP24),0) ->  | AW21: =HLOOKUP("סיכום קורס-ש' פתוחות",grade_report!$3:$100,ROWS($A$4:AQ24),0) ->  | AX21: =HLOOKUP("תלמידאות",grade_report!$3:$100,ROWS($A$4:AR24),0) -> Not Available
A22: =grade_report!C24 -> שחר_68 | B22: =grade_report!B24 -> shaharnov8@gmail.com | D22: =VLOOKUP(A22,grade_report!C:D,2,FALSE) -> 0 | E22: =HLOOKUP("שיעור לתלמיד 1: נאורוּת - שיעור לתלמיד",grade_report!$3:$100,ROWS($A$4:A25),0) -> Not Attempted | F22: =HLOOKUP("סיכום פרק 1: נאורוּת - משימת סיכום",grade_report!$3:$100,ROWS($A$4:A25),0) -> Not Attempted | G22: =HLOOKUP("הפנמה 1: נאורוּת - משימת הפנמה",grade_report!$3:$100,ROWS($A$4:B25),0) -> Not Attempted | H22: =HLOOKUP("העשרה 1: נאורוּת - משימת העשרה",grade_report!$3:$100,ROWS($A$4:C25),0) -> Not Attempted | J22: =HLOOKUP("שיעור לתלמיד 2: מלחמת העולם הראשונה - שיעור לתלמיד",grade_report!$3:$100,ROWS($A$4:E25),0) ->  | K22: =HLOOKUP("סיכום פרק 2: מלחמת העולם הראשונה - משימת סיכום",grade_report!$3:$100,ROWS($A$4:E25),0) ->  | L22: =HLOOKUP("הפנמה 2: מלחמת העולם הראשונה - משימת הפנמה",grade_report!$3:$100,ROWS($A$4:F25),0) ->  | M22: =HLOOKUP("העשרה 2: מלחמת העולם הראשונה - משימת העשרה - רשות: מלחמת החפירות",grade_report!$3:$100,ROWS($A$4:G25),0) ->  | O22: =HLOOKUP("שיעור לתלמיד 3: השינויים במעמד המשפטי של יהודי צרפת משלהי המאה ה-18 עד ראשית המאה ה-20 - תת פרק לבחירה",grade_report!$3:$100,ROWS($A$4:J25),0) ->  | P22: =HLOOKUP("סיכום פרק 3: השינויים במעמד המשפטי של יהודי צרפת משלהי המאה ה-18 עד ראשית המאה ה-20 -משימת סיכום",grade_report!$3:$100,ROWS($A$4:J25),0) ->  | Q22: =HLOOKUP("שיעור לתלמיד 4: השינויים במעמד המשפטי של יהודי גרמניה משלהי המאה ה-18 עד ראשית המאה ה-20 - תת פרק לבחירה",grade_report!$3:$100,ROWS($A$4:O25),0) ->  | R22: =HLOOKUP("סיכום פרק 4: השינויים במעמד המשפטי של יהודי גרמניה משלהי המאה ה-18 עד ראשית המאה ה-20 - תת פרק לבחירה -משימת סיכום",grade_report!$3:$100,ROWS($A$4:O25),0) ->  | S22: =HLOOKUP("שיעור לתלמיד 5: השינויים במעמד המשפטי של היהודים בארצות האסלאם - תהליך האמנציפציה באלג'יריה - תת פרק חובה",grade_report!$3:$100,ROWS($A$4:A25),0) ->  | T22: =HLOOKUP("סיכום פרק 5: השינויים במעמד המשפטי של היהודים בארצות האסלאם - תהליך האמנציפציה באלג'יריה - משימת סיכום",grade_report!$3:$100,ROWS($A$4:A25),0) ->  | U22: =HLOOKUP("שיעור לתלמיד 6: השלכות השינויים במעמד היהודים על החברה היהודית - תת פרק חובה",grade_report!$3:$100,ROWS($A$4:D25),0) ->  | V22: =HLOOKUP("סיכום פרק 6: השפעת הליברליזם על תמורות בחברה היהודית - משימת סיכום - סיכום הסוגיה לכל הפרק",grade_report!$3:$100,ROWS($A$4:A25),0) ->  | W22: =HLOOKUP("הפנמה 3: מעמד היהודים משלהי המאה ה-18 ועד תחילת המאה ה-20 - משימת הפנמה לכל הפרק",grade_report!$3:$100,ROWS($A$4:Q25),0) ->  | X22: =HLOOKUP("העשרה 3: מעמד היהודים משלהי המאה ה-18 ועד תחילת המאה ה-20 - משימת העשרה לכל הפרק",grade_report!$3:$100,ROWS($A$4:R25),0) ->  | Z22: =HLOOKUP("שיעור לתלמיד 7: השפעת הנאורות על החברה היהודית - תת פרק חובה",grade_report!$3:$100,ROWS($A$4:A25),0) ->  | AA22: =HLOOKUP("סיכום פרק 7: השפעת הנאורות על החברה היהודית - תת פרק חובה - משימת סיכום",grade_report!$3:$100,ROWS($A$4:A25),0) ->  | AC22: =HLOOKUP("שיעור לתלמיד 8: ניאו אורתודוקסיה - חיוב המודרנה תוך שמירה קפדנית על מצוות הדת - שיעור לתלמיד",grade_report!$3:$100,ROWS($A$4:D25),0) ->  | AD22: =HLOOKUP("סיכום פרק 8: ניאו אורתודוקסיה - חיוב המודרנה תוך שמירה קפדנית על מצוות הדת - משימת סיכום",grade_report!$3:$100,ROWS($A$4:D25),0) ->  | AE22: =HLOOKUP("סיכום פרק 9: תנועות וזרמים יהודיים - משימת סיכום לכל הפרק",grade_report!$3:$100,ROWS($A$4:E25),0) ->  | AG22: =HLOOKUP("שיעור לתלמיד 9: מבשרי הציונות וחיבת ציון - שיעור לתלמיד",grade_report!$3:$100,ROWS($A$4:H25),0) ->  | AH22: =HLOOKUP("סיכום פרק 10: מבשרי הציונות וחיבת ציון - משימת סיכום",grade_report!$3:$100,ROWS($A$4:H25),0) ->  | AI22: =HLOOKUP("הפנמה 4: מבשרי הציונות וחיבת ציון - משימת הפנמה",grade_report!$3:$100,ROWS($A$4:AC25),0) ->  | AJ22: =HLOOKUP("העשרה 4: מבשרי הציונות וחיבת ציון - משימת העשרה",grade_report!$3:$100,ROWS($A$4:AD25),0) ->  | AL22: =HLOOKUP("שיעור לתלמיד 10: התנועה הציונית והרצל - שיעור לתלמיד",grade_report!$3:$100,ROWS($A$4:M25),0) ->  | AM22: =HLOOKUP("סיכום פרק 11: התנועה הציונית והרצל - משימת סיכום - סוף ימיו של הרצל",grade_report!$3:$100,ROWS($A$4:M25),0) ->  | AN22: =HLOOKUP("הפנמה 5: התנועה הציונית והרצל - משימת הפנמה",grade_report!$3:$100,ROWS($A$4:AH25),0) ->  | AO22: =HLOOKUP("העשרה 5: התנועה הציונית והרצל - משימת העשרה",grade_report!$3:$100,ROWS($A$4:AI25),0) ->  | AQ22: =HLOOKUP("שיעור לתלמיד 11: מפלגות, זרמים ומתנגדים - שיעור לתלמיד",grade_report!$3:$100,ROWS($A$4:R25),0) ->  | AR22: =HLOOKUP("סיכום פרק 12: מפלגות, זרמים ומתנגדים - משימת סיכום",grade_report!$3:$100,ROWS($A$4:R25),0) ->  | AS22: =HLOOKUP("הפנמה 6: מפלגות, זרמים ומתנגדים - משימת הפנמה",grade_report!$3:$100,ROWS($A$4:AM25),0) ->  | AT22: =HLOOKUP("העשרה 6: מפלגות, זרמים ומתנגדים - משימת העשרה",grade_report!$3:$100,ROWS($A$4:AN25),0) ->  | AV22: =HLOOKUP("סיכום קורס-ש' סגורות",grade_report!$3:$100,ROWS($A$4:AP25),0) ->  | AW22: =HLOOKUP("סיכום קורס-ש' פתוחות",grade_report!$3:$100,ROWS($A$4:AQ25),0) ->  | AX22: =HLOOKUP("תלמידאות",grade_report!$3:$100,ROWS($A$4:AR25),0) -> Not Available
A23: =grade_report!C25 -> שחר_נוב | B23: =grade_report!B25 -> shrnov1@gmail.com | D23: =VLOOKUP(A23,grade_report!C:D,2,FALSE) -> 0.08 | E23: =HLOOKUP("שיעור לתלמיד 1: נאורוּת - שיעור לתלמיד",grade_report!$3:$100,ROWS($A$4:A26),0) -> 1 | F23: =HLOOKUP("סיכום פרק 1: נאורוּת - משימת סיכום",grade_report!$3:$100,ROWS($A$4:A26),0) -> Not Attempted | G23: =HLOOKUP("הפנמה 1: נאורוּת - משימת הפנמה",grade_report!$3:$100,ROWS($A$4:B26),0) -> 0.04761904762 | H23: =HLOOKUP("העשרה 1: נאורוּת - משימת העשרה",grade_report!$3:$100,ROWS($A$4:C26),0) -> Not Attempted | J23: =HLOOKUP("שיעור לתלמיד 2: מלחמת העולם הראשונה - שיעור לתלמיד",grade_report!$3:$100,ROWS($A$4:E26),0) ->  | K23: =HLOOKUP("סיכום פרק 2: מלחמת העולם הראשונה - משימת סיכום",grade_report!$3:$100,ROWS($A$4:E26),0) ->  | L23: =HLOOKUP("הפנמה 2: מלחמת העולם הראשונה - משימת הפנמה",grade_report!$3:$100,ROWS($A$4:F26),0) ->  | M23: =HLOOKUP("העשרה 2: מלחמת העולם הראשונה - משימת העשרה - רשות: מלחמת החפירות",grade_report!$3:$100,ROWS($A$4:G26),0) ->  | O23: =HLOOKUP("שיעור לתלמיד 3: השינויים במעמד המשפטי של יהודי צרפת משלהי המאה ה-18 עד ראשית המאה ה-20 - תת פרק לבחירה",grade_report!$3:$100,ROWS($A$4:J26),0) ->  | P23: =HLOOKUP("סיכום פרק 3: השינויים במעמד המשפטי של יהודי צרפת משלהי המאה ה-18 עד ראשית המאה ה-20 -משימת סיכום",grade_report!$3:$100,ROWS($A$4:J26),0) ->  | Q23: =HLOOKUP("שיעור לתלמיד 4: השינויים במעמד המשפטי של יהודי גרמניה משלהי המאה ה-18 עד ראשית המאה ה-20 - תת פרק לבחירה",grade_report!$3:$100,ROWS($A$4:O26),0) ->  | R23: =HLOOKUP("סיכום פרק 4: השינויים במעמד המשפטי של יהודי גרמניה משלהי המאה ה-18 עד ראשית המאה ה-20 - תת פרק לבחירה -משימת סיכום",grade_report!$3:$100,ROWS($A$4:O26),0) ->  | S23: =HLOOKUP("שיעור לתלמיד 5: השינויים במעמד המשפטי של היהודים בארצות האסלאם - תהליך האמנציפציה באלג'יריה - תת פרק חובה",grade_report!$3:$100,ROWS($A$4:A26),0) ->  | T23: =HLOOKUP("סיכום פרק 5: השינויים במעמד המשפטי של היהודים בארצות האסלאם - תהליך האמנציפציה באלג'יריה - משימת סיכום",grade_report!$3:$100,ROWS($A$4:A26),0) ->  | U23: =HLOOKUP("שיעור לתלמיד 6: השלכות השינויים במעמד היהודים על החברה היהודית - תת פרק חובה",grade_report!$3:$100,ROWS($A$4:D26),0) ->  | V23: =HLOOKUP("סיכום פרק 6: השפעת הליברליזם על תמורות בחברה היהודית - משימת סיכום - סיכום הסוגיה לכל הפרק",grade_report!$3:$100,ROWS($A$4:A26),0) ->  | W23: =HLOOKUP("הפנמה 3: מעמד היהודים משלהי המאה ה-18 ועד תחילת המאה ה-20 - משימת הפנמה לכל הפרק",grade_report!$3:$100,ROWS($A$4:Q26),0) ->  | X23: =HLOOKUP("העשרה 3: מעמד היהודים משלהי המאה ה-18 ועד תחילת המאה ה-20 - משימת העשרה לכל הפרק",grade_report!$3:$100,ROWS($A$4:R26),0) ->  | Z23: =HLOOKUP("שיעור לתלמיד 7: השפעת הנאורות על החברה היהודית - תת פרק חובה",grade_report!$3:$100,ROWS($A$4:A26),0) ->  | AA23: =HLOOKUP("סיכום פרק 7: השפעת הנאורות על החברה היהודית - תת פרק חובה - משימת סיכום",grade_report!$3:$100,ROWS($A$4:A26),0) ->  | AC23: =HLOOKUP("שיעור לתלמיד 8: ניאו אורתודוקסיה - חיוב המודרנה תוך שמירה קפדנית על מצוות הדת - שיעור לתלמיד",grade_report!$3:$100,ROWS($A$4:D26),0) ->  | AD23: =HLOOKUP("סיכום פרק 8: ניאו אורתודוקסיה - חיוב המודרנה תוך שמירה קפדנית על מצוות הדת - משימת סיכום",grade_report!$3:$100,ROWS($A$4:D26),0) ->  | AE23: =HLOOKUP("סיכום פרק 9: תנועות וזרמים יהודיים - משימת סיכום לכל הפרק",grade_report!$3:$100,ROWS($A$4:E26),0) ->  | AG23: =HLOOKUP("שיעור לתלמיד 9: מבשרי הציונות וחיבת ציון - שיעור לתלמיד",grade_report!$3:$100,ROWS($A$4:H26),0) ->  | AH23: =HLOOKUP("סיכום פרק 10: מבשרי הציונות וחיבת ציון - משימת סיכום",grade_report!$3:$100,ROWS($A$4:H26),0) ->  | AI23: =HLOOKUP("הפנמה 4: מבשרי הציונות וחיבת ציון - משימת הפנמה",grade_report!$3:$100,ROWS($A$4:AC26),0) ->  | AJ23: =HLOOKUP("העשרה 4: מבשרי הציונות וחיבת ציון - משימת העשרה",grade_report!$3:$100,ROWS($A$4:AD26),0) ->  | AL23: =HLOOKUP("שיעור לתלמיד 10: התנועה הציונית והרצל - שיעור לתלמיד",grade_report!$3:$100,ROWS($A$4:M26),0) ->  | AM23: =HLOOKUP("סיכום פרק 11: התנועה הציונית והרצל - משימת סיכום - סוף ימיו של הרצל",grade_report!$3:$100,ROWS($A$4:M26),0) ->  | AN23: =HLOOKUP("הפנמה 5: התנועה הציונית והרצל - משימת הפנמה",grade_report!$3:$100,ROWS($A$4:AH26),0) ->  | AO23: =HLOOKUP("העשרה 5: התנועה הציונית והרצל - משימת העשרה",grade_report!$3:$100,ROWS($A$4:AI26),0) ->  | AQ23: =HLOOKUP("שיעור לתלמיד 11: מפלגות, זרמים ומתנגדים - שיעור לתלמיד",grade_report!$3:$100,ROWS($A$4:R26),0) ->  | AR23: =HLOOKUP("סיכום פרק 12: מפלגות, זרמים ומתנגדים - משימת סיכום",grade_report!$3:$100,ROWS($A$4:R26),0) ->  | AS23: =HLOOKUP("הפנמה 6: מפלגות, זרמים ומתנגדים - משימת הפנמה",grade_report!$3:$100,ROWS($A$4:AM26),0) ->  | AT23: =HLOOKUP("העשרה 6: מפלגות, זרמים ומתנגדים - משימת העשרה",grade_report!$3:$100,ROWS($A$4:AN26),0) ->  | AV23: =HLOOKUP("סיכום קורס-ש' סגורות",grade_report!$3:$100,ROWS($A$4:AP26),0) ->  | AW23: =HLOOKUP("סיכום קורס-ש' פתוחות",grade_report!$3:$100,ROWS($A$4:AQ26),0) ->  | AX23: =HLOOKUP("תלמידאות",grade_report!$3:$100,ROWS($A$4:AR26),0) -> Not Available
A24: =grade_report!C26 -> shani_hirsch | B24: =grade_report!B26 -> shanih2308@gmail.com | D24: =VLOOKUP(A24,grade_report!C:D,2,FALSE) -> 0.05 | E24: =HLOOKUP("שיעור לתלמיד 1: נאורוּת - שיעור לתלמיד",grade_report!$3:$100,ROWS($A$4:A27),0) -> 0.8125 | F24: =HLOOKUP("סיכום פרק 1: נאורוּת - משימת סיכום",grade_report!$3:$100,ROWS($A$4:A27),0) -> Not Attempted | G24: =HLOOKUP("הפנמה 1: נאורוּת - משימת הפנמה",grade_report!$3:$100,ROWS($A$4:B27),0) -> 0.04761904762 | H24: =HLOOKUP("העשרה 1: נאורוּת - משימת העשרה",grade_report!$3:$100,ROWS($A$4:C27),0) -> Not Attempted | J24: =HLOOKUP("שיעור לתלמיד 2: מלחמת העולם הראשונה - שיעור לתלמיד",grade_report!$3:$100,ROWS($A$4:E27),0) ->  | K24: =HLOOKUP("סיכום פרק 2: מלחמת העולם הראשונה - משימת סיכום",grade_report!$3:$100,ROWS($A$4:E27),0) ->  | L24: =HLOOKUP("הפנמה 2: מלחמת העולם הראשונה - משימת הפנמה",grade_report!$3:$100,ROWS($A$4:F27),0) ->  | M24: =HLOOKUP("העשרה 2: מלחמת העולם הראשונה - משימת העשרה - רשות: מלחמת החפירות",grade_report!$3:$100,ROWS($A$4:G27),0) ->  | O24: =HLOOKUP("שיעור לתלמיד 3: השינויים במעמד המשפטי של יהודי צרפת משלהי המאה ה-18 עד ראשית המאה ה-20 - תת פרק לבחירה",grade_report!$3:$100,ROWS($A$4:J27),0) ->  | P24: =HLOOKUP("סיכום פרק 3: השינויים במעמד המשפטי של יהודי צרפת משלהי המאה ה-18 עד ראשית המאה ה-20 -משימת סיכום",grade_report!$3:$100,ROWS($A$4:J27),0) ->  | Q24: =HLOOKUP("שיעור לתלמיד 4: השינויים במעמד המשפטי של יהודי גרמניה משלהי המאה ה-18 עד ראשית המאה ה-20 - תת פרק לבחירה",grade_report!$3:$100,ROWS($A$4:O27),0) ->  | R24: =HLOOKUP("סיכום פרק 4: השינויים במעמד המשפטי של יהודי גרמניה משלהי המאה ה-18 עד ראשית המאה ה-20 - תת פרק לבחירה -משימת סיכום",grade_report!$3:$100,ROWS($A$4:O27),0) ->  | S24: =HLOOKUP("שיעור לתלמיד 5: השינויים במעמד המשפטי של היהודים בארצות האסלאם - תהליך האמנציפציה באלג'יריה - תת פרק חובה",grade_report!$3:$100,ROWS($A$4:A27),0) ->  | T24: =HLOOKUP("סיכום פרק 5: השינויים במעמד המשפטי של היהודים בארצות האסלאם - תהליך האמנציפציה באלג'יריה - משימת סיכום",grade_report!$3:$100,ROWS($A$4:A27),0) ->  | U24: =HLOOKUP("שיעור לתלמיד 6: השלכות השינויים במעמד היהודים על החברה היהודית - תת פרק חובה",grade_report!$3:$100,ROWS($A$4:D27),0) ->  | V24: =HLOOKUP("סיכום פרק 6: השפעת הליברליזם על תמורות בחברה היהודית - משימת סיכום - סיכום הסוגיה לכל הפרק",grade_report!$3:$100,ROWS($A$4:A27),0) ->  | W24: =HLOOKUP("הפנמה 3: מעמד היהודים משלהי המאה ה-18 ועד תחילת המאה ה-20 - משימת הפנמה לכל הפרק",grade_report!$3:$100,ROWS($A$4:Q27),0) ->  | X24: =HLOOKUP("העשרה 3: מעמד היהודים משלהי המאה ה-18 ועד תחילת המאה ה-20 - משימת העשרה לכל הפרק",grade_report!$3:$100,ROWS($A$4:R27),0) ->  | Z24: =HLOOKUP("שיעור לתלמיד 7: השפעת הנאורות על החברה היהודית - תת פרק חובה",grade_report!$3:$100,ROWS($A$4:A27),0) ->  | AA24: =HLOOKUP("סיכום פרק 7: השפעת הנאורות על החברה היהודית - תת פרק חובה - משימת סיכום",grade_report!$3:$100,ROWS($A$4:A27),0) ->  | AC24: =HLOOKUP("שיעור לתלמיד 8: ניאו אורתודוקסיה - חיוב המודרנה תוך שמירה קפדנית על מצוות הדת - שיעור לתלמיד",grade_report!$3:$100,ROWS($A$4:D27),0) ->  | AD24: =HLOOKUP("סיכום פרק 8: ניאו אורתודוקסיה - חיוב המודרנה תוך שמירה קפדנית על מצוות הדת - משימת סיכום",grade_report!$3:$100,ROWS($A$4:D27),0) ->  | AE24: =HLOOKUP("סיכום פרק 9: תנועות וזרמים יהודיים - משימת סיכום לכל הפרק",grade_report!$3:$100,ROWS($A$4:E27),0) ->  | AG24: =HLOOKUP("שיעור לתלמיד 9: מבשרי הציונות וחיבת ציון - שיעור לתלמיד",grade_report!$3:$100,ROWS($A$4:H27),0) ->  | AH24: =HLOOKUP("סיכום פרק 10: מבשרי הציונות וחיבת ציון - משימת סיכום",grade_report!$3:$100,ROWS($A$4:H27),0) ->  | AI24: =HLOOKUP("הפנמה 4: מבשרי הציונות וחיבת ציון - משימת הפנמה",grade_report!$3:$100,ROWS($A$4:AC27),0) ->  | AJ24: =HLOOKUP("העשרה 4: מבשרי הציונות וחיבת ציון - משימת העשרה",grade_report!$3:$100,ROWS($A$4:AD27),0) ->  | AL24: =HLOOKUP("שיעור לתלמיד 10: התנועה הציונית והרצל - שיעור לתלמיד",grade_report!$3:$100,ROWS($A$4:M27),0) ->  | AM24: =HLOOKUP("סיכום פרק 11: התנועה הציונית והרצל - משימת סיכום - סוף ימיו של הרצל",grade_report!$3:$100,ROWS($A$4:M27),0) ->  | AN24: =HLOOKUP("הפנמה 5: התנועה הציונית והרצל - משימת הפנמה",grade_report!$3:$100,ROWS($A$4:AH27),0) ->  | AO24: =HLOOKUP("העשרה 5: התנועה הציונית והרצל - משימת העשרה",grade_report!$3:$100,ROWS($A$4:AI27),0) ->  | AQ24: =HLOOKUP("שיעור לתלמיד 11: מפלגות, זרמים ומתנגדים - שיעור לתלמיד",grade_report!$3:$100,ROWS($A$4:R27),0) ->  | AR24: =HLOOKUP("סיכום פרק 12: מפלגות, זרמים ומתנגדים - משימת סיכום",grade_report!$3:$100,ROWS($A$4:R27),0) ->  | AS24: =HLOOKUP("הפנמה 6: מפלגות, זרמים ומתנגדים - משימת הפנמה",grade_report!$3:$100,ROWS($A$4:AM27),0) ->  | AT24: =HLOOKUP("העשרה 6: מפלגות, זרמים ומתנגדים - משימת העשרה",grade_report!$3:$100,ROWS($A$4:AN27),0) ->  | AV24: =HLOOKUP("סיכום קורס-ש' סגורות",grade_report!$3:$100,ROWS($A$4:AP27),0) ->  | AW24: =HLOOKUP("סיכום קורס-ש' פתוחות",grade_report!$3:$100,ROWS($A$4:AQ27),0) ->  | AX24: =HLOOKUP("תלמידאות",grade_report!$3:$100,ROWS($A$4:AR27),0) -> Not Available
A25: =grade_report!C27 -> tal_tillinger | B25: =grade_report!B27 -> tal.tillinger2@gmail.com | D25: =VLOOKUP(A25,grade_report!C:D,2,FALSE) -> 0.07 | E25: =HLOOKUP("שיעור לתלמיד 1: נאורוּת - שיעור לתלמיד",grade_report!$3:$100,ROWS($A$4:A28),0) -> 1 | F25: =HLOOKUP("סיכום פרק 1: נאורוּת - משימת סיכום",grade_report!$3:$100,ROWS($A$4:A28),0) -> Not Attempted | G25: =HLOOKUP("הפנמה 1: נאורוּת - משימת הפנמה",grade_report!$3:$100,ROWS($A$4:B28),0) -> 0.04761904762 | H25: =HLOOKUP("העשרה 1: נאורוּת - משימת העשרה",grade_report!$3:$100,ROWS($A$4:C28),0) -> Not Attempted | J25: =HLOOKUP("שיעור לתלמיד 2: מלחמת העולם הראשונה - שיעור לתלמיד",grade_report!$3:$100,ROWS($A$4:E28),0) ->  | K25: =HLOOKUP("סיכום פרק 2: מלחמת העולם הראשונה - משימת סיכום",grade_report!$3:$100,ROWS($A$4:E28),0) ->  | L25: =HLOOKUP("הפנמה 2: מלחמת העולם הראשונה - משימת הפנמה",grade_report!$3:$100,ROWS($A$4:F28),0) ->  | M25: =HLOOKUP("העשרה 2: מלחמת העולם הראשונה - משימת העשרה - רשות: מלחמת החפירות",grade_report!$3:$100,ROWS($A$4:G28),0) ->  | O25: =HLOOKUP("שיעור לתלמיד 3: השינויים במעמד המשפטי של יהודי צרפת משלהי המאה ה-18 עד ראשית המאה ה-20 - תת פרק לבחירה",grade_report!$3:$100,ROWS($A$4:J28),0) ->  | P25: =HLOOKUP("סיכום פרק 3: השינויים במעמד המשפטי של יהודי צרפת משלהי המאה ה-18 עד ראשית המאה ה-20 -משימת סיכום",grade_report!$3:$100,ROWS($A$4:J28),0) ->  | Q25: =HLOOKUP("שיעור לתלמיד 4: השינויים במעמד המשפטי של יהודי גרמניה משלהי המאה ה-18 עד ראשית המאה ה-20 - תת פרק לבחירה",grade_report!$3:$100,ROWS($A$4:O28),0) ->  | R25: =HLOOKUP("סיכום פרק 4: השינויים במעמד המשפטי של יהודי גרמניה משלהי המאה ה-18 עד ראשית המאה ה-20 - תת פרק לבחירה -משימת סיכום",grade_report!$3:$100,ROWS($A$4:O28),0) ->  | S25: =HLOOKUP("שיעור לתלמיד 5: השינויים במעמד המשפטי של היהודים בארצות האסלאם - תהליך האמנציפציה באלג'יריה - תת פרק חובה",grade_report!$3:$100,ROWS($A$4:A28),0) ->  | T25: =HLOOKUP("סיכום פרק 5: השינויים במעמד המשפטי של היהודים בארצות האסלאם - תהליך האמנציפציה באלג'יריה - משימת סיכום",grade_report!$3:$100,ROWS($A$4:A28),0) ->  | U25: =HLOOKUP("שיעור לתלמיד 6: השלכות השינויים במעמד היהודים על החברה היהודית - תת פרק חובה",grade_report!$3:$100,ROWS($A$4:D28),0) ->  | V25: =HLOOKUP("סיכום פרק 6: השפעת הליברליזם על תמורות בחברה היהודית - משימת סיכום - סיכום הסוגיה לכל הפרק",grade_report!$3:$100,ROWS($A$4:A28),0) ->  | W25: =HLOOKUP("הפנמה 3: מעמד היהודים משלהי המאה ה-18 ועד תחילת המאה ה-20 - משימת הפנמה לכל הפרק",grade_report!$3:$100,ROWS($A$4:Q28),0) ->  | X25: =HLOOKUP("העשרה 3: מעמד היהודים משלהי המאה ה-18 ועד תחילת המאה ה-20 - משימת העשרה לכל הפרק",grade_report!$3:$100,ROWS($A$4:R28),0) ->  | Z25: =HLOOKUP("שיעור לתלמיד 7: השפעת הנאורות על החברה היהודית - תת פרק חובה",grade_report!$3:$100,ROWS($A$4:A28),0) ->  | AA25: =HLOOKUP("סיכום פרק 7: השפעת הנאורות על החברה היהודית - תת פרק חובה - משימת סיכום",grade_report!$3:$100,ROWS($A$4:A28),0) ->  | AC25: =HLOOKUP("שיעור לתלמיד 8: ניאו אורתודוקסיה - חיוב המודרנה תוך שמירה קפדנית על מצוות הדת - שיעור לתלמיד",grade_report!$3:$100,ROWS($A$4:D28),0) ->  | AD25: =HLOOKUP("סיכום פרק 8: ניאו אורתודוקסיה - חיוב המודרנה תוך שמירה קפדנית על מצוות הדת - משימת סיכום",grade_report!$3:$100,ROWS($A$4:D28),0) ->  | AE25: =HLOOKUP("סיכום פרק 9: תנועות וזרמים יהודיים - משימת סיכום לכל הפרק",grade_report!$3:$100,ROWS($A$4:E28),0) ->  | AG25: =HLOOKUP("שיעור לתלמיד 9: מבשרי הציונות וחיבת ציון - שיעור לתלמיד",grade_report!$3:$100,ROWS($A$4:H28),0) ->  | AH25: =HLOOKUP("סיכום פרק 10: מבשרי הציונות וחיבת ציון - משימת סיכום",grade_report!$3:$100,ROWS($A$4:H28),0) ->  | AI25: =HLOOKUP("הפנמה 4: מבשרי הציונות וחיבת ציון - משימת הפנמה",grade_report!$3:$100,ROWS($A$4:AC28),0) ->  | AJ25: =HLOOKUP("העשרה 4: מבשרי הציונות וחיבת ציון - משימת העשרה",grade_report!$3:$100,ROWS($A$4:AD28),0) ->  | AL25: =HLOOKUP("שיעור לתלמיד 10: התנועה הציונית והרצל - שיעור לתלמיד",grade_report!$3:$100,ROWS($A$4:M28),0) ->  | AM25: =HLOOKUP("סיכום פרק 11: התנועה הציונית והרצל - משימת סיכום - סוף ימיו של הרצל",grade_report!$3:$100,ROWS($A$4:M28),0) ->  | AN25: =HLOOKUP("הפנמה 5: התנועה הציונית והרצל - משימת הפנמה",grade_report!$3:$100,ROWS($A$4:AH28),0) ->  | AO25: =HLOOKUP("העשרה 5: התנועה הציונית והרצל - משימת העשרה",grade_report!$3:$100,ROWS($A$4:AI28),0) ->  | AQ25: =HLOOKUP("שיעור לתלמיד 11: מפלגות, זרמים ומתנגדים - שיעור לתלמיד",grade_report!$3:$100,ROWS($A$4:R28),0) ->  | AR25: =HLOOKUP("סיכום פרק 12: מפלגות, זרמים ומתנגדים - משימת סיכום",grade_report!$3:$100,ROWS($A$4:R28),0) ->  | AS25: =HLOOKUP("הפנמה 6: מפלגות, זרמים ומתנגדים - משימת הפנמה",grade_report!$3:$100,ROWS($A$4:AM28),0) ->  | AT25: =HLOOKUP("העשרה 6: מפלגות, זרמים ומתנגדים - משימת העשרה",grade_report!$3:$100,ROWS($A$4:AN28),0) ->  | AV25: =HLOOKUP("סיכום קורס-ש' סגורות",grade_report!$3:$100,ROWS($A$4:AP28),0) ->  | AW25: =HLOOKUP("סיכום קורס-ש' פתוחות",grade_report!$3:$100,ROWS($A$4:AQ28),0) ->  | AX25: =HLOOKUP("תלמידאות",grade_report!$3:$100,ROWS($A$4:AR28),0) -> Not Available
A26: =grade_report!C28 -> תהל_יהושע | B26: =grade_report!B28 -> tahel030@gmail.com | D26: =VLOOKUP(A26,grade_report!C:D,2,FALSE) -> 0.12 | E26: =HLOOKUP("שיעור לתלמיד 1: נאורוּת - שיעור לתלמיד",grade_report!$3:$100,ROWS($A$4:A29),0) -> 1 | F26: =HLOOKUP("סיכום פרק 1: נאורוּת - משימת סיכום",grade_report!$3:$100,ROWS($A$4:A29),0) -> Not Attempted | G26: =HLOOKUP("הפנמה 1: נאורוּת - משימת הפנמה",grade_report!$3:$100,ROWS($A$4:B29),0) -> 0.04761904762 | H26: =HLOOKUP("העשרה 1: נאורוּת - משימת העשרה",grade_report!$3:$100,ROWS($A$4:C29),0) -> Not Attempted | J26: =HLOOKUP("שיעור לתלמיד 2: מלחמת העולם הראשונה - שיעור לתלמיד",grade_report!$3:$100,ROWS($A$4:E29),0) ->  | K26: =HLOOKUP("סיכום פרק 2: מלחמת העולם הראשונה - משימת סיכום",grade_report!$3:$100,ROWS($A$4:E29),0) ->  | L26: =HLOOKUP("הפנמה 2: מלחמת העולם הראשונה - משימת הפנמה",grade_report!$3:$100,ROWS($A$4:F29),0) ->  | M26: =HLOOKUP("העשרה 2: מלחמת העולם הראשונה - משימת העשרה - רשות: מלחמת החפירות",grade_report!$3:$100,ROWS($A$4:G29),0) ->  | O26: =HLOOKUP("שיעור לתלמיד 3: השינויים במעמד המשפטי של יהודי צרפת משלהי המאה ה-18 עד ראשית המאה ה-20 - תת פרק לבחירה",grade_report!$3:$100,ROWS($A$4:J29),0) ->  | P26: =HLOOKUP("סיכום פרק 3: השינויים במעמד המשפטי של יהודי צרפת משלהי המאה ה-18 עד ראשית המאה ה-20 -משימת סיכום",grade_report!$3:$100,ROWS($A$4:J29),0) ->  | Q26: =HLOOKUP("שיעור לתלמיד 4: השינויים במעמד המשפטי של יהודי גרמניה משלהי המאה ה-18 עד ראשית המאה ה-20 - תת פרק לבחירה",grade_report!$3:$100,ROWS($A$4:O29),0) ->  | R26: =HLOOKUP("סיכום פרק 4: השינויים במעמד המשפטי של יהודי גרמניה משלהי המאה ה-18 עד ראשית המאה ה-20 - תת פרק לבחירה -משימת סיכום",grade_report!$3:$100,ROWS($A$4:O29),0) ->  | S26: =HLOOKUP("שיעור לתלמיד 5: השינויים במעמד המשפטי של היהודים בארצות האסלאם - תהליך האמנציפציה באלג'יריה - תת פרק חובה",grade_report!$3:$100,ROWS($A$4:A29),0) ->  | T26: =HLOOKUP("סיכום פרק 5: השינויים במעמד המשפטי של היהודים בארצות האסלאם - תהליך האמנציפציה באלג'יריה - משימת סיכום",grade_report!$3:$100,ROWS($A$4:A29),0) ->  | U26: =HLOOKUP("שיעור לתלמיד 6: השלכות השינויים במעמד היהודים על החברה היהודית - תת פרק חובה",grade_report!$3:$100,ROWS($A$4:D29),0) ->  | V26: =HLOOKUP("סיכום פרק 6: השפעת הליברליזם על תמורות בחברה היהודית - משימת סיכום - סיכום הסוגיה לכל הפרק",grade_report!$3:$100,ROWS($A$4:A29),0) ->  | W26: =HLOOKUP("הפנמה 3: מעמד היהודים משלהי המאה ה-18 ועד תחילת המאה ה-20 - משימת הפנמה לכל הפרק",grade_report!$3:$100,ROWS($A$4:Q29),0) ->  | X26: =HLOOKUP("העשרה 3: מעמד היהודים משלהי המאה ה-18 ועד תחילת המאה ה-20 - משימת העשרה לכל הפרק",grade_report!$3:$100,ROWS($A$4:R29),0) ->  | Z26: =HLOOKUP("שיעור לתלמיד 7: השפעת הנאורות על החברה היהודית - תת פרק חובה",grade_report!$3:$100,ROWS($A$4:A29),0) ->  | AA26: =HLOOKUP("סיכום פרק 7: השפעת הנאורות על החברה היהודית - תת פרק חובה - משימת סיכום",grade_report!$3:$100,ROWS($A$4:A29),0) ->  | AC26: =HLOOKUP("שיעור לתלמיד 8: ניאו אורתודוקסיה - חיוב המודרנה תוך שמירה קפדנית על מצוות הדת - שיעור לתלמיד",grade_report!$3:$100,ROWS($A$4:D29),0) ->  | AD26: =HLOOKUP("סיכום פרק 8: ניאו אורתודוקסיה - חיוב המודרנה תוך שמירה קפדנית על מצוות הדת - משימת סיכום",grade_report!$3:$100,ROWS($A$4:D29),0) ->  | AE26: =HLOOKUP("סיכום פרק 9: תנועות וזרמים יהודיים - משימת סיכום לכל הפרק",grade_report!$3:$100,ROWS($A$4:E29),0) ->  | AG26: =HLOOKUP("שיעור לתלמיד 9: מבשרי הציונות וחיבת ציון - שיעור לתלמיד",grade_report!$3:$100,ROWS($A$4:H29),0) ->  | AH26: =HLOOKUP("סיכום פרק 10: מבשרי הציונות וחיבת ציון - משימת סיכום",grade_report!$3:$100,ROWS($A$4:H29),0) ->  | AI26: =HLOOKUP("הפנמה 4: מבשרי הציונות וחיבת ציון - משימת הפנמה",grade_report!$3:$100,ROWS($A$4:AC29),0) ->  | AJ26: =HLOOKUP("העשרה 4: מבשרי הציונות וחיבת ציון - משימת העשרה",grade_report!$3:$100,ROWS($A$4:AD29),0) ->  | AL26: =HLOOKUP("שיעור לתלמיד 10: התנועה הציונית והרצל - שיעור לתלמיד",grade_report!$3:$100,ROWS($A$4:M29),0) ->  | AM26: =HLOOKUP("סיכום פרק 11: התנועה הציונית והרצל - משימת סיכום - סוף ימיו של הרצל",grade_report!$3:$100,ROWS($A$4:M29),0) ->  | AN26: =HLOOKUP("הפנמה 5: התנועה הציונית והרצל - משימת הפנמה",grade_report!$3:$100,ROWS($A$4:AH29),0) ->  | AO26: =HLOOKUP("העשרה 5: התנועה הציונית והרצל - משימת העשרה",grade_report!$3:$100,ROWS($A$4:AI29),0) ->  | AQ26: =HLOOKUP("שיעור לתלמיד 11: מפלגות, זרמים ומתנגדים - שיעור לתלמיד",grade_report!$3:$100,ROWS($A$4:R29),0) ->  | AR26: =HLOOKUP("סיכום פרק 12: מפלגות, זרמים ומתנגדים - משימת סיכום",grade_report!$3:$100,ROWS($A$4:R29),0) ->  | AS26: =HLOOKUP("הפנמה 6: מפלגות, זרמים ומתנגדים - משימת הפנמה",grade_report!$3:$100,ROWS($A$4:AM29),0) ->  | AT26: =HLOOKUP("העשרה 6: מפלגות, זרמים ומתנגדים - משימת העשרה",grade_report!$3:$100,ROWS($A$4:AN29),0) ->  | AV26: =HLOOKUP("סיכום קורס-ש' סגורות",grade_report!$3:$100,ROWS($A$4:AP29),0) ->  | AW26: =HLOOKUP("סיכום קורס-ש' פתוחות",grade_report!$3:$100,ROWS($A$4:AQ29),0) ->  | AX26: =HLOOKUP("תלמידאות",grade_report!$3:$100,ROWS($A$4:AR29),0) -> Not Available
A27: =grade_report!C29 -> ענבל_אברמזון | B27: =grade_report!B29 -> inbalav9@gmail.com | D27: =VLOOKUP(A27,grade_report!C:D,2,FALSE) -> 0.11 | E27: =HLOOKUP("שיעור לתלמיד 1: נאורוּת - שיעור לתלמיד",grade_report!$3:$100,ROWS($A$4:A30),0) -> 1 | F27: =HLOOKUP("סיכום פרק 1: נאורוּת - משימת סיכום",grade_report!$3:$100,ROWS($A$4:A30),0) -> Not Attempted | G27: =HLOOKUP("הפנמה 1: נאורוּת - משימת הפנמה",grade_report!$3:$100,ROWS($A$4:B30),0) -> 0.04761904762 | H27: =HLOOKUP("העשרה 1: נאורוּת - משימת העשרה",grade_report!$3:$100,ROWS($A$4:C30),0) -> Not Attempted | J27: =HLOOKUP("שיעור לתלמיד 2: מלחמת העולם הראשונה - שיעור לתלמיד",grade_report!$3:$100,ROWS($A$4:E30),0) ->  | K27: =HLOOKUP("סיכום פרק 2: מלחמת העולם הראשונה - משימת סיכום",grade_report!$3:$100,ROWS($A$4:E30),0) ->  | L27: =HLOOKUP("הפנמה 2: מלחמת העולם הראשונה - משימת הפנמה",grade_report!$3:$100,ROWS($A$4:F30),0) ->  | M27: =HLOOKUP("העשרה 2: מלחמת העולם הראשונה - משימת העשרה - רשות: מלחמת החפירות",grade_report!$3:$100,ROWS($A$4:G30),0) ->  | O27: =HLOOKUP("שיעור לתלמיד 3: השינויים במעמד המשפטי של יהודי צרפת משלהי המאה ה-18 עד ראשית המאה ה-20 - תת פרק לבחירה",grade_report!$3:$100,ROWS($A$4:J30),0) ->  | P27: =HLOOKUP("סיכום פרק 3: השינויים במעמד המשפטי של יהודי צרפת משלהי המאה ה-18 עד ראשית המאה ה-20 -משימת סיכום",grade_report!$3:$100,ROWS($A$4:J30),0) ->  | Q27: =HLOOKUP("שיעור לתלמיד 4: השינויים במעמד המשפטי של יהודי גרמניה משלהי המאה ה-18 עד ראשית המאה ה-20 - תת פרק לבחירה",grade_report!$3:$100,ROWS($A$4:O30),0) ->  | R27: =HLOOKUP("סיכום פרק 4: השינויים במעמד המשפטי של יהודי גרמניה משלהי המאה ה-18 עד ראשית המאה ה-20 - תת פרק לבחירה -משימת סיכום",grade_report!$3:$100,ROWS($A$4:O30),0) ->  | S27: =HLOOKUP("שיעור לתלמיד 5: השינויים במעמד המשפטי של היהודים בארצות האסלאם - תהליך האמנציפציה באלג'יריה - תת פרק חובה",grade_report!$3:$100,ROWS($A$4:A30),0) ->  | T27: =HLOOKUP("סיכום פרק 5: השינויים במעמד המשפטי של היהודים בארצות האסלאם - תהליך האמנציפציה באלג'יריה - משימת סיכום",grade_report!$3:$100,ROWS($A$4:A30),0) ->  | U27: =HLOOKUP("שיעור לתלמיד 6: השלכות השינויים במעמד היהודים על החברה היהודית - תת פרק חובה",grade_report!$3:$100,ROWS($A$4:D30),0) ->  | V27: =HLOOKUP("סיכום פרק 6: השפעת הליברליזם על תמורות בחברה היהודית - משימת סיכום - סיכום הסוגיה לכל הפרק",grade_report!$3:$100,ROWS($A$4:A30),0) ->  | W27: =HLOOKUP("הפנמה 3: מעמד היהודים משלהי המאה ה-18 ועד תחילת המאה ה-20 - משימת הפנמה לכל הפרק",grade_report!$3:$100,ROWS($A$4:Q30),0) ->  | X27: =HLOOKUP("העשרה 3: מעמד היהודים משלהי המאה ה-18 ועד תחילת המאה ה-20 - משימת העשרה לכל הפרק",grade_report!$3:$100,ROWS($A$4:R30),0) ->  | Z27: =HLOOKUP("שיעור לתלמיד 7: השפעת הנאורות על החברה היהודית - תת פרק חובה",grade_report!$3:$100,ROWS($A$4:A30),0) ->  | AA27: =HLOOKUP("סיכום פרק 7: השפעת הנאורות על החברה היהודית - תת פרק חובה - משימת סיכום",grade_report!$3:$100,ROWS($A$4:A30),0) ->  | AC27: =HLOOKUP("שיעור לתלמיד 8: ניאו אורתודוקסיה - חיוב המודרנה תוך שמירה קפדנית על מצוות הדת - שיעור לתלמיד",grade_report!$3:$100,ROWS($A$4:D30),0) ->  | AD27: =HLOOKUP("סיכום פרק 8: ניאו אורתודוקסיה - חיוב המודרנה תוך שמירה קפדנית על מצוות הדת - משימת סיכום",grade_report!$3:$100,ROWS($A$4:D30),0) ->  | AE27: =HLOOKUP("סיכום פרק 9: תנועות וזרמים יהודיים - משימת סיכום לכל הפרק",grade_report!$3:$100,ROWS($A$4:E30),0) ->  | AG27: =HLOOKUP("שיעור לתלמיד 9: מבשרי הציונות וחיבת ציון - שיעור לתלמיד",grade_report!$3:$100,ROWS($A$4:H30),0) ->  | AH27: =HLOOKUP("סיכום פרק 10: מבשרי הציונות וחיבת ציון - משימת סיכום",grade_report!$3:$100,ROWS($A$4:H30),0) ->  | AI27: =HLOOKUP("הפנמה 4: מבשרי הציונות וחיבת ציון - משימת הפנמה",grade_report!$3:$100,ROWS($A$4:AC30),0) ->  | AJ27: =HLOOKUP("העשרה 4: מבשרי הציונות וחיבת ציון - משימת העשרה",grade_report!$3:$100,ROWS($A$4:AD30),0) ->  | AL27: =HLOOKUP("שיעור לתלמיד 10: התנועה הציונית והרצל - שיעור לתלמיד",grade_report!$3:$100,ROWS($A$4:M30),0) ->  | AM27: =HLOOKUP("סיכום פרק 11: התנועה הציונית והרצל - משימת סיכום - סוף ימיו של הרצל",grade_report!$3:$100,ROWS($A$4:M30),0) ->  | AN27: =HLOOKUP("הפנמה 5: התנועה הציונית והרצל - משימת הפנמה",grade_report!$3:$100,ROWS($A$4:AH30),0) ->  | AO27: =HLOOKUP("העשרה 5: התנועה הציונית והרצל - משימת העשרה",grade_report!$3:$100,ROWS($A$4:AI30),0) ->  | AQ27: =HLOOKUP("שיעור לתלמיד 11: מפלגות, זרמים ומתנגדים - שיעור לתלמיד",grade_report!$3:$100,ROWS($A$4:R30),0) ->  | AR27: =HLOOKUP("סיכום פרק 12: מפלגות, זרמים ומתנגדים - משימת סיכום",grade_report!$3:$100,ROWS($A$4:R30),0) ->  | AS27: =HLOOKUP("הפנמה 6: מפלגות, זרמים ומתנגדים - משימת הפנמה",grade_report!$3:$100,ROWS($A$4:AM30),0) ->  | AT27: =HLOOKUP("העשרה 6: מפלגות, זרמים ומתנגדים - משימת העשרה",grade_report!$3:$100,ROWS($A$4:AN30),0) ->  | AV27: =HLOOKUP("סיכום קורס-ש' סגורות",grade_report!$3:$100,ROWS($A$4:AP30),0) ->  | AW27: =HLOOKUP("סיכום קורס-ש' פתוחות",grade_report!$3:$100,ROWS($A$4:AQ30),0) ->  | AX27: =HLOOKUP("תלמידאות",grade_report!$3:$100,ROWS($A$4:AR30),0) -> Not Available
A28: =grade_report!C30 -> יהלי_גיליס | B28: =grade_report!B30 -> yahli.gillis@gmail.com | D28: =VLOOKUP(A28,grade_report!C:D,2,FALSE) -> 0.04 | E28: =HLOOKUP("שיעור לתלמיד 1: נאורוּת - שיעור לתלמיד",grade_report!$3:$100,ROWS($A$4:A31),0) -> 0.875 | F28: =HLOOKUP("סיכום פרק 1: נאורוּת - משימת סיכום",grade_report!$3:$100,ROWS($A$4:A31),0) -> Not Attempted | G28: =HLOOKUP("הפנמה 1: נאורוּת - משימת הפנמה",grade_report!$3:$100,ROWS($A$4:B31),0) -> 0.04761904762 | H28: =HLOOKUP("העשרה 1: נאורוּת - משימת העשרה",grade_report!$3:$100,ROWS($A$4:C31),0) -> Not Attempted | J28: =HLOOKUP("שיעור לתלמיד 2: מלחמת העולם הראשונה - שיעור לתלמיד",grade_report!$3:$100,ROWS($A$4:E31),0) ->  | K28: =HLOOKUP("סיכום פרק 2: מלחמת העולם הראשונה - משימת סיכום",grade_report!$3:$100,ROWS($A$4:E31),0) ->  | L28: =HLOOKUP("הפנמה 2: מלחמת העולם הראשונה - משימת הפנמה",grade_report!$3:$100,ROWS($A$4:F31),0) ->  | M28: =HLOOKUP("העשרה 2: מלחמת העולם הראשונה - משימת העשרה - רשות: מלחמת החפירות",grade_report!$3:$100,ROWS($A$4:G31),0) ->  | O28: =HLOOKUP("שיעור לתלמיד 3: השינויים במעמד המשפטי של יהודי צרפת משלהי המאה ה-18 עד ראשית המאה ה-20 - תת פרק לבחירה",grade_report!$3:$100,ROWS($A$4:J31),0) ->  | P28: =HLOOKUP("סיכום פרק 3: השינויים במעמד המשפטי של יהודי צרפת משלהי המאה ה-18 עד ראשית המאה ה-20 -משימת סיכום",grade_report!$3:$100,ROWS($A$4:J31),0) ->  | Q28: =HLOOKUP("שיעור לתלמיד 4: השינויים במעמד המשפטי של יהודי גרמניה משלהי המאה ה-18 עד ראשית המאה ה-20 - תת פרק לבחירה",grade_report!$3:$100,ROWS($A$4:O31),0) ->  | R28: =HLOOKUP("סיכום פרק 4: השינויים במעמד המשפטי של יהודי גרמניה משלהי המאה ה-18 עד ראשית המאה ה-20 - תת פרק לבחירה -משימת סיכום",grade_report!$3:$100,ROWS($A$4:O31),0) ->  | S28: =HLOOKUP("שיעור לתלמיד 5: השינויים במעמד המשפטי של היהודים בארצות האסלאם - תהליך האמנציפציה באלג'יריה - תת פרק חובה",grade_report!$3:$100,ROWS($A$4:A31),0) ->  | T28: =HLOOKUP("סיכום פרק 5: השינויים במעמד המשפטי של היהודים בארצות האסלאם - תהליך האמנציפציה באלג'יריה - משימת סיכום",grade_report!$3:$100,ROWS($A$4:A31),0) ->  | U28: =HLOOKUP("שיעור לתלמיד 6: השלכות השינויים במעמד היהודים על החברה היהודית - תת פרק חובה",grade_report!$3:$100,ROWS($A$4:D31),0) ->  | V28: =HLOOKUP("סיכום פרק 6: השפעת הליברליזם על תמורות בחברה היהודית - משימת סיכום - סיכום הסוגיה לכל הפרק",grade_report!$3:$100,ROWS($A$4:A31),0) ->  | W28: =HLOOKUP("הפנמה 3: מעמד היהודים משלהי המאה ה-18 ועד תחילת המאה ה-20 - משימת הפנמה לכל הפרק",grade_report!$3:$100,ROWS($A$4:Q31),0) ->  | X28: =HLOOKUP("העשרה 3: מעמד היהודים משלהי המאה ה-18 ועד תחילת המאה ה-20 - משימת העשרה לכל הפרק",grade_report!$3:$100,ROWS($A$4:R31),0) ->  | Z28: =HLOOKUP("שיעור לתלמיד 7: השפעת הנאורות על החברה היהודית - תת פרק חובה",grade_report!$3:$100,ROWS($A$4:A31),0) ->  | AA28: =HLOOKUP("סיכום פרק 7: השפעת הנאורות על החברה היהודית - תת פרק חובה - משימת סיכום",grade_report!$3:$100,ROWS($A$4:A31),0) ->  | AC28: =HLOOKUP("שיעור לתלמיד 8: ניאו אורתודוקסיה - חיוב המודרנה תוך שמירה קפדנית על מצוות הדת - שיעור לתלמיד",grade_report!$3:$100,ROWS($A$4:D31),0) ->  | AD28: =HLOOKUP("סיכום פרק 8: ניאו אורתודוקסיה - חיוב המודרנה תוך שמירה קפדנית על מצוות הדת - משימת סיכום",grade_report!$3:$100,ROWS($A$4:D31),0) ->  | AE28: =HLOOKUP("סיכום פרק 9: תנועות וזרמים יהודיים - משימת סיכום לכל הפרק",grade_report!$3:$100,ROWS($A$4:E31),0) ->  | AG28: =HLOOKUP("שיעור לתלמיד 9: מבשרי הציונות וחיבת ציון - שיעור לתלמיד",grade_report!$3:$100,ROWS($A$4:H31),0) ->  | AH28: =HLOOKUP("סיכום פרק 10: מבשרי הציונות וחיבת ציון - משימת סיכום",grade_report!$3:$100,ROWS($A$4:H31),0) ->  | AI28: =HLOOKUP("הפנמה 4: מבשרי הציונות וחיבת ציון - משימת הפנמה",grade_report!$3:$100,ROWS($A$4:AC31),0) ->  | AJ28: =HLOOKUP("העשרה 4: מבשרי הציונות וחיבת ציון - משימת העשרה",grade_report!$3:$100,ROWS($A$4:AD31),0) ->  | AL28: =HLOOKUP("שיעור לתלמיד 10: התנועה הציונית והרצל - שיעור לתלמיד",grade_report!$3:$100,ROWS($A$4:M31),0) ->  | AM28: =HLOOKUP("סיכום פרק 11: התנועה הציונית והרצל - משימת סיכום - סוף ימיו של הרצל",grade_report!$3:$100,ROWS($A$4:M31),0) ->  | AN28: =HLOOKUP("הפנמה 5: התנועה הציונית והרצל - משימת הפנמה",grade_report!$3:$100,ROWS($A$4:AH31),0) ->  | AO28: =HLOOKUP("העשרה 5: התנועה הציונית והרצל - משימת העשרה",grade_report!$3:$100,ROWS($A$4:AI31),0) ->  | AQ28: =HLOOKUP("שיעור לתלמיד 11: מפלגות, זרמים ומתנגדים - שיעור לתלמיד",grade_report!$3:$100,ROWS($A$4:R31),0) ->  | AR28: =HLOOKUP("סיכום פרק 12: מפלגות, זרמים ומתנגדים - משימת סיכום",grade_report!$3:$100,ROWS($A$4:R31),0) ->  | AS28: =HLOOKUP("הפנמה 6: מפלגות, זרמים ומתנגדים - משימת הפנמה",grade_report!$3:$100,ROWS($A$4:AM31),0) ->  | AT28: =HLOOKUP("העשרה 6: מפלגות, זרמים ומתנגדים - משימת העשרה",grade_report!$3:$100,ROWS($A$4:AN31),0) ->  | AV28: =HLOOKUP("סיכום קורס-ש' סגורות",grade_report!$3:$100,ROWS($A$4:AP31),0) ->  | AW28: =HLOOKUP("סיכום קורס-ש' פתוחות",grade_report!$3:$100,ROWS($A$4:AQ31),0) ->  | AX28: =HLOOKUP("תלמידאות",grade_report!$3:$100,ROWS($A$4:AR31),0) -> Not Available
A29: =grade_report!C31 -> אוריה_אלהרר | B29: =grade_report!B31 -> oriyaelharar1@gmail.com | D29: =VLOOKUP(A29,grade_report!C:D,2,FALSE) -> 0.1 | E29: =HLOOKUP("שיעור לתלמיד 1: נאורוּת - שיעור לתלמיד",grade_report!$3:$100,ROWS($A$4:A32),0) -> 0.875 | F29: =HLOOKUP("סיכום פרק 1: נאורוּת - משימת סיכום",grade_report!$3:$100,ROWS($A$4:A32),0) -> Not Attempted | G29: =HLOOKUP("הפנמה 1: נאורוּת - משימת הפנמה",grade_report!$3:$100,ROWS($A$4:B32),0) -> Not Attempted | H29: =HLOOKUP("העשרה 1: נאורוּת - משימת העשרה",grade_report!$3:$100,ROWS($A$4:C32),0) -> Not Attempted | J29: =HLOOKUP("שיעור לתלמיד 2: מלחמת העולם הראשונה - שיעור לתלמיד",grade_report!$3:$100,ROWS($A$4:E32),0) ->  | K29: =HLOOKUP("סיכום פרק 2: מלחמת העולם הראשונה - משימת סיכום",grade_report!$3:$100,ROWS($A$4:E32),0) ->  | L29: =HLOOKUP("הפנמה 2: מלחמת העולם הראשונה - משימת הפנמה",grade_report!$3:$100,ROWS($A$4:F32),0) ->  | M29: =HLOOKUP("העשרה 2: מלחמת העולם הראשונה - משימת העשרה - רשות: מלחמת החפירות",grade_report!$3:$100,ROWS($A$4:G32),0) ->  | O29: =HLOOKUP("שיעור לתלמיד 3: השינויים במעמד המשפטי של יהודי צרפת משלהי המאה ה-18 עד ראשית המאה ה-20 - תת פרק לבחירה",grade_report!$3:$100,ROWS($A$4:J32),0) ->  | P29: =HLOOKUP("סיכום פרק 3: השינויים במעמד המשפטי של יהודי צרפת משלהי המאה ה-18 עד ראשית המאה ה-20 -משימת סיכום",grade_report!$3:$100,ROWS($A$4:J32),0) ->  | Q29: =HLOOKUP("שיעור לתלמיד 4: השינויים במעמד המשפטי של יהודי גרמניה משלהי המאה ה-18 עד ראשית המאה ה-20 - תת פרק לבחירה",grade_report!$3:$100,ROWS($A$4:O32),0) ->  | R29: =HLOOKUP("סיכום פרק 4: השינויים במעמד המשפטי של יהודי גרמניה משלהי המאה ה-18 עד ראשית המאה ה-20 - תת פרק לבחירה -משימת סיכום",grade_report!$3:$100,ROWS($A$4:O32),0) ->  | S29: =HLOOKUP("שיעור לתלמיד 5: השינויים במעמד המשפטי של היהודים בארצות האסלאם - תהליך האמנציפציה באלג'יריה - תת פרק חובה",grade_report!$3:$100,ROWS($A$4:A32),0) ->  | T29: =HLOOKUP("סיכום פרק 5: השינויים במעמד המשפטי של היהודים בארצות האסלאם - תהליך האמנציפציה באלג'יריה - משימת סיכום",grade_report!$3:$100,ROWS($A$4:A32),0) ->  | U29: =HLOOKUP("שיעור לתלמיד 6: השלכות השינויים במעמד היהודים על החברה היהודית - תת פרק חובה",grade_report!$3:$100,ROWS($A$4:D32),0) ->  | V29: =HLOOKUP("סיכום פרק 6: השפעת הליברליזם על תמורות בחברה היהודית - משימת סיכום - סיכום הסוגיה לכל הפרק",grade_report!$3:$100,ROWS($A$4:A32),0) ->  | W29: =HLOOKUP("הפנמה 3: מעמד היהודים משלהי המאה ה-18 ועד תחילת המאה ה-20 - משימת הפנמה לכל הפרק",grade_report!$3:$100,ROWS($A$4:Q32),0) ->  | X29: =HLOOKUP("העשרה 3: מעמד היהודים משלהי המאה ה-18 ועד תחילת המאה ה-20 - משימת העשרה לכל הפרק",grade_report!$3:$100,ROWS($A$4:R32),0) ->  | Z29: =HLOOKUP("שיעור לתלמיד 7: השפעת הנאורות על החברה היהודית - תת פרק חובה",grade_report!$3:$100,ROWS($A$4:A32),0) ->  | AA29: =HLOOKUP("סיכום פרק 7: השפעת הנאורות על החברה היהודית - תת פרק חובה - משימת סיכום",grade_report!$3:$100,ROWS($A$4:A32),0) ->  | AC29: =HLOOKUP("שיעור לתלמיד 8: ניאו אורתודוקסיה - חיוב המודרנה תוך שמירה קפדנית על מצוות הדת - שיעור לתלמיד",grade_report!$3:$100,ROWS($A$4:D32),0) ->  | AD29: =HLOOKUP("סיכום פרק 8: ניאו אורתודוקסיה - חיוב המודרנה תוך שמירה קפדנית על מצוות הדת - משימת סיכום",grade_report!$3:$100,ROWS($A$4:D32),0) ->  | AE29: =HLOOKUP("סיכום פרק 9: תנועות וזרמים יהודיים - משימת סיכום לכל הפרק",grade_report!$3:$100,ROWS($A$4:E32),0) ->  | AG29: =HLOOKUP("שיעור לתלמיד 9: מבשרי הציונות וחיבת ציון - שיעור לתלמיד",grade_report!$3:$100,ROWS($A$4:H32),0) ->  | AH29: =HLOOKUP("סיכום פרק 10: מבשרי הציונות וחיבת ציון - משימת סיכום",grade_report!$3:$100,ROWS($A$4:H32),0) ->  | AI29: =HLOOKUP("הפנמה 4: מבשרי הציונות וחיבת ציון - משימת הפנמה",grade_report!$3:$100,ROWS($A$4:AC32),0) ->  | AJ29: =HLOOKUP("העשרה 4: מבשרי הציונות וחיבת ציון - משימת העשרה",grade_report!$3:$100,ROWS($A$4:AD32),0) ->  | AL29: =HLOOKUP("שיעור לתלמיד 10: התנועה הציונית והרצל - שיעור לתלמיד",grade_report!$3:$100,ROWS($A$4:M32),0) ->  | AM29: =HLOOKUP("סיכום פרק 11: התנועה הציונית והרצל - משימת סיכום - סוף ימיו של הרצל",grade_report!$3:$100,ROWS($A$4:M32),0) ->  | AN29: =HLOOKUP("הפנמה 5: התנועה הציונית והרצל - משימת הפנמה",grade_report!$3:$100,ROWS($A$4:AH32),0) ->  | AO29: =HLOOKUP("העשרה 5: התנועה הציונית והרצל - משימת העשרה",grade_report!$3:$100,ROWS($A$4:AI32),0) ->  | AQ29: =HLOOKUP("שיעור לתלמיד 11: מפלגות, זרמים ומתנגדים - שיעור לתלמיד",grade_report!$3:$100,ROWS($A$4:R32),0) ->  | AR29: =HLOOKUP("סיכום פרק 12: מפלגות, זרמים ומתנגדים - משימת סיכום",grade_report!$3:$100,ROWS($A$4:R32),0) ->  | AS29: =HLOOKUP("הפנמה 6: מפלגות, זרמים ומתנגדים - משימת הפנמה",grade_report!$3:$100,ROWS($A$4:AM32),0) ->  | AT29: =HLOOKUP("העשרה 6: מפלגות, זרמים ומתנגדים - משימת העשרה",grade_report!$3:$100,ROWS($A$4:AN32),0) ->  | AV29: =HLOOKUP("סיכום קורס-ש' סגורות",grade_report!$3:$100,ROWS($A$4:AP32),0) ->  | AW29: =HLOOKUP("סיכום קורס-ש' פתוחות",grade_report!$3:$100,ROWS($A$4:AQ32),0) ->  | AX29: =HLOOKUP("תלמידאות",grade_report!$3:$100,ROWS($A$4:AR32),0) -> Not Available
A30: =grade_report!C32 -> 0 | B30: =grade_report!B32 -> 0 | D30: =VLOOKUP(A30,grade_report!C:D,2,FALSE) ->  | E30: =HLOOKUP("שיעור לתלמיד 1: נאורוּת - שיעור לתלמיד",grade_report!$3:$100,ROWS($A$4:A33),0) -> 0 | F30: =HLOOKUP("סיכום פרק 1: נאורוּת - משימת סיכום",grade_report!$3:$100,ROWS($A$4:A33),0) -> 0 | G30: =HLOOKUP("הפנמה 1: נאורוּת - משימת הפנמה",grade_report!$3:$100,ROWS($A$4:B33),0) -> 0 | H30: =HLOOKUP("העשרה 1: נאורוּת - משימת העשרה",grade_report!$3:$100,ROWS($A$4:C33),0) -> 0 | J30: =HLOOKUP("שיעור לתלמיד 2: מלחמת העולם הראשונה - שיעור לתלמיד",grade_report!$3:$100,ROWS($A$4:E33),0) ->  | K30: =HLOOKUP("סיכום פרק 2: מלחמת העולם הראשונה - משימת סיכום",grade_report!$3:$100,ROWS($A$4:E33),0) ->  | L30: =HLOOKUP("הפנמה 2: מלחמת העולם הראשונה - משימת הפנמה",grade_report!$3:$100,ROWS($A$4:F33),0) ->  | M30: =HLOOKUP("העשרה 2: מלחמת העולם הראשונה - משימת העשרה - רשות: מלחמת החפירות",grade_report!$3:$100,ROWS($A$4:G33),0) ->  | O30: =HLOOKUP("שיעור לתלמיד 3: השינויים במעמד המשפטי של יהודי צרפת משלהי המאה ה-18 עד ראשית המאה ה-20 - תת פרק לבחירה",grade_report!$3:$100,ROWS($A$4:J33),0) ->  | P30: =HLOOKUP("סיכום פרק 3: השינויים במעמד המשפטי של יהודי צרפת משלהי המאה ה-18 עד ראשית המאה ה-20 -משימת סיכום",grade_report!$3:$100,ROWS($A$4:J33),0) ->  | Q30: =HLOOKUP("שיעור לתלמיד 4: השינויים במעמד המשפטי של יהודי גרמניה משלהי המאה ה-18 עד ראשית המאה ה-20 - תת פרק לבחירה",grade_report!$3:$100,ROWS($A$4:O33),0) ->  | R30: =HLOOKUP("סיכום פרק 4: השינויים במעמד המשפטי של יהודי גרמניה משלהי המאה ה-18 עד ראשית המאה ה-20 - תת פרק לבחירה -משימת סיכום",grade_report!$3:$100,ROWS($A$4:O33),0) ->  | S30: =HLOOKUP("שיעור לתלמיד 5: השינויים במעמד המשפטי של היהודים בארצות האסלאם - תהליך האמנציפציה באלג'יריה - תת פרק חובה",grade_report!$3:$100,ROWS($A$4:A33),0) ->  | T30: =HLOOKUP("סיכום פרק 5: השינויים במעמד המשפטי של היהודים בארצות האסלאם - תהליך האמנציפציה באלג'יריה - משימת סיכום",grade_report!$3:$100,ROWS($A$4:A33),0) ->  | U30: =HLOOKUP("שיעור לתלמיד 6: השלכות השינויים במעמד היהודים על החברה היהודית - תת פרק חובה",grade_report!$3:$100,ROWS($A$4:D33),0) ->  | V30: =HLOOKUP("סיכום פרק 6: השפעת הליברליזם על תמורות בחברה היהודית - משימת סיכום - סיכום הסוגיה לכל הפרק",grade_report!$3:$100,ROWS($A$4:A33),0) ->  | W30: =HLOOKUP("הפנמה 3: מעמד היהודים משלהי המאה ה-18 ועד תחילת המאה ה-20 - משימת הפנמה לכל הפרק",grade_report!$3:$100,ROWS($A$4:Q33),0) ->  | X30: =HLOOKUP("העשרה 3: מעמד היהודים משלהי המאה ה-18 ועד תחילת המאה ה-20 - משימת העשרה לכל הפרק",grade_report!$3:$100,ROWS($A$4:R33),0) ->  | Z30: =HLOOKUP("שיעור לתלמיד 7: השפעת הנאורות על החברה היהודית - תת פרק חובה",grade_report!$3:$100,ROWS($A$4:A33),0) ->  | AA30: =HLOOKUP("סיכום פרק 7: השפעת הנאורות על החברה היהודית - תת פרק חובה - משימת סיכום",grade_report!$3:$100,ROWS($A$4:A33),0) ->  | AC30: =HLOOKUP("שיעור לתלמיד 8: ניאו אורתודוקסיה - חיוב המודרנה תוך שמירה קפדנית על מצוות הדת - שיעור לתלמיד",grade_report!$3:$100,ROWS($A$4:D33),0) ->  | AD30: =HLOOKUP("סיכום פרק 8: ניאו אורתודוקסיה - חיוב המודרנה תוך שמירה קפדנית על מצוות הדת - משימת סיכום",grade_report!$3:$100,ROWS($A$4:D33),0) ->  | AE30: =HLOOKUP("סיכום פרק 9: תנועות וזרמים יהודיים - משימת סיכום לכל הפרק",grade_report!$3:$100,ROWS($A$4:E33),0) ->  | AG30: =HLOOKUP("שיעור לתלמיד 9: מבשרי הציונות וחיבת ציון - שיעור לתלמיד",grade_report!$3:$100,ROWS($A$4:H33),0) ->  | AH30: =HLOOKUP("סיכום פרק 10: מבשרי הציונות וחיבת ציון - משימת סיכום",grade_report!$3:$100,ROWS($A$4:H33),0) ->  | AI30: =HLOOKUP("הפנמה 4: מבשרי הציונות וחיבת ציון - משימת הפנמה",grade_report!$3:$100,ROWS($A$4:AC33),0) ->  | AJ30: =HLOOKUP("העשרה 4: מבשרי הציונות וחיבת ציון - משימת העשרה",grade_report!$3:$100,ROWS($A$4:AD33),0) ->  | AL30: =HLOOKUP("שיעור לתלמיד 10: התנועה הציונית והרצל - שיעור לתלמיד",grade_report!$3:$100,ROWS($A$4:M33),0) ->  | AM30: =HLOOKUP("סיכום פרק 11: התנועה הציונית והרצל - משימת סיכום - סוף ימיו של הרצל",grade_report!$3:$100,ROWS($A$4:M33),0) ->  | AN30: =HLOOKUP("הפנמה 5: התנועה הציונית והרצל - משימת הפנמה",grade_report!$3:$100,ROWS($A$4:AH33),0) ->  | AO30: =HLOOKUP("העשרה 5: התנועה הציונית והרצל - משימת העשרה",grade_report!$3:$100,ROWS($A$4:AI33),0) ->  | AQ30: =HLOOKUP("שיעור לתלמיד 11: מפלגות, זרמים ומתנגדים - שיעור לתלמיד",grade_report!$3:$100,ROWS($A$4:R33),0) ->  | AR30: =HLOOKUP("סיכום פרק 12: מפלגות, זרמים ומתנגדים - משימת סיכום",grade_report!$3:$100,ROWS($A$4:R33),0) ->  | AS30: =HLOOKUP("הפנמה 6: מפלגות, זרמים ומתנגדים - משימת הפנמה",grade_report!$3:$100,ROWS($A$4:AM33),0) ->  | AT30: =HLOOKUP("העשרה 6: מפלגות, זרמים ומתנגדים - משימת העשרה",grade_report!$3:$100,ROWS($A$4:AN33),0) ->  | AV30: =HLOOKUP("סיכום קורס-ש' סגורות",grade_report!$3:$100,ROWS($A$4:AP33),0) ->  | AW30: =HLOOKUP("סיכום קורס-ש' פתוחות",grade_report!$3:$100,ROWS($A$4:AQ33),0) ->  | AX30: =HLOOKUP("תלמידאות",grade_report!$3:$100,ROWS($A$4:AR33),0) -> 0
A31: =grade_report!C33 -> 0 | B31: =grade_report!B33 -> 0 | D31: =VLOOKUP(A31,grade_report!C:D,2,FALSE) ->  | E31: =HLOOKUP("שיעור לתלמיד 1: נאורוּת - שיעור לתלמיד",grade_report!$3:$100,ROWS($A$4:A34),0) -> 0 | F31: =HLOOKUP("סיכום פרק 1: נאורוּת - משימת סיכום",grade_report!$3:$100,ROWS($A$4:A34),0) -> 0 | G31: =HLOOKUP("הפנמה 1: נאורוּת - משימת הפנמה",grade_report!$3:$100,ROWS($A$4:B34),0) -> 0 | H31: =HLOOKUP("העשרה 1: נאורוּת - משימת העשרה",grade_report!$3:$100,ROWS($A$4:C34),0) -> 0 | J31: =HLOOKUP("שיעור לתלמיד 2: מלחמת העולם הראשונה - שיעור לתלמיד",grade_report!$3:$100,ROWS($A$4:E34),0) ->  | K31: =HLOOKUP("סיכום פרק 2: מלחמת העולם הראשונה - משימת סיכום",grade_report!$3:$100,ROWS($A$4:E34),0) ->  | L31: =HLOOKUP("הפנמה 2: מלחמת העולם הראשונה - משימת הפנמה",grade_report!$3:$100,ROWS($A$4:F34),0) ->  | M31: =HLOOKUP("העשרה 2: מלחמת העולם הראשונה - משימת העשרה - רשות: מלחמת החפירות",grade_report!$3:$100,ROWS($A$4:G34),0) ->  | O31: =HLOOKUP("שיעור לתלמיד 3: השינויים במעמד המשפטי של יהודי צרפת משלהי המאה ה-18 עד ראשית המאה ה-20 - תת פרק לבחירה",grade_report!$3:$100,ROWS($A$4:J34),0) ->  | P31: =HLOOKUP("סיכום פרק 3: השינויים במעמד המשפטי של יהודי צרפת משלהי המאה ה-18 עד ראשית המאה ה-20 -משימת סיכום",grade_report!$3:$100,ROWS($A$4:J34),0) ->  | Q31: =HLOOKUP("שיעור לתלמיד 4: השינויים במעמד המשפטי של יהודי גרמניה משלהי המאה ה-18 עד ראשית המאה ה-20 - תת פרק לבחירה",grade_report!$3:$100,ROWS($A$4:O34),0) ->  | R31: =HLOOKUP("סיכום פרק 4: השינויים במעמד המשפטי של יהודי גרמניה משלהי המאה ה-18 עד ראשית המאה ה-20 - תת פרק לבחירה -משימת סיכום",grade_report!$3:$100,ROWS($A$4:O34),0) ->  | S31: =HLOOKUP("שיעור לתלמיד 5: השינויים במעמד המשפטי של היהודים בארצות האסלאם - תהליך האמנציפציה באלג'יריה - תת פרק חובה",grade_report!$3:$100,ROWS($A$4:A34),0) ->  | T31: =HLOOKUP("סיכום פרק 5: השינויים במעמד המשפטי של היהודים בארצות האסלאם - תהליך האמנציפציה באלג'יריה - משימת סיכום",grade_report!$3:$100,ROWS($A$4:A34),0) ->  | U31: =HLOOKUP("שיעור לתלמיד 6: השלכות השינויים במעמד היהודים על החברה היהודית - תת פרק חובה",grade_report!$3:$100,ROWS($A$4:D34),0) ->  | V31: =HLOOKUP("סיכום פרק 6: השפעת הליברליזם על תמורות בחברה היהודית - משימת סיכום - סיכום הסוגיה לכל הפרק",grade_report!$3:$100,ROWS($A$4:A34),0) ->  | W31: =HLOOKUP("הפנמה 3: מעמד היהודים משלהי המאה ה-18 ועד תחילת המאה ה-20 - משימת הפנמה לכל הפרק",grade_report!$3:$100,ROWS($A$4:Q34),0) ->  | X31: =HLOOKUP("העשרה 3: מעמד היהודים משלהי המאה ה-18 ועד תחילת המאה ה-20 - משימת העשרה לכל הפרק",grade_report!$3:$100,ROWS($A$4:R34),0) ->  | Z31: =HLOOKUP("שיעור לתלמיד 7: השפעת הנאורות על החברה היהודית - תת פרק חובה",grade_report!$3:$100,ROWS($A$4:A34),0) ->  | AA31: =HLOOKUP("סיכום פרק 7: השפעת הנאורות על החברה היהודית - תת פרק חובה - משימת סיכום",grade_report!$3:$100,ROWS($A$4:A34),0) ->  | AC31: =HLOOKUP("שיעור לתלמיד 8: ניאו אורתודוקסיה - חיוב המודרנה תוך שמירה קפדנית על מצוות הדת - שיעור לתלמיד",grade_report!$3:$100,ROWS($A$4:D34),0) ->  | AD31: =HLOOKUP("סיכום פרק 8: ניאו אורתודוקסיה - חיוב המודרנה תוך שמירה קפדנית על מצוות הדת - משימת סיכום",grade_report!$3:$100,ROWS($A$4:D34),0) ->  | AE31: =HLOOKUP("סיכום פרק 9: תנועות וזרמים יהודיים - משימת סיכום לכל הפרק",grade_report!$3:$100,ROWS($A$4:E34),0) ->  | AG31: =HLOOKUP("שיעור לתלמיד 9: מבשרי הציונות וחיבת ציון - שיעור לתלמיד",grade_report!$3:$100,ROWS($A$4:H34),0) ->  | AH31: =HLOOKUP("סיכום פרק 10: מבשרי הציונות וחיבת ציון - משימת סיכום",grade_report!$3:$100,ROWS($A$4:H34),0) ->  | AI31: =HLOOKUP("הפנמה 4: מבשרי הציונות וחיבת ציון - משימת הפנמה",grade_report!$3:$100,ROWS($A$4:AC34),0) ->  | AJ31: =HLOOKUP("העשרה 4: מבשרי הציונות וחיבת ציון - משימת העשרה",grade_report!$3:$100,ROWS($A$4:AD34),0) ->  | AL31: =HLOOKUP("שיעור לתלמיד 10: התנועה הציונית והרצל - שיעור לתלמיד",grade_report!$3:$100,ROWS($A$4:M34),0) ->  | AM31: =HLOOKUP("סיכום פרק 11: התנועה הציונית והרצל - משימת סיכום - סוף ימיו של הרצל",grade_report!$3:$100,ROWS($A$4:M34),0) ->  | AN31: =HLOOKUP("הפנמה 5: התנועה הציונית והרצל - משימת הפנמה",grade_report!$3:$100,ROWS($A$4:AH34),0) ->  | AO31: =HLOOKUP("העשרה 5: התנועה הציונית והרצל - משימת העשרה",grade_report!$3:$100,ROWS($A$4:AI34),0) ->  | AQ31: =HLOOKUP("שיעור לתלמיד 11: מפלגות, זרמים ומתנגדים - שיעור לתלמיד",grade_report!$3:$100,ROWS($A$4:R34),0) ->  | AR31: =HLOOKUP("סיכום פרק 12: מפלגות, זרמים ומתנגדים - משימת סיכום",grade_report!$3:$100,ROWS($A$4:R34),0) ->  | AS31: =HLOOKUP("הפנמה 6: מפלגות, זרמים ומתנגדים - משימת הפנמה",grade_report!$3:$100,ROWS($A$4:AM34),0) ->  | AT31: =HLOOKUP("העשרה 6: מפלגות, זרמים ומתנגדים - משימת העשרה",grade_report!$3:$100,ROWS($A$4:AN34),0) ->  | AV31: =HLOOKUP("סיכום קורס-ש' סגורות",grade_report!$3:$100,ROWS($A$4:AP34),0) ->  | AW31: =HLOOKUP("סיכום קורס-ש' פתוחות",grade_report!$3:$100,ROWS($A$4:AQ34),0) ->  | AX31: =HLOOKUP("תלמידאות",grade_report!$3:$100,ROWS($A$4:AR34),0) -> 0
A32: =grade_report!C34 -> 0 | B32: =grade_report!B34 -> 0 | D32: =VLOOKUP(A32,grade_report!C:D,2,FALSE) ->  | E32: =HLOOKUP("שיעור לתלמיד 1: נאורוּת - שיעור לתלמיד",grade_report!$3:$100,ROWS($A$4:A35),0) -> 0 | F32: =HLOOKUP("סיכום פרק 1: נאורוּת - משימת סיכום",grade_report!$3:$100,ROWS($A$4:A35),0) -> 0 | G32: =HLOOKUP("הפנמה 1: נאורוּת - משימת הפנמה",grade_report!$3:$100,ROWS($A$4:B35),0) -> 0 | H32: =HLOOKUP("העשרה 1: נאורוּת - משימת העשרה",grade_report!$3:$100,ROWS($A$4:C35),0) -> 0 | J32: =HLOOKUP("שיעור לתלמיד 2: מלחמת העולם הראשונה - שיעור לתלמיד",grade_report!$3:$100,ROWS($A$4:E35),0) ->  | K32: =HLOOKUP("סיכום פרק 2: מלחמת העולם הראשונה - משימת סיכום",grade_report!$3:$100,ROWS($A$4:E35),0) ->  | L32: =HLOOKUP("הפנמה 2: מלחמת העולם הראשונה - משימת הפנמה",grade_report!$3:$100,ROWS($A$4:F35),0) ->  | M32: =HLOOKUP("העשרה 2: מלחמת העולם הראשונה - משימת העשרה - רשות: מלחמת החפירות",grade_report!$3:$100,ROWS($A$4:G35),0) ->  | O32: =HLOOKUP("שיעור לתלמיד 3: השינויים במעמד המשפטי של יהודי צרפת משלהי המאה ה-18 עד ראשית המאה ה-20 - תת פרק לבחירה",grade_report!$3:$100,ROWS($A$4:J35),0) ->  | P32: =HLOOKUP("סיכום פרק 3: השינויים במעמד המשפטי של יהודי צרפת משלהי המאה ה-18 עד ראשית המאה ה-20 -משימת סיכום",grade_report!$3:$100,ROWS($A$4:J35),0) ->  | Q32: =HLOOKUP("שיעור לתלמיד 4: השינויים במעמד המשפטי של יהודי גרמניה משלהי המאה ה-18 עד ראשית המאה ה-20 - תת פרק לבחירה",grade_report!$3:$100,ROWS($A$4:O35),0) ->  | R32: =HLOOKUP("סיכום פרק 4: השינויים במעמד המשפטי של יהודי גרמניה משלהי המאה ה-18 עד ראשית המאה ה-20 - תת פרק לבחירה -משימת סיכום",grade_report!$3:$100,ROWS($A$4:O35),0) ->  | S32: =HLOOKUP("שיעור לתלמיד 5: השינויים במעמד המשפטי של היהודים בארצות האסלאם - תהליך האמנציפציה באלג'יריה - תת פרק חובה",grade_report!$3:$100,ROWS($A$4:A35),0) ->  | T32: =HLOOKUP("סיכום פרק 5: השינויים במעמד המשפטי של היהודים בארצות האסלאם - תהליך האמנציפציה באלג'יריה - משימת סיכום",grade_report!$3:$100,ROWS($A$4:A35),0) ->  | U32: =HLOOKUP("שיעור לתלמיד 6: השלכות השינויים במעמד היהודים על החברה היהודית - תת פרק חובה",grade_report!$3:$100,ROWS($A$4:D35),0) ->  | V32: =HLOOKUP("סיכום פרק 6: השפעת הליברליזם על תמורות בחברה היהודית - משימת סיכום - סיכום הסוגיה לכל הפרק",grade_report!$3:$100,ROWS($A$4:A35),0) ->  | W32: =HLOOKUP("הפנמה 3: מעמד היהודים משלהי המאה ה-18 ועד תחילת המאה ה-20 - משימת הפנמה לכל הפרק",grade_report!$3:$100,ROWS($A$4:Q35),0) ->  | X32: =HLOOKUP("העשרה 3: מעמד היהודים משלהי המאה ה-18 ועד תחילת המאה ה-20 - משימת העשרה לכל הפרק",grade_report!$3:$100,ROWS($A$4:R35),0) ->  | Z32: =HLOOKUP("שיעור לתלמיד 7: השפעת הנאורות על החברה היהודית - תת פרק חובה",grade_report!$3:$100,ROWS($A$4:A35),0) ->  | AA32: =HLOOKUP("סיכום פרק 7: השפעת הנאורות על החברה היהודית - תת פרק חובה - משימת סיכום",grade_report!$3:$100,ROWS($A$4:A35),0) ->  | AC32: =HLOOKUP("שיעור לתלמיד 8: ניאו אורתודוקסיה - חיוב המודרנה תוך שמירה קפדנית על מצוות הדת - שיעור לתלמיד",grade_report!$3:$100,ROWS($A$4:D35),0) ->  | AD32: =HLOOKUP("סיכום פרק 8: ניאו אורתודוקסיה - חיוב המודרנה תוך שמירה קפדנית על מצוות הדת - משימת סיכום",grade_report!$3:$100,ROWS($A$4:D35),0) ->  | AE32: =HLOOKUP("סיכום פרק 9: תנועות וזרמים יהודיים - משימת סיכום לכל הפרק",grade_report!$3:$100,ROWS($A$4:E35),0) ->  | AG32: =HLOOKUP("שיעור לתלמיד 9: מבשרי הציונות וחיבת ציון - שיעור לתלמיד",grade_report!$3:$100,ROWS($A$4:H35),0) ->  | AH32: =HLOOKUP("סיכום פרק 10: מבשרי הציונות וחיבת ציון - משימת סיכום",grade_report!$3:$100,ROWS($A$4:H35),0) ->  | AI32: =HLOOKUP("הפנמה 4: מבשרי הציונות וחיבת ציון - משימת הפנמה",grade_report!$3:$100,ROWS($A$4:AC35),0) ->  | AJ32: =HLOOKUP("העשרה 4: מבשרי הציונות וחיבת ציון - משימת העשרה",grade_report!$3:$100,ROWS($A$4:AD35),0) ->  | AL32: =HLOOKUP("שיעור לתלמיד 10: התנועה הציונית והרצל - שיעור לתלמיד",grade_report!$3:$100,ROWS($A$4:M35),0) ->  | AM32: =HLOOKUP("סיכום פרק 11: התנועה הציונית והרצל - משימת סיכום - סוף ימיו של הרצל",grade_report!$3:$100,ROWS($A$4:M35),0) ->  | AN32: =HLOOKUP("הפנמה 5: התנועה הציונית והרצל - משימת הפנמה",grade_report!$3:$100,ROWS($A$4:AH35),0) ->  | AO32: =HLOOKUP("העשרה 5: התנועה הציונית והרצל - משימת העשרה",grade_report!$3:$100,ROWS($A$4:AI35),0) ->  | AQ32: =HLOOKUP("שיעור לתלמיד 11: מפלגות, זרמים ומתנגדים - שיעור לתלמיד",grade_report!$3:$100,ROWS($A$4:R35),0) ->  | AR32: =HLOOKUP("סיכום פרק 12: מפלגות, זרמים ומתנגדים - משימת סיכום",grade_report!$3:$100,ROWS($A$4:R35),0) ->  | AS32: =HLOOKUP("הפנמה 6: מפלגות, זרמים ומתנגדים - משימת הפנמה",grade_report!$3:$100,ROWS($A$4:AM35),0) ->  | AT32: =HLOOKUP("העשרה 6: מפלגות, זרמים ומתנגדים - משימת העשרה",grade_report!$3:$100,ROWS($A$4:AN35),0) ->  | AV32: =HLOOKUP("סיכום קורס-ש' סגורות",grade_report!$3:$100,ROWS($A$4:AP35),0) ->  | AW32: =HLOOKUP("סיכום קורס-ש' פתוחות",grade_report!$3:$100,ROWS($A$4:AQ35),0) ->  | AX32: =HLOOKUP("תלמידאות",grade_report!$3:$100,ROWS($A$4:AR35),0) -> 0
A33: =grade_report!C35 -> 0 | B33: =grade_report!B35 -> 0 | D33: =VLOOKUP(A33,grade_report!C:D,2,FALSE) ->  | E33: =HLOOKUP("שיעור לתלמיד 1: נאורוּת - שיעור לתלמיד",grade_report!$3:$100,ROWS($A$4:A36),0) -> 0 | F33: =HLOOKUP("סיכום פרק 1: נאורוּת - משימת סיכום",grade_report!$3:$100,ROWS($A$4:A36),0) -> 0 | G33: =HLOOKUP("הפנמה 1: נאורוּת - משימת הפנמה",grade_report!$3:$100,ROWS($A$4:B36),0) -> 0 | H33: =HLOOKUP("העשרה 1: נאורוּת - משימת העשרה",grade_report!$3:$100,ROWS($A$4:C36),0) -> 0 | J33: =HLOOKUP("שיעור לתלמיד 2: מלחמת העולם הראשונה - שיעור לתלמיד",grade_report!$3:$100,ROWS($A$4:E36),0) ->  | K33: =HLOOKUP("סיכום פרק 2: מלחמת העולם הראשונה - משימת סיכום",grade_report!$3:$100,ROWS($A$4:E36),0) ->  | L33: =HLOOKUP("הפנמה 2: מלחמת העולם הראשונה - משימת הפנמה",grade_report!$3:$100,ROWS($A$4:F36),0) ->  | M33: =HLOOKUP("העשרה 2: מלחמת העולם הראשונה - משימת העשרה - רשות: מלחמת החפירות",grade_report!$3:$100,ROWS($A$4:G36),0) ->  | O33: =HLOOKUP("שיעור לתלמיד 3: השינויים במעמד המשפטי של יהודי צרפת משלהי המאה ה-18 עד ראשית המאה ה-20 - תת פרק לבחירה",grade_report!$3:$100,ROWS($A$4:J36),0) ->  | P33: =HLOOKUP("סיכום פרק 3: השינויים במעמד המשפטי של יהודי צרפת משלהי המאה ה-18 עד ראשית המאה ה-20 -משימת סיכום",grade_report!$3:$100,ROWS($A$4:J36),0) ->  | Q33: =HLOOKUP("שיעור לתלמיד 4: השינויים במעמד המשפטי של יהודי גרמניה משלהי המאה ה-18 עד ראשית המאה ה-20 - תת פרק לבחירה",grade_report!$3:$100,ROWS($A$4:O36),0) ->  | R33: =HLOOKUP("סיכום פרק 4: השינויים במעמד המשפטי של יהודי גרמניה משלהי המאה ה-18 עד ראשית המאה ה-20 - תת פרק לבחירה -משימת סיכום",grade_report!$3:$100,ROWS($A$4:O36),0) ->  | S33: =HLOOKUP("שיעור לתלמיד 5: השינויים במעמד המשפטי של היהודים בארצות האסלאם - תהליך האמנציפציה באלג'יריה - תת פרק חובה",grade_report!$3:$100,ROWS($A$4:A36),0) ->  | T33: =HLOOKUP("סיכום פרק 5: השינויים במעמד המשפטי של היהודים בארצות האסלאם - תהליך האמנציפציה באלג'יריה - משימת סיכום",grade_report!$3:$100,ROWS($A$4:A36),0) ->  | U33: =HLOOKUP("שיעור לתלמיד 6: השלכות השינויים במעמד היהודים על החברה היהודית - תת פרק חובה",grade_report!$3:$100,ROWS($A$4:D36),0) ->  | V33: =HLOOKUP("סיכום פרק 6: השפעת הליברליזם על תמורות בחברה היהודית - משימת סיכום - סיכום הסוגיה לכל הפרק",grade_report!$3:$100,ROWS($A$4:A36),0) ->  | W33: =HLOOKUP("הפנמה 3: מעמד היהודים משלהי המאה ה-18 ועד תחילת המאה ה-20 - משימת הפנמה לכל הפרק",grade_report!$3:$100,ROWS($A$4:Q36),0) ->  | X33: =HLOOKUP("העשרה 3: מעמד היהודים משלהי המאה ה-18 ועד תחילת המאה ה-20 - משימת העשרה לכל הפרק",grade_report!$3:$100,ROWS($A$4:R36),0) ->  | Z33: =HLOOKUP("שיעור לתלמיד 7: השפעת הנאורות על החברה היהודית - תת פרק חובה",grade_report!$3:$100,ROWS($A$4:A36),0) ->  | AA33: =HLOOKUP("סיכום פרק 7: השפעת הנאורות על החברה היהודית - תת פרק חובה - משימת סיכום",grade_report!$3:$100,ROWS($A$4:A36),0) ->  | AC33: =HLOOKUP("שיעור לתלמיד 8: ניאו אורתודוקסיה - חיוב המודרנה תוך שמירה קפדנית על מצוות הדת - שיעור לתלמיד",grade_report!$3:$100,ROWS($A$4:D36),0) ->  | AD33: =HLOOKUP("סיכום פרק 8: ניאו אורתודוקסיה - חיוב המודרנה תוך שמירה קפדנית על מצוות הדת - משימת סיכום",grade_report!$3:$100,ROWS($A$4:D36),0) ->  | AE33: =HLOOKUP("סיכום פרק 9: תנועות וזרמים יהודיים - משימת סיכום לכל הפרק",grade_report!$3:$100,ROWS($A$4:E36),0) ->  | AG33: =HLOOKUP("שיעור לתלמיד 9: מבשרי הציונות וחיבת ציון - שיעור לתלמיד",grade_report!$3:$100,ROWS($A$4:H36),0) ->  | AH33: =HLOOKUP("סיכום פרק 10: מבשרי הציונות וחיבת ציון - משימת סיכום",grade_report!$3:$100,ROWS($A$4:H36),0) ->  | AI33: =HLOOKUP("הפנמה 4: מבשרי הציונות וחיבת ציון - משימת הפנמה",grade_report!$3:$100,ROWS($A$4:AC36),0) ->  | AJ33: =HLOOKUP("העשרה 4: מבשרי הציונות וחיבת ציון - משימת העשרה",grade_report!$3:$100,ROWS($A$4:AD36),0) ->  | AL33: =HLOOKUP("שיעור לתלמיד 10: התנועה הציונית והרצל - שיעור לתלמיד",grade_report!$3:$100,ROWS($A$4:M36),0) ->  | AM33: =HLOOKUP("סיכום פרק 11: התנועה הציונית והרצל - משימת סיכום - סוף ימיו של הרצל",grade_report!$3:$100,ROWS($A$4:M36),0) ->  | AN33: =HLOOKUP("הפנמה 5: התנועה הציונית והרצל - משימת הפנמה",grade_report!$3:$100,ROWS($A$4:AH36),0) ->  | AO33: =HLOOKUP("העשרה 5: התנועה הציונית והרצל - משימת העשרה",grade_report!$3:$100,ROWS($A$4:AI36),0) ->  | AQ33: =HLOOKUP("שיעור לתלמיד 11: מפלגות, זרמים ומתנגדים - שיעור לתלמיד",grade_report!$3:$100,ROWS($A$4:R36),0) ->  | AR33: =HLOOKUP("סיכום פרק 12: מפלגות, זרמים ומתנגדים - משימת סיכום",grade_report!$3:$100,ROWS($A$4:R36),0) ->  | AS33: =HLOOKUP("הפנמה 6: מפלגות, זרמים ומתנגדים - משימת הפנמה",grade_report!$3:$100,ROWS($A$4:AM36),0) ->  | AT33: =HLOOKUP("העשרה 6: מפלגות, זרמים ומתנגדים - משימת העשרה",grade_report!$3:$100,ROWS($A$4:AN36),0) ->  | AV33: =HLOOKUP("סיכום קורס-ש' סגורות",grade_report!$3:$100,ROWS($A$4:AP36),0) ->  | AW33: =HLOOKUP("סיכום קורס-ש' פתוחות",grade_report!$3:$100,ROWS($A$4:AQ36),0) ->  | AX33: =HLOOKUP("תלמידאות",grade_report!$3:$100,ROWS($A$4:AR36),0) -> 0
A34: =grade_report!C36 -> 0 | B34: =grade_report!B36 -> 0 | D34: =VLOOKUP(A34,grade_report!C:D,2,FALSE) ->  | E34: =HLOOKUP("שיעור לתלמיד 1: נאורוּת - שיעור לתלמיד",grade_report!$3:$100,ROWS($A$4:A37),0) -> 0 | F34: =HLOOKUP("סיכום פרק 1: נאורוּת - משימת סיכום",grade_report!$3:$100,ROWS($A$4:A37),0) -> 0 | G34: =HLOOKUP("הפנמה 1: נאורוּת - משימת הפנמה",grade_report!$3:$100,ROWS($A$4:B37),0) -> 0 | H34: =HLOOKUP("העשרה 1: נאורוּת - משימת העשרה",grade_report!$3:$100,ROWS($A$4:C37),0) -> 0 | J34: =HLOOKUP("שיעור לתלמיד 2: מלחמת העולם הראשונה - שיעור לתלמיד",grade_report!$3:$100,ROWS($A$4:E37),0) ->  | K34: =HLOOKUP("סיכום פרק 2: מלחמת העולם הראשונה - משימת סיכום",grade_report!$3:$100,ROWS($A$4:E37),0) ->  | L34: =HLOOKUP("הפנמה 2: מלחמת העולם הראשונה - משימת הפנמה",grade_report!$3:$100,ROWS($A$4:F37),0) ->  | M34: =HLOOKUP("העשרה 2: מלחמת העולם הראשונה - משימת העשרה - רשות: מלחמת החפירות",grade_report!$3:$100,ROWS($A$4:G37),0) ->  | O34: =HLOOKUP("שיעור לתלמיד 3: השינויים במעמד המשפטי של יהודי צרפת משלהי המאה ה-18 עד ראשית המאה ה-20 - תת פרק לבחירה",grade_report!$3:$100,ROWS($A$4:J37),0) ->  | P34: =HLOOKUP("סיכום פרק 3: השינויים במעמד המשפטי של יהודי צרפת משלהי המאה ה-18 עד ראשית המאה ה-20 -משימת סיכום",grade_report!$3:$100,ROWS($A$4:J37),0) ->  | Q34: =HLOOKUP("שיעור לתלמיד 4: השינויים במעמד המשפטי של יהודי גרמניה משלהי המאה ה-18 עד ראשית המאה ה-20 - תת פרק לבחירה",grade_report!$3:$100,ROWS($A$4:O37),0) ->  | R34: =HLOOKUP("סיכום פרק 4: השינויים במעמד המשפטי של יהודי גרמניה משלהי המאה ה-18 עד ראשית המאה ה-20 - תת פרק לבחירה -משימת סיכום",grade_report!$3:$100,ROWS($A$4:O37),0) ->  | S34: =HLOOKUP("שיעור לתלמיד 5: השינויים במעמד המשפטי של היהודים בארצות האסלאם - תהליך האמנציפציה באלג'יריה - תת פרק חובה",grade_report!$3:$100,ROWS($A$4:A37),0) ->  | T34: =HLOOKUP("סיכום פרק 5: השינויים במעמד המשפטי של היהודים בארצות האסלאם - תהליך האמנציפציה באלג'יריה - משימת סיכום",grade_report!$3:$100,ROWS($A$4:A37),0) ->  | U34: =HLOOKUP("שיעור לתלמיד 6: השלכות השינויים במעמד היהודים על החברה היהודית - תת פרק חובה",grade_report!$3:$100,ROWS($A$4:D37),0) ->  | V34: =HLOOKUP("סיכום פרק 6: השפעת הליברליזם על תמורות בחברה היהודית - משימת סיכום - סיכום הסוגיה לכל הפרק",grade_report!$3:$100,ROWS($A$4:A37),0) ->  | W34: =HLOOKUP("הפנמה 3: מעמד היהודים משלהי המאה ה-18 ועד תחילת המאה ה-20 - משימת הפנמה לכל הפרק",grade_report!$3:$100,ROWS($A$4:Q37),0) ->  | X34: =HLOOKUP("העשרה 3: מעמד היהודים משלהי המאה ה-18 ועד תחילת המאה ה-20 - משימת העשרה לכל הפרק",grade_report!$3:$100,ROWS($A$4:R37),0) ->  | Z34: =HLOOKUP("שיעור לתלמיד 7: השפעת הנאורות על החברה היהודית - תת פרק חובה",grade_report!$3:$100,ROWS($A$4:A37),0) ->  | AA34: =HLOOKUP("סיכום פרק 7: השפעת הנאורות על החברה היהודית - תת פרק חובה - משימת סיכום",grade_report!$3:$100,ROWS($A$4:A37),0) ->  | AC34: =HLOOKUP("שיעור לתלמיד 8: ניאו אורתודוקסיה - חיוב המודרנה תוך שמירה קפדנית על מצוות הדת - שיעור לתלמיד",grade_report!$3:$100,ROWS($A$4:D37),0) ->  | AD34: =HLOOKUP("סיכום פרק 8: ניאו אורתודוקסיה - חיוב המודרנה תוך שמירה קפדנית על מצוות הדת - משימת סיכום",grade_report!$3:$100,ROWS($A$4:D37),0) ->  | AE34: =HLOOKUP("סיכום פרק 9: תנועות וזרמים יהודיים - משימת סיכום לכל הפרק",grade_report!$3:$100,ROWS($A$4:E37),0) ->  | AG34: =HLOOKUP("שיעור לתלמיד 9: מבשרי הציונות וחיבת ציון - שיעור לתלמיד",grade_report!$3:$100,ROWS($A$4:H37),0) ->  | AH34: =HLOOKUP("סיכום פרק 10: מבשרי הציונות וחיבת ציון - משימת סיכום",grade_report!$3:$100,ROWS($A$4:H37),0) ->  | AI34: =HLOOKUP("הפנמה 4: מבשרי הציונות וחיבת ציון - משימת הפנמה",grade_report!$3:$100,ROWS($A$4:AC37),0) ->  | AJ34: =HLOOKUP("העשרה 4: מבשרי הציונות וחיבת ציון - משימת העשרה",grade_report!$3:$100,ROWS($A$4:AD37),0) ->  | AL34: =HLOOKUP("שיעור לתלמיד 10: התנועה הציונית והרצל - שיעור לתלמיד",grade_report!$3:$100,ROWS($A$4:M37),0) ->  | AM34: =HLOOKUP("סיכום פרק 11: התנועה הציונית והרצל - משימת סיכום - סוף ימיו של הרצל",grade_report!$3:$100,ROWS($A$4:M37),0) ->  | AN34: =HLOOKUP("הפנמה 5: התנועה הציונית והרצל - משימת הפנמה",grade_report!$3:$100,ROWS($A$4:AH37),0) ->  | AO34: =HLOOKUP("העשרה 5: התנועה הציונית והרצל - משימת העשרה",grade_report!$3:$100,ROWS($A$4:AI37),0) ->  | AQ34: =HLOOKUP("שיעור לתלמיד 11: מפלגות, זרמים ומתנגדים - שיעור לתלמיד",grade_report!$3:$100,ROWS($A$4:R37),0) ->  | AR34: =HLOOKUP("סיכום פרק 12: מפלגות, זרמים ומתנגדים - משימת סיכום",grade_report!$3:$100,ROWS($A$4:R37),0) ->  | AS34: =HLOOKUP("הפנמה 6: מפלגות, זרמים ומתנגדים - משימת הפנמה",grade_report!$3:$100,ROWS($A$4:AM37),0) ->  | AT34: =HLOOKUP("העשרה 6: מפלגות, זרמים ומתנגדים - משימת העשרה",grade_report!$3:$100,ROWS($A$4:AN37),0) ->  | AV34: =HLOOKUP("סיכום קורס-ש' סגורות",grade_report!$3:$100,ROWS($A$4:AP37),0) ->  | AW34: =HLOOKUP("סיכום קורס-ש' פתוחות",grade_report!$3:$100,ROWS($A$4:AQ37),0) ->  | AX34: =HLOOKUP("תלמידאות",grade_report!$3:$100,ROWS($A$4:AR37),0) -> 0
A35: =grade_report!C37 -> 0 | B35: =grade_report!B37 -> 0 | D35: =VLOOKUP(A35,grade_report!C:D,2,FALSE) ->  | E35: =HLOOKUP("שיעור לתלמיד 1: נאורוּת - שיעור לתלמיד",grade_report!$3:$100,ROWS($A$4:A38),0) -> 0 | F35: =HLOOKUP("סיכום פרק 1: נאורוּת - משימת סיכום",grade_report!$3:$100,ROWS($A$4:A38),0) -> 0 | G35: =HLOOKUP("הפנמה 1: נאורוּת - משימת הפנמה",grade_report!$3:$100,ROWS($A$4:B38),0) -> 0 | H35: =HLOOKUP("העשרה 1: נאורוּת - משימת העשרה",grade_report!$3:$100,ROWS($A$4:C38),0) -> 0 | J35: =HLOOKUP("שיעור לתלמיד 2: מלחמת העולם הראשונה - שיעור לתלמיד",grade_report!$3:$100,ROWS($A$4:E38),0) ->  | K35: =HLOOKUP("סיכום פרק 2: מלחמת העולם הראשונה - משימת סיכום",grade_report!$3:$100,ROWS($A$4:E38),0) ->  | L35: =HLOOKUP("הפנמה 2: מלחמת העולם הראשונה - משימת הפנמה",grade_report!$3:$100,ROWS($A$4:F38),0) ->  | M35: =HLOOKUP("העשרה 2: מלחמת העולם הראשונה - משימת העשרה - רשות: מלחמת החפירות",grade_report!$3:$100,ROWS($A$4:G38),0) ->  | O35: =HLOOKUP("שיעור לתלמיד 3: השינויים במעמד המשפטי של יהודי צרפת משלהי המאה ה-18 עד ראשית המאה ה-20 - תת פרק לבחירה",grade_report!$3:$100,ROWS($A$4:J38),0) ->  | P35: =HLOOKUP("סיכום פרק 3: השינויים במעמד המשפטי של יהודי צרפת משלהי המאה ה-18 עד ראשית המאה ה-20 -משימת סיכום",grade_report!$3:$100,ROWS($A$4:J38),0) ->  | Q35: =HLOOKUP("שיעור לתלמיד 4: השינויים במעמד המשפטי של יהודי גרמניה משלהי המאה ה-18 עד ראשית המאה ה-20 - תת פרק לבחירה",grade_report!$3:$100,ROWS($A$4:O38),0) ->  | R35: =HLOOKUP("סיכום פרק 4: השינויים במעמד המשפטי של יהודי גרמניה משלהי המאה ה-18 עד ראשית המאה ה-20 - תת פרק לבחירה -משימת סיכום",grade_report!$3:$100,ROWS($A$4:O38),0) ->  | S35: =HLOOKUP("שיעור לתלמיד 5: השינויים במעמד המשפטי של היהודים בארצות האסלאם - תהליך האמנציפציה באלג'יריה - תת פרק חובה",grade_report!$3:$100,ROWS($A$4:A38),0) ->  | T35: =HLOOKUP("סיכום פרק 5: השינויים במעמד המשפטי של היהודים בארצות האסלאם - תהליך האמנציפציה באלג'יריה - משימת סיכום",grade_report!$3:$100,ROWS($A$4:A38),0) ->  | U35: =HLOOKUP("שיעור לתלמיד 6: השלכות השינויים במעמד היהודים על החברה היהודית - תת פרק חובה",grade_report!$3:$100,ROWS($A$4:D38),0) ->  | V35: =HLOOKUP("סיכום פרק 6: השפעת הליברליזם על תמורות בחברה היהודית - משימת סיכום - סיכום הסוגיה לכל הפרק",grade_report!$3:$100,ROWS($A$4:A38),0) ->  | W35: =HLOOKUP("הפנמה 3: מעמד היהודים משלהי המאה ה-18 ועד תחילת המאה ה-20 - משימת הפנמה לכל הפרק",grade_report!$3:$100,ROWS($A$4:Q38),0) ->  | X35: =HLOOKUP("העשרה 3: מעמד היהודים משלהי המאה ה-18 ועד תחילת המאה ה-20 - משימת העשרה לכל הפרק",grade_report!$3:$100,ROWS($A$4:R38),0) ->  | Z35: =HLOOKUP("שיעור לתלמיד 7: השפעת הנאורות על החברה היהודית - תת פרק חובה",grade_report!$3:$100,ROWS($A$4:A38),0) ->  | AA35: =HLOOKUP("סיכום פרק 7: השפעת הנאורות על החברה היהודית - תת פרק חובה - משימת סיכום",grade_report!$3:$100,ROWS($A$4:A38),0) ->  | AC35: =HLOOKUP("שיעור לתלמיד 8: ניאו אורתודוקסיה - חיוב המודרנה תוך שמירה קפדנית על מצוות הדת - שיעור לתלמיד",grade_report!$3:$100,ROWS($A$4:D38),0) ->  | AD35: =HLOOKUP("סיכום פרק 8: ניאו אורתודוקסיה - חיוב המודרנה תוך שמירה קפדנית על מצוות הדת - משימת סיכום",grade_report!$3:$100,ROWS($A$4:D38),0) ->  | AE35: =HLOOKUP("סיכום פרק 9: תנועות וזרמים יהודיים - משימת סיכום לכל הפרק",grade_report!$3:$100,ROWS($A$4:E38),0) ->  | AG35: =HLOOKUP("שיעור לתלמיד 9: מבשרי הציונות וחיבת ציון - שיעור לתלמיד",grade_report!$3:$100,ROWS($A$4:H38),0) ->  | AH35: =HLOOKUP("סיכום פרק 10: מבשרי הציונות וחיבת ציון - משימת סיכום",grade_report!$3:$100,ROWS($A$4:H38),0) ->  | AI35: =HLOOKUP("הפנמה 4: מבשרי הציונות וחיבת ציון - משימת הפנמה",grade_report!$3:$100,ROWS($A$4:AC38),0) ->  | AJ35: =HLOOKUP("העשרה 4: מבשרי הציונות וחיבת ציון - משימת העשרה",grade_report!$3:$100,ROWS($A$4:AD38),0) ->  | AL35: =HLOOKUP("שיעור לתלמיד 10: התנועה הציונית והרצל - שיעור לתלמיד",grade_report!$3:$100,ROWS($A$4:M38),0) ->  | AM35: =HLOOKUP("סיכום פרק 11: התנועה הציונית והרצל - משימת סיכום - סוף ימיו של הרצל",grade_report!$3:$100,ROWS($A$4:M38),0) ->  | AN35: =HLOOKUP("הפנמה 5: התנועה הציונית והרצל - משימת הפנמה",grade_report!$3:$100,ROWS($A$4:AH38),0) ->  | AO35: =HLOOKUP("העשרה 5: התנועה הציונית והרצל - משימת העשרה",grade_report!$3:$100,ROWS($A$4:AI38),0) ->  | AQ35: =HLOOKUP("שיעור לתלמיד 11: מפלגות, זרמים ומתנגדים - שיעור לתלמיד",grade_report!$3:$100,ROWS($A$4:R38),0) ->  | AR35: =HLOOKUP("סיכום פרק 12: מפלגות, זרמים ומתנגדים - משימת סיכום",grade_report!$3:$100,ROWS($A$4:R38),0) ->  | AS35: =HLOOKUP("הפנמה 6: מפלגות, זרמים ומתנגדים - משימת הפנמה",grade_report!$3:$100,ROWS($A$4:AM38),0) ->  | AT35: =HLOOKUP("העשרה 6: מפלגות, זרמים ומתנגדים - משימת העשרה",grade_report!$3:$100,ROWS($A$4:AN38),0) ->  | AV35: =HLOOKUP("סיכום קורס-ש' סגורות",grade_report!$3:$100,ROWS($A$4:AP38),0) ->  | AW35: =HLOOKUP("סיכום קורס-ש' פתוחות",grade_report!$3:$100,ROWS($A$4:AQ38),0) ->  | AX35: =HLOOKUP("תלמידאות",grade_report!$3:$100,ROWS($A$4:AR38),0) -> 0
A36: =grade_report!C38 -> 0 | B36: =grade_report!B38 -> 0 | D36: =VLOOKUP(A36,grade_report!C:D,2,FALSE) ->  | E36: =HLOOKUP("שיעור לתלמיד 1: נאורוּת - שיעור לתלמיד",grade_report!$3:$100,ROWS($A$4:A39),0) -> 0 | F36: =HLOOKUP("סיכום פרק 1: נאורוּת - משימת סיכום",grade_report!$3:$100,ROWS($A$4:A39),0) -> 0 | G36: =HLOOKUP("הפנמה 1: נאורוּת - משימת הפנמה",grade_report!$3:$100,ROWS($A$4:B39),0) -> 0 | H36: =HLOOKUP("העשרה 1: נאורוּת - משימת העשרה",grade_report!$3:$100,ROWS($A$4:C39),0) -> 0 | J36: =HLOOKUP("שיעור לתלמיד 2: מלחמת העולם הראשונה - שיעור לתלמיד",grade_report!$3:$100,ROWS($A$4:E39),0) ->  | K36: =HLOOKUP("סיכום פרק 2: מלחמת העולם הראשונה - משימת סיכום",grade_report!$3:$100,ROWS($A$4:E39),0) ->  | L36: =HLOOKUP("הפנמה 2: מלחמת העולם הראשונה - משימת הפנמה",grade_report!$3:$100,ROWS($A$4:F39),0) ->  | M36: =HLOOKUP("העשרה 2: מלחמת העולם הראשונה - משימת העשרה - רשות: מלחמת החפירות",grade_report!$3:$100,ROWS($A$4:G39),0) ->  | O36: =HLOOKUP("שיעור לתלמיד 3: השינויים במעמד המשפטי של יהודי צרפת משלהי המאה ה-18 עד ראשית המאה ה-20 - תת פרק לבחירה",grade_report!$3:$100,ROWS($A$4:J39),0) ->  | P36: =HLOOKUP("סיכום פרק 3: השינויים במעמד המשפטי של יהודי צרפת משלהי המאה ה-18 עד ראשית המאה ה-20 -משימת סיכום",grade_report!$3:$100,ROWS($A$4:J39),0) ->  | Q36: =HLOOKUP("שיעור לתלמיד 4: השינויים במעמד המשפטי של יהודי גרמניה משלהי המאה ה-18 עד ראשית המאה ה-20 - תת פרק לבחירה",grade_report!$3:$100,ROWS($A$4:O39),0) ->  | R36: =HLOOKUP("סיכום פרק 4: השינויים במעמד המשפטי של יהודי גרמניה משלהי המאה ה-18 עד ראשית המאה ה-20 - תת פרק לבחירה -משימת סיכום",grade_report!$3:$100,ROWS($A$4:O39),0) ->  | S36: =HLOOKUP("שיעור לתלמיד 5: השינויים במעמד המשפטי של היהודים בארצות האסלאם - תהליך האמנציפציה באלג'יריה - תת פרק חובה",grade_report!$3:$100,ROWS($A$4:A39),0) ->  | T36: =HLOOKUP("סיכום פרק 5: השינויים במעמד המשפטי של היהודים בארצות האסלאם - תהליך האמנציפציה באלג'יריה - משימת סיכום",grade_report!$3:$100,ROWS($A$4:A39),0) ->  | U36: =HLOOKUP("שיעור לתלמיד 6: השלכות השינויים במעמד היהודים על החברה היהודית - תת פרק חובה",grade_report!$3:$100,ROWS($A$4:D39),0) ->  | V36: =HLOOKUP("סיכום פרק 6: השפעת הליברליזם על תמורות בחברה היהודית - משימת סיכום - סיכום הסוגיה לכל הפרק",grade_report!$3:$100,ROWS($A$4:A39),0) ->  | W36: =HLOOKUP("הפנמה 3: מעמד היהודים משלהי המאה ה-18 ועד תחילת המאה ה-20 - משימת הפנמה לכל הפרק",grade_report!$3:$100,ROWS($A$4:Q39),0) ->  | X36: =HLOOKUP("העשרה 3: מעמד היהודים משלהי המאה ה-18 ועד תחילת המאה ה-20 - משימת העשרה לכל הפרק",grade_report!$3:$100,ROWS($A$4:R39),0) ->  | Z36: =HLOOKUP("שיעור לתלמיד 7: השפעת הנאורות על החברה היהודית - תת פרק חובה",grade_report!$3:$100,ROWS($A$4:A39),0) ->  | AA36: =HLOOKUP("סיכום פרק 7: השפעת הנאורות על החברה היהודית - תת פרק חובה - משימת סיכום",grade_report!$3:$100,ROWS($A$4:A39),0) ->  | AC36: =HLOOKUP("שיעור לתלמיד 8: ניאו אורתודוקסיה - חיוב המודרנה תוך שמירה קפדנית על מצוות הדת - שיעור לתלמיד",grade_report!$3:$100,ROWS($A$4:D39),0) ->  | AD36: =HLOOKUP("סיכום פרק 8: ניאו אורתודוקסיה - חיוב המודרנה תוך שמירה קפדנית על מצוות הדת - משימת סיכום",grade_report!$3:$100,ROWS($A$4:D39),0) ->  | AE36: =HLOOKUP("סיכום פרק 9: תנועות וזרמים יהודיים - משימת סיכום לכל הפרק",grade_report!$3:$100,ROWS($A$4:E39),0) ->  | AG36: =HLOOKUP("שיעור לתלמיד 9: מבשרי הציונות וחיבת ציון - שיעור לתלמיד",grade_report!$3:$100,ROWS($A$4:H39),0) ->  | AH36: =HLOOKUP("סיכום פרק 10: מבשרי הציונות וחיבת ציון - משימת סיכום",grade_report!$3:$100,ROWS($A$4:H39),0) ->  | AI36: =HLOOKUP("הפנמה 4: מבשרי הציונות וחיבת ציון - משימת הפנמה",grade_report!$3:$100,ROWS($A$4:AC39),0) ->  | AJ36: =HLOOKUP("העשרה 4: מבשרי הציונות וחיבת ציון - משימת העשרה",grade_report!$3:$100,ROWS($A$4:AD39),0) ->  | AL36: =HLOOKUP("שיעור לתלמיד 10: התנועה הציונית והרצל - שיעור לתלמיד",grade_report!$3:$100,ROWS($A$4:M39),0) ->  | AM36: =HLOOKUP("סיכום פרק 11: התנועה הציונית והרצל - משימת סיכום - סוף ימיו של הרצל",grade_report!$3:$100,ROWS($A$4:M39),0) ->  | AN36: =HLOOKUP("הפנמה 5: התנועה הציונית והרצל - משימת הפנמה",grade_report!$3:$100,ROWS($A$4:AH39),0) ->  | AO36: =HLOOKUP("העשרה 5: התנועה הציונית והרצל - משימת העשרה",grade_report!$3:$100,ROWS($A$4:AI39),0) ->  | AQ36: =HLOOKUP("שיעור לתלמיד 11: מפלגות, זרמים ומתנגדים - שיעור לתלמיד",grade_report!$3:$100,ROWS($A$4:R39),0) ->  | AR36: =HLOOKUP("סיכום פרק 12: מפלגות, זרמים ומתנגדים - משימת סיכום",grade_report!$3:$100,ROWS($A$4:R39),0) ->  | AS36: =HLOOKUP("הפנמה 6: מפלגות, זרמים ומתנגדים - משימת הפנמה",grade_report!$3:$100,ROWS($A$4:AM39),0) ->  | AT36: =HLOOKUP("העשרה 6: מפלגות, זרמים ומתנגדים - משימת העשרה",grade_report!$3:$100,ROWS($A$4:AN39),0) ->  | AV36: =HLOOKUP("סיכום קורס-ש' סגורות",grade_report!$3:$100,ROWS($A$4:AP39),0) ->  | AW36: =HLOOKUP("סיכום קורס-ש' פתוחות",grade_report!$3:$100,ROWS($A$4:AQ39),0) ->  | AX36: =HLOOKUP("תלמידאות",grade_report!$3:$100,ROWS($A$4:AR39),0) -> 0
A37: =grade_report!C39 -> 0 | B37: =grade_report!B39 -> 0 | D37: =VLOOKUP(A37,grade_report!C:D,2,FALSE) ->  | E37: =HLOOKUP("שיעור לתלמיד 1: נאורוּת - שיעור לתלמיד",grade_report!$3:$100,ROWS($A$4:A40),0) -> 0 | F37: =HLOOKUP("סיכום פרק 1: נאורוּת - משימת סיכום",grade_report!$3:$100,ROWS($A$4:A40),0) -> 0 | G37: =HLOOKUP("הפנמה 1: נאורוּת - משימת הפנמה",grade_report!$3:$100,ROWS($A$4:B40),0) -> 0 | H37: =HLOOKUP("העשרה 1: נאורוּת - משימת העשרה",grade_report!$3:$100,ROWS($A$4:C40),0) -> 0 | J37: =HLOOKUP("שיעור לתלמיד 2: מלחמת העולם הראשונה - שיעור לתלמיד",grade_report!$3:$100,ROWS($A$4:E40),0) ->  | K37: =HLOOKUP("סיכום פרק 2: מלחמת העולם הראשונה - משימת סיכום",grade_report!$3:$100,ROWS($A$4:E40),0) ->  | L37: =HLOOKUP("הפנמה 2: מלחמת העולם הראשונה - משימת הפנמה",grade_report!$3:$100,ROWS($A$4:F40),0) ->  | M37: =HLOOKUP("העשרה 2: מלחמת העולם הראשונה - משימת העשרה - רשות: מלחמת החפירות",grade_report!$3:$100,ROWS($A$4:G40),0) ->  | O37: =HLOOKUP("שיעור לתלמיד 3: השינויים במעמד המשפטי של יהודי צרפת משלהי המאה ה-18 עד ראשית המאה ה-20 - תת פרק לבחירה",grade_report!$3:$100,ROWS($A$4:J40),0) ->  | P37: =HLOOKUP("סיכום פרק 3: השינויים במעמד המשפטי של יהודי צרפת משלהי המאה ה-18 עד ראשית המאה ה-20 -משימת סיכום",grade_report!$3:$100,ROWS($A$4:J40),0) ->  | Q37: =HLOOKUP("שיעור לתלמיד 4: השינויים במעמד המשפטי של יהודי גרמניה משלהי המאה ה-18 עד ראשית המאה ה-20 - תת פרק לבחירה",grade_report!$3:$100,ROWS($A$4:O40),0) ->  | R37: =HLOOKUP("סיכום פרק 4: השינויים במעמד המשפטי של יהודי גרמניה משלהי המאה ה-18 עד ראשית המאה ה-20 - תת פרק לבחירה -משימת סיכום",grade_report!$3:$100,ROWS($A$4:O40),0) ->  | S37: =HLOOKUP("שיעור לתלמיד 5: השינויים במעמד המשפטי של היהודים בארצות האסלאם - תהליך האמנציפציה באלג'יריה - תת פרק חובה",grade_report!$3:$100,ROWS($A$4:A40),0) ->  | T37: =HLOOKUP("סיכום פרק 5: השינויים במעמד המשפטי של היהודים בארצות האסלאם - תהליך האמנציפציה באלג'יריה - משימת סיכום",grade_report!$3:$100,ROWS($A$4:A40),0) ->  | U37: =HLOOKUP("שיעור לתלמיד 6: השלכות השינויים במעמד היהודים על החברה היהודית - תת פרק חובה",grade_report!$3:$100,ROWS($A$4:D40),0) ->  | V37: =HLOOKUP("סיכום פרק 6: השפעת הליברליזם על תמורות בחברה היהודית - משימת סיכום - סיכום הסוגיה לכל הפרק",grade_report!$3:$100,ROWS($A$4:A40),0) ->  | W37: =HLOOKUP("הפנמה 3: מעמד היהודים משלהי המאה ה-18 ועד תחילת המאה ה-20 - משימת הפנמה לכל הפרק",grade_report!$3:$100,ROWS($A$4:Q40),0) ->  | X37: =HLOOKUP("העשרה 3: מעמד היהודים משלהי המאה ה-18 ועד תחילת המאה ה-20 - משימת העשרה לכל הפרק",grade_report!$3:$100,ROWS($A$4:R40),0) ->  | Z37: =HLOOKUP("שיעור לתלמיד 7: השפעת הנאורות על החברה היהודית - תת פרק חובה",grade_report!$3:$100,ROWS($A$4:A40),0) ->  | AA37: =HLOOKUP("סיכום פרק 7: השפעת הנאורות על החברה היהודית - תת פרק חובה - משימת סיכום",grade_report!$3:$100,ROWS($A$4:A40),0) ->  | AC37: =HLOOKUP("שיעור לתלמיד 8: ניאו אורתודוקסיה - חיוב המודרנה תוך שמירה קפדנית על מצוות הדת - שיעור לתלמיד",grade_report!$3:$100,ROWS($A$4:D40),0) ->  | AD37: =HLOOKUP("סיכום פרק 8: ניאו אורתודוקסיה - חיוב המודרנה תוך שמירה קפדנית על מצוות הדת - משימת סיכום",grade_report!$3:$100,ROWS($A$4:D40),0) ->  | AE37: =HLOOKUP("סיכום פרק 9: תנועות וזרמים יהודיים - משימת סיכום לכל הפרק",grade_report!$3:$100,ROWS($A$4:E40),0) ->  | AG37: =HLOOKUP("שיעור לתלמיד 9: מבשרי הציונות וחיבת ציון - שיעור לתלמיד",grade_report!$3:$100,ROWS($A$4:H40),0) ->  | AH37: =HLOOKUP("סיכום פרק 10: מבשרי הציונות וחיבת ציון - משימת סיכום",grade_report!$3:$100,ROWS($A$4:H40),0) ->  | AI37: =HLOOKUP("הפנמה 4: מבשרי הציונות וחיבת ציון - משימת הפנמה",grade_report!$3:$100,ROWS($A$4:AC40),0) ->  | AJ37: =HLOOKUP("העשרה 4: מבשרי הציונות וחיבת ציון - משימת העשרה",grade_report!$3:$100,ROWS($A$4:AD40),0) ->  | AL37: =HLOOKUP("שיעור לתלמיד 10: התנועה הציונית והרצל - שיעור לתלמיד",grade_report!$3:$100,ROWS($A$4:M40),0) ->  | AM37: =HLOOKUP("סיכום פרק 11: התנועה הציונית והרצל - משימת סיכום - סוף ימיו של הרצל",grade_report!$3:$100,ROWS($A$4:M40),0) ->  | AN37: =HLOOKUP("הפנמה 5: התנועה הציונית והרצל - משימת הפנמה",grade_report!$3:$100,ROWS($A$4:AH40),0) ->  | AO37: =HLOOKUP("העשרה 5: התנועה הציונית והרצל - משימת העשרה",grade_report!$3:$100,ROWS($A$4:AI40),0) ->  | AQ37: =HLOOKUP("שיעור לתלמיד 11: מפלגות, זרמים ומתנגדים - שיעור לתלמיד",grade_report!$3:$100,ROWS($A$4:R40),0) ->  | AR37: =HLOOKUP("סיכום פרק 12: מפלגות, זרמים ומתנגדים - משימת סיכום",grade_report!$3:$100,ROWS($A$4:R40),0) ->  | AS37: =HLOOKUP("הפנמה 6: מפלגות, זרמים ומתנגדים - משימת הפנמה",grade_report!$3:$100,ROWS($A$4:AM40),0) ->  | AT37: =HLOOKUP("העשרה 6: מפלגות, זרמים ומתנגדים - משימת העשרה",grade_report!$3:$100,ROWS($A$4:AN40),0) ->  | AV37: =HLOOKUP("סיכום קורס-ש' סגורות",grade_report!$3:$100,ROWS($A$4:AP40),0) ->  | AW37: =HLOOKUP("סיכום קורס-ש' פתוחות",grade_report!$3:$100,ROWS($A$4:AQ40),0) ->  | AX37: =HLOOKUP("תלמידאות",grade_report!$3:$100,ROWS($A$4:AR40),0) -> 0
A38: =grade_report!C40 -> 0 | B38: =grade_report!B40 -> 0 | D38: =VLOOKUP(A38,grade_report!C:D,2,FALSE) ->  | E38: =HLOOKUP("שיעור לתלמיד 1: נאורוּת - שיעור לתלמיד",grade_report!$3:$100,ROWS($A$4:A41),0) -> 0 | F38: =HLOOKUP("סיכום פרק 1: נאורוּת - משימת סיכום",grade_report!$3:$100,ROWS($A$4:A41),0) -> 0 | G38: =HLOOKUP("הפנמה 1: נאורוּת - משימת הפנמה",grade_report!$3:$100,ROWS($A$4:B41),0) -> 0 | H38: =HLOOKUP("העשרה 1: נאורוּת - משימת העשרה",grade_report!$3:$100,ROWS($A$4:C41),0) -> 0 | J38: =HLOOKUP("שיעור לתלמיד 2: מלחמת העולם הראשונה - שיעור לתלמיד",grade_report!$3:$100,ROWS($A$4:E41),0) ->  | K38: =HLOOKUP("סיכום פרק 2: מלחמת העולם הראשונה - משימת סיכום",grade_report!$3:$100,ROWS($A$4:E41),0) ->  | L38: =HLOOKUP("הפנמה 2: מלחמת העולם הראשונה - משימת הפנמה",grade_report!$3:$100,ROWS($A$4:F41),0) ->  | M38: =HLOOKUP("העשרה 2: מלחמת העולם הראשונה - משימת העשרה - רשות: מלחמת החפירות",grade_report!$3:$100,ROWS($A$4:G41),0) ->  | O38: =HLOOKUP("שיעור לתלמיד 3: השינויים במעמד המשפטי של יהודי צרפת משלהי המאה ה-18 עד ראשית המאה ה-20 - תת פרק לבחירה",grade_report!$3:$100,ROWS($A$4:J41),0) ->  | P38: =HLOOKUP("סיכום פרק 3: השינויים במעמד המשפטי של יהודי צרפת משלהי המאה ה-18 עד ראשית המאה ה-20 -משימת סיכום",grade_report!$3:$100,ROWS($A$4:J41),0) ->  | Q38: =HLOOKUP("שיעור לתלמיד 4: השינויים במעמד המשפטי של יהודי גרמניה משלהי המאה ה-18 עד ראשית המאה ה-20 - תת פרק לבחירה",grade_report!$3:$100,ROWS($A$4:O41),0) ->  | R38: =HLOOKUP("סיכום פרק 4: השינויים במעמד המשפטי של יהודי גרמניה משלהי המאה ה-18 עד ראשית המאה ה-20 - תת פרק לבחירה -משימת סיכום",grade_report!$3:$100,ROWS($A$4:O41),0) ->  | S38: =HLOOKUP("שיעור לתלמיד 5: השינויים במעמד המשפטי של היהודים בארצות האסלאם - תהליך האמנציפציה באלג'יריה - תת פרק חובה",grade_report!$3:$100,ROWS($A$4:A41),0) ->  | T38: =HLOOKUP("סיכום פרק 5: השינויים במעמד המשפטי של היהודים בארצות האסלאם - תהליך האמנציפציה באלג'יריה - משימת סיכום",grade_report!$3:$100,ROWS($A$4:A41),0) ->  | U38: =HLOOKUP("שיעור לתלמיד 6: השלכות השינויים במעמד היהודים על החברה היהודית - תת פרק חובה",grade_report!$3:$100,ROWS($A$4:D41),0) ->  | V38: =HLOOKUP("סיכום פרק 6: השפעת הליברליזם על תמורות בחברה היהודית - משימת סיכום - סיכום הסוגיה לכל הפרק",grade_report!$3:$100,ROWS($A$4:A41),0) ->  | W38: =HLOOKUP("הפנמה 3: מעמד היהודים משלהי המאה ה-18 ועד תחילת המאה ה-20 - משימת הפנמה לכל הפרק",grade_report!$3:$100,ROWS($A$4:Q41),0) ->  | X38: =HLOOKUP("העשרה 3: מעמד היהודים משלהי המאה ה-18 ועד תחילת המאה ה-20 - משימת העשרה לכל הפרק",grade_report!$3:$100,ROWS($A$4:R41),0) ->  | Z38: =HLOOKUP("שיעור לתלמיד 7: השפעת הנאורות על החברה היהודית - תת פרק חובה",grade_report!$3:$100,ROWS($A$4:A41),0) ->  | AA38: =HLOOKUP("סיכום פרק 7: השפעת הנאורות על החברה היהודית - תת פרק חובה - משימת סיכום",grade_report!$3:$100,ROWS($A$4:A41),0) ->  | AC38: =HLOOKUP("שיעור לתלמיד 8: ניאו אורתודוקסיה - חיוב המודרנה תוך שמירה קפדנית על מצוות הדת - שיעור לתלמיד",grade_report!$3:$100,ROWS($A$4:D41),0) ->  | AD38: =HLOOKUP("סיכום פרק 8: ניאו אורתודוקסיה - חיוב המודרנה תוך שמירה קפדנית על מצוות הדת - משימת סיכום",grade_report!$3:$100,ROWS($A$4:D41),0) ->  | AE38: =HLOOKUP("סיכום פרק 9: תנועות וזרמים יהודיים - משימת סיכום לכל הפרק",grade_report!$3:$100,ROWS($A$4:E41),0) ->  | AG38: =HLOOKUP("שיעור לתלמיד 9: מבשרי הציונות וחיבת ציון - שיעור לתלמיד",grade_report!$3:$100,ROWS($A$4:H41),0) ->  | AH38: =HLOOKUP("סיכום פרק 10: מבשרי הציונות וחיבת ציון - משימת סיכום",grade_report!$3:$100,ROWS($A$4:H41),0) ->  | AI38: =HLOOKUP("הפנמה 4: מבשרי הציונות וחיבת ציון - משימת הפנמה",grade_report!$3:$100,ROWS($A$4:AC41),0) ->  | AJ38: =HLOOKUP("העשרה 4: מבשרי הציונות וחיבת ציון - משימת העשרה",grade_report!$3:$100,ROWS($A$4:AD41),0) ->  | AL38: =HLOOKUP("שיעור לתלמיד 10: התנועה הציונית והרצל - שיעור לתלמיד",grade_report!$3:$100,ROWS($A$4:M41),0) ->  | AM38: =HLOOKUP("סיכום פרק 11: התנועה הציונית והרצל - משימת סיכום - סוף ימיו של הרצל",grade_report!$3:$100,ROWS($A$4:M41),0) ->  | AN38: =HLOOKUP("הפנמה 5: התנועה הציונית והרצל - משימת הפנמה",grade_report!$3:$100,ROWS($A$4:AH41),0) ->  | AO38: =HLOOKUP("העשרה 5: התנועה הציונית והרצל - משימת העשרה",grade_report!$3:$100,ROWS($A$4:AI41),0) ->  | AQ38: =HLOOKUP("שיעור לתלמיד 11: מפלגות, זרמים ומתנגדים - שיעור לתלמיד",grade_report!$3:$100,ROWS($A$4:R41),0) ->  | AR38: =HLOOKUP("סיכום פרק 12: מפלגות, זרמים ומתנגדים - משימת סיכום",grade_report!$3:$100,ROWS($A$4:R41),0) ->  | AS38: =HLOOKUP("הפנמה 6: מפלגות, זרמים ומתנגדים - משימת הפנמה",grade_report!$3:$100,ROWS($A$4:AM41),0) ->  | AT38: =HLOOKUP("העשרה 6: מפלגות, זרמים ומתנגדים - משימת העשרה",grade_report!$3:$100,ROWS($A$4:AN41),0) ->  | AV38: =HLOOKUP("סיכום קורס-ש' סגורות",grade_report!$3:$100,ROWS($A$4:AP41),0) ->  | AW38: =HLOOKUP("סיכום קורס-ש' פתוחות",grade_report!$3:$100,ROWS($A$4:AQ41),0) ->  | AX38: =HLOOKUP("תלמידאות",grade_report!$3:$100,ROWS($A$4:AR41),0) -> 0
A39: =grade_report!C41 -> 0 | B39: =grade_report!B41 -> 0 | D39: =VLOOKUP(A39,grade_report!C:D,2,FALSE) ->  | E39: =HLOOKUP("שיעור לתלמיד 1: נאורוּת - שיעור לתלמיד",grade_report!$3:$100,ROWS($A$4:A42),0) -> 0 | F39: =HLOOKUP("סיכום פרק 1: נאורוּת - משימת סיכום",grade_report!$3:$100,ROWS($A$4:A42),0) -> 0 | G39: =HLOOKUP("הפנמה 1: נאורוּת - משימת הפנמה",grade_report!$3:$100,ROWS($A$4:B42),0) -> 0 | H39: =HLOOKUP("העשרה 1: נאורוּת - משימת העשרה",grade_report!$3:$100,ROWS($A$4:C42),0) -> 0 | J39: =HLOOKUP("שיעור לתלמיד 2: מלחמת העולם הראשונה - שיעור לתלמיד",grade_report!$3:$100,ROWS($A$4:E42),0) ->  | K39: =HLOOKUP("סיכום פרק 2: מלחמת העולם הראשונה - משימת סיכום",grade_report!$3:$100,ROWS($A$4:E42),0) ->  | L39: =HLOOKUP("הפנמה 2: מלחמת העולם הראשונה - משימת הפנמה",grade_report!$3:$100,ROWS($A$4:F42),0) ->  | M39: =HLOOKUP("העשרה 2: מלחמת העולם הראשונה - משימת העשרה - רשות: מלחמת החפירות",grade_report!$3:$100,ROWS($A$4:G42),0) ->  | O39: =HLOOKUP("שיעור לתלמיד 3: השינויים במעמד המשפטי של יהודי צרפת משלהי המאה ה-18 עד ראשית המאה ה-20 - תת פרק לבחירה",grade_report!$3:$100,ROWS($A$4:J42),0) ->  | P39: =HLOOKUP("סיכום פרק 3: השינויים במעמד המשפטי של יהודי צרפת משלהי המאה ה-18 עד ראשית המאה ה-20 -משימת סיכום",grade_report!$3:$100,ROWS($A$4:J42),0) ->  | Q39: =HLOOKUP("שיעור לתלמיד 4: השינויים במעמד המשפטי של יהודי גרמניה משלהי המאה ה-18 עד ראשית המאה ה-20 - תת פרק לבחירה",grade_report!$3:$100,ROWS($A$4:O42),0) ->  | R39: =HLOOKUP("סיכום פרק 4: השינויים במעמד המשפטי של יהודי גרמניה משלהי המאה ה-18 עד ראשית המאה ה-20 - תת פרק לבחירה -משימת סיכום",grade_report!$3:$100,ROWS($A$4:O42),0) ->  | S39: =HLOOKUP("שיעור לתלמיד 5: השינויים במעמד המשפטי של היהודים בארצות האסלאם - תהליך האמנציפציה באלג'יריה - תת פרק חובה",grade_report!$3:$100,ROWS($A$4:A42),0) ->  | T39: =HLOOKUP("סיכום פרק 5: השינויים במעמד המשפטי של היהודים בארצות האסלאם - תהליך האמנציפציה באלג'יריה - משימת סיכום",grade_report!$3:$100,ROWS($A$4:A42),0) ->  | U39: =HLOOKUP("שיעור לתלמיד 6: השלכות השינויים במעמד היהודים על החברה היהודית - תת פרק חובה",grade_report!$3:$100,ROWS($A$4:D42),0) ->  | V39: =HLOOKUP("סיכום פרק 6: השפעת הליברליזם על תמורות בחברה היהודית - משימת סיכום - סיכום הסוגיה לכל הפרק",grade_report!$3:$100,ROWS($A$4:A42),0) ->  | W39: =HLOOKUP("הפנמה 3: מעמד היהודים משלהי המאה ה-18 ועד תחילת המאה ה-20 - משימת הפנמה לכל הפרק",grade_report!$3:$100,ROWS($A$4:Q42),0) ->  | X39: =HLOOKUP("העשרה 3: מעמד היהודים משלהי המאה ה-18 ועד תחילת המאה ה-20 - משימת העשרה לכל הפרק",grade_report!$3:$100,ROWS($A$4:R42),0) ->  | Z39: =HLOOKUP("שיעור לתלמיד 7: השפעת הנאורות על החברה היהודית - תת פרק חובה",grade_report!$3:$100,ROWS($A$4:A42),0) ->  | AA39: =HLOOKUP("סיכום פרק 7: השפעת הנאורות על החברה היהודית - תת פרק חובה - משימת סיכום",grade_report!$3:$100,ROWS($A$4:A42),0) ->  | AC39: =HLOOKUP("שיעור לתלמיד 8: ניאו אורתודוקסיה - חיוב המודרנה תוך שמירה קפדנית על מצוות הדת - שיעור לתלמיד",grade_report!$3:$100,ROWS($A$4:D42),0) ->  | AD39: =HLOOKUP("סיכום פרק 8: ניאו אורתודוקסיה - חיוב המודרנה תוך שמירה קפדנית על מצוות הדת - משימת סיכום",grade_report!$3:$100,ROWS($A$4:D42),0) ->  | AE39: =HLOOKUP("סיכום פרק 9: תנועות וזרמים יהודיים - משימת סיכום לכל הפרק",grade_report!$3:$100,ROWS($A$4:E42),0) ->  | AG39: =HLOOKUP("שיעור לתלמיד 9: מבשרי הציונות וחיבת ציון - שיעור לתלמיד",grade_report!$3:$100,ROWS($A$4:H42),0) ->  | AH39: =HLOOKUP("סיכום פרק 10: מבשרי הציונות וחיבת ציון - משימת סיכום",grade_report!$3:$100,ROWS($A$4:H42),0) ->  | AI39: =HLOOKUP("הפנמה 4: מבשרי הציונות וחיבת ציון - משימת הפנמה",grade_report!$3:$100,ROWS($A$4:AC42),0) ->  | AJ39: =HLOOKUP("העשרה 4: מבשרי הציונות וחיבת ציון - משימת העשרה",grade_report!$3:$100,ROWS($A$4:AD42),0) ->  | AL39: =HLOOKUP("שיעור לתלמיד 10: התנועה הציונית והרצל - שיעור לתלמיד",grade_report!$3:$100,ROWS($A$4:M42),0) ->  | AM39: =HLOOKUP("סיכום פרק 11: התנועה הציונית והרצל - משימת סיכום - סוף ימיו של הרצל",grade_report!$3:$100,ROWS($A$4:M42),0) ->  | AN39: =HLOOKUP("הפנמה 5: התנועה הציונית והרצל - משימת הפנמה",grade_report!$3:$100,ROWS($A$4:AH42),0) ->  | AO39: =HLOOKUP("העשרה 5: התנועה הציונית והרצל - משימת העשרה",grade_report!$3:$100,ROWS($A$4:AI42),0) ->  | AQ39: =HLOOKUP("שיעור לתלמיד 11: מפלגות, זרמים ומתנגדים - שיעור לתלמיד",grade_report!$3:$100,ROWS($A$4:R42),0) ->  | AR39: =HLOOKUP("סיכום פרק 12: מפלגות, זרמים ומתנגדים - משימת סיכום",grade_report!$3:$100,ROWS($A$4:R42),0) ->  | AS39: =HLOOKUP("הפנמה 6: מפלגות, זרמים ומתנגדים - משימת הפנמה",grade_report!$3:$100,ROWS($A$4:AM42),0) ->  | AT39: =HLOOKUP("העשרה 6: מפלגות, זרמים ומתנגדים - משימת העשרה",grade_report!$3:$100,ROWS($A$4:AN42),0) ->  | AV39: =HLOOKUP("סיכום קורס-ש' סגורות",grade_report!$3:$100,ROWS($A$4:AP42),0) ->  | AW39: =HLOOKUP("סיכום קורס-ש' פתוחות",grade_report!$3:$100,ROWS($A$4:AQ42),0) ->  | AX39: =HLOOKUP("תלמידאות",grade_report!$3:$100,ROWS($A$4:AR42),0) -> 0
A40: =grade_report!C42 -> 0 | B40: =grade_report!B42 -> 0 | D40: =VLOOKUP(A40,grade_report!C:D,2,FALSE) ->  | E40: =HLOOKUP("שיעור לתלמיד 1: נאורוּת - שיעור לתלמיד",grade_report!$3:$100,ROWS($A$4:A43),0) -> 0 | F40: =HLOOKUP("סיכום פרק 1: נאורוּת - משימת סיכום",grade_report!$3:$100,ROWS($A$4:A43),0) -> 0 | G40: =HLOOKUP("הפנמה 1: נאורוּת - משימת הפנמה",grade_report!$3:$100,ROWS($A$4:B43),0) -> 0 | H40: =HLOOKUP("העשרה 1: נאורוּת - משימת העשרה",grade_report!$3:$100,ROWS($A$4:C43),0) -> 0 | J40: =HLOOKUP("שיעור לתלמיד 2: מלחמת העולם הראשונה - שיעור לתלמיד",grade_report!$3:$100,ROWS($A$4:E43),0) ->  | K40: =HLOOKUP("סיכום פרק 2: מלחמת העולם הראשונה - משימת סיכום",grade_report!$3:$100,ROWS($A$4:E43),0) ->  | L40: =HLOOKUP("הפנמה 2: מלחמת העולם הראשונה - משימת הפנמה",grade_report!$3:$100,ROWS($A$4:F43),0) ->  | M40: =HLOOKUP("העשרה 2: מלחמת העולם הראשונה - משימת העשרה - רשות: מלחמת החפירות",grade_report!$3:$100,ROWS($A$4:G43),0) ->  | O40: =HLOOKUP("שיעור לתלמיד 3: השינויים במעמד המשפטי של יהודי צרפת משלהי המאה ה-18 עד ראשית המאה ה-20 - תת פרק לבחירה",grade_report!$3:$100,ROWS($A$4:J43),0) ->  | P40: =HLOOKUP("סיכום פרק 3: השינויים במעמד המשפטי של יהודי צרפת משלהי המאה ה-18 עד ראשית המאה ה-20 -משימת סיכום",grade_report!$3:$100,ROWS($A$4:J43),0) ->  | Q40: =HLOOKUP("שיעור לתלמיד 4: השינויים במעמד המשפטי של יהודי גרמניה משלהי המאה ה-18 עד ראשית המאה ה-20 - תת פרק לבחירה",grade_report!$3:$100,ROWS($A$4:O43),0) ->  | R40: =HLOOKUP("סיכום פרק 4: השינויים במעמד המשפטי של יהודי גרמניה משלהי המאה ה-18 עד ראשית המאה ה-20 - תת פרק לבחירה -משימת סיכום",grade_report!$3:$100,ROWS($A$4:O43),0) ->  | S40: =HLOOKUP("שיעור לתלמיד 5: השינויים במעמד המשפטי של היהודים בארצות האסלאם - תהליך האמנציפציה באלג'יריה - תת פרק חובה",grade_report!$3:$100,ROWS($A$4:A43),0) ->  | T40: =HLOOKUP("סיכום פרק 5: השינויים במעמד המשפטי של היהודים בארצות האסלאם - תהליך האמנציפציה באלג'יריה - משימת סיכום",grade_report!$3:$100,ROWS($A$4:A43),0) ->  | U40: =HLOOKUP("שיעור לתלמיד 6: השלכות השינויים במעמד היהודים על החברה היהודית - תת פרק חובה",grade_report!$3:$100,ROWS($A$4:D43),0) ->  | V40: =HLOOKUP("סיכום פרק 6: השפעת הליברליזם על תמורות בחברה היהודית - משימת סיכום - סיכום הסוגיה לכל הפרק",grade_report!$3:$100,ROWS($A$4:A43),0) ->  | W40: =HLOOKUP("הפנמה 3: מעמד היהודים משלהי המאה ה-18 ועד תחילת המאה ה-20 - משימת הפנמה לכל הפרק",grade_report!$3:$100,ROWS($A$4:Q43),0) ->  | X40: =HLOOKUP("העשרה 3: מעמד היהודים משלהי המאה ה-18 ועד תחילת המאה ה-20 - משימת העשרה לכל הפרק",grade_report!$3:$100,ROWS($A$4:R43),0) ->  | Z40: =HLOOKUP("שיעור לתלמיד 7: השפעת הנאורות על החברה היהודית - תת פרק חובה",grade_report!$3:$100,ROWS($A$4:A43),0) ->  | AA40: =HLOOKUP("סיכום פרק 7: השפעת הנאורות על החברה היהודית - תת פרק חובה - משימת סיכום",grade_report!$3:$100,ROWS($A$4:A43),0) ->  | AC40: =HLOOKUP("שיעור לתלמיד 8: ניאו אורתודוקסיה - חיוב המודרנה תוך שמירה קפדנית על מצוות הדת - שיעור לתלמיד",grade_report!$3:$100,ROWS($A$4:D43),0) ->  | AD40: =HLOOKUP("סיכום פרק 8: ניאו אורתודוקסיה - חיוב המודרנה תוך שמירה קפדנית על מצוות הדת - משימת סיכום",grade_report!$3:$100,ROWS($A$4:D43),0) ->  | AE40: =HLOOKUP("סיכום פרק 9: תנועות וזרמים יהודיים - משימת סיכום לכל הפרק",grade_report!$3:$100,ROWS($A$4:E43),0) ->  | AG40: =HLOOKUP("שיעור לתלמיד 9: מבשרי הציונות וחיבת ציון - שיעור לתלמיד",grade_report!$3:$100,ROWS($A$4:H43),0) ->  | AH40: =HLOOKUP("סיכום פרק 10: מבשרי הציונות וחיבת ציון - משימת סיכום",grade_report!$3:$100,ROWS($A$4:H43),0) ->  | AI40: =HLOOKUP("הפנמה 4: מבשרי הציונות וחיבת ציון - משימת הפנמה",grade_report!$3:$100,ROWS($A$4:AC43),0) ->  | AJ40: =HLOOKUP("העשרה 4: מבשרי הציונות וחיבת ציון - משימת העשרה",grade_report!$3:$100,ROWS($A$4:AD43),0) ->  | AL40: =HLOOKUP("שיעור לתלמיד 10: התנועה הציונית והרצל - שיעור לתלמיד",grade_report!$3:$100,ROWS($A$4:M43),0) ->  | AM40: =HLOOKUP("סיכום פרק 11: התנועה הציונית והרצל - משימת סיכום - סוף ימיו של הרצל",grade_report!$3:$100,ROWS($A$4:M43),0) ->  | AN40: =HLOOKUP("הפנמה 5: התנועה הציונית והרצל - משימת הפנמה",grade_report!$3:$100,ROWS($A$4:AH43),0) ->  | AO40: =HLOOKUP("העשרה 5: התנועה הציונית והרצל - משימת העשרה",grade_report!$3:$100,ROWS($A$4:AI43),0) ->  | AQ40: =HLOOKUP("שיעור לתלמיד 11: מפלגות, זרמים ומתנגדים - שיעור לתלמיד",grade_report!$3:$100,ROWS($A$4:R43),0) ->  | AR40: =HLOOKUP("סיכום פרק 12: מפלגות, זרמים ומתנגדים - משימת סיכום",grade_report!$3:$100,ROWS($A$4:R43),0) ->  | AS40: =HLOOKUP("הפנמה 6: מפלגות, זרמים ומתנגדים - משימת הפנמה",grade_report!$3:$100,ROWS($A$4:AM43),0) ->  | AT40: =HLOOKUP("העשרה 6: מפלגות, זרמים ומתנגדים - משימת העשרה",grade_report!$3:$100,ROWS($A$4:AN43),0) ->  | AV40: =HLOOKUP("סיכום קורס-ש' סגורות",grade_report!$3:$100,ROWS($A$4:AP43),0) ->  | AW40: =HLOOKUP("סיכום קורס-ש' פתוחות",grade_report!$3:$100,ROWS($A$4:AQ43),0) ->  | AX40: =HLOOKUP("תלמידאות",grade_report!$3:$100,ROWS($A$4:AR43),0) -> 0
A41: =grade_report!C43 -> 0 | B41: =grade_report!B43 -> 0 | D41: =VLOOKUP(A41,grade_report!C:D,2,FALSE) ->  | E41: =HLOOKUP("שיעור לתלמיד 1: נאורוּת - שיעור לתלמיד",grade_report!$3:$100,ROWS($A$4:A44),0) -> 0 | F41: =HLOOKUP("סיכום פרק 1: נאורוּת - משימת סיכום",grade_report!$3:$100,ROWS($A$4:A44),0) -> 0 | G41: =HLOOKUP("הפנמה 1: נאורוּת - משימת הפנמה",grade_report!$3:$100,ROWS($A$4:B44),0) -> 0 | H41: =HLOOKUP("העשרה 1: נאורוּת - משימת העשרה",grade_report!$3:$100,ROWS($A$4:C44),0) -> 0 | J41: =HLOOKUP("שיעור לתלמיד 2: מלחמת העולם הראשונה - שיעור לתלמיד",grade_report!$3:$100,ROWS($A$4:E44),0) ->  | K41: =HLOOKUP("סיכום פרק 2: מלחמת העולם הראשונה - משימת סיכום",grade_report!$3:$100,ROWS($A$4:E44),0) ->  | L41: =HLOOKUP("הפנמה 2: מלחמת העולם הראשונה - משימת הפנמה",grade_report!$3:$100,ROWS($A$4:F44),0) ->  | M41: =HLOOKUP("העשרה 2: מלחמת העולם הראשונה - משימת העשרה - רשות: מלחמת החפירות",grade_report!$3:$100,ROWS($A$4:G44),0) ->  | O41: =HLOOKUP("שיעור לתלמיד 3: השינויים במעמד המשפטי של יהודי צרפת משלהי המאה ה-18 עד ראשית המאה ה-20 - תת פרק לבחירה",grade_report!$3:$100,ROWS($A$4:J44),0) ->  | P41: =HLOOKUP("סיכום פרק 3: השינויים במעמד המשפטי של יהודי צרפת משלהי המאה ה-18 עד ראשית המאה ה-20 -משימת סיכום",grade_report!$3:$100,ROWS($A$4:J44),0) ->  | Q41: =HLOOKUP("שיעור לתלמיד 4: השינויים במעמד המשפטי של יהודי גרמניה משלהי המאה ה-18 עד ראשית המאה ה-20 - תת פרק לבחירה",grade_report!$3:$100,ROWS($A$4:O44),0) ->  | R41: =HLOOKUP("סיכום פרק 4: השינויים במעמד המשפטי של יהודי גרמניה משלהי המאה ה-18 עד ראשית המאה ה-20 - תת פרק לבחירה -משימת סיכום",grade_report!$3:$100,ROWS($A$4:O44),0) ->  | S41: =HLOOKUP("שיעור לתלמיד 5: השינויים במעמד המשפטי של היהודים בארצות האסלאם - תהליך האמנציפציה באלג'יריה - תת פרק חובה",grade_report!$3:$100,ROWS($A$4:A44),0) ->  | T41: =HLOOKUP("סיכום פרק 5: השינויים במעמד המשפטי של היהודים בארצות האסלאם - תהליך האמנציפציה באלג'יריה - משימת סיכום",grade_report!$3:$100,ROWS($A$4:A44),0) ->  | U41: =HLOOKUP("שיעור לתלמיד 6: השלכות השינויים במעמד היהודים על החברה היהודית - תת פרק חובה",grade_report!$3:$100,ROWS($A$4:D44),0) ->  | V41: =HLOOKUP("סיכום פרק 6: השפעת הליברליזם על תמורות בחברה היהודית - משימת סיכום - סיכום הסוגיה לכל הפרק",grade_report!$3:$100,ROWS($A$4:A44),0) ->  | W41: =HLOOKUP("הפנמה 3: מעמד היהודים משלהי המאה ה-18 ועד תחילת המאה ה-20 - משימת הפנמה לכל הפרק",grade_report!$3:$100,ROWS($A$4:Q44),0) ->  | X41: =HLOOKUP("העשרה 3: מעמד היהודים משלהי המאה ה-18 ועד תחילת המאה ה-20 - משימת העשרה לכל הפרק",grade_report!$3:$100,ROWS($A$4:R44),0) ->  | Z41: =HLOOKUP("שיעור לתלמיד 7: השפעת הנאורות על החברה היהודית - תת פרק חובה",grade_report!$3:$100,ROWS($A$4:A44),0) ->  | AA41: =HLOOKUP("סיכום פרק 7: השפעת הנאורות על החברה היהודית - תת פרק חובה - משימת סיכום",grade_report!$3:$100,ROWS($A$4:A44),0) ->  | AC41: =HLOOKUP("שיעור לתלמיד 8: ניאו אורתודוקסיה - חיוב המודרנה תוך שמירה קפדנית על מצוות הדת - שיעור לתלמיד",grade_report!$3:$100,ROWS($A$4:D44),0) ->  | AD41: =HLOOKUP("סיכום פרק 8: ניאו אורתודוקסיה - חיוב המודרנה תוך שמירה קפדנית על מצוות הדת - משימת סיכום",grade_report!$3:$100,ROWS($A$4:D44),0) ->  | AE41: =HLOOKUP("סיכום פרק 9: תנועות וזרמים יהודיים - משימת סיכום לכל הפרק",grade_report!$3:$100,ROWS($A$4:E44),0) ->  | AG41: =HLOOKUP("שיעור לתלמיד 9: מבשרי הציונות וחיבת ציון - שיעור לתלמיד",grade_report!$3:$100,ROWS($A$4:H44),0) ->  | AH41: =HLOOKUP("סיכום פרק 10: מבשרי הציונות וחיבת ציון - משימת סיכום",grade_report!$3:$100,ROWS($A$4:H44),0) ->  | AI41: =HLOOKUP("הפנמה 4: מבשרי הציונות וחיבת ציון - משימת הפנמה",grade_report!$3:$100,ROWS($A$4:AC44),0) ->  | AJ41: =HLOOKUP("העשרה 4: מבשרי הציונות וחיבת ציון - משימת העשרה",grade_report!$3:$100,ROWS($A$4:AD44),0) ->  | AL41: =HLOOKUP("שיעור לתלמיד 10: התנועה הציונית והרצל - שיעור לתלמיד",grade_report!$3:$100,ROWS($A$4:M44),0) ->  | AM41: =HLOOKUP("סיכום פרק 11: התנועה הציונית והרצל - משימת סיכום - סוף ימיו של הרצל",grade_report!$3:$100,ROWS($A$4:M44),0) ->  | AN41: =HLOOKUP("הפנמה 5: התנועה הציונית והרצל - משימת הפנמה",grade_report!$3:$100,ROWS($A$4:AH44),0) ->  | AO41: =HLOOKUP("העשרה 5: התנועה הציונית והרצל - משימת העשרה",grade_report!$3:$100,ROWS($A$4:AI44),0) ->  | AQ41: =HLOOKUP("שיעור לתלמיד 11: מפלגות, זרמים ומתנגדים - שיעור לתלמיד",grade_report!$3:$100,ROWS($A$4:R44),0) ->  | AR41: =HLOOKUP("סיכום פרק 12: מפלגות, זרמים ומתנגדים - משימת סיכום",grade_report!$3:$100,ROWS($A$4:R44),0) ->  | AS41: =HLOOKUP("הפנמה 6: מפלגות, זרמים ומתנגדים - משימת הפנמה",grade_report!$3:$100,ROWS($A$4:AM44),0) ->  | AT41: =HLOOKUP("העשרה 6: מפלגות, זרמים ומתנגדים - משימת העשרה",grade_report!$3:$100,ROWS($A$4:AN44),0) ->  | AV41: =HLOOKUP("סיכום קורס-ש' סגורות",grade_report!$3:$100,ROWS($A$4:AP44),0) ->  | AW41: =HLOOKUP("סיכום קורס-ש' פתוחות",grade_report!$3:$100,ROWS($A$4:AQ44),0) ->  | AX41: =HLOOKUP("תלמידאות",grade_report!$3:$100,ROWS($A$4:AR44),0) -> 0
A42: =grade_report!C44 -> 0 | B42: =grade_report!B44 -> 0 | D42: =VLOOKUP(A42,grade_report!C:D,2,FALSE) ->  | E42: =HLOOKUP("שיעור לתלמיד 1: נאורוּת - שיעור לתלמיד",grade_report!$3:$100,ROWS($A$4:A45),0) -> 0 | F42: =HLOOKUP("סיכום פרק 1: נאורוּת - משימת סיכום",grade_report!$3:$100,ROWS($A$4:A45),0) -> 0 | G42: =HLOOKUP("הפנמה 1: נאורוּת - משימת הפנמה",grade_report!$3:$100,ROWS($A$4:B45),0) -> 0 | H42: =HLOOKUP("העשרה 1: נאורוּת - משימת העשרה",grade_report!$3:$100,ROWS($A$4:C45),0) -> 0 | J42: =HLOOKUP("שיעור לתלמיד 2: מלחמת העולם הראשונה - שיעור לתלמיד",grade_report!$3:$100,ROWS($A$4:E45),0) ->  | K42: =HLOOKUP("סיכום פרק 2: מלחמת העולם הראשונה - משימת סיכום",grade_report!$3:$100,ROWS($A$4:E45),0) ->  | L42: =HLOOKUP("הפנמה 2: מלחמת העולם הראשונה - משימת הפנמה",grade_report!$3:$100,ROWS($A$4:F45),0) ->  | M42: =HLOOKUP("העשרה 2: מלחמת העולם הראשונה - משימת העשרה - רשות: מלחמת החפירות",grade_report!$3:$100,ROWS($A$4:G45),0) ->  | O42: =HLOOKUP("שיעור לתלמיד 3: השינויים במעמד המשפטי של יהודי צרפת משלהי המאה ה-18 עד ראשית המאה ה-20 - תת פרק לבחירה",grade_report!$3:$100,ROWS($A$4:J45),0) ->  | P42: =HLOOKUP("סיכום פרק 3: השינויים במעמד המשפטי של יהודי צרפת משלהי המאה ה-18 עד ראשית המאה ה-20 -משימת סיכום",grade_report!$3:$100,ROWS($A$4:J45),0) ->  | Q42: =HLOOKUP("שיעור לתלמיד 4: השינויים במעמד המשפטי של יהודי גרמניה משלהי המאה ה-18 עד ראשית המאה ה-20 - תת פרק לבחירה",grade_report!$3:$100,ROWS($A$4:O45),0) ->  | R42: =HLOOKUP("סיכום פרק 4: השינויים במעמד המשפטי של יהודי גרמניה משלהי המאה ה-18 עד ראשית המאה ה-20 - תת פרק לבחירה -משימת סיכום",grade_report!$3:$100,ROWS($A$4:O45),0) ->  | S42: =HLOOKUP("שיעור לתלמיד 5: השינויים במעמד המשפטי של היהודים בארצות האסלאם - תהליך האמנציפציה באלג'יריה - תת פרק חובה",grade_report!$3:$100,ROWS($A$4:A45),0) ->  | T42: =HLOOKUP("סיכום פרק 5: השינויים במעמד המשפטי של היהודים בארצות האסלאם - תהליך האמנציפציה באלג'יריה - משימת סיכום",grade_report!$3:$100,ROWS($A$4:A45),0) ->  | U42: =HLOOKUP("שיעור לתלמיד 6: השלכות השינויים במעמד היהודים על החברה היהודית - תת פרק חובה",grade_report!$3:$100,ROWS($A$4:D45),0) ->  | V42: =HLOOKUP("סיכום פרק 6: השפעת הליברליזם על תמורות בחברה היהודית - משימת סיכום - סיכום הסוגיה לכל הפרק",grade_report!$3:$100,ROWS($A$4:A45),0) ->  | W42: =HLOOKUP("הפנמה 3: מעמד היהודים משלהי המאה ה-18 ועד תחילת המאה ה-20 - משימת הפנמה לכל הפרק",grade_report!$3:$100,ROWS($A$4:Q45),0) ->  | X42: =HLOOKUP("העשרה 3: מעמד היהודים משלהי המאה ה-18 ועד תחילת המאה ה-20 - משימת העשרה לכל הפרק",grade_report!$3:$100,ROWS($A$4:R45),0) ->  | Z42: =HLOOKUP("שיעור לתלמיד 7: השפעת הנאורות על החברה היהודית - תת פרק חובה",grade_report!$3:$100,ROWS($A$4:A45),0) ->  | AA42: =HLOOKUP("סיכום פרק 7: השפעת הנאורות על החברה היהודית - תת פרק חובה - משימת סיכום",grade_report!$3:$100,ROWS($A$4:A45),0) ->  | AC42: =HLOOKUP("שיעור לתלמיד 8: ניאו אורתודוקסיה - חיוב המודרנה תוך שמירה קפדנית על מצוות הדת - שיעור לתלמיד",grade_report!$3:$100,ROWS($A$4:D45),0) ->  | AD42: =HLOOKUP("סיכום פרק 8: ניאו אורתודוקסיה - חיוב המודרנה תוך שמירה קפדנית על מצוות הדת - משימת סיכום",grade_report!$3:$100,ROWS($A$4:D45),0) ->  | AE42: =HLOOKUP("סיכום פרק 9: תנועות וזרמים יהודיים - משימת סיכום לכל הפרק",grade_report!$3:$100,ROWS($A$4:E45),0) ->  | AG42: =HLOOKUP("שיעור לתלמיד 9: מבשרי הציונות וחיבת ציון - שיעור לתלמיד",grade_report!$3:$100,ROWS($A$4:H45),0) ->  | AH42: =HLOOKUP("סיכום פרק 10: מבשרי הציונות וחיבת ציון - משימת סיכום",grade_report!$3:$100,ROWS($A$4:H45),0) ->  | AI42: =HLOOKUP("הפנמה 4: מבשרי הציונות וחיבת ציון - משימת הפנמה",grade_report!$3:$100,ROWS($A$4:AC45),0) ->  | AJ42: =HLOOKUP("העשרה 4: מבשרי הציונות וחיבת ציון - משימת העשרה",grade_report!$3:$100,ROWS($A$4:AD45),0) ->  | AL42: =HLOOKUP("שיעור לתלמיד 10: התנועה הציונית והרצל - שיעור לתלמיד",grade_report!$3:$100,ROWS($A$4:M45),0) ->  | AM42: =HLOOKUP("סיכום פרק 11: התנועה הציונית והרצל - משימת סיכום - סוף ימיו של הרצל",grade_report!$3:$100,ROWS($A$4:M45),0) ->  | AN42: =HLOOKUP("הפנמה 5: התנועה הציונית והרצל - משימת הפנמה",grade_report!$3:$100,ROWS($A$4:AH45),0) ->  | AO42: =HLOOKUP("העשרה 5: התנועה הציונית והרצל - משימת העשרה",grade_report!$3:$100,ROWS($A$4:AI45),0) ->  | AQ42: =HLOOKUP("שיעור לתלמיד 11: מפלגות, זרמים ומתנגדים - שיעור לתלמיד",grade_report!$3:$100,ROWS($A$4:R45),0) ->  | AR42: =HLOOKUP("סיכום פרק 12: מפלגות, זרמים ומתנגדים - משימת סיכום",grade_report!$3:$100,ROWS($A$4:R45),0) ->  | AS42: =HLOOKUP("הפנמה 6: מפלגות, זרמים ומתנגדים - משימת הפנמה",grade_report!$3:$100,ROWS($A$4:AM45),0) ->  | AT42: =HLOOKUP("העשרה 6: מפלגות, זרמים ומתנגדים - משימת העשרה",grade_report!$3:$100,ROWS($A$4:AN45),0) ->  | AV42: =HLOOKUP("סיכום קורס-ש' סגורות",grade_report!$3:$100,ROWS($A$4:AP45),0) ->  | AW42: =HLOOKUP("סיכום קורס-ש' פתוחות",grade_report!$3:$100,ROWS($A$4:AQ45),0) ->  | AX42: =HLOOKUP("תלמידאות",grade_report!$3:$100,ROWS($A$4:AR45),0) -> 0
A43: =grade_report!C45 -> 0 | B43: =grade_report!B45 -> 0 | D43: =VLOOKUP(A43,grade_report!C:D,2,FALSE) ->  | E43: =HLOOKUP("שיעור לתלמיד 1: נאורוּת - שיעור לתלמיד",grade_report!$3:$100,ROWS($A$4:A46),0) -> 0 | F43: =HLOOKUP("סיכום פרק 1: נאורוּת - משימת סיכום",grade_report!$3:$100,ROWS($A$4:A46),0) -> 0 | G43: =HLOOKUP("הפנמה 1: נאורוּת - משימת הפנמה",grade_report!$3:$100,ROWS($A$4:B46),0) -> 0 | H43: =HLOOKUP("העשרה 1: נאורוּת - משימת העשרה",grade_report!$3:$100,ROWS($A$4:C46),0) -> 0 | J43: =HLOOKUP("שיעור לתלמיד 2: מלחמת העולם הראשונה - שיעור לתלמיד",grade_report!$3:$100,ROWS($A$4:E46),0) ->  | K43: =HLOOKUP("סיכום פרק 2: מלחמת העולם הראשונה - משימת סיכום",grade_report!$3:$100,ROWS($A$4:E46),0) ->  | L43: =HLOOKUP("הפנמה 2: מלחמת העולם הראשונה - משימת הפנמה",grade_report!$3:$100,ROWS($A$4:F46),0) ->  | M43: =HLOOKUP("העשרה 2: מלחמת העולם הראשונה - משימת העשרה - רשות: מלחמת החפירות",grade_report!$3:$100,ROWS($A$4:G46),0) ->  | O43: =HLOOKUP("שיעור לתלמיד 3: השינויים במעמד המשפטי של יהודי צרפת משלהי המאה ה-18 עד ראשית המאה ה-20 - תת פרק לבחירה",grade_report!$3:$100,ROWS($A$4:J46),0) ->  | P43: =HLOOKUP("סיכום פרק 3: השינויים במעמד המשפטי של יהודי צרפת משלהי המאה ה-18 עד ראשית המאה ה-20 -משימת סיכום",grade_report!$3:$100,ROWS($A$4:J46),0) ->  | Q43: =HLOOKUP("שיעור לתלמיד 4: השינויים במעמד המשפטי של יהודי גרמניה משלהי המאה ה-18 עד ראשית המאה ה-20 - תת פרק לבחירה",grade_report!$3:$100,ROWS($A$4:O46),0) ->  | R43: =HLOOKUP("סיכום פרק 4: השינויים במעמד המשפטי של יהודי גרמניה משלהי המאה ה-18 עד ראשית המאה ה-20 - תת פרק לבחירה -משימת סיכום",grade_report!$3:$100,ROWS($A$4:O46),0) ->  | S43: =HLOOKUP("שיעור לתלמיד 5: השינויים במעמד המשפטי של היהודים בארצות האסלאם - תהליך האמנציפציה באלג'יריה - תת פרק חובה",grade_report!$3:$100,ROWS($A$4:A46),0) ->  | T43: =HLOOKUP("סיכום פרק 5: השינויים במעמד המשפטי של היהודים בארצות האסלאם - תהליך האמנציפציה באלג'יריה - משימת סיכום",grade_report!$3:$100,ROWS($A$4:A46),0) ->  | U43: =HLOOKUP("שיעור לתלמיד 6: השלכות השינויים במעמד היהודים על החברה היהודית - תת פרק חובה",grade_report!$3:$100,ROWS($A$4:D46),0) ->  | V43: =HLOOKUP("סיכום פרק 6: השפעת הליברליזם על תמורות בחברה היהודית - משימת סיכום - סיכום הסוגיה לכל הפרק",grade_report!$3:$100,ROWS($A$4:A46),0) ->  | W43: =HLOOKUP("הפנמה 3: מעמד היהודים משלהי המאה ה-18 ועד תחילת המאה ה-20 - משימת הפנמה לכל הפרק",grade_report!$3:$100,ROWS($A$4:Q46),0) ->  | X43: =HLOOKUP("העשרה 3: מעמד היהודים משלהי המאה ה-18 ועד תחילת המאה ה-20 - משימת העשרה לכל הפרק",grade_report!$3:$100,ROWS($A$4:R46),0) ->  | Z43: =HLOOKUP("שיעור לתלמיד 7: השפעת הנאורות על החברה היהודית - תת פרק חובה",grade_report!$3:$100,ROWS($A$4:A46),0) ->  | AA43: =HLOOKUP("סיכום פרק 7: השפעת הנאורות על החברה היהודית - תת פרק חובה - משימת סיכום",grade_report!$3:$100,ROWS($A$4:A46),0) ->  | AC43: =HLOOKUP("שיעור לתלמיד 8: ניאו אורתודוקסיה - חיוב המודרנה תוך שמירה קפדנית על מצוות הדת - שיעור לתלמיד",grade_report!$3:$100,ROWS($A$4:D46),0) ->  | AD43: =HLOOKUP("סיכום פרק 8: ניאו אורתודוקסיה - חיוב המודרנה תוך שמירה קפדנית על מצוות הדת - משימת סיכום",grade_report!$3:$100,ROWS($A$4:D46),0) ->  | AE43: =HLOOKUP("סיכום פרק 9: תנועות וזרמים יהודיים - משימת סיכום לכל הפרק",grade_report!$3:$100,ROWS($A$4:E46),0) ->  | AG43: =HLOOKUP("שיעור לתלמיד 9: מבשרי הציונות וחיבת ציון - שיעור לתלמיד",grade_report!$3:$100,ROWS($A$4:H46),0) ->  | AH43: =HLOOKUP("סיכום פרק 10: מבשרי הציונות וחיבת ציון - משימת סיכום",grade_report!$3:$100,ROWS($A$4:H46),0) ->  | AI43: =HLOOKUP("הפנמה 4: מבשרי הציונות וחיבת ציון - משימת הפנמה",grade_report!$3:$100,ROWS($A$4:AC46),0) ->  | AJ43: =HLOOKUP("העשרה 4: מבשרי הציונות וחיבת ציון - משימת העשרה",grade_report!$3:$100,ROWS($A$4:AD46),0) ->  | AL43: =HLOOKUP("שיעור לתלמיד 10: התנועה הציונית והרצל - שיעור לתלמיד",grade_report!$3:$100,ROWS($A$4:M46),0) ->  | AM43: =HLOOKUP("סיכום פרק 11: התנועה הציונית והרצל - משימת סיכום - סוף ימיו של הרצל",grade_report!$3:$100,ROWS($A$4:M46),0) ->  | AN43: =HLOOKUP("הפנמה 5: התנועה הציונית והרצל - משימת הפנמה",grade_report!$3:$100,ROWS($A$4:AH46),0) ->  | AO43: =HLOOKUP("העשרה 5: התנועה הציונית והרצל - משימת העשרה",grade_report!$3:$100,ROWS($A$4:AI46),0) ->  | AQ43: =HLOOKUP("שיעור לתלמיד 11: מפלגות, זרמים ומתנגדים - שיעור לתלמיד",grade_report!$3:$100,ROWS($A$4:R46),0) ->  | AR43: =HLOOKUP("סיכום פרק 12: מפלגות, זרמים ומתנגדים - משימת סיכום",grade_report!$3:$100,ROWS($A$4:R46),0) ->  | AS43: =HLOOKUP("הפנמה 6: מפלגות, זרמים ומתנגדים - משימת הפנמה",grade_report!$3:$100,ROWS($A$4:AM46),0) ->  | AT43: =HLOOKUP("העשרה 6: מפלגות, זרמים ומתנגדים - משימת העשרה",grade_report!$3:$100,ROWS($A$4:AN46),0) ->  | AV43: =HLOOKUP("סיכום קורס-ש' סגורות",grade_report!$3:$100,ROWS($A$4:AP46),0) ->  | AW43: =HLOOKUP("סיכום קורס-ש' פתוחות",grade_report!$3:$100,ROWS($A$4:AQ46),0) ->  | AX43: =HLOOKUP("תלמידאות",grade_report!$3:$100,ROWS($A$4:AR46),0) -> 0
A44: =grade_report!C46 -> 0 | B44: =grade_report!B46 -> 0 | D44: =VLOOKUP(A44,grade_report!C:D,2,FALSE) ->  | E44: =HLOOKUP("שיעור לתלמיד 1: נאורוּת - שיעור לתלמיד",grade_report!$3:$100,ROWS($A$4:A47),0) -> 0 | F44: =HLOOKUP("סיכום פרק 1: נאורוּת - משימת סיכום",grade_report!$3:$100,ROWS($A$4:A47),0) -> 0 | G44: =HLOOKUP("הפנמה 1: נאורוּת - משימת הפנמה",grade_report!$3:$100,ROWS($A$4:B47),0) -> 0 | H44: =HLOOKUP("העשרה 1: נאורוּת - משימת העשרה",grade_report!$3:$100,ROWS($A$4:C47),0) -> 0 | J44: =HLOOKUP("שיעור לתלמיד 2: מלחמת העולם הראשונה - שיעור לתלמיד",grade_report!$3:$100,ROWS($A$4:E47),0) ->  | K44: =HLOOKUP("סיכום פרק 2: מלחמת העולם הראשונה - משימת סיכום",grade_report!$3:$100,ROWS($A$4:E47),0) ->  | L44: =HLOOKUP("הפנמה 2: מלחמת העולם הראשונה - משימת הפנמה",grade_report!$3:$100,ROWS($A$4:F47),0) ->  | M44: =HLOOKUP("העשרה 2: מלחמת העולם הראשונה - משימת העשרה - רשות: מלחמת החפירות",grade_report!$3:$100,ROWS($A$4:G47),0) ->  | O44: =HLOOKUP("שיעור לתלמיד 3: השינויים במעמד המשפטי של יהודי צרפת משלהי המאה ה-18 עד ראשית המאה ה-20 - תת פרק לבחירה",grade_report!$3:$100,ROWS($A$4:J47),0) ->  | P44: =HLOOKUP("סיכום פרק 3: השינויים במעמד המשפטי של יהודי צרפת משלהי המאה ה-18 עד ראשית המאה ה-20 -משימת סיכום",grade_report!$3:$100,ROWS($A$4:J47),0) ->  | Q44: =HLOOKUP("שיעור לתלמיד 4: השינויים במעמד המשפטי של יהודי גרמניה משלהי המאה ה-18 עד ראשית המאה ה-20 - תת פרק לבחירה",grade_report!$3:$100,ROWS($A$4:O47),0) ->  | R44: =HLOOKUP("סיכום פרק 4: השינויים במעמד המשפטי של יהודי גרמניה משלהי המאה ה-18 עד ראשית המאה ה-20 - תת פרק לבחירה -משימת סיכום",grade_report!$3:$100,ROWS($A$4:O47),0) ->  | S44: =HLOOKUP("שיעור לתלמיד 5: השינויים במעמד המשפטי של היהודים בארצות האסלאם - תהליך האמנציפציה באלג'יריה - תת פרק חובה",grade_report!$3:$100,ROWS($A$4:A47),0) ->  | T44: =HLOOKUP("סיכום פרק 5: השינויים במעמד המשפטי של היהודים בארצות האסלאם - תהליך האמנציפציה באלג'יריה - משימת סיכום",grade_report!$3:$100,ROWS($A$4:A47),0) ->  | U44: =HLOOKUP("שיעור לתלמיד 6: השלכות השינויים במעמד היהודים על החברה היהודית - תת פרק חובה",grade_report!$3:$100,ROWS($A$4:D47),0) ->  | V44: =HLOOKUP("סיכום פרק 6: השפעת הליברליזם על תמורות בחברה היהודית - משימת סיכום - סיכום הסוגיה לכל הפרק",grade_report!$3:$100,ROWS($A$4:A47),0) ->  | W44: =HLOOKUP("הפנמה 3: מעמד היהודים משלהי המאה ה-18 ועד תחילת המאה ה-20 - משימת הפנמה לכל הפרק",grade_report!$3:$100,ROWS($A$4:Q47),0) ->  | X44: =HLOOKUP("העשרה 3: מעמד היהודים משלהי המאה ה-18 ועד תחילת המאה ה-20 - משימת העשרה לכל הפרק",grade_report!$3:$100,ROWS($A$4:R47),0) ->  | Z44: =HLOOKUP("שיעור לתלמיד 7: השפעת הנאורות על החברה היהודית - תת פרק חובה",grade_report!$3:$100,ROWS($A$4:A47),0) ->  | AA44: =HLOOKUP("סיכום פרק 7: השפעת הנאורות על החברה היהודית - תת פרק חובה - משימת סיכום",grade_report!$3:$100,ROWS($A$4:A47),0) ->  | AC44: =HLOOKUP("שיעור לתלמיד 8: ניאו אורתודוקסיה - חיוב המודרנה תוך שמירה קפדנית על מצוות הדת - שיעור לתלמיד",grade_report!$3:$100,ROWS($A$4:D47),0) ->  | AD44: =HLOOKUP("סיכום פרק 8: ניאו אורתודוקסיה - חיוב המודרנה תוך שמירה קפדנית על מצוות הדת - משימת סיכום",grade_report!$3:$100,ROWS($A$4:D47),0) ->  | AE44: =HLOOKUP("סיכום פרק 9: תנועות וזרמים יהודיים - משימת סיכום לכל הפרק",grade_report!$3:$100,ROWS($A$4:E47),0) ->  | AG44: =HLOOKUP("שיעור לתלמיד 9: מבשרי הציונות וחיבת ציון - שיעור לתלמיד",grade_report!$3:$100,ROWS($A$4:H47),0) ->  | AH44: =HLOOKUP("סיכום פרק 10: מבשרי הציונות וחיבת ציון - משימת סיכום",grade_report!$3:$100,ROWS($A$4:H47),0) ->  | AI44: =HLOOKUP("הפנמה 4: מבשרי הציונות וחיבת ציון - משימת הפנמה",grade_report!$3:$100,ROWS($A$4:AC47),0) ->  | AJ44: =HLOOKUP("העשרה 4: מבשרי הציונות וחיבת ציון - משימת העשרה",grade_report!$3:$100,ROWS($A$4:AD47),0) ->  | AL44: =HLOOKUP("שיעור לתלמיד 10: התנועה הציונית והרצל - שיעור לתלמיד",grade_report!$3:$100,ROWS($A$4:M47),0) ->  | AM44: =HLOOKUP("סיכום פרק 11: התנועה הציונית והרצל - משימת סיכום - סוף ימיו של הרצל",grade_report!$3:$100,ROWS($A$4:M47),0) ->  | AN44: =HLOOKUP("הפנמה 5: התנועה הציונית והרצל - משימת הפנמה",grade_report!$3:$100,ROWS($A$4:AH47),0) ->  | AO44: =HLOOKUP("העשרה 5: התנועה הציונית והרצל - משימת העשרה",grade_report!$3:$100,ROWS($A$4:AI47),0) ->  | AQ44: =HLOOKUP("שיעור לתלמיד 11: מפלגות, זרמים ומתנגדים - שיעור לתלמיד",grade_report!$3:$100,ROWS($A$4:R47),0) ->  | AR44: =HLOOKUP("סיכום פרק 12: מפלגות, זרמים ומתנגדים - משימת סיכום",grade_report!$3:$100,ROWS($A$4:R47),0) ->  | AS44: =HLOOKUP("הפנמה 6: מפלגות, זרמים ומתנגדים - משימת הפנמה",grade_report!$3:$100,ROWS($A$4:AM47),0) ->  | AT44: =HLOOKUP("העשרה 6: מפלגות, זרמים ומתנגדים - משימת העשרה",grade_report!$3:$100,ROWS($A$4:AN47),0) ->  | AV44: =HLOOKUP("סיכום קורס-ש' סגורות",grade_report!$3:$100,ROWS($A$4:AP47),0) ->  | AW44: =HLOOKUP("סיכום קורס-ש' פתוחות",grade_report!$3:$100,ROWS($A$4:AQ47),0) ->  | AX44: =HLOOKUP("תלמידאות",grade_report!$3:$100,ROWS($A$4:AR47),0) -> 0
A45: =grade_report!C47 -> 0 | B45: =grade_report!B47 -> 0 | D45: =VLOOKUP(A45,grade_report!C:D,2,FALSE) ->  | E45: =HLOOKUP("שיעור לתלמיד 1: נאורוּת - שיעור לתלמיד",grade_report!$3:$100,ROWS($A$4:A48),0) -> 0 | F45: =HLOOKUP("סיכום פרק 1: נאורוּת - משימת סיכום",grade_report!$3:$100,ROWS($A$4:A48),0) -> 0 | G45: =HLOOKUP("הפנמה 1: נאורוּת - משימת הפנמה",grade_report!$3:$100,ROWS($A$4:B48),0) -> 0 | H45: =HLOOKUP("העשרה 1: נאורוּת - משימת העשרה",grade_report!$3:$100,ROWS($A$4:C48),0) -> 0 | J45: =HLOOKUP("שיעור לתלמיד 2: מלחמת העולם הראשונה - שיעור לתלמיד",grade_report!$3:$100,ROWS($A$4:E48),0) ->  | K45: =HLOOKUP("סיכום פרק 2: מלחמת העולם הראשונה - משימת סיכום",grade_report!$3:$100,ROWS($A$4:E48),0) ->  | L45: =HLOOKUP("הפנמה 2: מלחמת העולם הראשונה - משימת הפנמה",grade_report!$3:$100,ROWS($A$4:F48),0) ->  | M45: =HLOOKUP("העשרה 2: מלחמת העולם הראשונה - משימת העשרה - רשות: מלחמת החפירות",grade_report!$3:$100,ROWS($A$4:G48),0) ->  | O45: =HLOOKUP("שיעור לתלמיד 3: השינויים במעמד המשפטי של יהודי צרפת משלהי המאה ה-18 עד ראשית המאה ה-20 - תת פרק לבחירה",grade_report!$3:$100,ROWS($A$4:J48),0) ->  | P45: =HLOOKUP("סיכום פרק 3: השינויים במעמד המשפטי של יהודי צרפת משלהי המאה ה-18 עד ראשית המאה ה-20 -משימת סיכום",grade_report!$3:$100,ROWS($A$4:J48),0) ->  | Q45: =HLOOKUP("שיעור לתלמיד 4: השינויים במעמד המשפטי של יהודי גרמניה משלהי המאה ה-18 עד ראשית המאה ה-20 - תת פרק לבחירה",grade_report!$3:$100,ROWS($A$4:O48),0) ->  | R45: =HLOOKUP("סיכום פרק 4: השינויים במעמד המשפטי של יהודי גרמניה משלהי המאה ה-18 עד ראשית המאה ה-20 - תת פרק לבחירה -משימת סיכום",grade_report!$3:$100,ROWS($A$4:O48),0) ->  | S45: =HLOOKUP("שיעור לתלמיד 5: השינויים במעמד המשפטי של היהודים בארצות האסלאם - תהליך האמנציפציה באלג'יריה - תת פרק חובה",grade_report!$3:$100,ROWS($A$4:A48),0) ->  | T45: =HLOOKUP("סיכום פרק 5: השינויים במעמד המשפטי של היהודים בארצות האסלאם - תהליך האמנציפציה באלג'יריה - משימת סיכום",grade_report!$3:$100,ROWS($A$4:A48),0) ->  | U45: =HLOOKUP("שיעור לתלמיד 6: השלכות השינויים במעמד היהודים על החברה היהודית - תת פרק חובה",grade_report!$3:$100,ROWS($A$4:D48),0) ->  | V45: =HLOOKUP("סיכום פרק 6: השפעת הליברליזם על תמורות בחברה היהודית - משימת סיכום - סיכום הסוגיה לכל הפרק",grade_report!$3:$100,ROWS($A$4:A48),0) ->  | W45: =HLOOKUP("הפנמה 3: מעמד היהודים משלהי המאה ה-18 ועד תחילת המאה ה-20 - משימת הפנמה לכל הפרק",grade_report!$3:$100,ROWS($A$4:Q48),0) ->  | X45: =HLOOKUP("העשרה 3: מעמד היהודים משלהי המאה ה-18 ועד תחילת המאה ה-20 - משימת העשרה לכל הפרק",grade_report!$3:$100,ROWS($A$4:R48),0) ->  | Z45: =HLOOKUP("שיעור לתלמיד 7: השפעת הנאורות על החברה היהודית - תת פרק חובה",grade_report!$3:$100,ROWS($A$4:A48),0) ->  | AA45: =HLOOKUP("סיכום פרק 7: השפעת הנאורות על החברה היהודית - תת פרק חובה - משימת סיכום",grade_report!$3:$100,ROWS($A$4:A48),0) ->  | AC45: =HLOOKUP("שיעור לתלמיד 8: ניאו אורתודוקסיה - חיוב המודרנה תוך שמירה קפדנית על מצוות הדת - שיעור לתלמיד",grade_report!$3:$100,ROWS($A$4:D48),0) ->  | AD45: =HLOOKUP("סיכום פרק 8: ניאו אורתודוקסיה - חיוב המודרנה תוך שמירה קפדנית על מצוות הדת - משימת סיכום",grade_report!$3:$100,ROWS($A$4:D48),0) ->  | AE45: =HLOOKUP("סיכום פרק 9: תנועות וזרמים יהודיים - משימת סיכום לכל הפרק",grade_report!$3:$100,ROWS($A$4:E48),0) ->  | AG45: =HLOOKUP("שיעור לתלמיד 9: מבשרי הציונות וחיבת ציון - שיעור לתלמיד",grade_report!$3:$100,ROWS($A$4:H48),0) ->  | AH45: =HLOOKUP("סיכום פרק 10: מבשרי הציונות וחיבת ציון - משימת סיכום",grade_report!$3:$100,ROWS($A$4:H48),0) ->  | AI45: =HLOOKUP("הפנמה 4: מבשרי הציונות וחיבת ציון - משימת הפנמה",grade_report!$3:$100,ROWS($A$4:AC48),0) ->  | AJ45: =HLOOKUP("העשרה 4: מבשרי הציונות וחיבת ציון - משימת העשרה",grade_report!$3:$100,ROWS($A$4:AD48),0) ->  | AL45: =HLOOKUP("שיעור לתלמיד 10: התנועה הציונית והרצל - שיעור לתלמיד",grade_report!$3:$100,ROWS($A$4:M48),0) ->  | AM45: =HLOOKUP("סיכום פרק 11: התנועה הציונית והרצל - משימת סיכום - סוף ימיו של הרצל",grade_report!$3:$100,ROWS($A$4:M48),0) ->  | AN45: =HLOOKUP("הפנמה 5: התנועה הציונית והרצל - משימת הפנמה",grade_report!$3:$100,ROWS($A$4:AH48),0) ->  | AO45: =HLOOKUP("העשרה 5: התנועה הציונית והרצל - משימת העשרה",grade_report!$3:$100,ROWS($A$4:AI48),0) ->  | AQ45: =HLOOKUP("שיעור לתלמיד 11: מפלגות, זרמים ומתנגדים - שיעור לתלמיד",grade_report!$3:$100,ROWS($A$4:R48),0) ->  | AR45: =HLOOKUP("סיכום פרק 12: מפלגות, זרמים ומתנגדים - משימת סיכום",grade_report!$3:$100,ROWS($A$4:R48),0) ->  | AS45: =HLOOKUP("הפנמה 6: מפלגות, זרמים ומתנגדים - משימת הפנמה",grade_report!$3:$100,ROWS($A$4:AM48),0) ->  | AT45: =HLOOKUP("העשרה 6: מפלגות, זרמים ומתנגדים - משימת העשרה",grade_report!$3:$100,ROWS($A$4:AN48),0) ->  | AV45: =HLOOKUP("סיכום קורס-ש' סגורות",grade_report!$3:$100,ROWS($A$4:AP48),0) ->  | AW45: =HLOOKUP("סיכום קורס-ש' פתוחות",grade_report!$3:$100,ROWS($A$4:AQ48),0) ->  | AX45: =HLOOKUP("תלמידאות",grade_report!$3:$100,ROWS($A$4:AR48),0) -> 0
A46: =grade_report!C48 -> 0 | B46: =grade_report!B48 -> 0 | D46: =VLOOKUP(A46,grade_report!C:D,2,FALSE) ->  | E46: =HLOOKUP("שיעור לתלמיד 1: נאורוּת - שיעור לתלמיד",grade_report!$3:$100,ROWS($A$4:A49),0) -> 0 | F46: =HLOOKUP("סיכום פרק 1: נאורוּת - משימת סיכום",grade_report!$3:$100,ROWS($A$4:A49),0) -> 0 | G46: =HLOOKUP("הפנמה 1: נאורוּת - משימת הפנמה",grade_report!$3:$100,ROWS($A$4:B49),0) -> 0 | H46: =HLOOKUP("העשרה 1: נאורוּת - משימת העשרה",grade_report!$3:$100,ROWS($A$4:C49),0) -> 0 | J46: =HLOOKUP("שיעור לתלמיד 2: מלחמת העולם הראשונה - שיעור לתלמיד",grade_report!$3:$100,ROWS($A$4:E49),0) ->  | K46: =HLOOKUP("סיכום פרק 2: מלחמת העולם הראשונה - משימת סיכום",grade_report!$3:$100,ROWS($A$4:E49),0) ->  | L46: =HLOOKUP("הפנמה 2: מלחמת העולם הראשונה - משימת הפנמה",grade_report!$3:$100,ROWS($A$4:F49),0) ->  | M46: =HLOOKUP("העשרה 2: מלחמת העולם הראשונה - משימת העשרה - רשות: מלחמת החפירות",grade_report!$3:$100,ROWS($A$4:G49),0) ->  | O46: =HLOOKUP("שיעור לתלמיד 3: השינויים במעמד המשפטי של יהודי צרפת משלהי המאה ה-18 עד ראשית המאה ה-20 - תת פרק לבחירה",grade_report!$3:$100,ROWS($A$4:J49),0) ->  | P46: =HLOOKUP("סיכום פרק 3: השינויים במעמד המשפטי של יהודי צרפת משלהי המאה ה-18 עד ראשית המאה ה-20 -משימת סיכום",grade_report!$3:$100,ROWS($A$4:J49),0) ->  | Q46: =HLOOKUP("שיעור לתלמיד 4: השינויים במעמד המשפטי של יהודי גרמניה משלהי המאה ה-18 עד ראשית המאה ה-20 - תת פרק לבחירה",grade_report!$3:$100,ROWS($A$4:O49),0) ->  | R46: =HLOOKUP("סיכום פרק 4: השינויים במעמד המשפטי של יהודי גרמניה משלהי המאה ה-18 עד ראשית המאה ה-20 - תת פרק לבחירה -משימת סיכום",grade_report!$3:$100,ROWS($A$4:O49),0) ->  | S46: =HLOOKUP("שיעור לתלמיד 5: השינויים במעמד המשפטי של היהודים בארצות האסלאם - תהליך האמנציפציה באלג'יריה - תת פרק חובה",grade_report!$3:$100,ROWS($A$4:A49),0) ->  | T46: =HLOOKUP("סיכום פרק 5: השינויים במעמד המשפטי של היהודים בארצות האסלאם - תהליך האמנציפציה באלג'יריה - משימת סיכום",grade_report!$3:$100,ROWS($A$4:A49),0) ->  | U46: =HLOOKUP("שיעור לתלמיד 6: השלכות השינויים במעמד היהודים על החברה היהודית - תת פרק חובה",grade_report!$3:$100,ROWS($A$4:D49),0) ->  | V46: =HLOOKUP("סיכום פרק 6: השפעת הליברליזם על תמורות בחברה היהודית - משימת סיכום - סיכום הסוגיה לכל הפרק",grade_report!$3:$100,ROWS($A$4:A49),0) ->  | W46: =HLOOKUP("הפנמה 3: מעמד היהודים משלהי המאה ה-18 ועד תחילת המאה ה-20 - משימת הפנמה לכל הפרק",grade_report!$3:$100,ROWS($A$4:Q49),0) ->  | X46: =HLOOKUP("העשרה 3: מעמד היהודים משלהי המאה ה-18 ועד תחילת המאה ה-20 - משימת העשרה לכל הפרק",grade_report!$3:$100,ROWS($A$4:R49),0) ->  | Z46: =HLOOKUP("שיעור לתלמיד 7: השפעת הנאורות על החברה היהודית - תת פרק חובה",grade_report!$3:$100,ROWS($A$4:A49),0) ->  | AA46: =HLOOKUP("סיכום פרק 7: השפעת הנאורות על החברה היהודית - תת פרק חובה - משימת סיכום",grade_report!$3:$100,ROWS($A$4:A49),0) ->  | AC46: =HLOOKUP("שיעור לתלמיד 8: ניאו אורתודוקסיה - חיוב המודרנה תוך שמירה קפדנית על מצוות הדת - שיעור לתלמיד",grade_report!$3:$100,ROWS($A$4:D49),0) ->  | AD46: =HLOOKUP("סיכום פרק 8: ניאו אורתודוקסיה - חיוב המודרנה תוך שמירה קפדנית על מצוות הדת - משימת סיכום",grade_report!$3:$100,ROWS($A$4:D49),0) ->  | AE46: =HLOOKUP("סיכום פרק 9: תנועות וזרמים יהודיים - משימת סיכום לכל הפרק",grade_report!$3:$100,ROWS($A$4:E49),0) ->  | AG46: =HLOOKUP("שיעור לתלמיד 9: מבשרי הציונות וחיבת ציון - שיעור לתלמיד",grade_report!$3:$100,ROWS($A$4:H49),0) ->  | AH46: =HLOOKUP("סיכום פרק 10: מבשרי הציונות וחיבת ציון - משימת סיכום",grade_report!$3:$100,ROWS($A$4:H49),0) ->  | AI46: =HLOOKUP("הפנמה 4: מבשרי הציונות וחיבת ציון - משימת הפנמה",grade_report!$3:$100,ROWS($A$4:AC49),0) ->  | AJ46: =HLOOKUP("העשרה 4: מבשרי הציונות וחיבת ציון - משימת העשרה",grade_report!$3:$100,ROWS($A$4:AD49),0) ->  | AL46: =HLOOKUP("שיעור לתלמיד 10: התנועה הציונית והרצל - שיעור לתלמיד",grade_report!$3:$100,ROWS($A$4:M49),0) ->  | AM46: =HLOOKUP("סיכום פרק 11: התנועה הציונית והרצל - משימת סיכום - סוף ימיו של הרצל",grade_report!$3:$100,ROWS($A$4:M49),0) ->  | AN46: =HLOOKUP("הפנמה 5: התנועה הציונית והרצל - משימת הפנמה",grade_report!$3:$100,ROWS($A$4:AH49),0) ->  | AO46: =HLOOKUP("העשרה 5: התנועה הציונית והרצל - משימת העשרה",grade_report!$3:$100,ROWS($A$4:AI49),0) ->  | AQ46: =HLOOKUP("שיעור לתלמיד 11: מפלגות, זרמים ומתנגדים - שיעור לתלמיד",grade_report!$3:$100,ROWS($A$4:R49),0) ->  | AR46: =HLOOKUP("סיכום פרק 12: מפלגות, זרמים ומתנגדים - משימת סיכום",grade_report!$3:$100,ROWS($A$4:R49),0) ->  | AS46: =HLOOKUP("הפנמה 6: מפלגות, זרמים ומתנגדים - משימת הפנמה",grade_report!$3:$100,ROWS($A$4:AM49),0) ->  | AT46: =HLOOKUP("העשרה 6: מפלגות, זרמים ומתנגדים - משימת העשרה",grade_report!$3:$100,ROWS($A$4:AN49),0) ->  | AV46: =HLOOKUP("סיכום קורס-ש' סגורות",grade_report!$3:$100,ROWS($A$4:AP49),0) ->  | AW46: =HLOOKUP("סיכום קורס-ש' פתוחות",grade_report!$3:$100,ROWS($A$4:AQ49),0) ->  | AX46: =HLOOKUP("תלמידאות",grade_report!$3:$100,ROWS($A$4:AR49),0) -> 0
A47: =grade_report!C49 -> 0 | B47: =grade_report!B49 -> 0 | D47: =VLOOKUP(A47,grade_report!C:D,2,FALSE) ->  | E47: =HLOOKUP("שיעור לתלמיד 1: נאורוּת - שיעור לתלמיד",grade_report!$3:$100,ROWS($A$4:A50),0) -> 0 | F47: =HLOOKUP("סיכום פרק 1: נאורוּת - משימת סיכום",grade_report!$3:$100,ROWS($A$4:A50),0) -> 0 | G47: =HLOOKUP("הפנמה 1: נאורוּת - משימת הפנמה",grade_report!$3:$100,ROWS($A$4:B50),0) -> 0 | H47: =HLOOKUP("העשרה 1: נאורוּת - משימת העשרה",grade_report!$3:$100,ROWS($A$4:C50),0) -> 0 | J47: =HLOOKUP("שיעור לתלמיד 2: מלחמת העולם הראשונה - שיעור לתלמיד",grade_report!$3:$100,ROWS($A$4:E50),0) ->  | K47: =HLOOKUP("סיכום פרק 2: מלחמת העולם הראשונה - משימת סיכום",grade_report!$3:$100,ROWS($A$4:E50),0) ->  | L47: =HLOOKUP("הפנמה 2: מלחמת העולם הראשונה - משימת הפנמה",grade_report!$3:$100,ROWS($A$4:F50),0) ->  | M47: =HLOOKUP("העשרה 2: מלחמת העולם הראשונה - משימת העשרה - רשות: מלחמת החפירות",grade_report!$3:$100,ROWS($A$4:G50),0) ->  | O47: =HLOOKUP("שיעור לתלמיד 3: השינויים במעמד המשפטי של יהודי צרפת משלהי המאה ה-18 עד ראשית המאה ה-20 - תת פרק לבחירה",grade_report!$3:$100,ROWS($A$4:J50),0) ->  | P47: =HLOOKUP("סיכום פרק 3: השינויים במעמד המשפטי של יהודי צרפת משלהי המאה ה-18 עד ראשית המאה ה-20 -משימת סיכום",grade_report!$3:$100,ROWS($A$4:J50),0) ->  | Q47: =HLOOKUP("שיעור לתלמיד 4: השינויים במעמד המשפטי של יהודי גרמניה משלהי המאה ה-18 עד ראשית המאה ה-20 - תת פרק לבחירה",grade_report!$3:$100,ROWS($A$4:O50),0) ->  | R47: =HLOOKUP("סיכום פרק 4: השינויים במעמד המשפטי של יהודי גרמניה משלהי המאה ה-18 עד ראשית המאה ה-20 - תת פרק לבחירה -משימת סיכום",grade_report!$3:$100,ROWS($A$4:O50),0) ->  | S47: =HLOOKUP("שיעור לתלמיד 5: השינויים במעמד המשפטי של היהודים בארצות האסלאם - תהליך האמנציפציה באלג'יריה - תת פרק חובה",grade_report!$3:$100,ROWS($A$4:A50),0) ->  | T47: =HLOOKUP("סיכום פרק 5: השינויים במעמד המשפטי של היהודים בארצות האסלאם - תהליך האמנציפציה באלג'יריה - משימת סיכום",grade_report!$3:$100,ROWS($A$4:A50),0) ->  | U47: =HLOOKUP("שיעור לתלמיד 6: השלכות השינויים במעמד היהודים על החברה היהודית - תת פרק חובה",grade_report!$3:$100,ROWS($A$4:D50),0) ->  | V47: =HLOOKUP("סיכום פרק 6: השפעת הליברליזם על תמורות בחברה היהודית - משימת סיכום - סיכום הסוגיה לכל הפרק",grade_report!$3:$100,ROWS($A$4:A50),0) ->  | W47: =HLOOKUP("הפנמה 3: מעמד היהודים משלהי המאה ה-18 ועד תחילת המאה ה-20 - משימת הפנמה לכל הפרק",grade_report!$3:$100,ROWS($A$4:Q50),0) ->  | X47: =HLOOKUP("העשרה 3: מעמד היהודים משלהי המאה ה-18 ועד תחילת המאה ה-20 - משימת העשרה לכל הפרק",grade_report!$3:$100,ROWS($A$4:R50),0) ->  | Z47: =HLOOKUP("שיעור לתלמיד 7: השפעת הנאורות על החברה היהודית - תת פרק חובה",grade_report!$3:$100,ROWS($A$4:A50),0) ->  | AA47: =HLOOKUP("סיכום פרק 7: השפעת הנאורות על החברה היהודית - תת פרק חובה - משימת סיכום",grade_report!$3:$100,ROWS($A$4:A50),0) ->  | AC47: =HLOOKUP("שיעור לתלמיד 8: ניאו אורתודוקסיה - חיוב המודרנה תוך שמירה קפדנית על מצוות הדת - שיעור לתלמיד",grade_report!$3:$100,ROWS($A$4:D50),0) ->  | AD47: =HLOOKUP("סיכום פרק 8: ניאו אורתודוקסיה - חיוב המודרנה תוך שמירה קפדנית על מצוות הדת - משימת סיכום",grade_report!$3:$100,ROWS($A$4:D50),0) ->  | AE47: =HLOOKUP("סיכום פרק 9: תנועות וזרמים יהודיים - משימת סיכום לכל הפרק",grade_report!$3:$100,ROWS($A$4:E50),0) ->  | AG47: =HLOOKUP("שיעור לתלמיד 9: מבשרי הציונות וחיבת ציון - שיעור לתלמיד",grade_report!$3:$100,ROWS($A$4:H50),0) ->  | AH47: =HLOOKUP("סיכום פרק 10: מבשרי הציונות וחיבת ציון - משימת סיכום",grade_report!$3:$100,ROWS($A$4:H50),0) ->  | AI47: =HLOOKUP("הפנמה 4: מבשרי הציונות וחיבת ציון - משימת הפנמה",grade_report!$3:$100,ROWS($A$4:AC50),0) ->  | AJ47: =HLOOKUP("העשרה 4: מבשרי הציונות וחיבת ציון - משימת העשרה",grade_report!$3:$100,ROWS($A$4:AD50),0) ->  | AL47: =HLOOKUP("שיעור לתלמיד 10: התנועה הציונית והרצל - שיעור לתלמיד",grade_report!$3:$100,ROWS($A$4:M50),0) ->  | AM47: =HLOOKUP("סיכום פרק 11: התנועה הציונית והרצל - משימת סיכום - סוף ימיו של הרצל",grade_report!$3:$100,ROWS($A$4:M50),0) ->  | AN47: =HLOOKUP("הפנמה 5: התנועה הציונית והרצל - משימת הפנמה",grade_report!$3:$100,ROWS($A$4:AH50),0) ->  | AO47: =HLOOKUP("העשרה 5: התנועה הציונית והרצל - משימת העשרה",grade_report!$3:$100,ROWS($A$4:AI50),0) ->  | AQ47: =HLOOKUP("שיעור לתלמיד 11: מפלגות, זרמים ומתנגדים - שיעור לתלמיד",grade_report!$3:$100,ROWS($A$4:R50),0) ->  | AR47: =HLOOKUP("סיכום פרק 12: מפלגות, זרמים ומתנגדים - משימת סיכום",grade_report!$3:$100,ROWS($A$4:R50),0) ->  | AS47: =HLOOKUP("הפנמה 6: מפלגות, זרמים ומתנגדים - משימת הפנמה",grade_report!$3:$100,ROWS($A$4:AM50),0) ->  | AT47: =HLOOKUP("העשרה 6: מפלגות, זרמים ומתנגדים - משימת העשרה",grade_report!$3:$100,ROWS($A$4:AN50),0) ->  | AV47: =HLOOKUP("סיכום קורס-ש' סגורות",grade_report!$3:$100,ROWS($A$4:AP50),0) ->  | AW47: =HLOOKUP("סיכום קורס-ש' פתוחות",grade_report!$3:$100,ROWS($A$4:AQ50),0) ->  | AX47: =HLOOKUP("תלמידאות",grade_report!$3:$100,ROWS($A$4:AR50),0) -> 0
A48: =grade_report!C50 -> 0 | B48: =grade_report!B50 -> 0 | D48: =VLOOKUP(A48,grade_report!C:D,2,FALSE) ->  | E48: =HLOOKUP("שיעור לתלמיד 1: נאורוּת - שיעור לתלמיד",grade_report!$3:$100,ROWS($A$4:A50),0) -> 0 | F48: =HLOOKUP("סיכום פרק 1: נאורוּת - משימת סיכום",grade_report!$3:$100,ROWS($A$4:A50),0) -> 0 | G48: =HLOOKUP("הפנמה 1: נאורוּת - משימת הפנמה",grade_report!$3:$100,ROWS($A$4:B50),0) -> 0 | H48: =HLOOKUP("העשרה 1: נאורוּת - משימת העשרה",grade_report!$3:$100,ROWS($A$4:C50),0) -> 0 | J48: =HLOOKUP("שיעור לתלמיד 2: מלחמת העולם הראשונה - שיעור לתלמיד",grade_report!$3:$100,ROWS($A$4:E50),0) ->  | K48: =HLOOKUP("סיכום פרק 2: מלחמת העולם הראשונה - משימת סיכום",grade_report!$3:$100,ROWS($A$4:E50),0) ->  | L48: =HLOOKUP("הפנמה 2: מלחמת העולם הראשונה - משימת הפנמה",grade_report!$3:$100,ROWS($A$4:F50),0) ->  | M48: =HLOOKUP("העשרה 2: מלחמת העולם הראשונה - משימת העשרה - רשות: מלחמת החפירות",grade_report!$3:$100,ROWS($A$4:G50),0) ->  | O48: =HLOOKUP("שיעור לתלמיד 3: השינויים במעמד המשפטי של יהודי צרפת משלהי המאה ה-18 עד ראשית המאה ה-20 - תת פרק לבחירה",grade_report!$3:$100,ROWS($A$4:J50),0) ->  | P48: =HLOOKUP("סיכום פרק 3: השינויים במעמד המשפטי של יהודי צרפת משלהי המאה ה-18 עד ראשית המאה ה-20 -משימת סיכום",grade_report!$3:$100,ROWS($A$4:J50),0) ->  | Q48: =HLOOKUP("שיעור לתלמיד 4: השינויים במעמד המשפטי של יהודי גרמניה משלהי המאה ה-18 עד ראשית המאה ה-20 - תת פרק לבחירה",grade_report!$3:$100,ROWS($A$4:O50),0) ->  | R48: =HLOOKUP("סיכום פרק 4: השינויים במעמד המשפטי של יהודי גרמניה משלהי המאה ה-18 עד ראשית המאה ה-20 - תת פרק לבחירה -משימת סיכום",grade_report!$3:$100,ROWS($A$4:O50),0) ->  | S48: =HLOOKUP("שיעור לתלמיד 5: השינויים במעמד המשפטי של היהודים בארצות האסלאם - תהליך האמנציפציה באלג'יריה - תת פרק חובה",grade_report!$3:$100,ROWS($A$4:A50),0) ->  | T48: =HLOOKUP("סיכום פרק 5: השינויים במעמד המשפטי של היהודים בארצות האסלאם - תהליך האמנציפציה באלג'יריה - משימת סיכום",grade_report!$3:$100,ROWS($A$4:A50),0) ->  | U48: =HLOOKUP("שיעור לתלמיד 6: השלכות השינויים במעמד היהודים על החברה היהודית - תת פרק חובה",grade_report!$3:$100,ROWS($A$4:D50),0) ->  | V48: =HLOOKUP("סיכום פרק 6: השפעת הליברליזם על תמורות בחברה היהודית - משימת סיכום - סיכום הסוגיה לכל הפרק",grade_report!$3:$100,ROWS($A$4:A50),0) ->  | W48: =HLOOKUP("הפנמה 3: מעמד היהודים משלהי המאה ה-18 ועד תחילת המאה ה-20 - משימת הפנמה לכל הפרק",grade_report!$3:$100,ROWS($A$4:Q50),0) ->  | X48: =HLOOKUP("העשרה 3: מעמד היהודים משלהי המאה ה-18 ועד תחילת המאה ה-20 - משימת העשרה לכל הפרק",grade_report!$3:$100,ROWS($A$4:R50),0) ->  | Z48: =HLOOKUP("שיעור לתלמיד 7: השפעת הנאורות על החברה היהודית - תת פרק חובה",grade_report!$3:$100,ROWS($A$4:A50),0) ->  | AA48: =HLOOKUP("סיכום פרק 7: השפעת הנאורות על החברה היהודית - תת פרק חובה - משימת סיכום",grade_report!$3:$100,ROWS($A$4:A50),0) ->  | AC48: =HLOOKUP("שיעור לתלמיד 8: ניאו אורתודוקסיה - חיוב המודרנה תוך שמירה קפדנית על מצוות הדת - שיעור לתלמיד",grade_report!$3:$100,ROWS($A$4:D51),0) ->  | AD48: =HLOOKUP("סיכום פרק 8: ניאו אורתודוקסיה - חיוב המודרנה תוך שמירה קפדנית על מצוות הדת - משימת סיכום",grade_report!$3:$100,ROWS($A$4:D51),0) ->  | AE48: =HLOOKUP("סיכום פרק 9: תנועות וזרמים יהודיים - משימת סיכום לכל הפרק",grade_report!$3:$100,ROWS($A$4:E51),0) ->  | AG48: =HLOOKUP("שיעור לתלמיד 9: מבשרי הציונות וחיבת ציון - שיעור לתלמיד",grade_report!$3:$100,ROWS($A$4:H51),0) ->  | AH48: =HLOOKUP("סיכום פרק 10: מבשרי הציונות וחיבת ציון - משימת סיכום",grade_report!$3:$100,ROWS($A$4:H51),0) ->  | AI48: =HLOOKUP("הפנמה 4: מבשרי הציונות וחיבת ציון - משימת הפנמה",grade_report!$3:$100,ROWS($A$4:AC51),0) ->  | AJ48: =HLOOKUP("העשרה 4: מבשרי הציונות וחיבת ציון - משימת העשרה",grade_report!$3:$100,ROWS($A$4:AD51),0) ->  | AL48: =HLOOKUP("שיעור לתלמיד 10: התנועה הציונית והרצל - שיעור לתלמיד",grade_report!$3:$100,ROWS($A$4:M51),0) ->  | AM48: =HLOOKUP("סיכום פרק 11: התנועה הציונית והרצל - משימת סיכום - סוף ימיו של הרצל",grade_report!$3:$100,ROWS($A$4:M51),0) ->  | AN48: =HLOOKUP("הפנמה 5: התנועה הציונית והרצל - משימת הפנמה",grade_report!$3:$100,ROWS($A$4:AH51),0) ->  | AO48: =HLOOKUP("העשרה 5: התנועה הציונית והרצל - משימת העשרה",grade_report!$3:$100,ROWS($A$4:AI51),0) ->  | AQ48: =HLOOKUP("שיעור לתלמיד 11: מפלגות, זרמים ומתנגדים - שיעור לתלמיד",grade_report!$3:$100,ROWS($A$4:R51),0) ->  | AR48: =HLOOKUP("סיכום פרק 12: מפלגות, זרמים ומתנגדים - משימת סיכום",grade_report!$3:$100,ROWS($A$4:R51),0) ->  | AS48: =HLOOKUP("הפנמה 6: מפלגות, זרמים ומתנגדים - משימת הפנמה",grade_report!$3:$100,ROWS($A$4:AM51),0) ->  | AT48: =HLOOKUP("העשרה 6: מפלגות, זרמים ומתנגדים - משימת העשרה",grade_report!$3:$100,ROWS($A$4:AN51),0) ->  | AV48: =HLOOKUP("סיכום קורס-ש' סגורות",grade_report!$3:$100,ROWS($A$4:AP50),0) ->  | AW48: =HLOOKUP("סיכום קורס-ש' פתוחות",grade_report!$3:$100,ROWS($A$4:AQ50),0) ->  | AX48: =HLOOKUP("תלמידאות",grade_report!$3:$100,ROWS($A$4:AR50),0) -> 0
A49: =grade_report!C51 -> 0 | B49: =grade_report!B51 -> 0 | D49: =VLOOKUP(A49,grade_report!C:D,2,FALSE) ->  | E49: =HLOOKUP("שיעור לתלמיד 1: נאורוּת - שיעור לתלמיד",grade_report!$3:$100,ROWS($A$4:A50),0) -> 0 | F49: =HLOOKUP("סיכום פרק 1: נאורוּת - משימת סיכום",grade_report!$3:$100,ROWS($A$4:A50),0) -> 0 | G49: =HLOOKUP("הפנמה 1: נאורוּת - משימת הפנמה",grade_report!$3:$100,ROWS($A$4:B50),0) -> 0 | H49: =HLOOKUP("העשרה 1: נאורוּת - משימת העשרה",grade_report!$3:$100,ROWS($A$4:C50),0) -> 0 | J49: =HLOOKUP("שיעור לתלמיד 2: מלחמת העולם הראשונה - שיעור לתלמיד",grade_report!$3:$100,ROWS($A$4:E50),0) ->  | K49: =HLOOKUP("סיכום פרק 2: מלחמת העולם הראשונה - משימת סיכום",grade_report!$3:$100,ROWS($A$4:E50),0) ->  | L49: =HLOOKUP("הפנמה 2: מלחמת העולם הראשונה - משימת הפנמה",grade_report!$3:$100,ROWS($A$4:F50),0) ->  | M49: =HLOOKUP("העשרה 2: מלחמת העולם הראשונה - משימת העשרה - רשות: מלחמת החפירות",grade_report!$3:$100,ROWS($A$4:G50),0) ->  | O49: =HLOOKUP("שיעור לתלמיד 3: השינויים במעמד המשפטי של יהודי צרפת משלהי המאה ה-18 עד ראשית המאה ה-20 - תת פרק לבחירה",grade_report!$3:$100,ROWS($A$4:J50),0) ->  | P49: =HLOOKUP("סיכום פרק 3: השינויים במעמד המשפטי של יהודי צרפת משלהי המאה ה-18 עד ראשית המאה ה-20 -משימת סיכום",grade_report!$3:$100,ROWS($A$4:J50),0) ->  | Q49: =HLOOKUP("שיעור לתלמיד 4: השינויים במעמד המשפטי של יהודי גרמניה משלהי המאה ה-18 עד ראשית המאה ה-20 - תת פרק לבחירה",grade_report!$3:$100,ROWS($A$4:O50),0) ->  | R49: =HLOOKUP("סיכום פרק 4: השינויים במעמד המשפטי של יהודי גרמניה משלהי המאה ה-18 עד ראשית המאה ה-20 - תת פרק לבחירה -משימת סיכום",grade_report!$3:$100,ROWS($A$4:O50),0) ->  | S49: =HLOOKUP("שיעור לתלמיד 5: השינויים במעמד המשפטי של היהודים בארצות האסלאם - תהליך האמנציפציה באלג'יריה - תת פרק חובה",grade_report!$3:$100,ROWS($A$4:A50),0) ->  | T49: =HLOOKUP("סיכום פרק 5: השינויים במעמד המשפטי של היהודים בארצות האסלאם - תהליך האמנציפציה באלג'יריה - משימת סיכום",grade_report!$3:$100,ROWS($A$4:A50),0) ->  | U49: =HLOOKUP("שיעור לתלמיד 6: השלכות השינויים במעמד היהודים על החברה היהודית - תת פרק חובה",grade_report!$3:$100,ROWS($A$4:D50),0) ->  | V49: =HLOOKUP("סיכום פרק 6: השפעת הליברליזם על תמורות בחברה היהודית - משימת סיכום - סיכום הסוגיה לכל הפרק",grade_report!$3:$100,ROWS($A$4:A50),0) ->  | W49: =HLOOKUP("הפנמה 3: מעמד היהודים משלהי המאה ה-18 ועד תחילת המאה ה-20 - משימת הפנמה לכל הפרק",grade_report!$3:$100,ROWS($A$4:Q50),0) ->  | X49: =HLOOKUP("העשרה 3: מעמד היהודים משלהי המאה ה-18 ועד תחילת המאה ה-20 - משימת העשרה לכל הפרק",grade_report!$3:$100,ROWS($A$4:R50),0) ->  | Z49: =HLOOKUP("שיעור לתלמיד 7: השפעת הנאורות על החברה היהודית - תת פרק חובה",grade_report!$3:$100,ROWS($A$4:A50),0) ->  | AA49: =HLOOKUP("סיכום פרק 7: השפעת הנאורות על החברה היהודית - תת פרק חובה - משימת סיכום",grade_report!$3:$100,ROWS($A$4:A50),0) ->  | AC49: =HLOOKUP("שיעור לתלמיד 8: ניאו אורתודוקסיה - חיוב המודרנה תוך שמירה קפדנית על מצוות הדת - שיעור לתלמיד",grade_report!$3:$100,ROWS($A$4:D52),0) ->  | AD49: =HLOOKUP("סיכום פרק 8: ניאו אורתודוקסיה - חיוב המודרנה תוך שמירה קפדנית על מצוות הדת - משימת סיכום",grade_report!$3:$100,ROWS($A$4:D52),0) ->  | AE49: =HLOOKUP("סיכום פרק 9: תנועות וזרמים יהודיים - משימת סיכום לכל הפרק",grade_report!$3:$100,ROWS($A$4:E52),0) ->  | AG49: =HLOOKUP("שיעור לתלמיד 9: מבשרי הציונות וחיבת ציון - שיעור לתלמיד",grade_report!$3:$100,ROWS($A$4:H52),0) ->  | AH49: =HLOOKUP("סיכום פרק 10: מבשרי הציונות וחיבת ציון - משימת סיכום",grade_report!$3:$100,ROWS($A$4:H52),0) ->  | AI49: =HLOOKUP("הפנמה 4: מבשרי הציונות וחיבת ציון - משימת הפנמה",grade_report!$3:$100,ROWS($A$4:AC52),0) ->  | AJ49: =HLOOKUP("העשרה 4: מבשרי הציונות וחיבת ציון - משימת העשרה",grade_report!$3:$100,ROWS($A$4:AD52),0) ->  | AL49: =HLOOKUP("שיעור לתלמיד 10: התנועה הציונית והרצל - שיעור לתלמיד",grade_report!$3:$100,ROWS($A$4:M52),0) ->  | AM49: =HLOOKUP("סיכום פרק 11: התנועה הציונית והרצל - משימת סיכום - סוף ימיו של הרצל",grade_report!$3:$100,ROWS($A$4:M52),0) ->  | AN49: =HLOOKUP("הפנמה 5: התנועה הציונית והרצל - משימת הפנמה",grade_report!$3:$100,ROWS($A$4:AH52),0) ->  | AO49: =HLOOKUP("העשרה 5: התנועה הציונית והרצל - משימת העשרה",grade_report!$3:$100,ROWS($A$4:AI52),0) ->  | AQ49: =HLOOKUP("שיעור לתלמיד 11: מפלגות, זרמים ומתנגדים - שיעור לתלמיד",grade_report!$3:$100,ROWS($A$4:R52),0) ->  | AR49: =HLOOKUP("סיכום פרק 12: מפלגות, זרמים ומתנגדים - משימת סיכום",grade_report!$3:$100,ROWS($A$4:R52),0) ->  | AS49: =HLOOKUP("הפנמה 6: מפלגות, זרמים ומתנגדים - משימת הפנמה",grade_report!$3:$100,ROWS($A$4:AM52),0) ->  | AT49: =HLOOKUP("העשרה 6: מפלגות, זרמים ומתנגדים - משימת העשרה",grade_report!$3:$100,ROWS($A$4:AN52),0) ->  | AV49: =HLOOKUP("סיכום קורס-ש' סגורות",grade_report!$3:$100,ROWS($A$4:AP50),0) ->  | AW49: =HLOOKUP("סיכום קורס-ש' פתוחות",grade_report!$3:$100,ROWS($A$4:AQ50),0) ->  | AX49: =HLOOKUP("תלמידאות",grade_report!$3:$100,ROWS($A$4:AR50),0) -> 0
A50: =grade_report!C52 -> 0 | B50: =grade_report!B52 -> 0 | D50: =VLOOKUP(A50,grade_report!C:D,2,FALSE) ->  | E50: =HLOOKUP("שיעור לתלמיד 1: נאורוּת - שיעור לתלמיד",grade_report!$3:$100,ROWS($A$4:A50),0) -> 0 | F50: =HLOOKUP("סיכום פרק 1: נאורוּת - משימת סיכום",grade_report!$3:$100,ROWS($A$4:A50),0) -> 0 | G50: =HLOOKUP("הפנמה 1: נאורוּת - משימת הפנמה",grade_report!$3:$100,ROWS($A$4:B50),0) -> 0 | H50: =HLOOKUP("העשרה 1: נאורוּת - משימת העשרה",grade_report!$3:$100,ROWS($A$4:C50),0) -> 0 | J50: =HLOOKUP("שיעור לתלמיד 2: מלחמת העולם הראשונה - שיעור לתלמיד",grade_report!$3:$100,ROWS($A$4:E50),0) ->  | K50: =HLOOKUP("סיכום פרק 2: מלחמת העולם הראשונה - משימת סיכום",grade_report!$3:$100,ROWS($A$4:E50),0) ->  | L50: =HLOOKUP("הפנמה 2: מלחמת העולם הראשונה - משימת הפנמה",grade_report!$3:$100,ROWS($A$4:F50),0) ->  | M50: =HLOOKUP("העשרה 2: מלחמת העולם הראשונה - משימת העשרה - רשות: מלחמת החפירות",grade_report!$3:$100,ROWS($A$4:G50),0) ->  | O50: =HLOOKUP("שיעור לתלמיד 3: השינויים במעמד המשפטי של יהודי צרפת משלהי המאה ה-18 עד ראשית המאה ה-20 - תת פרק לבחירה",grade_report!$3:$100,ROWS($A$4:J50),0) ->  | P50: =HLOOKUP("סיכום פרק 3: השינויים במעמד המשפטי של יהודי צרפת משלהי המאה ה-18 עד ראשית המאה ה-20 -משימת סיכום",grade_report!$3:$100,ROWS($A$4:J50),0) ->  | Q50: =HLOOKUP("שיעור לתלמיד 4: השינויים במעמד המשפטי של יהודי גרמניה משלהי המאה ה-18 עד ראשית המאה ה-20 - תת פרק לבחירה",grade_report!$3:$100,ROWS($A$4:O50),0) ->  | R50: =HLOOKUP("סיכום פרק 4: השינויים במעמד המשפטי של יהודי גרמניה משלהי המאה ה-18 עד ראשית המאה ה-20 - תת פרק לבחירה -משימת סיכום",grade_report!$3:$100,ROWS($A$4:O50),0) ->  | S50: =HLOOKUP("שיעור לתלמיד 5: השינויים במעמד המשפטי של היהודים בארצות האסלאם - תהליך האמנציפציה באלג'יריה - תת פרק חובה",grade_report!$3:$100,ROWS($A$4:A50),0) ->  | T50: =HLOOKUP("סיכום פרק 5: השינויים במעמד המשפטי של היהודים בארצות האסלאם - תהליך האמנציפציה באלג'יריה - משימת סיכום",grade_report!$3:$100,ROWS($A$4:A50),0) ->  | U50: =HLOOKUP("שיעור לתלמיד 6: השלכות השינויים במעמד היהודים על החברה היהודית - תת פרק חובה",grade_report!$3:$100,ROWS($A$4:D50),0) ->  | V50: =HLOOKUP("סיכום פרק 6: השפעת הליברליזם על תמורות בחברה היהודית - משימת סיכום - סיכום הסוגיה לכל הפרק",grade_report!$3:$100,ROWS($A$4:A50),0) ->  | W50: =HLOOKUP("הפנמה 3: מעמד היהודים משלהי המאה ה-18 ועד תחילת המאה ה-20 - משימת הפנמה לכל הפרק",grade_report!$3:$100,ROWS($A$4:Q50),0) ->  | X50: =HLOOKUP("העשרה 3: מעמד היהודים משלהי המאה ה-18 ועד תחילת המאה ה-20 - משימת העשרה לכל הפרק",grade_report!$3:$100,ROWS($A$4:R50),0) ->  | Z50: =HLOOKUP("שיעור לתלמיד 7: השפעת הנאורות על החברה היהודית - תת פרק חובה",grade_report!$3:$100,ROWS($A$4:A50),0) ->  | AA50: =HLOOKUP("סיכום פרק 7: השפעת הנאורות על החברה היהודית - תת פרק חובה - משימת סיכום",grade_report!$3:$100,ROWS($A$4:A50),0) ->  | AC50: =HLOOKUP("שיעור לתלמיד 8: ניאו אורתודוקסיה - חיוב המודרנה תוך שמירה קפדנית על מצוות הדת - שיעור לתלמיד",grade_report!$3:$100,ROWS($A$4:D53),0) ->  | AD50: =HLOOKUP("סיכום פרק 8: ניאו אורתודוקסיה - חיוב המודרנה תוך שמירה קפדנית על מצוות הדת - משימת סיכום",grade_report!$3:$100,ROWS($A$4:D53),0) ->  | AE50: =HLOOKUP("סיכום פרק 9: תנועות וזרמים יהודיים - משימת סיכום לכל הפרק",grade_report!$3:$100,ROWS($A$4:E53),0) ->  | AG50: =HLOOKUP("שיעור לתלמיד 9: מבשרי הציונות וחיבת ציון - שיעור לתלמיד",grade_report!$3:$100,ROWS($A$4:H53),0) ->  | AH50: =HLOOKUP("סיכום פרק 10: מבשרי הציונות וחיבת ציון - משימת סיכום",grade_report!$3:$100,ROWS($A$4:H53),0) ->  | AI50: =HLOOKUP("הפנמה 4: מבשרי הציונות וחיבת ציון - משימת הפנמה",grade_report!$3:$100,ROWS($A$4:AC53),0) ->  | AJ50: =HLOOKUP("העשרה 4: מבשרי הציונות וחיבת ציון - משימת העשרה",grade_report!$3:$100,ROWS($A$4:AD53),0) ->  | AL50: =HLOOKUP("שיעור לתלמיד 10: התנועה הציונית והרצל - שיעור לתלמיד",grade_report!$3:$100,ROWS($A$4:M53),0) ->  | AM50: =HLOOKUP("סיכום פרק 11: התנועה הציונית והרצל - משימת סיכום - סוף ימיו של הרצל",grade_report!$3:$100,ROWS($A$4:M53),0) ->  | AN50: =HLOOKUP("הפנמה 5: התנועה הציונית והרצל - משימת הפנמה",grade_report!$3:$100,ROWS($A$4:AH53),0) ->  | AO50: =HLOOKUP("העשרה 5: התנועה הציונית והרצל - משימת העשרה",grade_report!$3:$100,ROWS($A$4:AI53),0) ->  | AQ50: =HLOOKUP("שיעור לתלמיד 11: מפלגות, זרמים ומתנגדים - שיעור לתלמיד",grade_report!$3:$100,ROWS($A$4:R53),0) ->  | AR50: =HLOOKUP("סיכום פרק 12: מפלגות, זרמים ומתנגדים - משימת סיכום",grade_report!$3:$100,ROWS($A$4:R53),0) ->  | AS50: =HLOOKUP("הפנמה 6: מפלגות, זרמים ומתנגדים - משימת הפנמה",grade_report!$3:$100,ROWS($A$4:AM53),0) ->  | AT50: =HLOOKUP("העשרה 6: מפלגות, זרמים ומתנגדים - משימת העשרה",grade_report!$3:$100,ROWS($A$4:AN53),0) ->  | AV50: =HLOOKUP("סיכום קורס-ש' סגורות",grade_report!$3:$100,ROWS($A$4:AP50),0) ->  | AW50: =HLOOKUP("סיכום קורס-ש' פתוחות",grade_report!$3:$100,ROWS($A$4:AQ50),0) ->  | AX50: =HLOOKUP("תלמידאות",grade_report!$3:$100,ROWS($A$4:AR50),0) -> 0

Sheet לפי תתי פרקים
A1: Date Updated :2021-11-10-1239 | D1: נאורוּת | E1: מעמד היהודים משלהי המאה ה-18 ועד תחילת המאה ה-20 | F1: מעמד היהודים משלהי המאה ה-18 ועד תחילת המאה ה-20 | G1: מעמד היהודים משלהי המאה ה-18 ועד תחילת המאה ה-20 | H1: מעמד היהודים משלהי המאה ה-18 ועד תחילת המאה ה-20 | I1: תנועת ההשכלה היהודית | J1: תנועות וזרמים יהודיים | K1: מבשרי הציונות וחיבת ציון | L1: התנועה הציונית והרצל | M1: מפלגות, זרמים ומתנגדים | N1: נאורוּת | O1: מעמד היהודים משלהי המאה ה-18 ועד תחילת המאה ה-20 | P1: מעמד היהודים משלהי המאה ה-18 ועד תחילת המאה ה-20 | Q1: מעמד היהודים משלהי המאה ה-18 ועד תחילת המאה ה-20 | R1: מעמד היהודים משלהי המאה ה-18 ועד תחילת המאה ה-20 | S1: תנועת ההשכלה היהודית | T1: תנועות וזרמים יהודיים | U1: מבשרי הציונות וחיבת ציון | V1: התנועה הציונית והרצל | W1: מפלגות, זרמים ומתנגדים | X1: נאורוּת | Y1: מעמד היהודים משלהי המאה ה-18 ועד תחילת המאה ה-20 | Z1: מבשרי הציונות וחיבת ציון | AA1: התנועה הציונית והרצל | AB1: מפלגות, זרמים ומתנגדים | AC1: נאורוּת | AD1: מעמד היהודים משלהי המאה ה-18 ועד תחילת המאה ה-20 | AE1: מבשרי הציונות וחיבת ציון | AF1: התנועה הציונית והרצל | AG1: מפלגות, זרמים ומתנגדים | AH1: תלמידאות | AP1: פרק ג'
A2: Username | B2: Email | C2: Grade | D2: שיעור לתלמיד 1: נאורוּת - שיעור לתלמיד | E2: שיעור לתלמיד 2: השינויים במעמד המשפטי של יהודי צרפת משלהי המאה ה-18 עד ראשית המאה ה-20 - תת פרק לבחירה | F2: שיעור לתלמיד 3: השינויים במעמד המשפטי של יהודי גרמניה משלהי המאה ה-18 עד ראשית המאה ה-20 - תת פרק לבחירה | G2: שיעור לתלמיד 4: השינויים במעמד המשפטי של היהודים בארצות האסלאם - תהליך האמנציפציה באלג'יריה - תת פרק חובה | H2: שיעור לתלמיד 5: השלכות השינויים במעמד היהודים על החברה היהודית - תת פרק חובה | I2: שיעור לתלמיד 6: השפעת הנאורות על החברה היהודית - תת פרק חובה | J2: שיעור לתלמיד 7: ניאו אורתודוקסיה - חיוב המודרנה תוך שמירה קפדנית על מצוות הדת - שיעור לתלמיד | K2: שיעור לתלמיד 8: מבשרי הציונות וחיבת ציון - שיעור לתלמיד | L2: שיעור לתלמיד 9: התנועה הציונית והרצל - שיעור לתלמיד | M2: שיעור לתלמיד 10: מפלגות, זרמים ומתנגדים - שיעור לתלמיד | N2: סיכום פרק 1: נאורוּת - משימת סיכום | O2: סיכום פרק 2: השינויים במעמד המשפטי של יהודי צרפת משלהי המאה ה-18 עד ראשית המאה ה-20 -משימת סיכום | P2: סיכום פרק 3: השינויים במעמד המשפטי של יהודי גרמניה משלהי המאה ה-18 עד ראשית המאה ה-20 - תת פרק לבחירה -משימת סיכום | Q2: סיכום פרק 4: השינויים במעמד המשפטי של היהודים בארצות האסלאם - תהליך האמנציפציה באלג'יריה - משימת סיכום | R2: סיכום פרק 5: השפעת הליברליזם על תמורות בחברה היהודית - משימת סיכום - סיכום הסוגיה לכל הפרק | S2: סיכום פרק 6: השפעת הנאורות על החברה היהודית - תת פרק חובה - משימת סיכום | T2: סיכום פרק 7: ניאו אורתודוקסיה - חיוב המודרנה תוך שמירה קפדנית על מצוות הדת - משימת סיכום | U2: סיכום פרק 8: מבשרי הציונות וחיבת ציון - משימת סיכום | V2: סיכום פרק 9: התנועה הציונית והרצל - משימת סיכום - סוף ימיו של הרצל | W2: סיכום פרק 10: מפלגות, זרמים ומתנגדים - משימת סיכום | X2: הפנמה 1: נאורוּת - משימת הפנמה | Y2: הפנמה 2: מעמד היהודים משלהי המאה ה-18 ועד תחילת המאה ה-20 - משימת הפנמה לכל הפרק | Z2: הפנמה 3: מבשרי הציונות וחיבת ציון - משימת הפנמה | AA2: הפנמה 4: התנועה הציונית והרצל - משימת הפנמה | AB2: הפנמה 5: מפלגות, זרמים ומתנגדים - משימת הפנמה | AC2: העשרה 1: נאורוּת - משימת העשרה | AD2: העשרה 2: מעמד היהודים משלהי המאה ה-18 ועד תחילת המאה ה-20 - משימת העשרה לכל הפרק | AE2: העשרה 3: מבשרי הציונות וחיבת ציון - משימת העשרה | AF2: העשרה 4: התנועה הציונית והרצל - משימת העשרה | AG2: העשרה 5: מפלגות, זרמים ומתנגדים - משימת העשרה | AH2: תלמידאות | AI2: סיכום חלק א' 1: שאלה 1 לבחירה | AJ2: סיכום חלק א' 2: שאלה 2 לבחירה | AK2: סיכום חלק א' 3: שאלה 3 לבחירה | AL2: סיכום חלק א' 4: שאלה 4 לבחירה | AM2: סיכום חלק ב' 1: שאלה 1 לבחירה | AN2: סיכום חלק ב' 2: שאלה 2 לבחירה | AO2: סיכום חלק ב' 3: שאלה 3 לבחירה | AP2: סיכום חלק ג'
A3: RonitHochster | B3: ronithex@gmail.com | C3: 0 | D3: 0.0625
A4: Jamalk1 | B4: jamalk@mse.gov.il | C4: 0
A5: נועה_ביטון_4 | B5: noab5027@gmail.com | C5: 0.02 | D5: 0.9375 | E5: 0.125 | X5: 0.04761904762
A6: שקד_בן_דוד | B6: shakedbd24@gmail.com | C6: 0.01 | D6: 0.8125 | X6: 0.04761904762
A7: ליא גולדברג | B7: liagold02@gmail.com | C7: 0.08 | D7: 1 | F7: 0.72 | G7: 0.6666666667 | P7: 1 | X7: 0.04761904762
A8: lihi_davidi | B8: lihi.davidi@gmail.com | C8: 0.08 | D8: 0.9375 | E8: 0.5 | F8: 0.6 | G8: 0.3333333333 | P8: 1 | X8: 0.04761904762
A9: oriziv06 | B9: oriziv06@gmail.com | C9: 0
A10: אריאלה_חן_יעקב_חי | B10: arielachen10@gmail.com | C10: 0.07 | D10: 1 | F10: 0.56 | G10: 0.3333333333 | P10: 1 | X10: 0.04761904762
A11: ליאם_פחימה | B11: liempahima21@gmail.com | C11: 0.12 | D11: 1 | E11: 0.875 | F11: 0.76 | G11: 0.3333333333 | O11: 1 | P11: 0.75 | X11: 0.04761904762
A12: אלה_רן | B12: elaran28@gmail.com | C12: 0.02 | D12: 0.9375 | E12: 0.5 | X12: 0.04761904762
A13: אורי בלונדר | B13: blonderori@gmail.com | C13: 0.12 | D13: 0.9375 | E13: 0.7 | G13: 1 | O13: 1 | Q13: 1 | X13: 0.04761904762
A14: יעל גרינוולד | B14: coolyaelg@gmail.com | C14: 0.08 | D14: 0.8697916667 | E14: 1 | G14: 0.6666666667 | O14: 1 | X14: 0.04761904762
A15: עדי_יוסף_3 | B15: adi8yosef@gmail.com | C15: 0.13 | D15: 1 | E15: 0.875 | G15: 1 | O15: 1 | Q15: 1 | X15: 0.04761904762
A16: אליה תמרי | B16: eliyatamari@gmail.com | C16: 0.07 | D16: 1 | E16: 0.85 | O16: 1 | X16: 0.04761904762
A17: אדירה_חנה_יעקב | B17: adira.yaacov@gmail.com | C17: 0.07 | D17: 1 | E17: 0.575 | O17: 1
A18: דולב_בן_צור | B18: dolev1231bt@gmail.com | C18: 0
A19: טליה_דוד_1 | B19: talya123david@gmail.com | C19: 0.08 | D19: 0.9947916667 | E19: 1 | F19: 0.4 | O19: 1 | X19: 0.04761904762
A20: נטע_הייזלר | B20: netah10000@gmail.com | C20: 0.08 | F20: 0.76 | G20: 0.6666666667 | H20: 0.5 | P20: 0.5 | Q20: 0.75
A21: תהל_חזות | B21: tahel1.ch@gmail.com | C21: 0.07 | D21: 1 | F21: 0.76 | P21: 1 | X21: 0.04761904762
A22: לילך סמואל | B22: samuellilach33@gmail.com | C22: 0.07 | D22: 0.875 | E22: 1 | F22: 0.4 | O22: 0.75 | X22: 0.04761904762
A23: שחר_68 | B23: shaharnov8@gmail.com | C23: 0
A24: שחר_נוב | B24: shrnov1@gmail.com | C24: 0.08 | D24: 1 | E24: 0.875 | F24: 0.6 | O24: 1 | X24: 0.04761904762
A25: shani_hirsch | B25: shanih2308@gmail.com | C25: 0.05 | D25: 0.8125 | E25: 0.625 | O25: 0.75 | X25: 0.04761904762
A26: tal_tillinger | B26: tal.tillinger2@gmail.com | C26: 0.07 | D26: 1 | E26: 0.7 | O26: 1 | X26: 0.04761904762
A27: תהל_יהושע | B27: tahel030@gmail.com | C27: 0.12 | D27: 1 | E27: 0.875 | F27: 1 | O27: 1 | P27: 0.75 | X27: 0.04761904762
A28: ענבל_אברמזון | B28: inbalav9@gmail.com | C28: 0.11 | D28: 1 | E28: 0.875 | F28: 0.56 | O28: 0.75 | P28: 1 | X28: 0.04761904762
A29: יהלי_גיליס | B29: yahli.gillis@gmail.com | C29: 0.04 | D29: 0.875 | E29: 0.325 | O29: 0.5 | X29: 0.04761904762
A30: אוריה_אלהרר | B30: oriyaelharar1@gmail.com | C30: 0.1 | D30: 0.875 | G30: 0 | O30: 0.75 | P30: 1 | Q30: 0.5

Sheet menu
A1: מזהה קובץ ציונים | B1: grade_report | C1: רכיבי ציון
A2: מזהה קובץ נתוני בעיות | B2: problem_grade_report | C2: שיעור לתלמיד | D2: 1
A3: תחילית שם קובץ | B3: EDU | C3: סיכום פרק | D3: 2
A4: גיליון תתי פרקים | B4: לפי תתי פרקים | C4: הפנמה | D4: 3
A5: גיליון בעיות | B5: לפי שאלות | C5: העשרה | D5: 4
A6: אורך מחרוזת התאריך בשם הקובץ | B6: 15 | C6: תלמידאות | D6: 5
A7: צבע כותרות ציונים (רקע התא) | C7: מטלה סופית חלק א | D7: 6
A8: להשאיר קובץ נתונים לא מעובד? yes / no | B8: no | C8: מטלה סופית חלק ב | D8: 7
A9: להסתיר גיליון אינדקס yes / no | B9: no | C9: מטלה סופית חלק ג | D9: 8
A10: שם הקובץ - לא לשנות | B10: EDU_EDU005_1_2020_ccx_4413_grade_report_2021-11-10-1239 | D10: 9
A11: גבול ציון גבוה | B11: 0.85 | D11: 10
A12: צבע ציון גבוה (רקע התא)
A13: גבול ציון נמוך | B13: 0.55
A14: צבע ציון נמוך (רקע התא)
A15: צבע רכיב ציון שאלונים (רקע התא)
A16: גיליון אינדקס קורסים, פרקים ותתי פרקים | B16: courses_index
A17: גיליון תבנית ציונים | B17: תבנית דוח ציונים
A18: גיליון תבנית בעיות | B18: תבנית דוח בעיות
A19: תוספת להתעלם ממנה בשם הקובץ | B19: ccx
A20: צבע רכיב ציון 1 (רקע התא)
A21: צבע רכיב ציון 2 (רקע התא)
A22: צבע רכיב ציון 3 (רקע התא)
A23: צבע רכיב ציון 4 (רקע התא)
A24: צבע רכיב ציון 5 (רקע התא)
A25: צבע רכיב ציון 6 (רקע התא)
A26: צבע רכיב ציון 7 (רקע התא)
A27: צבע רכיב ציון 8 (רקע התא)
A28: צבע רכיב ציון 9 (רקע התא)
A29: צבע רכיב ציון 10 (רקע התא)
A99: צבע ציון גבוה | B99: 16711680
A100: גבול ציון נמוך | B100: 0.55
A101: צבע ציון נמוך | B101: 255
A102: צבע רכיב ציון שאלונים | B102: 65535
A140: הודעות
A141: הודעת מערכת מס':
A142: לא ניתן למשוך בגירסת אקסל זו
A143: Date Updated :
A144: לא נמצאה העמודה
A145: ניתן להמשיך
A146: הקובץ שנבחר אינו מתאים
A147: לא נבחר אף פרק
A148: תת פרק בשם
A149: לא ניתן למצוא את שם הקורס
A150: הקורס לא מופיע באינדקס הקורסים
A151: לקורס יש רק שורה אחת באינדקס הקורסים
A152: תקלה בעיצוב השורה הראשונה

Sheet grade_report
A2: מכיל מידע מוגן לפי חוק הגנת הפרטיות - המוסר שלא כדין עובר עבירה"
A3: Student ID | B3: Email | C3: Username | D3: Grade | E3: שיעור לתלמיד 1: נאורוּת - שיעור לתלמיד | F3: שיעור לתלמיד 2: השינויים במעמד המשפטי של יהודי צרפת משלהי המאה ה-18 עד ראשית המאה ה-20 - תת פרק לבחירה | G3: שיעור לתלמיד 3: השינויים במעמד המשפטי של יהודי גרמניה משלהי המאה ה-18 עד ראשית המאה ה-20 - תת פרק לבחירה | H3: שיעור לתלמיד 4: השינויים במעמד המשפטי של היהודים בארצות האסלאם - תהליך האמנציפציה באלג'יריה - תת פרק חובה | I3: שיעור לתלמיד 5: השלכות השינויים במעמד היהודים על החברה היהודית - תת פרק חובה | J3: שיעור לתלמיד 6: השפעת הנאורות על החברה היהודית - תת פרק חובה | K3: שיעור לתלמיד 7: ניאו אורתודוקסיה - חיוב המודרנה תוך שמירה קפדנית על מצוות הדת - שיעור לתלמיד | L3: שיעור לתלמיד 8: מבשרי הציונות וחיבת ציון - שיעור לתלמיד | M3: שיעור לתלמיד 9: התנועה הציונית והרצל - שיעור לתלמיד | N3: שיעור לתלמיד 10: מפלגות, זרמים ומתנגדים - שיעור לתלמיד | O3: שיעור לתלמיד (Avg) | P3: סיכום פרק 1: נאורוּת - משימת סיכום | Q3: סיכום פרק 2: השינויים במעמד המשפטי של יהודי צרפת משלהי המאה ה-18 עד ראשית המאה ה-20 -משימת סיכום | R3: סיכום פרק 3: השינויים במעמד המשפטי של יהודי גרמניה משלהי המאה ה-18 עד ראשית המאה ה-20 - תת פרק לבחירה -משימת סיכום | S3: סיכום פרק 4: השינויים במעמד המשפטי של היהודים בארצות האסלאם - תהליך האמנציפציה באלג'יריה - משימת סיכום | T3: סיכום פרק 5: השפעת הליברליזם על תמורות בחברה היהודית - משימת סיכום - סיכום הסוגיה לכל הפרק | U3: סיכום פרק 6: השפעת הנאורות על החברה היהודית - תת פרק חובה - משימת סיכום | V3: סיכום פרק 7: ניאו אורתודוקסיה - חיוב המודרנה תוך שמירה קפדנית על מצוות הדת - משימת סיכום | W3: סיכום פרק 8: מבשרי הציונות וחיבת ציון - משימת סיכום | X3: סיכום פרק 9: התנועה הציונית והרצל - משימת סיכום - סוף ימיו של הרצל | Y3: סיכום פרק 10: מפלגות, זרמים ומתנגדים - משימת סיכום | Z3: סיכום פרק (Avg) | AA3: הפנמה 1: נאורוּת - משימת הפנמה | AB3: הפנמה 2: מעמד היהודים משלהי המאה ה-18 ועד תחילת המאה ה-20 - משימת הפנמה לכל הפרק | AC3: הפנמה 3: מבשרי הציונות וחיבת ציון - משימת הפנמה | AD3: הפנמה 4: התנועה הציונית והרצל - משימת הפנמה | AE3: הפנמה 5: מפלגות, זרמים ומתנגדים - משימת הפנמה | AF3: הפנמה (Avg) | AG3: העשרה 1: נאורוּת - משימת העשרה | AH3: העשרה 2: מעמד היהודים משלהי המאה ה-18 ועד תחילת המאה ה-20 - משימת העשרה לכל הפרק | AI3: העשרה 3: מבשרי הציונות וחיבת ציון - משימת העשרה | AJ3: העשרה 4: התנועה הציונית והרצל - משימת העשרה | AK3: העשרה 5: מפלגות, זרמים ומתנגדים - משימת העשרה | AL3: העשרה (Avg) | AM3: תלמידאות | AN3: סיכום חלק א' 1: שאלה 1 לבחירה | AO3: סיכום חלק א' 2: שאלה 2 לבחירה | AP3: סיכום חלק א' 3: שאלה 3 לבחירה | AQ3: סיכום חלק א' 4: שאלה 4 לבחירה | AR3: סיכום חלק א' (Avg) | AS3: סיכום חלק ב' 1: שאלה 1 לבחירה | AT3: סיכום חלק ב' 2: שאלה 2 לבחירה | AU3: סיכום חלק ב' 3: שאלה 3 לבחירה | AV3: סיכום חלק ב' (Avg) | AW3: סיכום חלק ג' | AX3: Enrollment Track | AY3: Verification Status | AZ3: Certificate Eligible | BA3: Certificate Delivered | BB3: Certificate Type | BC3: Enrollment Status
A4: 5648 | B4: ronithex@gmail.com | C4: RonitHochster | D4: 0 | E4: 0.0625 | F4: Not Attempted | G4: Not Attempted | H4: Not Attempted | I4: Not Attempted | J4: Not Attempted | K4: Not Attempted | L4: Not Attempted | M4: Not Attempted | N4: Not Attempted | O4: 0.001041666667 | P4: Not Attempted | Q4: Not Attempted | R4: Not Attempted | S4: Not Attempted | T4: Not Attempted | U4: Not Attempted | V4: Not Attempted | W4: Not Attempted | X4: Not Attempted | Y4: Not Attempted | Z4: 0 | AA4: Not Attempted | AB4: Not Attempted | AC4: Not Attempted | AD4: Not Attempted | AE4: Not Attempted | AF4: 0 | AG4: Not Attempted | AH4: Not Attempted | AI4: Not Attempted | AJ4: Not Attempted | AK4: Not Attempted | AL4: 0 | AM4: Not Attempted | AN4: Not Available | AO4: Not Available | AP4: Not Available | AQ4: Not Available | AR4: 0 | AS4: Not Available | AT4: Not Available | AU4: Not Available | AV4: 0 | AW4: Not Available | AX4: audit | AY4: N/A | AZ4: N | BA4: N | BB4: N/A | BC4: enrolled
A5: 103479 | B5: jamalk@mse.gov.il | C5: Jamalk1 | D5: 0 | E5: Not Attempted | F5: Not Attempted | G5: Not Attempted | H5: Not Attempted | I5: Not Attempted | J5: Not Attempted | K5: Not Attempted | L5: Not Attempted | M5: Not Attempted | N5: Not Attempted | O5: 0 | P5: Not Attempted | Q5: Not Attempted | R5: Not Attempted | S5: Not Attempted | T5: Not Attempted | U5: Not Attempted | V5: Not Attempted | W5: Not Attempted | X5: Not Attempted | Y5: Not Attempted | Z5: 0 | AA5: Not Attempted | AB5: Not Attempted | AC5: Not Attempted | AD5: Not Attempted | AE5: Not Attempted | AF5: 0 | AG5: Not Attempted | AH5: Not Attempted | AI5: Not Attempted | AJ5: Not Attempted | AK5: Not Attempted | AL5: 0 | AM5: Not Attempted | AN5: Not Available | AO5: Not Available | AP5: Not Available | AQ5: Not Available | AR5: 0 | AS5: Not Available | AT5: Not Available | AU5: Not Available | AV5: 0 | AW5: Not Available | AX5: audit | AY5: N/A | AZ5: N | BA5: N | BB5: N/A | BC5: enrolled
A6: 473058 | B6: noab5027@gmail.com | C6: נועה_ביטון_4 | D6: 0.02 | E6: 0.9375 | F6: 0.125 | G6: Not Attempted | H6: Not Attempted | I6: Not Attempted | J6: Not Attempted | K6: Not Attempted | L6: Not Attempted | M6: Not Available | N6: Not Available | O6: 0.01770833333 | P6: Not Attempted | Q6: Not Attempted | R6: Not Attempted | S6: Not Attempted | T6: Not Attempted | U6: Not Attempted | V6: Not Attempted | W6: Not Attempted | X6: Not Available | Y6: Not Available | Z6: 0 | AA6: 0.04761904762 | AB6: Not Attempted | AC6: Not Attempted | AD6: Not Available | AE6: Not Available | AF6: 0 | AG6: Not Attempted | AH6: Not Attempted | AI6: Not Attempted | AJ6: Not Available | AK6: Not Available | AL6: 0 | AM6: Not Available | AN6: Not Available | AO6: Not Available | AP6: Not Available | AQ6: Not Available | AR6: 0 | AS6: Not Available | AT6: Not Available | AU6: Not Available | AV6: 0 | AW6: Not Available | AX6: audit | AY6: N/A | AZ6: N | BA6: N | BB6: N/A | BC6: enrolled
A7: 473727 | B7: shakedbd24@gmail.com | C7: שקד_בן_דוד | D7: 0.01 | E7: 0.8125 | F7: Not Attempted | G7: Not Attempted | H7: Not Attempted | I7: Not Attempted | J7: Not Attempted | K7: Not Attempted | L7: Not Attempted | M7: Not Available | N7: Not Available | O7: 0.01354166667 | P7: Not Attempted | Q7: Not Attempted | R7: Not Attempted | S7: Not Attempted | T7: Not Attempted | U7: Not Attempted | V7: Not Attempted | W7: Not Attempted | X7: Not Available | Y7: Not Available | Z7: 0 | AA7: 0.04761904762 | AB7: Not Attempted | AC7: Not Attempted | AD7: Not Available | AE7: Not Available | AF7: 0 | AG7: Not Attempted | AH7: Not Attempted | AI7: Not Attempted | AJ7: Not Available | AK7: Not Available | AL7: 0 | AM7: Not Available | AN7: Not Available | AO7: Not Available | AP7: Not Available | AQ7: Not Available | AR7: 0 | AS7: Not Available | AT7: Not Available | AU7: Not Available | AV7: 0 | AW7: Not Available | AX7: audit | AY7: N/A | AZ7: N | BA7: N | BB7: N/A | BC7: enrolled
A8: 472244 | B8: liagold02@gmail.com | C8: ליא גולדברג | D8: 0.08 | E8: 1 | F8: Not Attempted | G8: 0.72 | H8: 0.6666666667 | I8: Not Attempted | J8: Not Attempted | K8: Not Attempted | L8: Not Attempted | M8: Not Available | N8: Not Available | O8: 0.03977777778 | P8: Not Attempted | Q8: Not Attempted | R8: 1 | S8: Not Attempted | T8: Not Attempted | U8: Not Attempted | V8: Not Attempted | W8: Not Attempted | X8: Not Available | Y8: Not Available | Z8: 0.03888888889 | AA8: 0.04761904762 | AB8: Not Attempted | AC8: Not Attempted | AD8: Not Available | AE8: Not Available | AF8: 0 | AG8: Not Attempted | AH8: Not Attempted | AI8: Not Attempted | AJ8: Not Available | AK8: Not Available | AL8: 0 | AM8: Not Available | AN8: Not Available | AO8: Not Available | AP8: Not Available | AQ8: Not Available | AR8: 0 | AS8: Not Available | AT8: Not Available | AU8: Not Available | AV8: 0 | AW8: Not Available | AX8: audit | AY8: N/A | AZ8: N | BA8: N | BB8: N/A | BC8: enrolled
A9: 229895 | B9: lihi.davidi@gmail.com | C9: lihi_davidi | D9: 0.08 | E9: 0.9375 | F9: 0.5 | G9: 0.6 | H9: 0.3333333333 | I9: Not Attempted | J9: Not Attempted | K9: Not Attempted | L9: Not Attempted | M9: Not Available | N9: Not Available | O9: 0.03951388889 | P9: Not Attempted | Q9: Not Attempted | R9: 1 | S9: Not Attempted | T9: Not Attempted | U9: Not Attempted | V9: Not Attempted | W9: Not Attempted | X9: Not Available | Y9: Not Available | Z9: 0.03888888889 | AA9: 0.04761904762 | AB9: Not Attempted | AC9: Not Attempted | AD9: Not Available | AE9: Not Available | AF9: 0 | AG9: Not Attempted | AH9: Not Attempted | AI9: Not Attempted | AJ9: Not Available | AK9: Not Available | AL9: 0 | AM9: Not Available | AN9: Not Available | AO9: Not Available | AP9: Not Available | AQ9: Not Available | AR9: 0 | AS9: Not Available | AT9: Not Available | AU9: Not Available | AV9: 0 | AW9: Not Available | AX9: audit | AY9: N/A | AZ9: N | BA9: N | BB9: N/A | BC9: enrolled
A10: 481976 | B10: oriziv06@gmail.com | C10: oriziv06 | D10: 0 | E10: Not Attempted | F10: Not Attempted | G10: Not Attempted | H10: Not Attempted | I10: Not Attempted | J10: Not Attempted | K10: Not Attempted | L10: Not Attempted | M10: Not Available | N10: Not Available | O10: 0 | P10: Not Attempted | Q10: Not Attempted | R10: Not Attempted | S10: Not Attempted | T10: Not Attempted | U10: Not Attempted | V10: Not Attempted | W10: Not Attempted | X10: Not Available | Y10: Not Available | Z10: 0 | AA10: Not Attempted | AB10: Not Attempted | AC10: Not Attempted | AD10: Not Available | AE10: Not Available | AF10: 0 | AG10: Not Attempted | AH10: Not Attempted | AI10: Not Attempted | AJ10: Not Available | AK10: Not Available | AL10: 0 | AM10: Not Available | AN10: Not Available | AO10: Not Available | AP10: Not Available | AQ10: Not Available | AR10: 0 | AS10: Not Available | AT10: Not Available | AU10: Not Available | AV10: 0 | AW10: Not Available | AX10: audit | AY10: N/A | AZ10: N | BA10: N | BB10: N/A | BC10: enrolled
A11: 471680 | B11: arielachen10@gmail.com | C11: אריאלה_חן_יעקב_חי | D11: 0.07 | E11: 1 | F11: Not Attempted | G11: 0.56 | H11: 0.3333333333 | I11: Not Attempted | J11: Not Attempted | K11: Not Attempted | L11: Not Attempted | M11: Not Available | N11: Not Available | O11: 0.03155555556 | P11: Not Attempted | Q11: Not Attempted | R11: 1 | S11: Not Attempted | T11: Not Attempted | U11: Not Attempted | V11: Not Attempted | W11: Not Attempted | X11: Not Available | Y11: Not Available | Z11: 0.03888888889 | AA11: 0.04761904762 | AB11: Not Attempted | AC11: Not Attempted | AD11: Not Available | AE11: Not Available | AF11: 0 | AG11: Not Attempted | AH11: Not Attempted | AI11: Not Attempted | AJ11: Not Available | AK11: Not Available | AL11: 0 | AM11: Not Available | AN11: Not Available | AO11: Not Available | AP11: Not Available | AQ11: Not Available | AR11: 0 | AS11: Not Available | AT11: Not Available | AU11: Not Available | AV11: 0 | AW11: Not Available | AX11: audit | AY11: N/A | AZ11: N | BA11: N | BB11: N/A | BC11: enrolled
A12: 472219 | B12: liempahima21@gmail.com | C12: ליאם_פחימה | D12: 0.12 | E12: 1 | F12: 0.875 | G12: 0.76 | H12: 0.3333333333 | I12: Not Attempted | J12: Not Attempted | K12: Not Attempted | L12: Not Attempted | M12: Not Available | N12: Not Available | O12: 0.04947222222 | P12: Not Attempted | Q12: 1 | R12: 0.75 | S12: Not Attempted | T12: Not Attempted | U12: Not Attempted | V12: Not Attempted | W12: Not Attempted | X12: Not Available | Y12: Not Available | Z12: 0.06805555556 | AA12: 0.04761904762 | AB12: Not Attempted | AC12: Not Attempted | AD12: Not Available | AE12: Not Available | AF12: 0 | AG12: Not Attempted | AH12: Not Attempted | AI12: Not Attempted | AJ12: Not Available | AK12: Not Available | AL12: 0 | AM12: Not Available | AN12: Not Available | AO12: Not Available | AP12: Not Available | AQ12: Not Available | AR12: 0 | AS12: Not Available | AT12: Not Available | AU12: Not Available | AV12: 0 | AW12: Not Available | AX12: audit | AY12: N/A | AZ12: N | BA12: N | BB12: N/A | BC12: enrolled
A13: 414940 | B13: elaran28@gmail.com | C13: אלה_רן | D13: 0.02 | E13: 0.9375 | F13: 0.5 | G13: Not Attempted | H13: Not Attempted | I13: Not Attempted | J13: Not Attempted | K13: Not Attempted | L13: Not Attempted | M13: Not Available | N13: Not Available | O13: 0.02395833333 | P13: Not Attempted | Q13: Not Attempted | R13: Not Attempted | S13: Not Attempted | T13: Not Attempted | U13: Not Attempted | V13: Not Attempted | W13: Not Attempted | X13: Not Available | Y13: Not Available | Z13: 0 | AA13: 0.04761904762 | AB13: Not Attempted | AC13: Not Attempted | AD13: Not Available | AE13: Not Available | AF13: 0 | AG13: Not Attempted | AH13: Not Attempted | AI13: Not Attempted | AJ13: Not Available | AK13: Not Available | AL13: 0 | AM13: Not Available | AN13: Not Available | AO13: Not Available | AP13: Not Available | AQ13: Not Available | AR13: 0 | AS13: Not Available | AT13: Not Available | AU13: Not Available | AV13: 0 | AW13: Not Available | AX13: audit | AY13: N/A | AZ13: N | BA13: N | BB13: N/A | BC13: enrolled
A14: 471775 | B14: blonderori@gmail.com | C14: אורי בלונדר | D14: 0.12 | E14: 0.9375 | F14: 0.7 | G14: Not Attempted | H14: 1 | I14: Not Attempted | J14: Not Attempted | K14: Not Attempted | L14: Not Attempted | M14: Not Available | N14: Not Available | O14: 0.04395833333 | P14: Not Attempted | Q14: 1 | R14: Not Attempted | S14: 1 | T14: Not Attempted | U14: Not Attempted | V14: Not Attempted | W14: Not Attempted | X14: Not Available | Y14: Not Available | Z14: 0.07777777778 | AA14: 0.04761904762 | AB14: Not Attempted | AC14: Not Attempted | AD14: Not Available | AE14: Not Available | AF14: 0 | AG14: Not Attempted | AH14: Not Attempted | AI14: Not Attempted | AJ14: Not Available | AK14: Not Available | AL14: 0 | AM14: Not Available | AN14: Not Available | AO14: Not Available | AP14: Not Available | AQ14: Not Available | AR14: 0 | AS14: Not Available | AT14: Not Available | AU14: Not Available | AV14: 0 | AW14: Not Available | AX14: audit | AY14: N/A | AZ14: N | BA14: N | BB14: N/A | BC14: enrolled
A15: 481908 | B15: coolyaelg@gmail.com | C15: יעל גרינוולד | D15: 0.08 | E15: 0.8697916667 | F15: 1 | G15: Not Attempted | H15: 0.6666666667 | I15: Not Attempted | J15: Not Attempted | K15: Not Attempted | L15: Not Attempted | M15: Not Available | N15: Not Available | O15: 0.04227430556 | P15: Not Attempted | Q15: 1 | R15: Not Attempted | S15: Not Attempted | T15: Not Attempted | U15: Not Attempted | V15: Not Attempted | W15: Not Attempted | X15: Not Available | Y15: Not Available | Z15: 0.03888888889 | AA15: 0.04761904762 | AB15: Not Attempted | AC15: Not Attempted | AD15: Not Available | AE15: Not Available | AF15: 0 | AG15: Not Attempted | AH15: Not Attempted | AI15: Not Attempted | AJ15: Not Available | AK15: Not Available | AL15: 0 | AM15: Not Available | AN15: Not Available | AO15: Not Available | AP15: Not Available | AQ15: Not Available | AR15: 0 | AS15: Not Available | AT15: Not Available | AU15: Not Available | AV15: 0 | AW15: Not Available | AX15: audit | AY15: N/A | AZ15: N | BA15: N | BB15: N/A | BC15: enrolled
A16: 471836 | B16: adi8yosef@gmail.com | C16: עדי_יוסף_3 | D16: 0.13 | E16: 1 | F16: 0.875 | G16: Not Attempted | H16: 1 | I16: Not Attempted | J16: Not Attempted | K16: Not Attempted | L16: Not Attempted | M16: Not Available | N16: Not Available | O16: 0.04791666667 | P16: Not Attempted | Q16: 1 | R16: Not Attempted | S16: 1 | T16: Not Attempted | U16: Not Attempted | V16: Not Attempted | W16: Not Attempted | X16: Not Available | Y16: Not Available | Z16: 0.07777777778 | AA16: 0.04761904762 | AB16: Not Attempted | AC16: Not Attempted | AD16: Not Available | AE16: Not Available | AF16: 0 | AG16: Not Attempted | AH16: Not Attempted | AI16: Not Attempted | AJ16: Not Available | AK16: Not Available | AL16: 0 | AM16: Not Available | AN16: Not Available | AO16: Not Available | AP16: Not Available | AQ16: Not Available | AR16: 0 | AS16: Not Available | AT16: Not Available | AU16: Not Available | AV16: 0 | AW16: Not Available | AX16: audit | AY16: N/A | AZ16: N | BA16: N | BB16: N/A | BC16: enrolled
A17: 471796 | B17: eliyatamari@gmail.com | C17: אליה תמרי | D17: 0.07 | E17: 1 | F17: 0.85 | G17: Not Attempted | H17: Not Attempted | I17: Not Attempted | J17: Not Attempted | K17: Not Attempted | L17: Not Attempted | M17: Not Available | N17: Not Available | O17: 0.03083333333 | P17: Not Attempted | Q17: 1 | R17: Not Attempted | S17: Not Attempted | T17: Not Attempted | U17: Not Attempted | V17: Not Attempted | W17: Not Attempted | X17: Not Available | Y17: Not Available | Z17: 0.03888888889 | AA17: 0.04761904762 | AB17: Not Attempted | AC17: Not Attempted | AD17: Not Available | AE17: Not Available | AF17: 0 | AG17: Not Attempted | AH17: Not Attempted | AI17: Not Attempted | AJ17: Not Available | AK17: Not Available | AL17: 0 | AM17: Not Available | AN17: Not Available | AO17: Not Available | AP17: Not Available | AQ17: Not Available | AR17: 0 | AS17: Not Available | AT17: Not Available | AU17: Not Available | AV17: 0 | AW17: Not Available | AX17: audit | AY17: N/A | AZ17: N | BA17: N | BB17: N/A | BC17: enrolled
A18: 481910 | B18: adira.yaacov@gmail.com | C18: אדירה_חנה_יעקב | D18: 0.07 | E18: 1 | F18: 0.575 | G18: Not Attempted | H18: Not Attempted | I18: Not Attempted | J18: Not Attempted | K18: Not Attempted | L18: Not Attempted | M18: Not Available | N18: Not Available | O18: 0.02625 | P18: Not Attempted | Q18: 1 | R18: Not Attempted | S18: Not Attempted | T18: Not Attempted | U18: Not Attempted | V18: Not Attempted | W18: Not Attempted | X18: Not Available | Y18: Not Available | Z18: 0.03888888889 | AA18: Not Attempted | AB18: Not Attempted | AC18: Not Attempted | AD18: Not Available | AE18: Not Available | AF18: 0 | AG18: Not Attempted | AH18: Not Attempted | AI18: Not Attempted | AJ18: Not Available | AK18: Not Available | AL18: 0 | AM18: Not Available | AN18: Not Available | AO18: Not Available | AP18: Not Available | AQ18: Not Available | AR18: 0 | AS18: Not Available | AT18: Not Available | AU18: Not Available | AV18: 0 | AW18: Not Available | AX18: audit | AY18: N/A | AZ18: N | BA18: N | BB18: N/A | BC18: enrolled
A19: 471755 | B19: dolev1231bt@gmail.com | C19: דולב_בן_צור | D19: 0 | E19: Not Attempted | F19: Not Attempted | G19: Not Attempted | H19: Not Attempted | I19: Not Attempted | J19: Not Attempted | K19: Not Attempted | L19: Not Attempted | M19: Not Available | N19: Not Available | O19: 0 | P19: Not Attempted | Q19: Not Attempted | R19: Not Attempted | S19: Not Attempted | T19: Not Attempted | U19: Not Attempted | V19: Not Attempted | W19: Not Attempted | X19: Not Available | Y19: Not Available | Z19: 0 | AA19: Not Attempted | AB19: Not Attempted | AC19: Not Attempted | AD19: Not Available | AE19: Not Available | AF19: 0 | AG19: Not Attempted | AH19: Not Attempted | AI19: Not Attempted | AJ19: Not Available | AK19: Not Available | AL19: 0 | AM19: Not Available | AN19: Not Available | AO19: Not Available | AP19: Not Available | AQ19: Not Available | AR19: 0 | AS19: Not Available | AT19: Not Available | AU19: Not Available | AV19: 0 | AW19: Not Available | AX19: audit | AY19: N/A | AZ19: N | BA19: N | BB19: N/A | BC19: enrolled
A20: 473951 | B20: talya123david@gmail.com | C20: טליה_דוד_1 | D20: 0.08 | E20: 0.9947916667 | F20: 1 | G20: 0.4 | H20: Not Attempted | I20: Not Attempted | J20: Not Attempted | K20: Not Attempted | L20: Not Attempted | M20: Not Available | N20: Not Available | O20: 0.03991319444 | P20: Not Attempted | Q20: 1 | R20: Not Attempted | S20: Not Attempted | T20: Not Attempted | U20: Not Attempted | V20: Not Attempted | W20: Not Attempted | X20: Not Available | Y20: Not Available | Z20: 0.03888888889 | AA20: 0.04761904762 | AB20: Not Attempted | AC20: Not Attempted | AD20: Not Available | AE20: Not Available | AF20: 0 | AG20: Not Attempted | AH20: Not Attempted | AI20: Not Attempted | AJ20: Not Available | AK20: Not Available | AL20: 0 | AM20: Not Available | AN20: Not Available | AO20: Not Available | AP20: Not Available | AQ20: Not Available | AR20: 0 | AS20: Not Available | AT20: Not Available | AU20: Not Available | AV20: 0 | AW20: Not Available | AX20: audit | AY20: N/A | AZ20: N | BA20: N | BB20: N/A | BC20: enrolled
A21: 471949 | B21: netah10000@gmail.com | C21: נטע_הייזלר | D21: 0.08 | E21: Not Attempted | F21: Not Attempted | G21: 0.76 | H21: 0.6666666667 | I21: 0.5 | J21: Not Attempted | K21: Not Attempted | L21: Not Attempted | M21: Not Available | N21: Not Available | O21: 0.03211111111 | P21: Not Attempted | Q21: Not Attempted | R21: 0.5 | S21: 0.75 | T21: Not Attempted | U21: Not Attempted | V21: Not Attempted | W21: Not Attempted | X21: Not Available | Y21: Not Available | Z21: 0.04861111111 | AA21: Not Attempted | AB21: Not Attempted | AC21: Not Attempted | AD21: Not Available | AE21: Not Available | AF21: 0 | AG21: Not Attempted | AH21: Not Attempted | AI21: Not Attempted | AJ21: Not Available | AK21: Not Available | AL21: 0 | AM21: Not Available | AN21: Not Available | AO21: Not Available | AP21: Not Available | AQ21: Not Available | AR21: 0 | AS21: Not Available | AT21: Not Available | AU21: Not Available | AV21: 0 | AW21: Not Available | AX21: audit | AY21: N/A | AZ21: N | BA21: N | BB21: N/A | BC21: enrolled
A22: 472020 | B22: tahel1.ch@gmail.com | C22: תהל_חזות | D22: 0.07 | E22: 1 | F22: Not Attempted | G22: 0.76 | H22: Not Attempted | I22: Not Attempted | J22: Not Attempted | K22: Not Attempted | L22: Not Attempted | M22: Not Available | N22: Not Available | O22: 0.02933333333 | P22: Not Attempted | Q22: Not Attempted | R22: 1 | S22: Not Attempted | T22: Not Attempted | U22: Not Attempted | V22: Not Attempted | W22: Not Attempted | X22: Not Available | Y22: Not Available | Z22: 0.03888888889 | AA22: 0.04761904762 | AB22: Not Attempted | AC22: Not Attempted | AD22: Not Available | AE22: Not Available | AF22: 0 | AG22: Not Attempted | AH22: Not Attempted | AI22: Not Attempted | AJ22: Not Available | AK22: Not Available | AL22: 0 | AM22: Not Available | AN22: Not Available | AO22: Not Available | AP22: Not Available | AQ22: Not Available | AR22: 0 | AS22: Not Available | AT22: Not Available | AU22: Not Available | AV22: 0 | AW22: Not Available | AX22: audit | AY22: N/A | AZ22: N | BA22: N | BB22: N/A | BC22: enrolled
A23: 472186 | B23: samuellilach33@gmail.com | C23: לילך סמואל | D23: 0.07 | E23: 0.875 | F23: 1 | G23: 0.4 | H23: Not Attempted | I23: Not Attempted | J23: Not Attempted | K23: Not Attempted | L23: Not Attempted | M23: Not Available | N23: Not Available | O23: 0.03791666667 | P23: Not Attempted | Q23: 0.75 | R23: Not Attempted | S23: Not Attempted | T23: Not Attempted | U23: Not Attempted | V23: Not Attempted | W23: Not Attempted | X23: Not Available | Y23: Not Available | Z23: 0.02916666667 | AA23: 0.04761904762 | AB23: Not Attempted | AC23: Not Attempted | AD23: Not Available | AE23: Not Available | AF23: 0 | AG23: Not Attempted | AH23: Not Attempted | AI23: Not Attempted | AJ23: Not Available | AK23: Not Available | AL23: 0 | AM23: Not Available | AN23: Not Available | AO23: Not Available | AP23: Not Available | AQ23: Not Available | AR23: 0 | AS23: Not Available | AT23: Not Available | AU23: Not Available | AV23: 0 | AW23: Not Available | AX23: audit | AY23: N/A | AZ23: N | BA23: N | BB23: N/A | BC23: enrolled
A24: 471760 | B24: shaharnov8@gmail.com | C24: שחר_68 | D24: 0 | E24: Not Attempted | F24: Not Attempted | G24: Not Attempted | H24: Not Attempted | I24: Not Attempted | J24: Not Attempted | K24: Not Attempted | L24: Not Attempted | M24: Not Available | N24: Not Available | O24: 0 | P24: Not Attempted | Q24: Not Attempted | R24: Not Attempted | S24: Not Attempted | T24: Not Attempted | U24: Not Attempted | V24: Not Attempted | W24: Not Attempted | X24: Not Available | Y24: Not Available | Z24: 0 | AA24: Not Attempted | AB24: Not Attempted | AC24: Not Attempted | AD24: Not Available | AE24: Not Available | AF24: 0 | AG24: Not Attempted | AH24: Not Attempted | AI24: Not Attempted | AJ24: Not Available | AK24: Not Available | AL24: 0 | AM24: Not Available | AN24: Not Available | AO24: Not Available | AP24: Not Available | AQ24: Not Available | AR24: 0 | AS24: Not Available | AT24: Not Available | AU24: Not Available | AV24: 0 | AW24: Not Available | AX24: audit | AY24: N/A | AZ24: N | BA24: N | BB24: N/A | BC24: unenrolled
A25: 471784 | B25: shrnov1@gmail.com | C25: שחר_נוב | D25: 0.08 | E25: 1 | F25: 0.875 | G25: 0.6 | H25: Not Attempted | I25: Not Attempted | J25: Not Attempted | K25: Not Attempted | L25: Not Attempted | M25: Not Available | N25: Not Available | O25: 0.04125 | P25: Not Attempted | Q25: 1 | R25: Not Attempted | S25: Not Attempted | T25: Not Attempted | U25: Not Attempted | V25: Not Attempted | W25: Not Attempted | X25: Not Available | Y25: Not Available | Z25: 0.03888888889 | AA25: 0.04761904762 | AB25: Not Attempted | AC25: Not Attempted | AD25: Not Available | AE25: Not Available | AF25: 0 | AG25: Not Attempted | AH25: Not Attempted | AI25: Not Attempted | AJ25: Not Available | AK25: Not Available | AL25: 0 | AM25: Not Available | AN25: Not Available | AO25: Not Available | AP25: Not Available | AQ25: Not Available | AR25: 0 | AS25: Not Available | AT25: Not Available | AU25: Not Available | AV25: 0 | AW25: Not Available | AX25: audit | AY25: N/A | AZ25: N | BA25: N | BB25: N/A | BC25: enrolled
A26: 494376 | B26: shanih2308@gmail.com | C26: shani_hirsch | D26: 0.05 | E26: 0.8125 | F26: 0.625 | G26: Not Attempted | H26: Not Attempted | I26: Not Attempted | J26: Not Attempted | K26: Not Attempted | L26: Not Attempted | M26: Not Available | N26: Not Available | O26: 0.02395833333 | P26: Not Attempted | Q26: 0.75 | R26: Not Attempted | S26: Not Attempted | T26: Not Attempted | U26: Not Attempted | V26: Not Attempted | W26: Not Attempted | X26: Not Available | Y26: Not Available | Z26: 0.02916666667 | AA26: 0.04761904762 | AB26: Not Attempted | AC26: Not Attempted | AD26: Not Available | AE26: Not Available | AF26: 0 | AG26: Not Attempted | AH26: Not Attempted | AI26: Not Attempted | AJ26: Not Available | AK26: Not Available | AL26: 0 | AM26: Not Available | AN26: Not Available | AO26: Not Available | AP26: Not Available | AQ26: Not Available | AR26: 0 | AS26: Not Available | AT26: Not Available | AU26: Not Available | AV26: 0 | AW26: Not Available | AX26: audit | AY26: N/A | AZ26: N | BA26: N | BB26: N/A | BC26: enrolled
A27: 494618 | B27: tal.tillinger2@gmail.com | C27: tal_tillinger | D27: 0.07 | E27: 1 | F27: 0.7 | G27: Not Attempted | H27: Not Attempted | I27: Not Attempted | J27: Not Attempted | K27: Not Attempted | L27: Not Attempted | M27: Not Available | N27: Not Available | O27: 0.02833333333 | P27: Not Attempted | Q27: 1 | R27: Not Attempted | S27: Not Attempted | T27: Not Attempted | U27: Not Attempted | V27: Not Attempted | W27: Not Attempted | X27: Not Available | Y27: Not Available | Z27: 0.03888888889 | AA27: 0.04761904762 | AB27: Not Attempted | AC27: Not Attempted | AD27: Not Available | AE27: Not Available | AF27: 0 | AG27: Not Attempted | AH27: Not Attempted | AI27: Not Attempted | AJ27: Not Available | AK27: Not Available | AL27: 0 | AM27: Not Available | AN27: Not Available | AO27: Not Available | AP27: Not Available | AQ27: Not Available | AR27: 0 | AS27: Not Available | AT27: Not Available | AU27: Not Available | AV27: 0 | AW27: Not Available | AX27: audit | AY27: N/A | AZ27: N | BA27: N | BB27: N/A | BC27: enrolled
A28: 494796 | B28: tahel030@gmail.com | C28: תהל_יהושע | D28: 0.12 | E28: 1 | F28: 0.875 | G28: 1 | H28: Not Attempted | I28: Not Attempted | J28: Not Attempted | K28: Not Attempted | L28: Not Attempted | M28: Not Available | N28: Not Available | O28: 0.04791666667 | P28: Not Attempted | Q28: 1 | R28: 0.75 | S28: Not Attempted | T28: Not Attempted | U28: Not Attempted | V28: Not Attempted | W28: Not Attempted | X28: Not Available | Y28: Not Available | Z28: 0.06805555556 | AA28: 0.04761904762 | AB28: Not Attempted | AC28: Not Attempted | AD28: Not Available | AE28: Not Available | AF28: 0 | AG28: Not Attempted | AH28: Not Attempted | AI28: Not Attempted | AJ28: Not Available | AK28: Not Available | AL28: 0 | AM28: Not Available | AN28: Not Available | AO28: Not Available | AP28: Not Available | AQ28: Not Available | AR28: 0 | AS28: Not Available | AT28: Not Available | AU28: Not Available | AV28: 0 | AW28: Not Available | AX28: audit | AY28: N/A | AZ28: N | BA28: N | BB28: N/A | BC28: enrolled
A29: 495775 | B29: inbalav9@gmail.com | C29: ענבל_אברמזון | D29: 0.11 | E29: 1 | F29: 0.875 | G29: 0.56 | H29: Not Attempted | I29: Not Attempted | J29: Not Attempted | K29: Not Attempted | L29: Not Attempted | M29: Not Available | N29: Not Available | O29: 0.04058333333 | P29: Not Attempted | Q29: 0.75 | R29: 1 | S29: Not Attempted | T29: Not Attempted | U29: Not Attempted | V29: Not Attempted | W29: Not Attempted | X29: Not Available | Y29: Not Available | Z29: 0.06805555556 | AA29: 0.04761904762 | AB29: Not Attempted | AC29: Not Attempted | AD29: Not Available | AE29: Not Available | AF29: 0 | AG29: Not Attempted | AH29: Not Attempted | AI29: Not Attempted | AJ29: Not Available | AK29: Not Available | AL29: 0 | AM29: Not Available | AN29: Not Available | AO29: Not Available | AP29: Not Available | AQ29: Not Available | AR29: 0 | AS29: Not Available | AT29: Not Available | AU29: Not Available | AV29: 0 | AW29: Not Available | AX29: audit | AY29: N/A | AZ29: N | BA29: N | BB29: N/A | BC29: enrolled
A30: 498186 | B30: yahli.gillis@gmail.com | C30: יהלי_גיליס | D30: 0.04 | E30: 0.875 | F30: 0.325 | G30: Not Attempted | H30: Not Attempted | I30: Not Attempted | J30: Not Attempted | K30: Not Attempted | L30: Not Attempted | M30: Not Available | N30: Not Available | O30: 0.02 | P30: Not Attempted | Q30: 0.5 | R30: Not Attempted | S30: Not Attempted | T30: Not Attempted | U30: Not Attempted | V30: Not Attempted | W30: Not Attempted | X30: Not Available | Y30: Not Available | Z30: 0.01944444444 | AA30: 0.04761904762 | AB30: Not Attempted | AC30: Not Attempted | AD30: Not Available | AE30: Not Available | AF30: 0 | AG30: Not Attempted | AH30: Not Attempted | AI30: Not Attempted | AJ30: Not Available | AK30: Not Available | AL30: 0 | AM30: Not Available | AN30: Not Available | AO30: Not Available | AP30: Not Available | AQ30: Not Available | AR30: 0 | AS30: Not Available | AT30: Not Available | AU30: Not Available | AV30: 0 | AW30: Not Available | AX30: audit | AY30: N/A | AZ30: N | BA30: N | BB30: N/A | BC30: enrolled
A31: 498187 | B31: oriyaelharar1@gmail.com | C31: אוריה_אלהרר | D31: 0.1 | E31: 0.875 | F31: Not Attempted | G31: Not Attempted | H31: 0 | I31: Not Attempted | J31: Not Attempted | K31: Not Attempted | L31: Not Attempted | M31: Not Available | N31: Not Available | O31: 0.01458333333 | P31: Not Attempted | Q31: 0.75 | R31: 1 | S31: 0.5 | T31: Not Attempted | U31: Not Attempted | V31: Not Attempted | W31: Not Attempted | X31: Not Available | Y31: Not Available | Z31: 0.0875 | AA31: Not Attempted | AB31: Not Attempted | AC31: Not Attempted | AD31: Not Available | AE31: Not Available | AF31: 0 | AG31: Not Attempted | AH31: Not Attempted | AI31: Not Attempted | AJ31: Not Available | AK31: Not Available | AL31: 0 | AM31: Not Available | AN31: Not Available | AO31: Not Available | AP31: Not Available | AQ31: Not Available | AR31: 0 | AS31: Not Available | AT31: Not Available | AU31: Not Available | AV31: 0 | AW31: Not Available | AX31: audit | AY31: N/A | AZ31: N | BA31: N | BB31: N/A | BC31: enrolled

Sheet לפי שאלות
A2: Username | B2: Email | BJJ2: קדם אנליזה 1: מבדק מסכם - העלאת קבצי פתרון (Possible)
BJJ3: 0
BJJ4: 0
BJJ5: 0
BJJ6: 0
BJJ7: 0
BJJ8: 0
BJJ9: 0
BJJ10: 0
BJJ11: 0
BJJ12: 0

Sheet גיליון נתונים (hidden)
A1: סטטוס רצוי | B1: כותרות 1 | C1: כותרת 2 | D1: כותרת 3 | E1: הנחיה פרק 1 | F1: הנחיה פרק 2 | G1: הנחיה פרק 3 | H1: הנחיה פרק 4 | I1: הנחיה פרק 5 | J1: הנחיה פרק 6 | K1: הנחיה פרק 7
A2: פרק 1 | B2: סטטוס תלמיד משוקלל פרק 1 | C2: משימות סיכום פרק 1 | D2: שיעור לתלמיד: פרק 1 | E2: חשוב מאוד! דו"ח סטטוס תלמיד בפרק 1 מתייחס לפרק זה בלבד: 1. נאורות | F2: חשוב מאוד! דו"ח סטטוס תלמיד בפרקים 1-2 מתייחס לפרקים האלו בלבד: * 1. נאורות ** 2. מעמד היהודים (בחירה) *צרפת או *גרמניה חובה השינויים במעמד המשפטי של היהודים בארצות האסלאם.. חובה השלכות השינויים במעמד היהודים על החברה היהודית. | G2: חשוב מאוד! דו"ח סטטוס תלמיד בפרקים 1-3 מתייחס לפרקים האלו בלבד: * 1. נאורות ** 2. מעמד היהודים (בחירה) *** 3. תנועת ההשכלה היהודית | H2: חשוב מאוד! דו"ח סטטוס תלמיד בפרקים 1-4 מתייחס לפרקים האלו בלבד: * 1. נאורות ** 2. מעמד היהודים (בחירה) *** 3. תנועת ההשכלה היהודית **** 4. תנועות וזרמים | I2: חשוב מאוד! דו"ח סטטוס תלמיד בפרקים 1-5 מתייחס לפרקים האלו בלבד: * 1. נאורות ** 2. מעמד היהודים (בחירה) *** 3. תנועת ההשכלה היהודית **** 4. תנועות וזרמים ***** 5. מבשרי הציונות וחיבת ציון | J2: חשוב מאוד! דו"ח סטטוס תלמיד בפרקים 1-6 מתייחס לפרקים האלו בלבד: * 1. נאורות ** 2. מעמד היהודים (בחירה) *** 3. תנועת ההשכלה היהודית **** 4. תנועות וזרמים ***** 5. מבשרי הציונות וחיבת ציון ****** 6. התנועה הציונית והרצל | K2: חשוב מאוד! דו"ח סטטוס תלמיד בפרקים 1-7 מתייחס לפרקים האלו בלבד: * 1. נאורות ** 2. מעמד היהודים (בחירה) *** 3. תנועת ההשכלה היהודית **** 4. תנועות וזרמים ***** 5. מבשרי הציונות וחיבת ציון ****** 6. התנועה הציונית והרצל ******* 7. מפלגות, זרמים ומתנגדים
A3: פרקים 1-2 | B3: סטטוס תלמיד משוקלל פרקים 1-2 | C3: משימות סיכום פרקים 1-2 | D3: שיעור לתלמיד: פרקים 1-2
A4: פרקים 1-3 | B4: סטטוס תלמיד משוקלל פרקים 1-3 | C4: משימות סיכום פרקים 1-3 | D4: שיעור לתלמיד: פרקים 1-3
A5: פרקים 1-4 | B5: סטטוס תלמיד משוקלל פרקים 1-4 | C5: משימות סיכום פרקים 1-4 | D5: שיעור לתלמיד: פרקים 1-4
A6: פרקים 1-5 | B6: סטטוס תלמיד משוקלל פרקים 1-5 | C6: משימות סיכום פרקים 1-5 | D6: שיעור לתלמיד: פרקים 1-5
A7: פרקים 1-6 | B7: סטטוס תלמיד משוקלל פרקים 1-6 | C7: משימות סיכום פרקים 1-6 | D7: שיעור לתלמיד: פרקים 1-6
A8: פרקים 1-7 | B8: סטטוס תלמיד משוקלל פרקים 1-7 | C8: משימות סיכום פרקים 1-7 | D8: שיעור לתלמיד: פרקים 1-7
A10: חשוב! - לא לשנות את עמודה A ללא צורך - היא מפנה אל תא I2 בלשונית סטטוס כללי לבחירה. זה חשוב לצורך כפתור ה- combo box לבחירה. עמודה B - מכילה נתונים של כותרת הטבלה בלשונית סטטוס כללי לבחירה של "סטטוס תלמיד משוקלל" עמודה C - מכילה נתונים של כותרת הטבלה בלשונית סטטוס כללי לבחירה של "משימות סיכום פרק" עמודה D - מכילה נתונים של כותרת הטבלה בלשונית סטטוס כללי לבחירה של "שיעור לתלמיד" עמודות E עד I - מכילות נתונים של מידע כללי למורה והפרקים שנכללים בבחירה בלשונית סטטוס כללי לבחירה.

Sheet תבנית דוח ציונים (hidden)

Sheet תבנית דוח בעיות (hidden)

Sheet courses_index (hidden)
A1: תת פרק | B1: פרק | C1: מזהה הקורס | D1: שם הקורס | F1: רכיבי ציון
A2: נאורוּת - שיעור לתלמיד | B2: נאורוּת | C2: EDU_EDU005_1_2020 | D2: מסורת ומודרנה | F2: שיעור לתלמיד
A3: נאורוּת - משימת סיכום | B3: נאורוּת | C3: EDU_EDU005_1_2020 | D3: מסורת ומודרנה | F3: סיכום פרק
A4: נאורוּת - משימת הפנמה | B4: נאורוּת | C4: EDU_EDU005_1_2020 | D4: מסורת ומודרנה | F4: הפנמה
A5: נאורוּת - משימת העשרה | B5: נאורוּת | C5: EDU_EDU005_1_2020 | D5: מסורת ומודרנה | F5: העשרה
A6: השינויים במעמד המשפטי של יהודי צרפת משלהי המאה ה-18 עד ראשית המאה ה-20 - תת פרק לבחירה | B6: מעמד היהודים משלהי המאה ה-18 ועד תחילת המאה ה-20 | C6: EDU_EDU005_1_2020 | D6: מסורת ומודרנה | F6: שיעור לתלמיד
A7: השינויים במעמד המשפטי של יהודי צרפת משלהי המאה ה-18 עד ראשית המאה ה-20 -משימת סיכום | B7: מעמד היהודים משלהי המאה ה-18 ועד תחילת המאה ה-20 | C7: EDU_EDU005_1_2020 | D7: מסורת ומודרנה | F7: סיכום פרק
A8: השינויים במעמד המשפטי של יהודי גרמניה משלהי המאה ה-18 עד ראשית המאה ה-20 - תת פרק לבחירה | B8: מעמד היהודים משלהי המאה ה-18 ועד תחילת המאה ה-20 | C8: EDU_EDU005_1_2020 | D8: מסורת ומודרנה | F8: שיעור לתלמיד
A9: השינויים במעמד המשפטי של יהודי גרמניה משלהי המאה ה-18 עד ראשית המאה ה-20 - תת פרק לבחירה -משימת סיכום | B9: מעמד היהודים משלהי המאה ה-18 ועד תחילת המאה ה-20 | C9: EDU_EDU005_1_2020 | D9: מסורת ומודרנה | F9: סיכום פרק
A10: השינויים במעמד המשפטי של היהודים בארצות האסלאם - תהליך האמנציפציה באלג'יריה - תת פרק חובה | B10: מעמד היהודים משלהי המאה ה-18 ועד תחילת המאה ה-20 | C10: EDU_EDU005_1_2020 | D10: מסורת ומודרנה | F10: שיעור לתלמיד
A11: השינויים במעמד המשפטי של היהודים בארצות האסלאם - תהליך האמנציפציה באלג'יריה - משימת סיכום | B11: מעמד היהודים משלהי המאה ה-18 ועד תחילת המאה ה-20 | C11: EDU_EDU005_1_2020 | D11: מסורת ומודרנה | F11: סיכום פרק
A12: השלכות השינויים במעמד היהודים על החברה היהודית - תת פרק חובה | B12: מעמד היהודים משלהי המאה ה-18 ועד תחילת המאה ה-20 | C12: EDU_EDU005_1_2020 | D12: מסורת ומודרנה | F12: שיעור לתלמיד
A13: השפעת הליברליזם על תמורות בחברה היהודית - משימת סיכום - סיכום הסוגיה לכל הפרק | B13: מעמד היהודים משלהי המאה ה-18 ועד תחילת המאה ה-20 | C13: EDU_EDU005_1_2020 | D13: מסורת ומודרנה | F13: סיכום פרק
A14: מעמד היהודים משלהי המאה ה-18 ועד תחילת המאה ה-20 - משימת הפנמה לכל הפרק | B14: מעמד היהודים משלהי המאה ה-18 ועד תחילת המאה ה-20 | C14: EDU_EDU005_1_2020 | D14: מסורת ומודרנה | F14: הפנמה
A15: מעמד היהודים משלהי המאה ה-18 ועד תחילת המאה ה-20 - משימת העשרה לכל הפרק | B15: מעמד היהודים משלהי המאה ה-18 ועד תחילת המאה ה-20 | C15: EDU_EDU005_1_2020 | D15: מסורת ומודרנה | F15: העשרה
A16: השפעת הנאורות על החברה היהודית - תת פרק חובה | B16: תנועת ההשכלה היהודית | C16: EDU_EDU005_1_2020 | D16: מסורת ומודרנה | F16: שיעור לתלמיד
A17: השפעת הנאורות על החברה היהודית - תת פרק חובה - משימת סיכום | B17: תנועת ההשכלה היהודית | C17: EDU_EDU005_1_2020 | D17: מסורת ומודרנה | F17: סיכום פרק
A18: ניאו אורתודוקסיה - חיוב המודרנה תוך שמירה קפדנית על מצוות הדת - שיעור לתלמיד | B18: תנועות וזרמים יהודיים | C18: EDU_EDU005_1_2020 | D18: מסורת ומודרנה | F18: שיעור לתלמיד
A19: ניאו אורתודוקסיה - חיוב המודרנה תוך שמירה קפדנית על מצוות הדת - משימת סיכום | B19: תנועות וזרמים יהודיים | C19: EDU_EDU005_1_2020 | D19: מסורת ומודרנה | F19: סיכום פרק
A20: מבשרי הציונות וחיבת ציון - שיעור לתלמיד | B20: מבשרי הציונות וחיבת ציון | C20: EDU_EDU005_1_2020 | D20: מסורת ומודרנה | F20: שיעור לתלמיד
A21: מבשרי הציונות וחיבת ציון - משימת סיכום | B21: מבשרי הציונות וחיבת ציון | C21: EDU_EDU005_1_2020 | D21: מסורת ומודרנה | F21: סיכום פרק
A22: מבשרי הציונות וחיבת ציון - משימת הפנמה | B22: מבשרי הציונות וחיבת ציון | C22: EDU_EDU005_1_2020 | D22: מסורת ומודרנה | F22: הפנמה
A23: מבשרי הציונות וחיבת ציון - משימת העשרה | B23: מבשרי הציונות וחיבת ציון | C23: EDU_EDU005_1_2020 | D23: מסורת ומודרנה | F23: העשרה
A24: התנועה הציונית והרצל - שיעור לתלמיד | B24: התנועה הציונית והרצל | C24: EDU_EDU005_1_2020 | D24: מסורת ומודרנה | F24: שיעור לתלמיד
A25: התנועה הציונית והרצל - משימת סיכום - סוף ימיו של הרצל | B25: התנועה הציונית והרצל | C25: EDU_EDU005_1_2020 | D25: מסורת ומודרנה | F25: סיכום פרק
A26: התנועה הציונית והרצל - משימת הפנמה | B26: התנועה הציונית והרצל | C26: EDU_EDU005_1_2020 | D26: מסורת ומודרנה | F26: הפנמה
A27: התנועה הציונית והרצל - משימת העשרה | B27: התנועה הציונית והרצל | C27: EDU_EDU005_1_2020 | D27: מסורת ומודרנה | F27: העשרה
A28: מפלגות, זרמים ומתנגדים - שיעור לתלמיד | B28: מפלגות, זרמים ומתנגדים | C28: EDU_EDU005_1_2020 | D28: מסורת ומודרנה | F28: שיעור לתלמיד
A29: מפלגות, זרמים ומתנגדים - משימת סיכום | B29: מפלגות, זרמים ומתנגדים | C29: EDU_EDU005_1_2020 | D29: מסורת ומודרנה | F29: סיכום פרק
A30: מפלגות, זרמים ומתנגדים - משימת הפנמה | B30: מפלגות, זרמים ומתנגדים | C30: EDU_EDU005_1_2020 | D30: מסורת ומודרנה | F30: הפנמה
A31: מפלגות, זרמים ומתנגדים - משימת העשרה | B31: מפלגות, זרמים ומתנגדים | C31: EDU_EDU005_1_2020 | D31: מסורת ומודרנה | F31: העשרה
A32: תלמידאות | B32: תלמידאות | C32: EDU_EDU005_1_2020 | D32: מסורת ומודרנה | F32: תלמידאות
A33: פרק א – שאלה 1 לבחירה | B33: פרק א' | C33: EDU_EDU005_1_2020 | D33: מסורת ומודרנה | F33: מטלה סופית חלק א
A34: פרק א – שאלה 2 לבחירה | B34: פרק א' | C34: EDU_EDU005_1_2020 | D34: מסורת ומודרנה | F34: מטלה סופית חלק א
A35: פרק א – שאלה 3 לבחירה | B35: פרק א' | C35: EDU_EDU005_1_2020 | D35: מסורת ומודרנה | F35: מטלה סופית חלק א
A36: פרק א – שאלה 4 לבחירה | B36: פרק א' | C36: EDU_EDU005_1_2020 | D36: מסורת ומודרנה | F36: מטלה סופית חלק א
A37: פרק ב – שאלה 5 לבחירה | B37: פרק ב' | C37: EDU_EDU005_1_2020 | D37: מסורת ומודרנה | F37: מטלה סופית חלק ב
A38: פרק ב – שאלה 6 לבחירה | B38: פרק ב' | C38: EDU_EDU005_1_2020 | D38: מסורת ומודרנה | F38: מטלה סופית חלק ב
A39: פרק ב – שאלה 7 לבחירה | B39: פרק ב' | C39: EDU_EDU005_1_2020 | D39: מסורת ומודרנה | F39: מטלה סופית חלק ב
A40: סיכום חלק ג' | B40: פרק ג' | C40: EDU_EDU005_1_2020 | D40: מסורת ומודרנה | F40: מטלה סופית חלק ג

Sheet לוח בקרה למורה
A1: Username | C1: כמות עבודות העשרה בציון 55 ומעלה | D1: פירוט העשרה (מעל 55) | E1: =IF($I$2="פרק 1",'גיליון נתונים'!B2, IF($I$2="פרקים 1-2",'גיליון נתונים'!B3, IF($I$2="פרקים 1-3",'גיליון נתונים'!B4, IF($I$2="פרקים 1-4",'גיליון נתונים'!B5, IF($I$2="פרקים 1-5",'גיליון נתונים'!B6, IF($I$2="פרקים 1-6",'גיליון נתונים'!B7, IF($I$2="פרקים 1-7",'גיליון נתונים'!B8, IF($I$2="פרקים 1-8",'גיליון נתונים'!B9)))))))) -> סטטוס תלמיד משוקלל פרק 1 | F1: =IF($I$2="פרק 1",'גיליון נתונים'!C2, IF($I$2="פרקים 1-2",'גיליון נתונים'!C3, IF($I$2="פרקים 1-3",'גיליון נתונים'!C4, IF($I$2="פרקים 1-4",'גיליון נתונים'!C5, IF($I$2="פרקים 1-5",'גיליון נתונים'!C6, IF($I$2="פרקים 1-6",'גיליון נתונים'!C7, IF($I$2="פרקים 1-7",'גיליון נתונים'!C8, IF($I$2="פרקים 1-8",'גיליון נתונים'!C9)))))))) -> משימות סיכום פרק 1 | G1: =IF($I$2="פרק 1",'גיליון נתונים'!D2, IF($I$2="פרקים 1-2",'גיליון נתונים'!D3, IF($I$2="פרקים 1-3",'גיליון נתונים'!D4, IF($I$2="פרקים 1-4",'גיליון נתונים'!D5, IF($I$2="פרקים 1-5",'גיליון נתונים'!D6, IF($I$2="פרקים 1-6",'גיליון נתונים'!D7, IF($I$2="פרקים 1-7",'גיליון נתונים'!D8, IF($I$2="פרקים 1-8",'גיליון נתונים'!D9)))))))) -> שיעור לתלמיד: פרק 1 | H1: כמות עבודות הפנמה בציון 55 ומעלה | I1: בחירת הסטטוס הרצוי לחצו כאן לכפתור הבחירה ↓ | K1: =IF($I$2="פרק 1",'גיליון נתונים'!E2, IF($I$2="פרקים 1-2",'גיליון נתונים'!F2, IF($I$2="פרקים 1-3",'גיליון נתונים'!G2, IF($I$2="פרקים 1-4",'גיליון נתונים'!H2, IF($I$2="פרקים 1-5",'גיליון נתונים'!I2, IF($I$2="פרקים 1-6",'גיליון נתונים'!J2, IF($I$2="פרקים 1-7",'גיליון נתונים'!K2, IF($I$2="פרקים 1-8",'גיליון נתונים'!L2)))))))) -> חשוב מאוד! דו"ח סטטוס תלמיד בפרק 1 מתייחס לפרק זה בלבד: 1. נאורות
A2: TOP | I2: פרק 1
A3: =grade_report!C4 -> RonitHochster | C3: =COUNTIF(grade_report!AG4:AK4,">=0.55") -> 0 | D3: =IF(C3=0,"ללא",IF(C3=1,"עבודה אחת",IF(C3=2,"שתי עבודות",IF(C3>=3,"שלוש עבודות או יותר")))) -> ללא | E3: =G3*(0.15/0.5)+F3*(0.35/0.5) -> 0.01875 | F3: =IF($I$2="פרק 1",SUM(grade_report!P4), IF($I$2="פרקים 1-2",(SUM(grade_report!P4)+SUM(grade_report!S4:T4)+MAX(grade_report!Q4:R4))/4, IF($I$2="פרקים 1-3",(SUM(grade_report!P4)+SUM(grade_report!S4:T4)+MAX(grade_report!Q4:R4)+SUM(grade_report!U4))/5, IF($I$2="פרקים 1-4",(SUM(grade_report!P4)+SUM(grade_report!S4:T4)+MAX(grade_report!Q4:R4)+SUM(grade_report!U4:V4))/6, IF($I$2="פרקים 1-5",(SUM(grade_report!P4)+SUM(grade_report!S4:T4)+MAX(grade_report!Q4:R4)+SUM(grade_report!U4:W4))/7, IF($I$2="פרקים 1-6",(SUM(grade_report!P4)+SUM(grade_report!S4:T4)+MAX(grade_report!Q4:R4)+SUM(grade_report!U4:X4))/8, IF($I$2="פרקים 1-7",(SUM(grade_report!P4)+SUM(grade_report!S4:T4)+MAX(grade_report!Q4:R4)+SUM(grade_report!U4:Y4))/9,0))))))) -> 0 | G3: =IF($I$2="פרק 1",SUM(grade_report!E4), IF($I$2="פרקים 1-2",(SUM(grade_report!E4)+SUM(grade_report!H4:I4)+MAX(grade_report!F4:G4))/4, IF($I$2="פרקים 1-3",(SUM(grade_report!E4)+SUM(grade_report!H4:I4)+MAX(grade_report!F4:G4)+SUM(grade_report!J4))/5, IF($I$2="פרקים 1-4",(SUM(grade_report!E4)+SUM(grade_report!H4:I4)+MAX(grade_report!F4:G4)+SUM(grade_report!J4:K4))/6, IF($I$2="פרקים 1-5",(SUM(grade_report!E4)+SUM(grade_report!H4:I4)+MAX(grade_report!F4:G4)+SUM(grade_report!J4:L4))/7, IF($I$2="פרקים 1-6",(SUM(grade_report!E4)+SUM(grade_report!H4:I4)+MAX(grade_report!F4:G4)+SUM(grade_report!J4:M4))/8, IF($I$2="פרקים 1-7",(SUM(grade_report!E4)+SUM(grade_report!H4:I4)+MAX(grade_report!F4:G4)+SUM(grade_report!J4:N4))/9,0))))))) -> 0.0625 | H3: =COUNTIF(grade_report!AA4:AE4,">=0.55") -> 0
A4: =grade_report!C5 -> Jamalk1 | C4: =COUNTIF(grade_report!AG5:AK5,">=0.55") -> 0 | D4: =IF(C4=0,"ללא",IF(C4=1,"עבודה אחת",IF(C4=2,"שתי עבודות",IF(C4>=3,"שלוש עבודות או יותר")))) -> ללא | E4: =G4*(0.15/0.5)+F4*(0.35/0.5) -> 0 | F4: =IF($I$2="פרק 1",SUM(grade_report!P5), IF($I$2="פרקים 1-2",(SUM(grade_report!P5)+SUM(grade_report!S5:T5)+MAX(grade_report!Q5:R5))/4, IF($I$2="פרקים 1-3",(SUM(grade_report!P5)+SUM(grade_report!S5:T5)+MAX(grade_report!Q5:R5)+SUM(grade_report!U5))/5, IF($I$2="פרקים 1-4",(SUM(grade_report!P5)+SUM(grade_report!S5:T5)+MAX(grade_report!Q5:R5)+SUM(grade_report!U5:V5))/6, IF($I$2="פרקים 1-5",(SUM(grade_report!P5)+SUM(grade_report!S5:T5)+MAX(grade_report!Q5:R5)+SUM(grade_report!U5:W5))/7, IF($I$2="פרקים 1-6",(SUM(grade_report!P5)+SUM(grade_report!S5:T5)+MAX(grade_report!Q5:R5)+SUM(grade_report!U5:X5))/8, IF($I$2="פרקים 1-7",(SUM(grade_report!P5)+SUM(grade_report!S5:T5)+MAX(grade_report!Q5:R5)+SUM(grade_report!U5:Y5))/9,0))))))) -> 0 | G4: =IF($I$2="פרק 1",SUM(grade_report!E5), IF($I$2="פרקים 1-2",(SUM(grade_report!E5)+SUM(grade_report!H5:I5)+MAX(grade_report!F5:G5))/4, IF($I$2="פרקים 1-3",(SUM(grade_report!E5)+SUM(grade_report!H5:I5)+MAX(grade_report!F5:G5)+SUM(grade_report!J5))/5, IF($I$2="פרקים 1-4",(SUM(grade_report!E5)+SUM(grade_report!H5:I5)+MAX(grade_report!F5:G5)+SUM(grade_report!J5:K5))/6, IF($I$2="פרקים 1-5",(SUM(grade_report!E5)+SUM(grade_report!H5:I5)+MAX(grade_report!F5:G5)+SUM(grade_report!J5:L5))/7, IF($I$2="פרקים 1-6",(SUM(grade_report!E5)+SUM(grade_report!H5:I5)+MAX(grade_report!F5:G5)+SUM(grade_report!J5:M5))/8, IF($I$2="פרקים 1-7",(SUM(grade_report!E5)+SUM(grade_report!H5:I5)+MAX(grade_report!F5:G5)+SUM(grade_report!J5:N5))/9,0))))))) -> 0 | H4: =COUNTIF(grade_report!AA5:AE5,">=0.55") -> 0
A5: =grade_report!C6 -> נועה_ביטון_4 | C5: =COUNTIF(grade_report!AG6:AK6,">=0.55") -> 0 | D5: ללא | E5: 0.28125 | F5: =IF($I$2="פרק 1",SUM(grade_report!P6), IF($I$2="פרקים 1-2",(SUM(grade_report!P6)+SUM(grade_report!S6:T6)+MAX(grade_report!Q6:R6))/4, IF($I$2="פרקים 1-3",(SUM(grade_report!P6)+SUM(grade_report!S6:T6)+MAX(grade_report!Q6:R6)+SUM(grade_report!U6))/5, IF($I$2="פרקים 1-4",(SUM(grade_report!P6)+SUM(grade_report!S6:T6)+MAX(grade_report!Q6:R6)+SUM(grade_report!U6:V6))/6, IF($I$2="פרקים 1-5",(SUM(grade_report!P6)+SUM(grade_report!S6:T6)+MAX(grade_report!Q6:R6)+SUM(grade_report!U6:W6))/7, IF($I$2="פרקים 1-6",(SUM(grade_report!P6)+SUM(grade_report!S6:T6)+MAX(grade_report!Q6:R6)+SUM(grade_report!U6:X6))/8, IF($I$2="פרקים 1-7",(SUM(grade_report!P6)+SUM(grade_report!S6:T6)+MAX(grade_report!Q6:R6)+SUM(grade_report!U6:Y6))/9,0))))))) -> 0 | G5: =IF($I$2="פרק 1",SUM(grade_report!E6), IF($I$2="פרקים 1-2",(SUM(grade_report!E6)+SUM(grade_report!H6:I6)+MAX(grade_report!F6:G6))/4, IF($I$2="פרקים 1-3",(SUM(grade_report!E6)+SUM(grade_report!H6:I6)+MAX(grade_report!F6:G6)+SUM(grade_report!J6))/5, IF($I$2="פרקים 1-4",(SUM(grade_report!E6)+SUM(grade_report!H6:I6)+MAX(grade_report!F6:G6)+SUM(grade_report!J6:K6))/6, IF($I$2="פרקים 1-5",(SUM(grade_report!E6)+SUM(grade_report!H6:I6)+MAX(grade_report!F6:G6)+SUM(grade_report!J6:L6))/7, IF($I$2="פרקים 1-6",(SUM(grade_report!E6)+SUM(grade_report!H6:I6)+MAX(grade_report!F6:G6)+SUM(grade_report!J6:M6))/8, IF($I$2="פרקים 1-7",(SUM(grade_report!E6)+SUM(grade_report!H6:I6)+MAX(grade_report!F6:G6)+SUM(grade_report!J6:N6))/9,0))))))) -> 0.9375 | H5: =COUNTIF(grade_report!AA6:AE6,">=0.55") -> 0
A6: =grade_report!C7 -> שקד_בן_דוד | C6: =COUNTIF(grade_report!AG7:AK7,">=0.55") -> 0 | D6: ללא | E6: 0.24375 | F6: =IF($I$2="פרק 1",SUM(grade_report!P7), IF($I$2="פרקים 1-2",(SUM(grade_report!P7)+SUM(grade_report!S7:T7)+MAX(grade_report!Q7:R7))/4, IF($I$2="פרקים 1-3",(SUM(grade_report!P7)+SUM(grade_report!S7:T7)+MAX(grade_report!Q7:R7)+SUM(grade_report!U7))/5, IF($I$2="פרקים 1-4",(SUM(grade_report!P7)+SUM(grade_report!S7:T7)+MAX(grade_report!Q7:R7)+SUM(grade_report!U7:V7))/6, IF($I$2="פרקים 1-5",(SUM(grade_report!P7)+SUM(grade_report!S7:T7)+MAX(grade_report!Q7:R7)+SUM(grade_report!U7:W7))/7, IF($I$2="פרקים 1-6",(SUM(grade_report!P7)+SUM(grade_report!S7:T7)+MAX(grade_report!Q7:R7)+SUM(grade_report!U7:X7))/8, IF($I$2="פרקים 1-7",(SUM(grade_report!P7)+SUM(grade_report!S7:T7)+MAX(grade_report!Q7:R7)+SUM(grade_report!U7:Y7))/9,0))))))) -> 0 | G6: =IF($I$2="פרק 1",SUM(grade_report!E7), IF($I$2="פרקים 1-2",(SUM(grade_report!E7)+SUM(grade_report!H7:I7)+MAX(grade_report!F7:G7))/4, IF($I$2="פרקים 1-3",(SUM(grade_report!E7)+SUM(grade_report!H7:I7)+MAX(grade_report!F7:G7)+SUM(grade_report!J7))/5, IF($I$2="פרקים 1-4",(SUM(grade_report!E7)+SUM(grade_report!H7:I7)+MAX(grade_report!F7:G7)+SUM(grade_report!J7:K7))/6, IF($I$2="פרקים 1-5",(SUM(grade_report!E7)+SUM(grade_report!H7:I7)+MAX(grade_report!F7:G7)+SUM(grade_report!J7:L7))/7, IF($I$2="פרקים 1-6",(SUM(grade_report!E7)+SUM(grade_report!H7:I7)+MAX(grade_report!F7:G7)+SUM(grade_report!J7:M7))/8, IF($I$2="פרקים 1-7",(SUM(grade_report!E7)+SUM(grade_report!H7:I7)+MAX(grade_report!F7:G7)+SUM(grade_report!J7:N7))/9,0))))))) -> 0.8125 | H6: =COUNTIF(grade_report!AA7:AE7,">=0.55") -> 0
A7: =grade_report!C8 -> ליא גולדברג | C7: =COUNTIF(grade_report!AG8:AK8,">=0.55") -> 0 | D7: ללא | E7: 0.3 | F7: =IF($I$2="פרק 1",SUM(grade_report!P8), IF($I$2="פרקים 1-2",(SUM(grade_report!P8)+SUM(grade_report!S8:T8)+MAX(grade_report!Q8:R8))/4, IF($I$2="פרקים 1-3",(SUM(grade_report!P8)+SUM(grade_report!S8:T8)+MAX(grade_report!Q8:R8)+SUM(grade_report!U8))/5, IF($I$2="פרקים 1-4",(SUM(grade_report!P8)+SUM(grade_report!S8:T8)+MAX(grade_report!Q8:R8)+SUM(grade_report!U8:V8))/6, IF($I$2="פרקים 1-5",(SUM(grade_report!P8)+SUM(grade_report!S8:T8)+MAX(grade_report!Q8:R8)+SUM(grade_report!U8:W8))/7, IF($I$2="פרקים 1-6",(SUM(grade_report!P8)+SUM(grade_report!S8:T8)+MAX(grade_report!Q8:R8)+SUM(grade_report!U8:X8))/8, IF($I$2="פרקים 1-7",(SUM(grade_report!P8)+SUM(grade_report!S8:T8)+MAX(grade_report!Q8:R8)+SUM(grade_report!U8:Y8))/9,0))))))) -> 0 | G7: =IF($I$2="פרק 1",SUM(grade_report!E8), IF($I$2="פרקים 1-2",(SUM(grade_report!E8)+SUM(grade_report!H8:I8)+MAX(grade_report!F8:G8))/4, IF($I$2="פרקים 1-3",(SUM(grade_report!E8)+SUM(grade_report!H8:I8)+MAX(grade_report!F8:G8)+SUM(grade_report!J8))/5, IF($I$2="פרקים 1-4",(SUM(grade_report!E8)+SUM(grade_report!H8:I8)+MAX(grade_report!F8:G8)+SUM(grade_report!J8:K8))/6, IF($I$2="פרקים 1-5",(SUM(grade_report!E8)+SUM(grade_report!H8:I8)+MAX(grade_report!F8:G8)+SUM(grade_report!J8:L8))/7, IF($I$2="פרקים 1-6",(SUM(grade_report!E8)+SUM(grade_report!H8:I8)+MAX(grade_report!F8:G8)+SUM(grade_report!J8:M8))/8, IF($I$2="פרקים 1-7",(SUM(grade_report!E8)+SUM(grade_report!H8:I8)+MAX(grade_report!F8:G8)+SUM(grade_report!J8:N8))/9,0))))))) -> 1 | H7: =COUNTIF(grade_report!AA8:AE8,">=0.55") -> 0
